Workbook

Sheet INTRO
B2: PC Joint Reporting Form v.3
B4: The purpose of this template Joint Reporting Form (JRF) - available as an Excel file - is to provide national health authorities and data managers with a standardized tool to address these reporting challenges, facilitate integration and thereby further contribute to improving overall programme management. This template aims to standardize national reporting of programme implementation outcomes, improve availability and coordination of preventive chemotherapy data across the World Health Organization regions. National authorities are requested to complete this form for submission to the World Health Organization any time before 15 August of the current year for reporting data on PC interventions implemented during the previous year.
B6: Structure of the application (worksheets):
B8: INTRO | C8: This worksheet includes guides on how to complete the joint reporting form and information about status of PC for endemic diseases in the country
B9: COUNTRY_INFO | C9: This worksheet includes information about administrative structure of the country, population by age group, status of endemicity for each disease, population requiring PC, planned interventions and interventions implemented
B10: MDA1, MDA2, MDA3, T1, T2 and T3 | C10: These worksheets include information about endemic districts targeted for treatment with specified PC medicines, treatment plan, and number of people who received treatment by age group
B11: DISTRICT | C11: This worksheet includes summary of people treated by disease at the level of implementation. If data by gender is available, it requires to enter.
B12: SUMMARY | C12: This worksheet includes summary of people treated by disease and by PC intervention. Before generating the report (run macros) please select the disease for which you need the report. Follow the same rule to generate various reports. This worksheet should be printed and submitted as a Joint Report (see the instruction for submission in the SUMMARY worksheet).
B14: Instruction for data entry
B16: Most of the cells in the above-mentioned worksheets include formula that are calculated automatically according to the treatment policy recommended by WHO for each disease. See the link http://www.who.int/neglected_diseases/preventive_chemotherapy/pct_manual/en/index.html
B18: Please enter your data into the cells according to their colour code:
C20: White - cell is not protected. Please enter the value of the requested indicator.
C22: Yellow - cell is protected and includes name of indicator. No data entry required.
C24: Orange - cell is not protected and includes a drop-down menu. Please select the value from the drop-down list.
C27: Green - cell is not protected and includes formula. Please change the value only if your data are different from those that are calculated automatically.
C30: Blue - cell is protected and includes formula. No data entry required.
B32: Country data
B34: COUNTRY | E34: Madagascar
B36: Year of reporting data | E36: 2017
B38: Is country endemic for lymphatic filariasis (LF)? | E38: Endemic
B40: Is country endemic for onchocerciasis (ONCHO)? | E40: Non-endemic
B42: Is country endemic for soil-transmitted helminthiases (STH)? | E42: Endemic
B44: Is country endemic for schistosomiasis (SCH)? | E44: Endemic
B46: How many administrative units in the country? | E46: 114
B47: If demographical data at the second administrative level are not available by age group, please enter the proportion (%) of population by age group in the country. If data are available, please leave these cells blank.
B48: 1-4 years age | C48: Preschool-age children (PreSAC) | E48: 0.16
B49: 5-14 years age | C49: School-age children (SAC) | E49: 0.275
B50: 15 years + | C50: Adults | E50: 0.565

Sheet COUNTRY_INFO
A1: COUNTRY INFORMATION
A2: Administrative structure, population by age group, endemicity status, planned interventions and interventions implemented
A4: TOTAL | D4: =SUM(D$9:D$1000) -> 24297971 | E4: =SUM(E$9:E$1000) -> 3887676 | F4: =SUM(F$9:F$1000) -> 6681941 | G4: =SUM(G$9:G$1000) -> 13728354 | L4: =SUM(L$9:L$1000) -> 19637679 | M4: =SUM(M$9:M$1000) -> 0 | N4: =SUM(N$9:N$1000) -> 6638372 | O4: =SUM(O$9:O$1000) -> 8760806.61
A6: Country administrative structure | D6: Population | H6: Endemicity | L6: Population requiring PC | P6: Number of treatment rounds planned for the year | T6: PC implemented | V6: Click to see the recommended strategy
A7: Country | B7: Province/State | C7: District | D7: Total | E7: PreSAC | F7: SAC | G7: Adults | H7: LF | I7: Oncho | J7: STH | K7: SCH | L7: LF | M7: Oncho | N7: STH | O7: SCH | P7: LF | Q7: Oncho | R7: STH | S7: SCH | T7: ROUND 1 | U7: ROUND2 | X7: UI_Id | Y7: UI_Name
A9: =IF(INTRO!$E$34<>0,INTRO!$E$34,"") -> Madagascar | B9: Analamanga | C9: Ambohidratrimo | D9: 443902 | E9: =IF(INTRO!$E$48="","",ROUND($D9*INTRO!$E$48,0)) -> 71024 | F9: =IF(INTRO!$E$49="","",ROUND($D9*INTRO!$E$49,0)) -> 122073 | G9: =IF(INTRO!$E$50="","",ROUND($D9*INTRO!$E$50,0)) -> 250805 | H9: 1 | J9: 2 | K9: 0 | L9: =IF(INTRO!$E$38="Endemic", IF($H9>0, IF($H9=4,"Unknown", IF($H9=99,"Stopped", $D9)), 0),"Not required") -> 443902 | M9: =IF(INTRO!$E$40="Endemic", IF($I9>0, IF($I9=4,"Unknown",IF($I9=99,"Stopped", $D9)), 0),"Not required") -> Not required | N9: =IF(INTRO!$E$42="Endemic", IF(AND($J9>1,$J9<5), IF($J9=4, "Unknown", E9+F9), 0),"Not required") -> 193097 | O9: =IF(INTRO!$E$44="Endemic", IF(AND($K9>0,$K9<5), IF($K9=4,"Unknown", IF($K9=1, $F9*0.33, IF($K9=2, $F9*0.5+$G9*0.2, SUM(F9:G9)))), 0),"Not required") -> 0 | P9: 1 | R9: 0 | S9: 0 | V9: MDA 2 | X9: 27842 | Y9: Ambohidratrimo
A10: =IF(INTRO!$E$34<>0,INTRO!$E$34,"") -> Madagascar | B10: Analamanga | C10: Andramasina | D10: 189252 | E10: =IF(INTRO!$E$48="","",ROUND($D10*INTRO!$E$48,0)) -> 30280 | F10: =IF(INTRO!$E$49="","",ROUND($D10*INTRO!$E$49,0)) -> 52044 | G10: =IF(INTRO!$E$50="","",ROUND($D10*INTRO!$E$50,0)) -> 106927 | H10: 1 | J10: 3 | K10: 0 | L10: =IF(INTRO!$E$38="Endemic", IF($H10>0, IF($H10=4,"Unknown", IF($H10=99,"Stopped", $D10)), 0),"Not required") -> 189252 | M10: =IF(INTRO!$E$40="Endemic", IF($I10>0, IF($I10=4,"Unknown",IF($I10=99,"Stopped", $D10)), 0),"Not required") -> Not required | N10: =IF(INTRO!$E$42="Endemic", IF(AND($J10>1,$J10<5), IF($J10=4, "Unknown", E10+F10), 0),"Not required") -> 82324 | O10: =IF(INTRO!$E$44="Endemic", IF(AND($K10>0,$K10<5), IF($K10=4,"Unknown", IF($K10=1, $F10*0.33, IF($K10=2, $F10*0.5+$G10*0.2, SUM(F10:G10)))), 0),"Not required") -> 0 | P10: 1 | R10: 1 | S10: 0 | V10: MDA 2 | W10: T3 | X10: 27843 | Y10: Andramasina
A11: =IF(INTRO!$E$34<>0,INTRO!$E$34,"") -> Madagascar | B11: Analamanga | C11: Anjozorobe | D11: 197050 | E11: =IF(INTRO!$E$48="","",ROUND($D11*INTRO!$E$48,0)) -> 31528 | F11: =IF(INTRO!$E$49="","",ROUND($D11*INTRO!$E$49,0)) -> 54189 | G11: =IF(INTRO!$E$50="","",ROUND($D11*INTRO!$E$50,0)) -> 111333 | H11: 1 | J11: 2 | K11: 1 | L11: =IF(INTRO!$E$38="Endemic", IF($H11>0, IF($H11=4,"Unknown", IF($H11=99,"Stopped", $D11)), 0),"Not required") -> 197050 | M11: =IF(INTRO!$E$40="Endemic", IF($I11>0, IF($I11=4,"Unknown",IF($I11=99,"Stopped", $D11)), 0),"Not required") -> Not required | N11: =IF(INTRO!$E$42="Endemic", IF(AND($J11>1,$J11<5), IF($J11=4, "Unknown", E11+F11), 0),"Not required") -> 85717 | O11: =IF(INTRO!$E$44="Endemic", IF(AND($K11>0,$K11<5), IF($K11=4,"Unknown", IF($K11=1, $F11*0.33, IF($K11=2, $F11*0.5+$G11*0.2, SUM(F11:G11)))), 0),"Not required") -> 17882.37 | P11: 1 | R11: 0 | S11: 1 | V11: MDA 2 | W11: T2 | X11: 27844 | Y11: Anjozorobe
A12: =IF(INTRO!$E$34<>0,INTRO!$E$34,"") -> Madagascar | B12: Analamanga | C12: Ankazobe | D12: 168582 | E12: =IF(INTRO!$E$48="","",ROUND($D12*INTRO!$E$48,0)) -> 26973 | F12: =IF(INTRO!$E$49="","",ROUND($D12*INTRO!$E$49,0)) -> 46360 | G12: =IF(INTRO!$E$50="","",ROUND($D12*INTRO!$E$50,0)) -> 95249 | H12: 1 | J12: 1 | K12: 2 | L12: =IF(INTRO!$E$38="Endemic", IF($H12>0, IF($H12=4,"Unknown", IF($H12=99,"Stopped", $D12)), 0),"Not required") -> 168582 | M12: =IF(INTRO!$E$40="Endemic", IF($I12>0, IF($I12=4,"Unknown",IF($I12=99,"Stopped", $D12)), 0),"Not required") -> Not required | N12: =IF(INTRO!$E$42="Endemic", IF(AND($J12>1,$J12<5), IF($J12=4, "Unknown", E12+F12), 0),"Not required") -> 0 | O12: =IF(INTRO!$E$44="Endemic", IF(AND($K12>0,$K12<5), IF($K12=4,"Unknown", IF($K12=1, $F12*0.33, IF($K12=2, $F12*0.5+$G12*0.2, SUM(F12:G12)))), 0),"Not required") -> 42229.8 | P12: 1 | R12: 0 | S12: 0 | V12: MDA 2 | W12: T2 | X12: 27845 | Y12: Ankazobe
A13: =IF(INTRO!$E$34<>0,INTRO!$E$34,"") -> Madagascar | B13: Analamanga | C13: Antananarivo Atsimondrano | D13: 650979 | E13: =IF(INTRO!$E$48="","",ROUND($D13*INTRO!$E$48,0)) -> 104157 | F13: =IF(INTRO!$E$49="","",ROUND($D13*INTRO!$E$49,0)) -> 179019 | G13: =IF(INTRO!$E$50="","",ROUND($D13*INTRO!$E$50,0)) -> 367803 | H13: 1 | J13: 3 | K13: 2 | L13: =IF(INTRO!$E$38="Endemic", IF($H13>0, IF($H13=4,"Unknown", IF($H13=99,"Stopped", $D13)), 0),"Not required") -> 650979 | M13: =IF(INTRO!$E$40="Endemic", IF($I13>0, IF($I13=4,"Unknown",IF($I13=99,"Stopped", $D13)), 0),"Not required") -> Not required | N13: =IF(INTRO!$E$42="Endemic", IF(AND($J13>1,$J13<5), IF($J13=4, "Unknown", E13+F13), 0),"Not required") -> 283176 | O13: =IF(INTRO!$E$44="Endemic", IF(AND($K13>0,$K13<5), IF($K13=4,"Unknown", IF($K13=1, $F13*0.33, IF($K13=2, $F13*0.5+$G13*0.2, SUM(F13:G13)))), 0),"Not required") -> 163070.1 | P13: 1 | R13: 1 | S13: 1 | T13: T2 (PZQ) | U13: T3 (ALB/MBD) | V13: MDA 2 | W13: T1 | X13: 27846 | Y13: Antananarivo Atsimondrano
A14: =IF(INTRO!$E$34<>0,INTRO!$E$34,"") -> Madagascar | B14: Analamanga | C14: Antananarivo Avaradrano | D14: 403301 | E14: =IF(INTRO!$E$48="","",ROUND($D14*INTRO!$E$48,0)) -> 64528 | F14: =IF(INTRO!$E$49="","",ROUND($D14*INTRO!$E$49,0)) -> 110908 | G14: =IF(INTRO!$E$50="","",ROUND($D14*INTRO!$E$50,0)) -> 227865 | H14: 1 | J14: 3 | K14: 2 | L14: =IF(INTRO!$E$38="Endemic", IF($H14>0, IF($H14=4,"Unknown", IF($H14=99,"Stopped", $D14)), 0),"Not required") -> 403301 | M14: =IF(INTRO!$E$40="Endemic", IF($I14>0, IF($I14=4,"Unknown",IF($I14=99,"Stopped", $D14)), 0),"Not required") -> Not required | N14: =IF(INTRO!$E$42="Endemic", IF(AND($J14>1,$J14<5), IF($J14=4, "Unknown", E14+F14), 0),"Not required") -> 175436 | O14: =IF(INTRO!$E$44="Endemic", IF(AND($K14>0,$K14<5), IF($K14=4,"Unknown", IF($K14=1, $F14*0.33, IF($K14=2, $F14*0.5+$G14*0.2, SUM(F14:G14)))), 0),"Not required") -> 101027 | P14: 1 | R14: 1 | S14: 1 | T14: T2 (PZQ) | U14: T3 (ALB/MBD) | V14: MDA 2 | W14: T1 | X14: 27847 | Y14: Antananarivo Avaradrano
A15: =IF(INTRO!$E$34<>0,INTRO!$E$34,"") -> Madagascar | B15: Analamanga | C15: Antananarivo Renivohitra | D15: 1445142 | E15: =IF(INTRO!$E$48="","",ROUND($D15*INTRO!$E$48,0)) -> 231223 | F15: =IF(INTRO!$E$49="","",ROUND($D15*INTRO!$E$49,0)) -> 397414 | G15: =IF(INTRO!$E$50="","",ROUND($D15*INTRO!$E$50,0)) -> 816505 | H15: 0 | J15: 3 | K15: 1 | L15: =IF(INTRO!$E$38="Endemic", IF($H15>0, IF($H15=4,"Unknown", IF($H15=99,"Stopped", $D15)), 0),"Not required") -> 0 | M15: =IF(INTRO!$E$40="Endemic", IF($I15>0, IF($I15=4,"Unknown",IF($I15=99,"Stopped", $D15)), 0),"Not required") -> Not required | N15: =IF(INTRO!$E$42="Endemic", IF(AND($J15>1,$J15<5), IF($J15=4, "Unknown", E15+F15), 0),"Not required") -> 628637 | O15: =IF(INTRO!$E$44="Endemic", IF(AND($K15>0,$K15<5), IF($K15=4,"Unknown", IF($K15=1, $F15*0.33, IF($K15=2, $F15*0.5+$G15*0.2, SUM(F15:G15)))), 0),"Not required") -> 131146.62 | P15: 0 | R15: 2 | S15: 1 | V15: T1 | W15: T3 | X15: 27848 | Y15: Antananarivo Renivohitra
A16: =IF(INTRO!$E$34<>0,INTRO!$E$34,"") -> Madagascar | B16: Analamanga | C16: Manjakandriana | D16: 227106 | E16: =IF(INTRO!$E$48="","",ROUND($D16*INTRO!$E$48,0)) -> 36337 | F16: =IF(INTRO!$E$49="","",ROUND($D16*INTRO!$E$49,0)) -> 62454 | G16: =IF(INTRO!$E$50="","",ROUND($D16*INTRO!$E$50,0)) -> 128315 | H16: 0 | J16: 3 | K16: 0 | L16: =IF(INTRO!$E$38="Endemic", IF($H16>0, IF($H16=4,"Unknown", IF($H16=99,"Stopped", $D16)), 0),"Not required") -> 0 | M16: =IF(INTRO!$E$40="Endemic", IF($I16>0, IF($I16=4,"Unknown",IF($I16=99,"Stopped", $D16)), 0),"Not required") -> Not required | N16: =IF(INTRO!$E$42="Endemic", IF(AND($J16>1,$J16<5), IF($J16=4, "Unknown", E16+F16), 0),"Not required") -> 98791 | O16: =IF(INTRO!$E$44="Endemic", IF(AND($K16>0,$K16<5), IF($K16=4,"Unknown", IF($K16=1, $F16*0.33, IF($K16=2, $F16*0.5+$G16*0.2, SUM(F16:G16)))), 0),"Not required") -> 0 | P16: 0 | R16: 2 | S16: 0 | V16: T3 | W16: T3 | X16: 27849 | Y16: Manjakandriana
A17: =IF(INTRO!$E$34<>0,INTRO!$E$34,"") -> Madagascar | B17: Vakinankaratra | C17: Ambatolampy | D17: 284965 | E17: =IF(INTRO!$E$48="","",ROUND($D17*INTRO!$E$48,0)) -> 45594 | F17: =IF(INTRO!$E$49="","",ROUND($D17*INTRO!$E$49,0)) -> 78365 | G17: =IF(INTRO!$E$50="","",ROUND($D17*INTRO!$E$50,0)) -> 161005 | H17: 1 | J17: 3 | K17: 0 | L17: =IF(INTRO!$E$38="Endemic", IF($H17>0, IF($H17=4,"Unknown", IF($H17=99,"Stopped", $D17)), 0),"Not required") -> 284965 | M17: =IF(INTRO!$E$40="Endemic", IF($I17>0, IF($I17=4,"Unknown",IF($I17=99,"Stopped", $D17)), 0),"Not required") -> Not required | N17: =IF(INTRO!$E$42="Endemic", IF(AND($J17>1,$J17<5), IF($J17=4, "Unknown", E17+F17), 0),"Not required") -> 123959 | O17: =IF(INTRO!$E$44="Endemic", IF(AND($K17>0,$K17<5), IF($K17=4,"Unknown", IF($K17=1, $F17*0.33, IF($K17=2, $F17*0.5+$G17*0.2, SUM(F17:G17)))), 0),"Not required") -> 0 | P17: 1 | R17: 1 | S17: 0 | V17: MDA 2 | W17: T3 | X17: 27932 | Y17: Ambatolampy
A18: =IF(INTRO!$E$34<>0,INTRO!$E$34,"") -> Madagascar | B18: Vakinankaratra | C18: Antanifotsy | D18: 342567 | E18: =IF(INTRO!$E$48="","",ROUND($D18*INTRO!$E$48,0)) -> 54811 | F18: =IF(INTRO!$E$49="","",ROUND($D18*INTRO!$E$49,0)) -> 94206 | G18: =IF(INTRO!$E$50="","",ROUND($D18*INTRO!$E$50,0)) -> 193550 | H18: 0 | J18: 3 | K18: 0 | L18: =IF(INTRO!$E$38="Endemic", IF($H18>0, IF($H18=4,"Unknown", IF($H18=99,"Stopped", $D18)), 0),"Not required") -> 0 | M18: =IF(INTRO!$E$40="Endemic", IF($I18>0, IF($I18=4,"Unknown",IF($I18=99,"Stopped", $D18)), 0),"Not required") -> Not required | N18: =IF(INTRO!$E$42="Endemic", IF(AND($J18>1,$J18<5), IF($J18=4, "Unknown", E18+F18), 0),"Not required") -> 149017 | O18: =IF(INTRO!$E$44="Endemic", IF(AND($K18>0,$K18<5), IF($K18=4,"Unknown", IF($K18=1, $F18*0.33, IF($K18=2, $F18*0.5+$G18*0.2, SUM(F18:G18)))), 0),"Not required") -> 0 | P18: 0 | R18: 2 | S18: 0 | V18: T3 | W18: T3 | X18: 27933 | Y18: Antanifotsy
A19: =IF(INTRO!$E$34<>0,INTRO!$E$34,"") -> Madagascar | B19: Vakinankaratra | C19: Antsirabe I | D19: 265291 | E19: =IF(INTRO!$E$48="","",ROUND($D19*INTRO!$E$48,0)) -> 42447 | F19: =IF(INTRO!$E$49="","",ROUND($D19*INTRO!$E$49,0)) -> 72955 | G19: =IF(INTRO!$E$50="","",ROUND($D19*INTRO!$E$50,0)) -> 149889 | H19: 0 | J19: 3 | K19: 2 | L19: =IF(INTRO!$E$38="Endemic", IF($H19>0, IF($H19=4,"Unknown", IF($H19=99,"Stopped", $D19)), 0),"Not required") -> 0 | M19: =IF(INTRO!$E$40="Endemic", IF($I19>0, IF($I19=4,"Unknown",IF($I19=99,"Stopped", $D19)), 0),"Not required") -> Not required | N19: =IF(INTRO!$E$42="Endemic", IF(AND($J19>1,$J19<5), IF($J19=4, "Unknown", E19+F19), 0),"Not required") -> 115402 | O19: =IF(INTRO!$E$44="Endemic", IF(AND($K19>0,$K19<5), IF($K19=4,"Unknown", IF($K19=1, $F19*0.33, IF($K19=2, $F19*0.5+$G19*0.2, SUM(F19:G19)))), 0),"Not required") -> 66455.3 | P19: 0 | R19: 2 | S19: 0 | V19: T1 | W19: T3 | X19: 27934 | Y19: Antsirabe I
A20: =IF(INTRO!$E$34<>0,INTRO!$E$34,"") -> Madagascar | B20: Vakinankaratra | C20: Antsirabe II | D20: 452041 | E20: =IF(INTRO!$E$48="","",ROUND($D20*INTRO!$E$48,0)) -> 72327 | F20: =IF(INTRO!$E$49="","",ROUND($D20*INTRO!$E$49,0)) -> 124311 | G20: =IF(INTRO!$E$50="","",ROUND($D20*INTRO!$E$50,0)) -> 255403 | H20: 0 | J20: 3 | K20: 2 | L20: =IF(INTRO!$E$38="Endemic", IF($H20>0, IF($H20=4,"Unknown", IF($H20=99,"Stopped", $D20)), 0),"Not required") -> 0 | M20: =IF(INTRO!$E$40="Endemic", IF($I20>0, IF($I20=4,"Unknown",IF($I20=99,"Stopped", $D20)), 0),"Not required") -> Not required | N20: =IF(INTRO!$E$42="Endemic", IF(AND($J20>1,$J20<5), IF($J20=4, "Unknown", E20+F20), 0),"Not required") -> 196638 | O20: =IF(INTRO!$E$44="Endemic", IF(AND($K20>0,$K20<5), IF($K20=4,"Unknown", IF($K20=1, $F20*0.33, IF($K20=2, $F20*0.5+$G20*0.2, SUM(F20:G20)))), 0),"Not required") -> 113236.1 | P20: 0 | R20: 2 | S20: 1 | T20: T2 (PZQ) | U20: T3 (ALB/MBD) | V20: T1 | W20: T3 | X20: 27935 | Y20: Antsirabe II
A21: =IF(INTRO!$E$34<>0,INTRO!$E$34,"") -> Madagascar | B21: Vakinankaratra | C21: Betafo | D21: 283376 | E21: =IF(INTRO!$E$48="","",ROUND($D21*INTRO!$E$48,0)) -> 45340 | F21: =IF(INTRO!$E$49="","",ROUND($D21*INTRO!$E$49,0)) -> 77928 | G21: =IF(INTRO!$E$50="","",ROUND($D21*INTRO!$E$50,0)) -> 160107 | H21: 0 | J21: 4 | K21: 2 | L21: =IF(INTRO!$E$38="Endemic", IF($H21>0, IF($H21=4,"Unknown", IF($H21=99,"Stopped", $D21)), 0),"Not required") -> 0 | M21: =IF(INTRO!$E$40="Endemic", IF($I21>0, IF($I21=4,"Unknown",IF($I21=99,"Stopped", $D21)), 0),"Not required") -> Not required | N21: =IF(INTRO!$E$42="Endemic", IF(AND($J21>1,$J21<5), IF($J21=4, "Unknown", E21+F21), 0),"Not required") -> Unknown | O21: =IF(INTRO!$E$44="Endemic", IF(AND($K21>0,$K21<5), IF($K21=4,"Unknown", IF($K21=1, $F21*0.33, IF($K21=2, $F21*0.5+$G21*0.2, SUM(F21:G21)))), 0),"Not required") -> 70985.4 | P21: 0 | R21: 1 | S21: 0 | W21: T2 | X21: 27936 | Y21: Betafo
A22: =IF(INTRO!$E$34<>0,INTRO!$E$34,"") -> Madagascar | B22: Vakinankaratra | C22: Faratsiho | D22: 215034 | E22: =IF(INTRO!$E$48="","",ROUND($D22*INTRO!$E$48,0)) -> 34405 | F22: =IF(INTRO!$E$49="","",ROUND($D22*INTRO!$E$49,0)) -> 59134 | G22: =IF(INTRO!$E$50="","",ROUND($D22*INTRO!$E$50,0)) -> 121494 | H22: 0 | J22: 3 | K22: 0 | L22: =IF(INTRO!$E$38="Endemic", IF($H22>0, IF($H22=4,"Unknown", IF($H22=99,"Stopped", $D22)), 0),"Not required") -> 0 | M22: =IF(INTRO!$E$40="Endemic", IF($I22>0, IF($I22=4,"Unknown",IF($I22=99,"Stopped", $D22)), 0),"Not required") -> Not required | N22: =IF(INTRO!$E$42="Endemic", IF(AND($J22>1,$J22<5), IF($J22=4, "Unknown", E22+F22), 0),"Not required") -> 93539 | O22: =IF(INTRO!$E$44="Endemic", IF(AND($K22>0,$K22<5), IF($K22=4,"Unknown", IF($K22=1, $F22*0.33, IF($K22=2, $F22*0.5+$G22*0.2, SUM(F22:G22)))), 0),"Not required") -> 0 | P22: 0 | R22: 2 | S22: 0 | V22: T3 | W22: T3 | X22: 27937 | Y22: Faratsiho
A23: =IF(INTRO!$E$34<>0,INTRO!$E$34,"") -> Madagascar | B23: Vakinankaratra | C23: Mandoto | D23: 162786 | E23: =IF(INTRO!$E$48="","",ROUND($D23*INTRO!$E$48,0)) -> 26046 | F23: =IF(INTRO!$E$49="","",ROUND($D23*INTRO!$E$49,0)) -> 44766 | G23: =IF(INTRO!$E$50="","",ROUND($D23*INTRO!$E$50,0)) -> 91974 | H23: 0 | J23: 1 | K23: 1 | L23: =IF(INTRO!$E$38="Endemic", IF($H23>0, IF($H23=4,"Unknown", IF($H23=99,"Stopped", $D23)), 0),"Not required") -> 0 | M23: =IF(INTRO!$E$40="Endemic", IF($I23>0, IF($I23=4,"Unknown",IF($I23=99,"Stopped", $D23)), 0),"Not required") -> Not required | N23: =IF(INTRO!$E$42="Endemic", IF(AND($J23>1,$J23<5), IF($J23=4, "Unknown", E23+F23), 0),"Not required") -> 0 | O23: =IF(INTRO!$E$44="Endemic", IF(AND($K23>0,$K23<5), IF($K23=4,"Unknown", IF($K23=1, $F23*0.33, IF($K23=2, $F23*0.5+$G23*0.2, SUM(F23:G23)))), 0),"Not required") -> 14772.78 | P23: 0 | R23: 0 | S23: 1 | T23: T2 (PZQ) | W23: T2 | X23: 27946 | Y23: Mandoto
A24: =IF(INTRO!$E$34<>0,INTRO!$E$34,"") -> Madagascar | B24: Itasy | C24: Arivonimamo | D24: 339216 | E24: =IF(INTRO!$E$48="","",ROUND($D24*INTRO!$E$48,0)) -> 54275 | F24: =IF(INTRO!$E$49="","",ROUND($D24*INTRO!$E$49,0)) -> 93284 | G24: =IF(INTRO!$E$50="","",ROUND($D24*INTRO!$E$50,0)) -> 191657 | H24: 1 | J24: 2 | K24: 1 | L24: =IF(INTRO!$E$38="Endemic", IF($H24>0, IF($H24=4,"Unknown", IF($H24=99,"Stopped", $D24)), 0),"Not required") -> 339216 | M24: =IF(INTRO!$E$40="Endemic", IF($I24>0, IF($I24=4,"Unknown",IF($I24=99,"Stopped", $D24)), 0),"Not required") -> Not required | N24: =IF(INTRO!$E$42="Endemic", IF(AND($J24>1,$J24<5), IF($J24=4, "Unknown", E24+F24), 0),"Not required") -> 147559 | O24: =IF(INTRO!$E$44="Endemic", IF(AND($K24>0,$K24<5), IF($K24=4,"Unknown", IF($K24=1, $F24*0.33, IF($K24=2, $F24*0.5+$G24*0.2, SUM(F24:G24)))), 0),"Not required") -> 30783.72 | P24: 1 | R24: 0 | S24: 1 | T24: T2 (PZQ) | U24: T3 (ALB/MBD) | V24: MDA 2 | W24: T2 | X24: 27908 | Y24: Arivonimamo
A25: =IF(INTRO!$E$34<>0,INTRO!$E$34,"") -> Madagascar | B25: Itasy | C25: Miarinarivo | D25: 267748 | E25: =IF(INTRO!$E$48="","",ROUND($D25*INTRO!$E$48,0)) -> 42840 | F25: =IF(INTRO!$E$49="","",ROUND($D25*INTRO!$E$49,0)) -> 73631 | G25: =IF(INTRO!$E$50="","",ROUND($D25*INTRO!$E$50,0)) -> 151278 | H25: 1 | J25: 1 | K25: 2 | L25: =IF(INTRO!$E$38="Endemic", IF($H25>0, IF($H25=4,"Unknown", IF($H25=99,"Stopped", $D25)), 0),"Not required") -> 267748 | M25: =IF(INTRO!$E$40="Endemic", IF($I25>0, IF($I25=4,"Unknown",IF($I25=99,"Stopped", $D25)), 0),"Not required") -> Not required | N25: =IF(INTRO!$E$42="Endemic", IF(AND($J25>1,$J25<5), IF($J25=4, "Unknown", E25+F25), 0),"Not required") -> 0 | O25: =IF(INTRO!$E$44="Endemic", IF(AND($K25>0,$K25<5), IF($K25=4,"Unknown", IF($K25=1, $F25*0.33, IF($K25=2, $F25*0.5+$G25*0.2, SUM(F25:G25)))), 0),"Not required") -> 67071.1 | P25: 1 | R25: 0 | S25: 1 | T25: T2 (PZQ) | V25: MDA 2 | W25: T2 | X25: 27909 | Y25: Miarinarivo
A26: =IF(INTRO!$E$34<>0,INTRO!$E$34,"") -> Madagascar | B26: Itasy | C26: Soavinandriana | D26: 208267 | E26: =IF(INTRO!$E$48="","",ROUND($D26*INTRO!$E$48,0)) -> 33323 | F26: =IF(INTRO!$E$49="","",ROUND($D26*INTRO!$E$49,0)) -> 57273 | G26: =IF(INTRO!$E$50="","",ROUND($D26*INTRO!$E$50,0)) -> 117671 | H26: 1 | J26: 2 | K26: 3 | L26: =IF(INTRO!$E$38="Endemic", IF($H26>0, IF($H26=4,"Unknown", IF($H26=99,"Stopped", $D26)), 0),"Not required") -> 208267 | M26: =IF(INTRO!$E$40="Endemic", IF($I26>0, IF($I26=4,"Unknown",IF($I26=99,"Stopped", $D26)), 0),"Not required") -> Not required | N26: =IF(INTRO!$E$42="Endemic", IF(AND($J26>1,$J26<5), IF($J26=4, "Unknown", E26+F26), 0),"Not required") -> 90596 | O26: =IF(INTRO!$E$44="Endemic", IF(AND($K26>0,$K26<5), IF($K26=4,"Unknown", IF($K26=1, $F26*0.33, IF($K26=2, $F26*0.5+$G26*0.2, SUM(F26:G26)))), 0),"Not required") -> 174944 | P26: 1 | R26: 0 | S26: 1 | T26: T2 (PZQ) | V26: MDA 2 | W26: T2 | X26: 27910 | Y26: Soavinandriana
A27: =IF(INTRO!$E$34<>0,INTRO!$E$34,"") -> Madagascar | B27: Bongolava | C27: Fenoarivobe | D27: 145109 | E27: =IF(INTRO!$E$48="","",ROUND($D27*INTRO!$E$48,0)) -> 23217 | F27: =IF(INTRO!$E$49="","",ROUND($D27*INTRO!$E$49,0)) -> 39905 | G27: =IF(INTRO!$E$50="","",ROUND($D27*INTRO!$E$50,0)) -> 81987 | H27: 1 | J27: 2 | K27: 2 | L27: =IF(INTRO!$E$38="Endemic", IF($H27>0, IF($H27=4,"Unknown", IF($H27=99,"Stopped", $D27)), 0),"Not required") -> 145109 | M27: =IF(INTRO!$E$40="Endemic", IF($I27>0, IF($I27=4,"Unknown",IF($I27=99,"Stopped", $D27)), 0),"Not required") -> Not required | N27: =IF(INTRO!$E$42="Endemic", IF(AND($J27>1,$J27<5), IF($J27=4, "Unknown", E27+F27), 0),"Not required") -> 63122 | O27: =IF(INTRO!$E$44="Endemic", IF(AND($K27>0,$K27<5), IF($K27=4,"Unknown", IF($K27=1, $F27*0.33, IF($K27=2, $F27*0.5+$G27*0.2, SUM(F27:G27)))), 0),"Not required") -> 36349.9 | P27: 1 | R27: 0 | S27: 1 | T27: T2 (PZQ) | U27: T3 (ALB/MBD) | V27: MDA 2 | W27: T2 | X27: 27893 | Y27: Fenoarivobe
A28: =IF(INTRO!$E$34<>0,INTRO!$E$34,"") -> Madagascar | B28: Bongolava | C28: Tsiroanomandidy | D28: 363683 | E28: =IF(INTRO!$E$48="","",ROUND($D28*INTRO!$E$48,0)) -> 58189 | F28: =IF(INTRO!$E$49="","",ROUND($D28*INTRO!$E$49,0)) -> 100013 | G28: =IF(INTRO!$E$50="","",ROUND($D28*INTRO!$E$50,0)) -> 205481 | H28: 1 | J28: 1 | K28: 2 | L28: =IF(INTRO!$E$38="Endemic", IF($H28>0, IF($H28=4,"Unknown", IF($H28=99,"Stopped", $D28)), 0),"Not required") -> 363683 | M28: =IF(INTRO!$E$40="Endemic", IF($I28>0, IF($I28=4,"Unknown",IF($I28=99,"Stopped", $D28)), 0),"Not required") -> Not required | N28: =IF(INTRO!$E$42="Endemic", IF(AND($J28>1,$J28<5), IF($J28=4, "Unknown", E28+F28), 0),"Not required") -> 0 | O28: =IF(INTRO!$E$44="Endemic", IF(AND($K28>0,$K28<5), IF($K28=4,"Unknown", IF($K28=1, $F28*0.33, IF($K28=2, $F28*0.5+$G28*0.2, SUM(F28:G28)))), 0),"Not required") -> 91102.7 | P28: 1 | R28: 0 | S28: 1 | T28: T2 (PZQ) | V28: MDA 2 | W28: T2 | X28: 27894 | Y28: Tsiroanomandidy
A29: =IF(INTRO!$E$34<>0,INTRO!$E$34,"") -> Madagascar | B29: Diana | C29: Ambanja | D29: 211846 | E29: =IF(INTRO!$E$48="","",ROUND($D29*INTRO!$E$48,0)) -> 33895 | F29: =IF(INTRO!$E$49="","",ROUND($D29*INTRO!$E$49,0)) -> 58258 | G29: =IF(INTRO!$E$50="","",ROUND($D29*INTRO!$E$50,0)) -> 119693 | H29: 1 | J29: 2 | K29: 3 | L29: =IF(INTRO!$E$38="Endemic", IF($H29>0, IF($H29=4,"Unknown", IF($H29=99,"Stopped", $D29)), 0),"Not required") -> 211846 | M29: =IF(INTRO!$E$40="Endemic", IF($I29>0, IF($I29=4,"Unknown",IF($I29=99,"Stopped", $D29)), 0),"Not required") -> Not required | N29: =IF(INTRO!$E$42="Endemic", IF(AND($J29>1,$J29<5), IF($J29=4, "Unknown", E29+F29), 0),"Not required") -> 92153 | O29: =IF(INTRO!$E$44="Endemic", IF(AND($K29>0,$K29<5), IF($K29=4,"Unknown", IF($K29=1, $F29*0.33, IF($K29=2, $F29*0.5+$G29*0.2, SUM(F29:G29)))), 0),"Not required") -> 177951 | P29: 1 | R29: 0 | S29: 1 | T29: T2 (PZQ) | V29: MDA 2 | W29: T2 | X29: 27895 | Y29: Ambanja
A30: =IF(INTRO!$E$34<>0,INTRO!$E$34,"") -> Madagascar | B30: Diana | C30: Ambilobe | D30: 240447 | E30: =IF(INTRO!$E$48="","",ROUND($D30*INTRO!$E$48,0)) -> 38472 | F30: =IF(INTRO!$E$49="","",ROUND($D30*INTRO!$E$49,0)) -> 66123 | G30: =IF(INTRO!$E$50="","",ROUND($D30*INTRO!$E$50,0)) -> 135853 | H30: 1 | J30: 2 | K30: 2 | L30: =IF(INTRO!$E$38="Endemic", IF($H30>0, IF($H30=4,"Unknown", IF($H30=99,"Stopped", $D30)), 0),"Not required") -> 240447 | M30: =IF(INTRO!$E$40="Endemic", IF($I30>0, IF($I30=4,"Unknown",IF($I30=99,"Stopped", $D30)), 0),"Not required") -> Not required | N30: =IF(INTRO!$E$42="Endemic", IF(AND($J30>1,$J30<5), IF($J30=4, "Unknown", E30+F30), 0),"Not required") -> 104595 | O30: =IF(INTRO!$E$44="Endemic", IF(AND($K30>0,$K30<5), IF($K30=4,"Unknown", IF($K30=1, $F30*0.33, IF($K30=2, $F30*0.5+$G30*0.2, SUM(F30:G30)))), 0),"Not required") -> 60232.1 | P30: 1 | R30: 0 | S30: 0 | V30: MDA 2 | W30: T2 | X30: 27896 | Y30: Ambilobe
A31: =IF(INTRO!$E$34<>0,INTRO!$E$34,"") -> Madagascar | B31: Diana | C31: Antsiranana I | D31: 127946 | E31: =IF(INTRO!$E$48="","",ROUND($D31*INTRO!$E$48,0)) -> 20471 | F31: =IF(INTRO!$E$49="","",ROUND($D31*INTRO!$E$49,0)) -> 35185 | G31: =IF(INTRO!$E$50="","",ROUND($D31*INTRO!$E$50,0)) -> 72289 | H31: 1 | J31: 1 | K31: 2 | L31: =IF(INTRO!$E$38="Endemic", IF($H31>0, IF($H31=4,"Unknown", IF($H31=99,"Stopped", $D31)), 0),"Not required") -> 127946 | M31: =IF(INTRO!$E$40="Endemic", IF($I31>0, IF($I31=4,"Unknown",IF($I31=99,"Stopped", $D31)), 0),"Not required") -> Not required | N31: =IF(INTRO!$E$42="Endemic", IF(AND($J31>1,$J31<5), IF($J31=4, "Unknown", E31+F31), 0),"Not required") -> 0 | O31: =IF(INTRO!$E$44="Endemic", IF(AND($K31>0,$K31<5), IF($K31=4,"Unknown", IF($K31=1, $F31*0.33, IF($K31=2, $F31*0.5+$G31*0.2, SUM(F31:G31)))), 0),"Not required") -> 32050.3 | P31: 1 | R31: 0 | S31: 0 | V31: MDA 2 | W31: T2 | X31: 27897 | Y31: Antsiranana I
A32: =IF(INTRO!$E$34<>0,INTRO!$E$34,"") -> Madagascar | B32: Diana | C32: Antsiranana II | D32: 117269 | E32: =IF(INTRO!$E$48="","",ROUND($D32*INTRO!$E$48,0)) -> 18763 | F32: =IF(INTRO!$E$49="","",ROUND($D32*INTRO!$E$49,0)) -> 32249 | G32: =IF(INTRO!$E$50="","",ROUND($D32*INTRO!$E$50,0)) -> 66257 | H32: 1 | J32: 1 | K32: 2 | L32: =IF(INTRO!$E$38="Endemic", IF($H32>0, IF($H32=4,"Unknown", IF($H32=99,"Stopped", $D32)), 0),"Not required") -> 117269 | M32: =IF(INTRO!$E$40="Endemic", IF($I32>0, IF($I32=4,"Unknown",IF($I32=99,"Stopped", $D32)), 0),"Not required") -> Not required | N32: =IF(INTRO!$E$42="Endemic", IF(AND($J32>1,$J32<5), IF($J32=4, "Unknown", E32+F32), 0),"Not required") -> 0 | O32: =IF(INTRO!$E$44="Endemic", IF(AND($K32>0,$K32<5), IF($K32=4,"Unknown", IF($K32=1, $F32*0.33, IF($K32=2, $F32*0.5+$G32*0.2, SUM(F32:G32)))), 0),"Not required") -> 29375.9 | P32: 1 | R32: 0 | S32: 0 | V32: MDA 2 | W32: T2 | X32: 27898 | Y32: Antsiranana Ii
A33: =IF(INTRO!$E$34<>0,INTRO!$E$34,"") -> Madagascar | B33: Diana | C33: Nosy Be | D33: 81218 | E33: =IF(INTRO!$E$48="","",ROUND($D33*INTRO!$E$48,0)) -> 12995 | F33: =IF(INTRO!$E$49="","",ROUND($D33*INTRO!$E$49,0)) -> 22335 | G33: =IF(INTRO!$E$50="","",ROUND($D33*INTRO!$E$50,0)) -> 45888 | H33: 0 | J33: 2 | K33: 2 | L33: =IF(INTRO!$E$38="Endemic", IF($H33>0, IF($H33=4,"Unknown", IF($H33=99,"Stopped", $D33)), 0),"Not required") -> 0 | M33: =IF(INTRO!$E$40="Endemic", IF($I33>0, IF($I33=4,"Unknown",IF($I33=99,"Stopped", $D33)), 0),"Not required") -> Not required | N33: =IF(INTRO!$E$42="Endemic", IF(AND($J33>1,$J33<5), IF($J33=4, "Unknown", E33+F33), 0),"Not required") -> 35330 | O33: =IF(INTRO!$E$44="Endemic", IF(AND($K33>0,$K33<5), IF($K33=4,"Unknown", IF($K33=1, $F33*0.33, IF($K33=2, $F33*0.5+$G33*0.2, SUM(F33:G33)))), 0),"Not required") -> 20345.1 | P33: 0 | R33: 1 | S33: 1 | T33: T2 (PZQ) | U33: T3 (ALB/MBD) | W33: T1 | X33: 27899 | Y33: Nosy Be
A34: =IF(INTRO!$E$34<>0,INTRO!$E$34,"") -> Madagascar | B34: Sava | C34: Andapa | D34: 211231 | E34: =IF(INTRO!$E$48="","",ROUND($D34*INTRO!$E$48,0)) -> 33797 | F34: =IF(INTRO!$E$49="","",ROUND($D34*INTRO!$E$49,0)) -> 58089 | G34: =IF(INTRO!$E$50="","",ROUND($D34*INTRO!$E$50,0)) -> 119346 | H34: 1 | J34: 3 | K34: 2 | L34: =IF(INTRO!$E$38="Endemic", IF($H34>0, IF($H34=4,"Unknown", IF($H34=99,"Stopped", $D34)), 0),"Not required") -> 211231 | M34: =IF(INTRO!$E$40="Endemic", IF($I34>0, IF($I34=4,"Unknown",IF($I34=99,"Stopped", $D34)), 0),"Not required") -> Not required | N34: =IF(INTRO!$E$42="Endemic", IF(AND($J34>1,$J34<5), IF($J34=4, "Unknown", E34+F34), 0),"Not required") -> 91886 | O34: =IF(INTRO!$E$44="Endemic", IF(AND($K34>0,$K34<5), IF($K34=4,"Unknown", IF($K34=1, $F34*0.33, IF($K34=2, $F34*0.5+$G34*0.2, SUM(F34:G34)))), 0),"Not required") -> 52913.7 | P34: 1 | R34: 1 | S34: 1 | T34: T2 (PZQ) | U34: T3 (ALB/MBD) | V34: MDA 2 | W34: T1 | X34: 27921 | Y34: Andapa
A35: =IF(INTRO!$E$34<>0,INTRO!$E$34,"") -> Madagascar | B35: Sava | C35: Antalaha | D35: 257505 | E35: =IF(INTRO!$E$48="","",ROUND($D35*INTRO!$E$48,0)) -> 41201 | F35: =IF(INTRO!$E$49="","",ROUND($D35*INTRO!$E$49,0)) -> 70814 | G35: =IF(INTRO!$E$50="","",ROUND($D35*INTRO!$E$50,0)) -> 145490 | H35: 1 | J35: 3 | K35: 1 | L35: =IF(INTRO!$E$38="Endemic", IF($H35>0, IF($H35=4,"Unknown", IF($H35=99,"Stopped", $D35)), 0),"Not required") -> 257505 | M35: =IF(INTRO!$E$40="Endemic", IF($I35>0, IF($I35=4,"Unknown",IF($I35=99,"Stopped", $D35)), 0),"Not required") -> Not required | N35: =IF(INTRO!$E$42="Endemic", IF(AND($J35>1,$J35<5), IF($J35=4, "Unknown", E35+F35), 0),"Not required") -> 112015 | O35: =IF(INTRO!$E$44="Endemic", IF(AND($K35>0,$K35<5), IF($K35=4,"Unknown", IF($K35=1, $F35*0.33, IF($K35=2, $F35*0.5+$G35*0.2, SUM(F35:G35)))), 0),"Not required") -> 23368.62 | P35: 1 | R35: 1 | S35: 1 | T35: T2 (PZQ) | U35: T3 (ALB/MBD) | V35: MDA 2 | W35: T1 | X35: 27922 | Y35: Antalaha
A36: =IF(INTRO!$E$34<>0,INTRO!$E$34,"") -> Madagascar | B36: Sava | C36: Sambava | D36: 338587 | E36: =IF(INTRO!$E$48="","",ROUND($D36*INTRO!$E$48,0)) -> 54174 | F36: =IF(INTRO!$E$49="","",ROUND($D36*INTRO!$E$49,0)) -> 93111 | G36: =IF(INTRO!$E$50="","",ROUND($D36*INTRO!$E$50,0)) -> 191302 | H36: 1 | J36: 3 | K36: 3 | L36: =IF(INTRO!$E$38="Endemic", IF($H36>0, IF($H36=4,"Unknown", IF($H36=99,"Stopped", $D36)), 0),"Not required") -> 338587 | M36: =IF(INTRO!$E$40="Endemic", IF($I36>0, IF($I36=4,"Unknown",IF($I36=99,"Stopped", $D36)), 0),"Not required") -> Not required | N36: =IF(INTRO!$E$42="Endemic", IF(AND($J36>1,$J36<5), IF($J36=4, "Unknown", E36+F36), 0),"Not required") -> 147285 | O36: =IF(INTRO!$E$44="Endemic", IF(AND($K36>0,$K36<5), IF($K36=4,"Unknown", IF($K36=1, $F36*0.33, IF($K36=2, $F36*0.5+$G36*0.2, SUM(F36:G36)))), 0),"Not required") -> 284413 | P36: 1 | R36: 1 | S36: 1 | T36: T2 (PZQ) | U36: T3 (ALB/MBD) | V36: MDA 2 | W36: T1 | X36: 27923 | Y36: Sambava
A37: =IF(INTRO!$E$34<>0,INTRO!$E$34,"") -> Madagascar | B37: Sava | C37: Vohémar | D37: 283760 | E37: =IF(INTRO!$E$48="","",ROUND($D37*INTRO!$E$48,0)) -> 45402 | F37: =IF(INTRO!$E$49="","",ROUND($D37*INTRO!$E$49,0)) -> 78034 | G37: =IF(INTRO!$E$50="","",ROUND($D37*INTRO!$E$50,0)) -> 160324 | H37: 1 | J37: 3 | K37: 3 | L37: =IF(INTRO!$E$38="Endemic", IF($H37>0, IF($H37=4,"Unknown", IF($H37=99,"Stopped", $D37)), 0),"Not required") -> 283760 | M37: =IF(INTRO!$E$40="Endemic", IF($I37>0, IF($I37=4,"Unknown",IF($I37=99,"Stopped", $D37)), 0),"Not required") -> Not required | N37: =IF(INTRO!$E$42="Endemic", IF(AND($J37>1,$J37<5), IF($J37=4, "Unknown", E37+F37), 0),"Not required") -> 123436 | O37: =IF(INTRO!$E$44="Endemic", IF(AND($K37>0,$K37<5), IF($K37=4,"Unknown", IF($K37=1, $F37*0.33, IF($K37=2, $F37*0.5+$G37*0.2, SUM(F37:G37)))), 0),"Not required") -> 238358 | P37: 1 | R37: 1 | S37: 1 | T37: T2 (PZQ) | U37: T3 (ALB/MBD) | V37: MDA 2 | W37: T1 | X37: 27924 | Y37: Vohémar
A38: =IF(INTRO!$E$34<>0,INTRO!$E$34,"") -> Madagascar | B38: Haute Matsiatra | C38: Ambalavao | D38: 232962 | E38: =IF(INTRO!$E$48="","",ROUND($D38*INTRO!$E$48,0)) -> 37274 | F38: =IF(INTRO!$E$49="","",ROUND($D38*INTRO!$E$49,0)) -> 64065 | G38: =IF(INTRO!$E$50="","",ROUND($D38*INTRO!$E$50,0)) -> 131624 | H38: 1 | J38: 1 | K38: 2 | L38: =IF(INTRO!$E$38="Endemic", IF($H38>0, IF($H38=4,"Unknown", IF($H38=99,"Stopped", $D38)), 0),"Not required") -> 232962 | M38: =IF(INTRO!$E$40="Endemic", IF($I38>0, IF($I38=4,"Unknown",IF($I38=99,"Stopped", $D38)), 0),"Not required") -> Not required | N38: =IF(INTRO!$E$42="Endemic", IF(AND($J38>1,$J38<5), IF($J38=4, "Unknown", E38+F38), 0),"Not required") -> 0 | O38: =IF(INTRO!$E$44="Endemic", IF(AND($K38>0,$K38<5), IF($K38=4,"Unknown", IF($K38=1, $F38*0.33, IF($K38=2, $F38*0.5+$G38*0.2, SUM(F38:G38)))), 0),"Not required") -> 58357.3 | P38: 1 | R38: 0 | S38: 1 | T38: T2 (PZQ) | V38: MDA 2 | W38: T2 | X38: 27900 | Y38: Ambalavao
A39: =IF(INTRO!$E$34<>0,INTRO!$E$34,"") -> Madagascar | B39: Haute Matsiatra | C39: Ambohimahasoa | D39: 238843 | E39: =IF(INTRO!$E$48="","",ROUND($D39*INTRO!$E$48,0)) -> 38215 | F39: =IF(INTRO!$E$49="","",ROUND($D39*INTRO!$E$49,0)) -> 65682 | G39: =IF(INTRO!$E$50="","",ROUND($D39*INTRO!$E$50,0)) -> 134946 | H39: 1 | J39: 3 | K39: 2 | L39: =IF(INTRO!$E$38="Endemic", IF($H39>0, IF($H39=4,"Unknown", IF($H39=99,"Stopped", $D39)), 0),"Not required") -> 238843 | M39: =IF(INTRO!$E$40="Endemic", IF($I39>0, IF($I39=4,"Unknown",IF($I39=99,"Stopped", $D39)), 0),"Not required") -> Not required | N39: =IF(INTRO!$E$42="Endemic", IF(AND($J39>1,$J39<5), IF($J39=4, "Unknown", E39+F39), 0),"Not required") -> 103897 | O39: =IF(INTRO!$E$44="Endemic", IF(AND($K39>0,$K39<5), IF($K39=4,"Unknown", IF($K39=1, $F39*0.33, IF($K39=2, $F39*0.5+$G39*0.2, SUM(F39:G39)))), 0),"Not required") -> 59830.2 | P39: 1 | R39: 1 | S39: 1 | T39: T2 (PZQ) | U39: T3 (ALB/MBD) | V39: MDA 2 | W39: T1 | X39: 27901 | Y39: Ambohimahasoa
A40: =IF(INTRO!$E$34<>0,INTRO!$E$34,"") -> Madagascar | B40: Haute Matsiatra | C40: Fianarantsoa I | D40: 211717 | E40: =IF(INTRO!$E$48="","",ROUND($D40*INTRO!$E$48,0)) -> 33875 | F40: =IF(INTRO!$E$49="","",ROUND($D40*INTRO!$E$49,0)) -> 58222 | G40: =IF(INTRO!$E$50="","",ROUND($D40*INTRO!$E$50,0)) -> 119620 | H40: 1 | J40: 3 | K40: 2 | L40: =IF(INTRO!$E$38="Endemic", IF($H40>0, IF($H40=4,"Unknown", IF($H40=99,"Stopped", $D40)), 0),"Not required") -> 211717 | M40: =IF(INTRO!$E$40="Endemic", IF($I40>0, IF($I40=4,"Unknown",IF($I40=99,"Stopped", $D40)), 0),"Not required") -> Not required | N40: =IF(INTRO!$E$42="Endemic", IF(AND($J40>1,$J40<5), IF($J40=4, "Unknown", E40+F40), 0),"Not required") -> 92097 | O40: =IF(INTRO!$E$44="Endemic", IF(AND($K40>0,$K40<5), IF($K40=4,"Unknown", IF($K40=1, $F40*0.33, IF($K40=2, $F40*0.5+$G40*0.2, SUM(F40:G40)))), 0),"Not required") -> 53035 | P40: 1 | R40: 1 | S40: 1 | T40: T2 (PZQ) | U40: T3 (ALB/MBD) | V40: MDA 2 | W40: T1 | X40: 27902 | Y40: Fianarantsoa I
A41: =IF(INTRO!$E$34<>0,INTRO!$E$34,"") -> Madagascar | B41: Haute Matsiatra | C41: Ikalamavony | D41: 99423 | E41: =IF(INTRO!$E$48="","",ROUND($D41*INTRO!$E$48,0)) -> 15908 | F41: =IF(INTRO!$E$49="","",ROUND($D41*INTRO!$E$49,0)) -> 27341 | G41: =IF(INTRO!$E$50="","",ROUND($D41*INTRO!$E$50,0)) -> 56174 | H41: 1 | J41: 1 | K41: 3 | L41: =IF(INTRO!$E$38="Endemic", IF($H41>0, IF($H41=4,"Unknown", IF($H41=99,"Stopped", $D41)), 0),"Not required") -> 99423 | M41: =IF(INTRO!$E$40="Endemic", IF($I41>0, IF($I41=4,"Unknown",IF($I41=99,"Stopped", $D41)), 0),"Not required") -> Not required | N41: =IF(INTRO!$E$42="Endemic", IF(AND($J41>1,$J41<5), IF($J41=4, "Unknown", E41+F41), 0),"Not required") -> 0 | O41: =IF(INTRO!$E$44="Endemic", IF(AND($K41>0,$K41<5), IF($K41=4,"Unknown", IF($K41=1, $F41*0.33, IF($K41=2, $F41*0.5+$G41*0.2, SUM(F41:G41)))), 0),"Not required") -> 83515 | P41: 1 | R41: 0 | S41: 1 | T41: T2 (PZQ) | V41: MDA 2 | W41: T2 | X41: 27904 | Y41: Ikalamavony
A42: =IF(INTRO!$E$34<>0,INTRO!$E$34,"") -> Madagascar | B42: Haute Matsiatra | C42: Isandra | D42: 140683 | E42: =IF(INTRO!$E$48="","",ROUND($D42*INTRO!$E$48,0)) -> 22509 | F42: =IF(INTRO!$E$49="","",ROUND($D42*INTRO!$E$49,0)) -> 38688 | G42: =IF(INTRO!$E$50="","",ROUND($D42*INTRO!$E$50,0)) -> 79486 | H42: 0 | J42: 3 | K42: 2 | L42: =IF(INTRO!$E$38="Endemic", IF($H42>0, IF($H42=4,"Unknown", IF($H42=99,"Stopped", $D42)), 0),"Not required") -> 0 | M42: =IF(INTRO!$E$40="Endemic", IF($I42>0, IF($I42=4,"Unknown",IF($I42=99,"Stopped", $D42)), 0),"Not required") -> Not required | N42: =IF(INTRO!$E$42="Endemic", IF(AND($J42>1,$J42<5), IF($J42=4, "Unknown", E42+F42), 0),"Not required") -> 61197 | O42: =IF(INTRO!$E$44="Endemic", IF(AND($K42>0,$K42<5), IF($K42=4,"Unknown", IF($K42=1, $F42*0.33, IF($K42=2, $F42*0.5+$G42*0.2, SUM(F42:G42)))), 0),"Not required") -> 35241.2 | P42: 0 | R42: 2 | S42: 1 | T42: T2 (PZQ) | U42: T3 (ALB/MBD) | V42: T1 | W42: T3 | X42: 27903 | Y42: Fianarantsoa II
A43: =IF(INTRO!$E$34<>0,INTRO!$E$34,"") -> Madagascar | B43: Haute Matsiatra | C43: Vohibato | D43: 242190 | E43: =IF(INTRO!$E$48="","",ROUND($D43*INTRO!$E$48,0)) -> 38750 | F43: =IF(INTRO!$E$49="","",ROUND($D43*INTRO!$E$49,0)) -> 66602 | G43: =IF(INTRO!$E$50="","",ROUND($D43*INTRO!$E$50,0)) -> 136837 | H43: 0 | J43: 3 | K43: 2 | L43: =IF(INTRO!$E$38="Endemic", IF($H43>0, IF($H43=4,"Unknown", IF($H43=99,"Stopped", $D43)), 0),"Not required") -> 0 | M43: =IF(INTRO!$E$40="Endemic", IF($I43>0, IF($I43=4,"Unknown",IF($I43=99,"Stopped", $D43)), 0),"Not required") -> Not required | N43: =IF(INTRO!$E$42="Endemic", IF(AND($J43>1,$J43<5), IF($J43=4, "Unknown", E43+F43), 0),"Not required") -> 105352 | O43: =IF(INTRO!$E$44="Endemic", IF(AND($K43>0,$K43<5), IF($K43=4,"Unknown", IF($K43=1, $F43*0.33, IF($K43=2, $F43*0.5+$G43*0.2, SUM(F43:G43)))), 0),"Not required") -> 60668.4 | P43: 0 | R43: 2 | S43: 1 | T43: T2 (PZQ) | U43: T3 (ALB/MBD) | V43: T1 | W43: T3 | X43: 27945 | Y43: Vohibato
A44: =IF(INTRO!$E$34<>0,INTRO!$E$34,"") -> Madagascar | B44: Haute Matsiatra | C44: Lalangina | D44: 168195 | E44: =IF(INTRO!$E$48="","",ROUND($D44*INTRO!$E$48,0)) -> 26911 | F44: =IF(INTRO!$E$49="","",ROUND($D44*INTRO!$E$49,0)) -> 46254 | G44: =IF(INTRO!$E$50="","",ROUND($D44*INTRO!$E$50,0)) -> 95030 | H44: 0 | J44: 3 | K44: 2 | L44: =IF(INTRO!$E$38="Endemic", IF($H44>0, IF($H44=4,"Unknown", IF($H44=99,"Stopped", $D44)), 0),"Not required") -> 0 | M44: =IF(INTRO!$E$40="Endemic", IF($I44>0, IF($I44=4,"Unknown",IF($I44=99,"Stopped", $D44)), 0),"Not required") -> Not required | N44: =IF(INTRO!$E$42="Endemic", IF(AND($J44>1,$J44<5), IF($J44=4, "Unknown", E44+F44), 0),"Not required") -> 73165 | O44: =IF(INTRO!$E$44="Endemic", IF(AND($K44>0,$K44<5), IF($K44=4,"Unknown", IF($K44=1, $F44*0.33, IF($K44=2, $F44*0.5+$G44*0.2, SUM(F44:G44)))), 0),"Not required") -> 42133 | P44: 0 | R44: 2 | S44: 1 | T44: T2 (PZQ) | U44: T3 (ALB/MBD) | V44: T1 | W44: T3 | X44: 27944 | Y44: Lalangina
A45: =IF(INTRO!$E$34<>0,INTRO!$E$34,"") -> Madagascar | B45: Amoron'Imania | C45: Ambatofinandrahana | D45: 172950 | E45: =IF(INTRO!$E$48="","",ROUND($D45*INTRO!$E$48,0)) -> 27672 | F45: =IF(INTRO!$E$49="","",ROUND($D45*INTRO!$E$49,0)) -> 47561 | G45: =IF(INTRO!$E$50="","",ROUND($D45*INTRO!$E$50,0)) -> 97717 | H45: 1 | J45: 1 | K45: 2 | L45: =IF(INTRO!$E$38="Endemic", IF($H45>0, IF($H45=4,"Unknown", IF($H45=99,"Stopped", $D45)), 0),"Not required") -> 172950 | M45: =IF(INTRO!$E$40="Endemic", IF($I45>0, IF($I45=4,"Unknown",IF($I45=99,"Stopped", $D45)), 0),"Not required") -> Not required | N45: =IF(INTRO!$E$42="Endemic", IF(AND($J45>1,$J45<5), IF($J45=4, "Unknown", E45+F45), 0),"Not required") -> 0 | O45: =IF(INTRO!$E$44="Endemic", IF(AND($K45>0,$K45<5), IF($K45=4,"Unknown", IF($K45=1, $F45*0.33, IF($K45=2, $F45*0.5+$G45*0.2, SUM(F45:G45)))), 0),"Not required") -> 43323.9 | P45: 1 | R45: 0 | S45: 1 | T45: T2 (PZQ) | V45: MDA 2 | W45: T2 | X45: 27838 | Y45: Ambatofinandrahana
A46: =IF(INTRO!$E$34<>0,INTRO!$E$34,"") -> Madagascar | B46: Amoron'Imania | C46: Ambositra | D46: 291850 | E46: =IF(INTRO!$E$48="","",ROUND($D46*INTRO!$E$48,0)) -> 46696 | F46: =IF(INTRO!$E$49="","",ROUND($D46*INTRO!$E$49,0)) -> 80259 | G46: =IF(INTRO!$E$50="","",ROUND($D46*INTRO!$E$50,0)) -> 164895 | H46: 1 | J46: 3 | K46: 2 | L46: =IF(INTRO!$E$38="Endemic", IF($H46>0, IF($H46=4,"Unknown", IF($H46=99,"Stopped", $D46)), 0),"Not required") -> 291850 | M46: =IF(INTRO!$E$40="Endemic", IF($I46>0, IF($I46=4,"Unknown",IF($I46=99,"Stopped", $D46)), 0),"Not required") -> Not required | N46: =IF(INTRO!$E$42="Endemic", IF(AND($J46>1,$J46<5), IF($J46=4, "Unknown", E46+F46), 0),"Not required") -> 126955 | O46: =IF(INTRO!$E$44="Endemic", IF(AND($K46>0,$K46<5), IF($K46=4,"Unknown", IF($K46=1, $F46*0.33, IF($K46=2, $F46*0.5+$G46*0.2, SUM(F46:G46)))), 0),"Not required") -> 73108.5 | P46: 1 | R46: 1 | S46: 1 | T46: T2 (PZQ) | U46: T3 (ALB/MBD) | V46: MDA 2 | W46: T1 | X46: 27839 | Y46: Ambositra
A47: =IF(INTRO!$E$34<>0,INTRO!$E$34,"") -> Madagascar | B47: Amoron'Imania | C47: Fandriana | D47: 224279 | E47: =IF(INTRO!$E$48="","",ROUND($D47*INTRO!$E$48,0)) -> 35885 | F47: =IF(INTRO!$E$49="","",ROUND($D47*INTRO!$E$49,0)) -> 61677 | G47: =IF(INTRO!$E$50="","",ROUND($D47*INTRO!$E$50,0)) -> 126718 | H47: 1 | J47: 3 | K47: 1 | L47: =IF(INTRO!$E$38="Endemic", IF($H47>0, IF($H47=4,"Unknown", IF($H47=99,"Stopped", $D47)), 0),"Not required") -> 224279 | M47: =IF(INTRO!$E$40="Endemic", IF($I47>0, IF($I47=4,"Unknown",IF($I47=99,"Stopped", $D47)), 0),"Not required") -> Not required | N47: =IF(INTRO!$E$42="Endemic", IF(AND($J47>1,$J47<5), IF($J47=4, "Unknown", E47+F47), 0),"Not required") -> 97562 | O47: =IF(INTRO!$E$44="Endemic", IF(AND($K47>0,$K47<5), IF($K47=4,"Unknown", IF($K47=1, $F47*0.33, IF($K47=2, $F47*0.5+$G47*0.2, SUM(F47:G47)))), 0),"Not required") -> 20353.41 | P47: 1 | R47: 1 | S47: 1 | V47: MDA 2 | W47: T1 | X47: 27840 | Y47: Fandriana
A48: =IF(INTRO!$E$34<>0,INTRO!$E$34,"") -> Madagascar | B48: Amoron'Imania | C48: Manandriana | D48: 106342 | E48: =IF(INTRO!$E$48="","",ROUND($D48*INTRO!$E$48,0)) -> 17015 | F48: =IF(INTRO!$E$49="","",ROUND($D48*INTRO!$E$49,0)) -> 29244 | G48: =IF(INTRO!$E$50="","",ROUND($D48*INTRO!$E$50,0)) -> 60083 | H48: 0 | J48: 2 | K48: 2 | L48: =IF(INTRO!$E$38="Endemic", IF($H48>0, IF($H48=4,"Unknown", IF($H48=99,"Stopped", $D48)), 0),"Not required") -> 0 | M48: =IF(INTRO!$E$40="Endemic", IF($I48>0, IF($I48=4,"Unknown",IF($I48=99,"Stopped", $D48)), 0),"Not required") -> Not required | N48: =IF(INTRO!$E$42="Endemic", IF(AND($J48>1,$J48<5), IF($J48=4, "Unknown", E48+F48), 0),"Not required") -> 46259 | O48: =IF(INTRO!$E$44="Endemic", IF(AND($K48>0,$K48<5), IF($K48=4,"Unknown", IF($K48=1, $F48*0.33, IF($K48=2, $F48*0.5+$G48*0.2, SUM(F48:G48)))), 0),"Not required") -> 26638.6 | P48: 0 | R48: 1 | S48: 1 | T48: T2 (PZQ) | U48: T3 (ALB/MBD) | W48: T1 | X48: 27841 | Y48: Manandriana
A49: =IF(INTRO!$E$34<>0,INTRO!$E$34,"") -> Madagascar | B49: Ihorombe | C49: Iakora | D49: 56077 | E49: =IF(INTRO!$E$48="","",ROUND($D49*INTRO!$E$48,0)) -> 8972 | F49: =IF(INTRO!$E$49="","",ROUND($D49*INTRO!$E$49,0)) -> 15421 | G49: =IF(INTRO!$E$50="","",ROUND($D49*INTRO!$E$50,0)) -> 31684 | H49: 1 | J49: 4 | K49: 3 | L49: =IF(INTRO!$E$38="Endemic", IF($H49>0, IF($H49=4,"Unknown", IF($H49=99,"Stopped", $D49)), 0),"Not required") -> 56077 | M49: =IF(INTRO!$E$40="Endemic", IF($I49>0, IF($I49=4,"Unknown",IF($I49=99,"Stopped", $D49)), 0),"Not required") -> Not required | N49: =IF(INTRO!$E$42="Endemic", IF(AND($J49>1,$J49<5), IF($J49=4, "Unknown", E49+F49), 0),"Not required") -> Unknown | O49: =IF(INTRO!$E$44="Endemic", IF(AND($K49>0,$K49<5), IF($K49=4,"Unknown", IF($K49=1, $F49*0.33, IF($K49=2, $F49*0.5+$G49*0.2, SUM(F49:G49)))), 0),"Not required") -> 47105 | P49: 1 | R49: 0 | S49: 1 | T49: T2 (PZQ) | V49: MDA 2 | W49: T2 | X49: 27905 | Y49: Iakora
A50: =IF(INTRO!$E$34<>0,INTRO!$E$34,"") -> Madagascar | B50: Ihorombe | C50: Ihosy | D50: 226240 | E50: =IF(INTRO!$E$48="","",ROUND($D50*INTRO!$E$48,0)) -> 36198 | F50: =IF(INTRO!$E$49="","",ROUND($D50*INTRO!$E$49,0)) -> 62216 | G50: =IF(INTRO!$E$50="","",ROUND($D50*INTRO!$E$50,0)) -> 127826 | H50: 1 | J50: 1 | K50: 3 | L50: =IF(INTRO!$E$38="Endemic", IF($H50>0, IF($H50=4,"Unknown", IF($H50=99,"Stopped", $D50)), 0),"Not required") -> 226240 | M50: =IF(INTRO!$E$40="Endemic", IF($I50>0, IF($I50=4,"Unknown",IF($I50=99,"Stopped", $D50)), 0),"Not required") -> Not required | N50: =IF(INTRO!$E$42="Endemic", IF(AND($J50>1,$J50<5), IF($J50=4, "Unknown", E50+F50), 0),"Not required") -> 0 | O50: =IF(INTRO!$E$44="Endemic", IF(AND($K50>0,$K50<5), IF($K50=4,"Unknown", IF($K50=1, $F50*0.33, IF($K50=2, $F50*0.5+$G50*0.2, SUM(F50:G50)))), 0),"Not required") -> 190042 | P50: 1 | R50: 0 | S50: 1 | T50: T2 (PZQ) | V50: MDA 2 | W50: T2 | X50: 27906 | Y50: Ihosy
A51: =IF(INTRO!$E$34<>0,INTRO!$E$34,"") -> Madagascar | B51: Ihorombe | C51: Ivohibe | D51: 65105 | E51: =IF(INTRO!$E$48="","",ROUND($D51*INTRO!$E$48,0)) -> 10417 | F51: =IF(INTRO!$E$49="","",ROUND($D51*INTRO!$E$49,0)) -> 17904 | G51: =IF(INTRO!$E$50="","",ROUND($D51*INTRO!$E$50,0)) -> 36784 | H51: 1 | J51: 2 | K51: 3 | L51: =IF(INTRO!$E$38="Endemic", IF($H51>0, IF($H51=4,"Unknown", IF($H51=99,"Stopped", $D51)), 0),"Not required") -> 65105 | M51: =IF(INTRO!$E$40="Endemic", IF($I51>0, IF($I51=4,"Unknown",IF($I51=99,"Stopped", $D51)), 0),"Not required") -> Not required | N51: =IF(INTRO!$E$42="Endemic", IF(AND($J51>1,$J51<5), IF($J51=4, "Unknown", E51+F51), 0),"Not required") -> 28321 | O51: =IF(INTRO!$E$44="Endemic", IF(AND($K51>0,$K51<5), IF($K51=4,"Unknown", IF($K51=1, $F51*0.33, IF($K51=2, $F51*0.5+$G51*0.2, SUM(F51:G51)))), 0),"Not required") -> 54688 | P51: 1 | R51: 0 | S51: 1 | T51: T2 (PZQ) | V51: MDA 2 | W51: T2 | X51: 27907 | Y51: Ivohibe
A52: =IF(INTRO!$E$34<>0,INTRO!$E$34,"") -> Madagascar | B52: Vatovavy Fitovinany | C52: Ifanadiana | D52: 171617 | E52: =IF(INTRO!$E$48="","",ROUND($D52*INTRO!$E$48,0)) -> 27459 | F52: =IF(INTRO!$E$49="","",ROUND($D52*INTRO!$E$49,0)) -> 47195 | G52: =IF(INTRO!$E$50="","",ROUND($D52*INTRO!$E$50,0)) -> 96964 | H52: 1 | J52: 3 | K52: 2 | L52: =IF(INTRO!$E$38="Endemic", IF($H52>0, IF($H52=4,"Unknown", IF($H52=99,"Stopped", $D52)), 0),"Not required") -> 171617 | M52: =IF(INTRO!$E$40="Endemic", IF($I52>0, IF($I52=4,"Unknown",IF($I52=99,"Stopped", $D52)), 0),"Not required") -> Not required | N52: =IF(INTRO!$E$42="Endemic", IF(AND($J52>1,$J52<5), IF($J52=4, "Unknown", E52+F52), 0),"Not required") -> 74654 | O52: =IF(INTRO!$E$44="Endemic", IF(AND($K52>0,$K52<5), IF($K52=4,"Unknown", IF($K52=1, $F52*0.33, IF($K52=2, $F52*0.5+$G52*0.2, SUM(F52:G52)))), 0),"Not required") -> 42990.3 | P52: 1 | R52: 1 | S52: 1 | T52: T2 (PZQ) | U52: T3 (ALB/MBD) | V52: MDA 2 | W52: T1 | X52: 27938 | Y52: Ifanadiana
A53: =IF(INTRO!$E$34<>0,INTRO!$E$34,"") -> Madagascar | B53: Vatovavy Fitovinany | C53: Ikongo | D53: 206974 | E53: =IF(INTRO!$E$48="","",ROUND($D53*INTRO!$E$48,0)) -> 33116 | F53: =IF(INTRO!$E$49="","",ROUND($D53*INTRO!$E$49,0)) -> 56918 | G53: =IF(INTRO!$E$50="","",ROUND($D53*INTRO!$E$50,0)) -> 116940 | H53: 1 | J53: 3 | K53: 2 | L53: =IF(INTRO!$E$38="Endemic", IF($H53>0, IF($H53=4,"Unknown", IF($H53=99,"Stopped", $D53)), 0),"Not required") -> 206974 | M53: =IF(INTRO!$E$40="Endemic", IF($I53>0, IF($I53=4,"Unknown",IF($I53=99,"Stopped", $D53)), 0),"Not required") -> Not required | N53: =IF(INTRO!$E$42="Endemic", IF(AND($J53>1,$J53<5), IF($J53=4, "Unknown", E53+F53), 0),"Not required") -> 90034 | O53: =IF(INTRO!$E$44="Endemic", IF(AND($K53>0,$K53<5), IF($K53=4,"Unknown", IF($K53=1, $F53*0.33, IF($K53=2, $F53*0.5+$G53*0.2, SUM(F53:G53)))), 0),"Not required") -> 51847 | P53: 1 | R53: 1 | S53: 1 | T53: T2 (PZQ) | U53: T3 (ALB/MBD) | V53: MDA 2 | W53: T1 | X53: 27939 | Y53: Ikongo
A54: =IF(INTRO!$E$34<>0,INTRO!$E$34,"") -> Madagascar | B54: Vatovavy Fitovinany | C54: Manakara | D54: 406514 | E54: =IF(INTRO!$E$48="","",ROUND($D54*INTRO!$E$48,0)) -> 65042 | F54: =IF(INTRO!$E$49="","",ROUND($D54*INTRO!$E$49,0)) -> 111791 | G54: =IF(INTRO!$E$50="","",ROUND($D54*INTRO!$E$50,0)) -> 229680 | H54: 1 | J54: 3 | K54: 1 | L54: =IF(INTRO!$E$38="Endemic", IF($H54>0, IF($H54=4,"Unknown", IF($H54=99,"Stopped", $D54)), 0),"Not required") -> 406514 | M54: =IF(INTRO!$E$40="Endemic", IF($I54>0, IF($I54=4,"Unknown",IF($I54=99,"Stopped", $D54)), 0),"Not required") -> Not required | N54: =IF(INTRO!$E$42="Endemic", IF(AND($J54>1,$J54<5), IF($J54=4, "Unknown", E54+F54), 0),"Not required") -> 176833 | O54: =IF(INTRO!$E$44="Endemic", IF(AND($K54>0,$K54<5), IF($K54=4,"Unknown", IF($K54=1, $F54*0.33, IF($K54=2, $F54*0.5+$G54*0.2, SUM(F54:G54)))), 0),"Not required") -> 36891.03 | P54: 1 | R54: 1 | S54: 1 | V54: MDA 2 | W54: T1 | X54: 27940 | Y54: MANAKARA ATSIMO
A55: =IF(INTRO!$E$34<>0,INTRO!$E$34,"") -> Madagascar | B55: Vatovavy Fitovinany | C55: Mananjary | D55: 352563 | E55: =IF(INTRO!$E$48="","",ROUND($D55*INTRO!$E$48,0)) -> 56410 | F55: =IF(INTRO!$E$49="","",ROUND($D55*INTRO!$E$49,0)) -> 96955 | G55: =IF(INTRO!$E$50="","",ROUND($D55*INTRO!$E$50,0)) -> 199198 | H55: 1 | J55: 3 | K55: 2 | L55: =IF(INTRO!$E$38="Endemic", IF($H55>0, IF($H55=4,"Unknown", IF($H55=99,"Stopped", $D55)), 0),"Not required") -> 352563 | M55: =IF(INTRO!$E$40="Endemic", IF($I55>0, IF($I55=4,"Unknown",IF($I55=99,"Stopped", $D55)), 0),"Not required") -> Not required | N55: =IF(INTRO!$E$42="Endemic", IF(AND($J55>1,$J55<5), IF($J55=4, "Unknown", E55+F55), 0),"Not required") -> 153365 | O55: =IF(INTRO!$E$44="Endemic", IF(AND($K55>0,$K55<5), IF($K55=4,"Unknown", IF($K55=1, $F55*0.33, IF($K55=2, $F55*0.5+$G55*0.2, SUM(F55:G55)))), 0),"Not required") -> 88317.1 | P55: 1 | R55: 1 | S55: 1 | T55: T2 (PZQ) | U55: T3 (ALB/MBD) | V55: MDA 2 | W55: T1 | X55: 27941 | Y55: Mananjary
A56: =IF(INTRO!$E$34<>0,INTRO!$E$34,"") -> Madagascar | B56: Vatovavy Fitovinany | C56: Nosy Varika | D56: 268584 | E56: =IF(INTRO!$E$48="","",ROUND($D56*INTRO!$E$48,0)) -> 42973 | F56: =IF(INTRO!$E$49="","",ROUND($D56*INTRO!$E$49,0)) -> 73861 | G56: =IF(INTRO!$E$50="","",ROUND($D56*INTRO!$E$50,0)) -> 151750 | H56: 1 | J56: 3 | K56: 2 | L56: =IF(INTRO!$E$38="Endemic", IF($H56>0, IF($H56=4,"Unknown", IF($H56=99,"Stopped", $D56)), 0),"Not required") -> 268584 | M56: =IF(INTRO!$E$40="Endemic", IF($I56>0, IF($I56=4,"Unknown",IF($I56=99,"Stopped", $D56)), 0),"Not required") -> Not required | N56: =IF(INTRO!$E$42="Endemic", IF(AND($J56>1,$J56<5), IF($J56=4, "Unknown", E56+F56), 0),"Not required") -> 116834 | O56: =IF(INTRO!$E$44="Endemic", IF(AND($K56>0,$K56<5), IF($K56=4,"Unknown", IF($K56=1, $F56*0.33, IF($K56=2, $F56*0.5+$G56*0.2, SUM(F56:G56)))), 0),"Not required") -> 67280.5 | P56: 1 | R56: 1 | S56: 1 | T56: T2 (PZQ) | U56: T3 (ALB/MBD) | V56: MDA 2 | W56: T1 | X56: 27942 | Y56: Nosy Varika
A57: =IF(INTRO!$E$34<>0,INTRO!$E$34,"") -> Madagascar | B57: Vatovavy Fitovinany | C57: Vohipeno | D57: 169465 | E57: =IF(INTRO!$E$48="","",ROUND($D57*INTRO!$E$48,0)) -> 27114 | F57: =IF(INTRO!$E$49="","",ROUND($D57*INTRO!$E$49,0)) -> 46603 | G57: =IF(INTRO!$E$50="","",ROUND($D57*INTRO!$E$50,0)) -> 95748 | H57: 1 | J57: 3 | K57: 1 | L57: =IF(INTRO!$E$38="Endemic", IF($H57>0, IF($H57=4,"Unknown", IF($H57=99,"Stopped", $D57)), 0),"Not required") -> 169465 | M57: =IF(INTRO!$E$40="Endemic", IF($I57>0, IF($I57=4,"Unknown",IF($I57=99,"Stopped", $D57)), 0),"Not required") -> Not required | N57: =IF(INTRO!$E$42="Endemic", IF(AND($J57>1,$J57<5), IF($J57=4, "Unknown", E57+F57), 0),"Not required") -> 73717 | O57: =IF(INTRO!$E$44="Endemic", IF(AND($K57>0,$K57<5), IF($K57=4,"Unknown", IF($K57=1, $F57*0.33, IF($K57=2, $F57*0.5+$G57*0.2, SUM(F57:G57)))), 0),"Not required") -> 15378.99 | P57: 1 | R57: 1 | S57: 1 | T57: T2 (PZQ) | U57: T3 (ALB/MBD) | V57: MDA 2 | W57: T1 | X57: 27943 | Y57: Vohipeno
A58: =IF(INTRO!$E$34<>0,INTRO!$E$34,"") -> Madagascar | B58: Atsimo Atsinanana | C58: Befotaka | D58: 59466 | E58: =IF(INTRO!$E$48="","",ROUND($D58*INTRO!$E$48,0)) -> 9515 | F58: =IF(INTRO!$E$49="","",ROUND($D58*INTRO!$E$49,0)) -> 16353 | G58: =IF(INTRO!$E$50="","",ROUND($D58*INTRO!$E$50,0)) -> 33598 | H58: 1 | J58: 3 | K58: 3 | L58: =IF(INTRO!$E$38="Endemic", IF($H58>0, IF($H58=4,"Unknown", IF($H58=99,"Stopped", $D58)), 0),"Not required") -> 59466 | M58: =IF(INTRO!$E$40="Endemic", IF($I58>0, IF($I58=4,"Unknown",IF($I58=99,"Stopped", $D58)), 0),"Not required") -> Not required | N58: =IF(INTRO!$E$42="Endemic", IF(AND($J58>1,$J58<5), IF($J58=4, "Unknown", E58+F58), 0),"Not required") -> 25868 | O58: =IF(INTRO!$E$44="Endemic", IF(AND($K58>0,$K58<5), IF($K58=4,"Unknown", IF($K58=1, $F58*0.33, IF($K58=2, $F58*0.5+$G58*0.2, SUM(F58:G58)))), 0),"Not required") -> 49951 | P58: 1 | R58: 1 | S58: 1 | T58: T2 (PZQ) | U58: T3 (ALB/MBD) | V58: MDA 2 | W58: T1 | X58: 27872 | Y58: Befotaka
A59: =IF(INTRO!$E$34<>0,INTRO!$E$34,"") -> Madagascar | B59: Atsimo Atsinanana | C59: Farafangana | D59: 380278 | E59: =IF(INTRO!$E$48="","",ROUND($D59*INTRO!$E$48,0)) -> 60844 | F59: =IF(INTRO!$E$49="","",ROUND($D59*INTRO!$E$49,0)) -> 104576 | G59: =IF(INTRO!$E$50="","",ROUND($D59*INTRO!$E$50,0)) -> 214857 | H59: 1 | J59: 3 | K59: 1 | L59: =IF(INTRO!$E$38="Endemic", IF($H59>0, IF($H59=4,"Unknown", IF($H59=99,"Stopped", $D59)), 0),"Not required") -> 380278 | M59: =IF(INTRO!$E$40="Endemic", IF($I59>0, IF($I59=4,"Unknown",IF($I59=99,"Stopped", $D59)), 0),"Not required") -> Not required | N59: =IF(INTRO!$E$42="Endemic", IF(AND($J59>1,$J59<5), IF($J59=4, "Unknown", E59+F59), 0),"Not required") -> 165420 | O59: =IF(INTRO!$E$44="Endemic", IF(AND($K59>0,$K59<5), IF($K59=4,"Unknown", IF($K59=1, $F59*0.33, IF($K59=2, $F59*0.5+$G59*0.2, SUM(F59:G59)))), 0),"Not required") -> 34510.08 | P59: 1 | R59: 1 | S59: 1 | T59: T2 (PZQ) | U59: T3 (ALB/MBD) | V59: MDA 2 | W59: T1 | X59: 27873 | Y59: Farafangana
A60: =IF(INTRO!$E$34<>0,INTRO!$E$34,"") -> Madagascar | B60: Atsimo Atsinanana | C60: Midongy Atsimo | D60: 50968 | E60: =IF(INTRO!$E$48="","",ROUND($D60*INTRO!$E$48,0)) -> 8155 | F60: =IF(INTRO!$E$49="","",ROUND($D60*INTRO!$E$49,0)) -> 14016 | G60: =IF(INTRO!$E$50="","",ROUND($D60*INTRO!$E$50,0)) -> 28797 | H60: 1 | J60: 3 | K60: 2 | L60: =IF(INTRO!$E$38="Endemic", IF($H60>0, IF($H60=4,"Unknown", IF($H60=99,"Stopped", $D60)), 0),"Not required") -> 50968 | M60: =IF(INTRO!$E$40="Endemic", IF($I60>0, IF($I60=4,"Unknown",IF($I60=99,"Stopped", $D60)), 0),"Not required") -> Not required | N60: =IF(INTRO!$E$42="Endemic", IF(AND($J60>1,$J60<5), IF($J60=4, "Unknown", E60+F60), 0),"Not required") -> 22171 | O60: =IF(INTRO!$E$44="Endemic", IF(AND($K60>0,$K60<5), IF($K60=4,"Unknown", IF($K60=1, $F60*0.33, IF($K60=2, $F60*0.5+$G60*0.2, SUM(F60:G60)))), 0),"Not required") -> 12767.4 | P60: 1 | R60: 1 | S60: 1 | T60: T2 (PZQ) | U60: T3 (ALB/MBD) | V60: MDA 2 | W60: T1 | X60: 27874 | Y60: Midongy Atsimo
A61: =IF(INTRO!$E$34<>0,INTRO!$E$34,"") -> Madagascar | B61: Atsimo Atsinanana | C61: Vangaindrano | D61: 366654 | E61: =IF(INTRO!$E$48="","",ROUND($D61*INTRO!$E$48,0)) -> 58665 | F61: =IF(INTRO!$E$49="","",ROUND($D61*INTRO!$E$49,0)) -> 100830 | G61: =IF(INTRO!$E$50="","",ROUND($D61*INTRO!$E$50,0)) -> 207160 | H61: 1 | J61: 3 | K61: 1 | L61: =IF(INTRO!$E$38="Endemic", IF($H61>0, IF($H61=4,"Unknown", IF($H61=99,"Stopped", $D61)), 0),"Not required") -> 366654 | M61: =IF(INTRO!$E$40="Endemic", IF($I61>0, IF($I61=4,"Unknown",IF($I61=99,"Stopped", $D61)), 0),"Not required") -> Not required | N61: =IF(INTRO!$E$42="Endemic", IF(AND($J61>1,$J61<5), IF($J61=4, "Unknown", E61+F61), 0),"Not required") -> 159495 | O61: =IF(INTRO!$E$44="Endemic", IF(AND($K61>0,$K61<5), IF($K61=4,"Unknown", IF($K61=1, $F61*0.33, IF($K61=2, $F61*0.5+$G61*0.2, SUM(F61:G61)))), 0),"Not required") -> 33273.9 | P61: 1 | R61: 1 | S61: 1 | V61: MDA 2 | W61: T1 | X61: 27875 | Y61: Vangaindrano
A62: =IF(INTRO!$E$34<>0,INTRO!$E$34,"") -> Madagascar | B62: Atsimo Atsinanana | C62: Vondrozo | D62: 142380 | E62: =IF(INTRO!$E$48="","",ROUND($D62*INTRO!$E$48,0)) -> 22781 | F62: =IF(INTRO!$E$49="","",ROUND($D62*INTRO!$E$49,0)) -> 39155 | G62: =IF(INTRO!$E$50="","",ROUND($D62*INTRO!$E$50,0)) -> 80445 | H62: 1 | J62: 3 | K62: 2 | L62: =IF(INTRO!$E$38="Endemic", IF($H62>0, IF($H62=4,"Unknown", IF($H62=99,"Stopped", $D62)), 0),"Not required") -> 142380 | M62: =IF(INTRO!$E$40="Endemic", IF($I62>0, IF($I62=4,"Unknown",IF($I62=99,"Stopped", $D62)), 0),"Not required") -> Not required | N62: =IF(INTRO!$E$42="Endemic", IF(AND($J62>1,$J62<5), IF($J62=4, "Unknown", E62+F62), 0),"Not required") -> 61936 | O62: =IF(INTRO!$E$44="Endemic", IF(AND($K62>0,$K62<5), IF($K62=4,"Unknown", IF($K62=1, $F62*0.33, IF($K62=2, $F62*0.5+$G62*0.2, SUM(F62:G62)))), 0),"Not required") -> 35666.5 | P62: 1 | R62: 1 | S62: 1 | T62: T2 (PZQ) | U62: T3 (ALB/MBD) | V62: MDA 2 | W62: T1 | X62: 27876 | Y62: Vondrozo
A63: =IF(INTRO!$E$34<>0,INTRO!$E$34,"") -> Madagascar | B63: Boeny | C63: Ambato Boeni | D63: 234951 | E63: =IF(INTRO!$E$48="","",ROUND($D63*INTRO!$E$48,0)) -> 37592 | F63: =IF(INTRO!$E$49="","",ROUND($D63*INTRO!$E$49,0)) -> 64612 | G63: =IF(INTRO!$E$50="","",ROUND($D63*INTRO!$E$50,0)) -> 132747 | H63: 1 | J63: 1 | K63: 3 | L63: =IF(INTRO!$E$38="Endemic", IF($H63>0, IF($H63=4,"Unknown", IF($H63=99,"Stopped", $D63)), 0),"Not required") -> 234951 | M63: =IF(INTRO!$E$40="Endemic", IF($I63>0, IF($I63=4,"Unknown",IF($I63=99,"Stopped", $D63)), 0),"Not required") -> Not required | N63: =IF(INTRO!$E$42="Endemic", IF(AND($J63>1,$J63<5), IF($J63=4, "Unknown", E63+F63), 0),"Not required") -> 0 | O63: =IF(INTRO!$E$44="Endemic", IF(AND($K63>0,$K63<5), IF($K63=4,"Unknown", IF($K63=1, $F63*0.33, IF($K63=2, $F63*0.5+$G63*0.2, SUM(F63:G63)))), 0),"Not required") -> 197359 | P63: 1 | R63: 0 | S63: 1 | T63: T2 (PZQ) | V63: MDA 2 | W63: T2 | X63: 27887 | Y63: Ambato Boeni
A64: =IF(INTRO!$E$34<>0,INTRO!$E$34,"") -> Madagascar | B64: Boeny | C64: Mahajanga I | D64: 245435 | E64: =IF(INTRO!$E$48="","",ROUND($D64*INTRO!$E$48,0)) -> 39270 | F64: =IF(INTRO!$E$49="","",ROUND($D64*INTRO!$E$49,0)) -> 67495 | G64: =IF(INTRO!$E$50="","",ROUND($D64*INTRO!$E$50,0)) -> 138671 | H64: 1 | J64: 1 | K64: 2 | L64: =IF(INTRO!$E$38="Endemic", IF($H64>0, IF($H64=4,"Unknown", IF($H64=99,"Stopped", $D64)), 0),"Not required") -> 245435 | M64: =IF(INTRO!$E$40="Endemic", IF($I64>0, IF($I64=4,"Unknown",IF($I64=99,"Stopped", $D64)), 0),"Not required") -> Not required | N64: =IF(INTRO!$E$42="Endemic", IF(AND($J64>1,$J64<5), IF($J64=4, "Unknown", E64+F64), 0),"Not required") -> 0 | O64: =IF(INTRO!$E$44="Endemic", IF(AND($K64>0,$K64<5), IF($K64=4,"Unknown", IF($K64=1, $F64*0.33, IF($K64=2, $F64*0.5+$G64*0.2, SUM(F64:G64)))), 0),"Not required") -> 61481.7 | P64: 1 | R64: 0 | S64: 1 | T64: T2 (PZQ) | V64: MDA 2 | W64: T2 | X64: 27888 | Y64: Mahajanga I
A65: =IF(INTRO!$E$34<>0,INTRO!$E$34,"") -> Madagascar | B65: Boeny | C65: Mahajanga II | D65: 86241 | E65: =IF(INTRO!$E$48="","",ROUND($D65*INTRO!$E$48,0)) -> 13799 | F65: =IF(INTRO!$E$49="","",ROUND($D65*INTRO!$E$49,0)) -> 23716 | G65: =IF(INTRO!$E$50="","",ROUND($D65*INTRO!$E$50,0)) -> 48726 | H65: 1 | J65: 1 | K65: 3 | L65: =IF(INTRO!$E$38="Endemic", IF($H65>0, IF($H65=4,"Unknown", IF($H65=99,"Stopped", $D65)), 0),"Not required") -> 86241 | M65: =IF(INTRO!$E$40="Endemic", IF($I65>0, IF($I65=4,"Unknown",IF($I65=99,"Stopped", $D65)), 0),"Not required") -> Not required | N65: =IF(INTRO!$E$42="Endemic", IF(AND($J65>1,$J65<5), IF($J65=4, "Unknown", E65+F65), 0),"Not required") -> 0 | O65: =IF(INTRO!$E$44="Endemic", IF(AND($K65>0,$K65<5), IF($K65=4,"Unknown", IF($K65=1, $F65*0.33, IF($K65=2, $F65*0.5+$G65*0.2, SUM(F65:G65)))), 0),"Not required") -> 72442 | P65: 1 | R65: 0 | S65: 1 | T65: T2 (PZQ) | V65: MDA 2 | W65: T2 | X65: 27889 | Y65: Mahajanga Ii
A66: =IF(INTRO!$E$34<>0,INTRO!$E$34,"") -> Madagascar | B66: Boeny | C66: Marovoay | D66: 203288 | E66: =IF(INTRO!$E$48="","",ROUND($D66*INTRO!$E$48,0)) -> 32526 | F66: =IF(INTRO!$E$49="","",ROUND($D66*INTRO!$E$49,0)) -> 55904 | G66: =IF(INTRO!$E$50="","",ROUND($D66*INTRO!$E$50,0)) -> 114858 | H66: 1 | J66: 1 | K66: 3 | L66: =IF(INTRO!$E$38="Endemic", IF($H66>0, IF($H66=4,"Unknown", IF($H66=99,"Stopped", $D66)), 0),"Not required") -> 203288 | M66: =IF(INTRO!$E$40="Endemic", IF($I66>0, IF($I66=4,"Unknown",IF($I66=99,"Stopped", $D66)), 0),"Not required") -> Not required | N66: =IF(INTRO!$E$42="Endemic", IF(AND($J66>1,$J66<5), IF($J66=4, "Unknown", E66+F66), 0),"Not required") -> 0 | O66: =IF(INTRO!$E$44="Endemic", IF(AND($K66>0,$K66<5), IF($K66=4,"Unknown", IF($K66=1, $F66*0.33, IF($K66=2, $F66*0.5+$G66*0.2, SUM(F66:G66)))), 0),"Not required") -> 170762 | P66: 1 | R66: 0 | S66: 1 | T66: T2 (PZQ) | V66: MDA 2 | W66: T2 | X66: 27890 | Y66: Marovoay
A67: =IF(INTRO!$E$34<>0,INTRO!$E$34,"") -> Madagascar | B67: Boeny | C67: Mitsinjo | D67: 66277 | E67: =IF(INTRO!$E$48="","",ROUND($D67*INTRO!$E$48,0)) -> 10604 | F67: =IF(INTRO!$E$49="","",ROUND($D67*INTRO!$E$49,0)) -> 18226 | G67: =IF(INTRO!$E$50="","",ROUND($D67*INTRO!$E$50,0)) -> 37447 | H67: 1 | J67: 1 | K67: 3 | L67: =IF(INTRO!$E$38="Endemic", IF($H67>0, IF($H67=4,"Unknown", IF($H67=99,"Stopped", $D67)), 0),"Not required") -> 66277 | M67: =IF(INTRO!$E$40="Endemic", IF($I67>0, IF($I67=4,"Unknown",IF($I67=99,"Stopped", $D67)), 0),"Not required") -> Not required | N67: =IF(INTRO!$E$42="Endemic", IF(AND($J67>1,$J67<5), IF($J67=4, "Unknown", E67+F67), 0),"Not required") -> 0 | O67: =IF(INTRO!$E$44="Endemic", IF(AND($K67>0,$K67<5), IF($K67=4,"Unknown", IF($K67=1, $F67*0.33, IF($K67=2, $F67*0.5+$G67*0.2, SUM(F67:G67)))), 0),"Not required") -> 55673 | P67: 1 | R67: 0 | S67: 1 | T67: T2 (PZQ) | V67: MDA 2 | W67: T2 | X67: 27891 | Y67: Mitsinjo
A68: =IF(INTRO!$E$34<>0,INTRO!$E$34,"") -> Madagascar | B68: Boeny | C68: Soalala | D68: 53394 | E68: =IF(INTRO!$E$48="","",ROUND($D68*INTRO!$E$48,0)) -> 8543 | F68: =IF(INTRO!$E$49="","",ROUND($D68*INTRO!$E$49,0)) -> 14683 | G68: =IF(INTRO!$E$50="","",ROUND($D68*INTRO!$E$50,0)) -> 30168 | H68: 1 | J68: 1 | K68: 3 | L68: =IF(INTRO!$E$38="Endemic", IF($H68>0, IF($H68=4,"Unknown", IF($H68=99,"Stopped", $D68)), 0),"Not required") -> 53394 | M68: =IF(INTRO!$E$40="Endemic", IF($I68>0, IF($I68=4,"Unknown",IF($I68=99,"Stopped", $D68)), 0),"Not required") -> Not required | N68: =IF(INTRO!$E$42="Endemic", IF(AND($J68>1,$J68<5), IF($J68=4, "Unknown", E68+F68), 0),"Not required") -> 0 | O68: =IF(INTRO!$E$44="Endemic", IF(AND($K68>0,$K68<5), IF($K68=4,"Unknown", IF($K68=1, $F68*0.33, IF($K68=2, $F68*0.5+$G68*0.2, SUM(F68:G68)))), 0),"Not required") -> 44851 | P68: 1 | R68: 0 | S68: 1 | T68: T2 (PZQ) | V68: MDA 2 | W68: T2 | X68: 27892 | Y68: Soalala
A69: =IF(INTRO!$E$34<>0,INTRO!$E$34,"") -> Madagascar | B69: Betsiboka | C69: Kandreho | D69: 23016 | E69: =IF(INTRO!$E$48="","",ROUND($D69*INTRO!$E$48,0)) -> 3683 | F69: =IF(INTRO!$E$49="","",ROUND($D69*INTRO!$E$49,0)) -> 6329 | G69: =IF(INTRO!$E$50="","",ROUND($D69*INTRO!$E$50,0)) -> 13004 | H69: 1 | J69: 1 | K69: 3 | L69: =IF(INTRO!$E$38="Endemic", IF($H69>0, IF($H69=4,"Unknown", IF($H69=99,"Stopped", $D69)), 0),"Not required") -> 23016 | M69: =IF(INTRO!$E$40="Endemic", IF($I69>0, IF($I69=4,"Unknown",IF($I69=99,"Stopped", $D69)), 0),"Not required") -> Not required | N69: =IF(INTRO!$E$42="Endemic", IF(AND($J69>1,$J69<5), IF($J69=4, "Unknown", E69+F69), 0),"Not required") -> 0 | O69: =IF(INTRO!$E$44="Endemic", IF(AND($K69>0,$K69<5), IF($K69=4,"Unknown", IF($K69=1, $F69*0.33, IF($K69=2, $F69*0.5+$G69*0.2, SUM(F69:G69)))), 0),"Not required") -> 19333 | P69: 1 | R69: 0 | S69: 1 | T69: T2 (PZQ) | V69: MDA 2 | W69: T2 | X69: 27884 | Y69: Kandreho
A70: =IF(INTRO!$E$34<>0,INTRO!$E$34,"") -> Madagascar | B70: Betsiboka | C70: Maevatanana | D70: 167978 | E70: =IF(INTRO!$E$48="","",ROUND($D70*INTRO!$E$48,0)) -> 26876 | F70: =IF(INTRO!$E$49="","",ROUND($D70*INTRO!$E$49,0)) -> 46194 | G70: =IF(INTRO!$E$50="","",ROUND($D70*INTRO!$E$50,0)) -> 94908 | H70: 1 | J70: 1 | K70: 3 | L70: =IF(INTRO!$E$38="Endemic", IF($H70>0, IF($H70=4,"Unknown", IF($H70=99,"Stopped", $D70)), 0),"Not required") -> 167978 | M70: =IF(INTRO!$E$40="Endemic", IF($I70>0, IF($I70=4,"Unknown",IF($I70=99,"Stopped", $D70)), 0),"Not required") -> Not required | N70: =IF(INTRO!$E$42="Endemic", IF(AND($J70>1,$J70<5), IF($J70=4, "Unknown", E70+F70), 0),"Not required") -> 0 | O70: =IF(INTRO!$E$44="Endemic", IF(AND($K70>0,$K70<5), IF($K70=4,"Unknown", IF($K70=1, $F70*0.33, IF($K70=2, $F70*0.5+$G70*0.2, SUM(F70:G70)))), 0),"Not required") -> 141102 | P70: 1 | R70: 0 | S70: 1 | T70: T2 (PZQ) | V70: MDA 2 | W70: T2 | X70: 27885 | Y70: Maevatanana
A71: =IF(INTRO!$E$34<>0,INTRO!$E$34,"") -> Madagascar | B71: Betsiboka | C71: Tsaratanana | D71: 135529 | E71: =IF(INTRO!$E$48="","",ROUND($D71*INTRO!$E$48,0)) -> 21685 | F71: =IF(INTRO!$E$49="","",ROUND($D71*INTRO!$E$49,0)) -> 37270 | G71: =IF(INTRO!$E$50="","",ROUND($D71*INTRO!$E$50,0)) -> 76574 | H71: 1 | J71: 4 | K71: 3 | L71: =IF(INTRO!$E$38="Endemic", IF($H71>0, IF($H71=4,"Unknown", IF($H71=99,"Stopped", $D71)), 0),"Not required") -> 135529 | M71: =IF(INTRO!$E$40="Endemic", IF($I71>0, IF($I71=4,"Unknown",IF($I71=99,"Stopped", $D71)), 0),"Not required") -> Not required | N71: =IF(INTRO!$E$42="Endemic", IF(AND($J71>1,$J71<5), IF($J71=4, "Unknown", E71+F71), 0),"Not required") -> Unknown | O71: =IF(INTRO!$E$44="Endemic", IF(AND($K71>0,$K71<5), IF($K71=4,"Unknown", IF($K71=1, $F71*0.33, IF($K71=2, $F71*0.5+$G71*0.2, SUM(F71:G71)))), 0),"Not required") -> 113844 | P71: 1 | R71: 0 | S71: 1 | T71: T2 (PZQ) | V71: MDA 2 | W71: T2 | X71: 27886 | Y71: Tsaratanana
A72: =IF(INTRO!$E$34<>0,INTRO!$E$34,"") -> Madagascar | B72: Melaky | C72: Ambatomainty | D72: 32728 | E72: =IF(INTRO!$E$48="","",ROUND($D72*INTRO!$E$48,0)) -> 5236 | F72: =IF(INTRO!$E$49="","",ROUND($D72*INTRO!$E$49,0)) -> 9000 | G72: =IF(INTRO!$E$50="","",ROUND($D72*INTRO!$E$50,0)) -> 18491 | H72: 1 | J72: 0 | K72: 3 | L72: =IF(INTRO!$E$38="Endemic", IF($H72>0, IF($H72=4,"Unknown", IF($H72=99,"Stopped", $D72)), 0),"Not required") -> 32728 | M72: =IF(INTRO!$E$40="Endemic", IF($I72>0, IF($I72=4,"Unknown",IF($I72=99,"Stopped", $D72)), 0),"Not required") -> Not required | N72: =IF(INTRO!$E$42="Endemic", IF(AND($J72>1,$J72<5), IF($J72=4, "Unknown", E72+F72), 0),"Not required") -> 0 | O72: =IF(INTRO!$E$44="Endemic", IF(AND($K72>0,$K72<5), IF($K72=4,"Unknown", IF($K72=1, $F72*0.33, IF($K72=2, $F72*0.5+$G72*0.2, SUM(F72:G72)))), 0),"Not required") -> 27491 | P72: 1 | R72: 0 | S72: 1 | T72: T2 (PZQ) | V72: MDA 2 | W72: T2 | X72: 27911 | Y72: Ambatomainty
A73: =IF(INTRO!$E$34<>0,INTRO!$E$34,"") -> Madagascar | B73: Melaky | C73: Antsalova | D73: 64900 | E73: =IF(INTRO!$E$48="","",ROUND($D73*INTRO!$E$48,0)) -> 10384 | F73: =IF(INTRO!$E$49="","",ROUND($D73*INTRO!$E$49,0)) -> 17848 | G73: =IF(INTRO!$E$50="","",ROUND($D73*INTRO!$E$50,0)) -> 36669 | H73: 1 | J73: 2 | K73: 3 | L73: =IF(INTRO!$E$38="Endemic", IF($H73>0, IF($H73=4,"Unknown", IF($H73=99,"Stopped", $D73)), 0),"Not required") -> 64900 | M73: =IF(INTRO!$E$40="Endemic", IF($I73>0, IF($I73=4,"Unknown",IF($I73=99,"Stopped", $D73)), 0),"Not required") -> Not required | N73: =IF(INTRO!$E$42="Endemic", IF(AND($J73>1,$J73<5), IF($J73=4, "Unknown", E73+F73), 0),"Not required") -> 28232 | O73: =IF(INTRO!$E$44="Endemic", IF(AND($K73>0,$K73<5), IF($K73=4,"Unknown", IF($K73=1, $F73*0.33, IF($K73=2, $F73*0.5+$G73*0.2, SUM(F73:G73)))), 0),"Not required") -> 54517 | P73: 1 | R73: 0 | S73: 1 | T73: T2 (PZQ) | V73: MDA 2 | W73: T2 | X73: 27912 | Y73: Antsalova
A74: =IF(INTRO!$E$34<>0,INTRO!$E$34,"") -> Madagascar | B74: Melaky | C74: Besalampy | D74: 79200 | E74: =IF(INTRO!$E$48="","",ROUND($D74*INTRO!$E$48,0)) -> 12672 | F74: =IF(INTRO!$E$49="","",ROUND($D74*INTRO!$E$49,0)) -> 21780 | G74: =IF(INTRO!$E$50="","",ROUND($D74*INTRO!$E$50,0)) -> 44748 | H74: 1 | J74: 4 | K74: 3 | L74: =IF(INTRO!$E$38="Endemic", IF($H74>0, IF($H74=4,"Unknown", IF($H74=99,"Stopped", $D74)), 0),"Not required") -> 79200 | M74: =IF(INTRO!$E$40="Endemic", IF($I74>0, IF($I74=4,"Unknown",IF($I74=99,"Stopped", $D74)), 0),"Not required") -> Not required | N74: =IF(INTRO!$E$42="Endemic", IF(AND($J74>1,$J74<5), IF($J74=4, "Unknown", E74+F74), 0),"Not required") -> Unknown | O74: =IF(INTRO!$E$44="Endemic", IF(AND($K74>0,$K74<5), IF($K74=4,"Unknown", IF($K74=1, $F74*0.33, IF($K74=2, $F74*0.5+$G74*0.2, SUM(F74:G74)))), 0),"Not required") -> 66528 | P74: 1 | R74: 0 | S74: 1 | T74: T2 (PZQ) | V74: MDA 2 | W74: T2 | X74: 27913 | Y74: Besalampy
A75: =IF(INTRO!$E$34<>0,INTRO!$E$34,"") -> Madagascar | B75: Melaky | C75: Maintirano | D75: 118590 | E75: =IF(INTRO!$E$48="","",ROUND($D75*INTRO!$E$48,0)) -> 18974 | F75: =IF(INTRO!$E$49="","",ROUND($D75*INTRO!$E$49,0)) -> 32612 | G75: =IF(INTRO!$E$50="","",ROUND($D75*INTRO!$E$50,0)) -> 67003 | H75: 1 | J75: 1 | K75: 3 | L75: =IF(INTRO!$E$38="Endemic", IF($H75>0, IF($H75=4,"Unknown", IF($H75=99,"Stopped", $D75)), 0),"Not required") -> 118590 | M75: =IF(INTRO!$E$40="Endemic", IF($I75>0, IF($I75=4,"Unknown",IF($I75=99,"Stopped", $D75)), 0),"Not required") -> Not required | N75: =IF(INTRO!$E$42="Endemic", IF(AND($J75>1,$J75<5), IF($J75=4, "Unknown", E75+F75), 0),"Not required") -> 0 | O75: =IF(INTRO!$E$44="Endemic", IF(AND($K75>0,$K75<5), IF($K75=4,"Unknown", IF($K75=1, $F75*0.33, IF($K75=2, $F75*0.5+$G75*0.2, SUM(F75:G75)))), 0),"Not required") -> 99615 | P75: 1 | R75: 0 | S75: 1 | T75: T2 (PZQ) | V75: MDA 2 | W75: T2 | X75: 27914 | Y75: Maintirano
A76: =IF(INTRO!$E$34<>0,INTRO!$E$34,"") -> Madagascar | B76: Melaky | C76: Morafenobe | D76: 26737 | E76: =IF(INTRO!$E$48="","",ROUND($D76*INTRO!$E$48,0)) -> 4278 | F76: =IF(INTRO!$E$49="","",ROUND($D76*INTRO!$E$49,0)) -> 7353 | G76: =IF(INTRO!$E$50="","",ROUND($D76*INTRO!$E$50,0)) -> 15106 | H76: 1 | J76: 1 | K76: 3 | L76: =IF(INTRO!$E$38="Endemic", IF($H76>0, IF($H76=4,"Unknown", IF($H76=99,"Stopped", $D76)), 0),"Not required") -> 26737 | M76: =IF(INTRO!$E$40="Endemic", IF($I76>0, IF($I76=4,"Unknown",IF($I76=99,"Stopped", $D76)), 0),"Not required") -> Not required | N76: =IF(INTRO!$E$42="Endemic", IF(AND($J76>1,$J76<5), IF($J76=4, "Unknown", E76+F76), 0),"Not required") -> 0 | O76: =IF(INTRO!$E$44="Endemic", IF(AND($K76>0,$K76<5), IF($K76=4,"Unknown", IF($K76=1, $F76*0.33, IF($K76=2, $F76*0.5+$G76*0.2, SUM(F76:G76)))), 0),"Not required") -> 22459 | P76: 1 | R76: 0 | S76: 1 | T76: T2 (PZQ) | V76: MDA 2 | W76: T2 | X76: 27915 | Y76: Morafenobe
A77: =IF(INTRO!$E$34<>0,INTRO!$E$34,"") -> Madagascar | B77: Sofia | C77: Analalava | D77: 165384 | E77: =IF(INTRO!$E$48="","",ROUND($D77*INTRO!$E$48,0)) -> 26461 | F77: =IF(INTRO!$E$49="","",ROUND($D77*INTRO!$E$49,0)) -> 45481 | G77: =IF(INTRO!$E$50="","",ROUND($D77*INTRO!$E$50,0)) -> 93442 | H77: 1 | J77: 2 | K77: 2 | L77: =IF(INTRO!$E$38="Endemic", IF($H77>0, IF($H77=4,"Unknown", IF($H77=99,"Stopped", $D77)), 0),"Not required") -> 165384 | M77: =IF(INTRO!$E$40="Endemic", IF($I77>0, IF($I77=4,"Unknown",IF($I77=99,"Stopped", $D77)), 0),"Not required") -> Not required | N77: =IF(INTRO!$E$42="Endemic", IF(AND($J77>1,$J77<5), IF($J77=4, "Unknown", E77+F77), 0),"Not required") -> 71942 | O77: =IF(INTRO!$E$44="Endemic", IF(AND($K77>0,$K77<5), IF($K77=4,"Unknown", IF($K77=1, $F77*0.33, IF($K77=2, $F77*0.5+$G77*0.2, SUM(F77:G77)))), 0),"Not required") -> 41428.9 | P77: 1 | R77: 0 | S77: 0 | V77: MDA 2 | W77: T2 | X77: 27925 | Y77: Analalava
A78: =IF(INTRO!$E$34<>0,INTRO!$E$34,"") -> Madagascar | B78: Sofia | C78: Antsohihy | D78: 152885 | E78: =IF(INTRO!$E$48="","",ROUND($D78*INTRO!$E$48,0)) -> 24462 | F78: =IF(INTRO!$E$49="","",ROUND($D78*INTRO!$E$49,0)) -> 42043 | G78: =IF(INTRO!$E$50="","",ROUND($D78*INTRO!$E$50,0)) -> 86380 | H78: 1 | J78: 1 | K78: 3 | L78: =IF(INTRO!$E$38="Endemic", IF($H78>0, IF($H78=4,"Unknown", IF($H78=99,"Stopped", $D78)), 0),"Not required") -> 152885 | M78: =IF(INTRO!$E$40="Endemic", IF($I78>0, IF($I78=4,"Unknown",IF($I78=99,"Stopped", $D78)), 0),"Not required") -> Not required | N78: =IF(INTRO!$E$42="Endemic", IF(AND($J78>1,$J78<5), IF($J78=4, "Unknown", E78+F78), 0),"Not required") -> 0 | O78: =IF(INTRO!$E$44="Endemic", IF(AND($K78>0,$K78<5), IF($K78=4,"Unknown", IF($K78=1, $F78*0.33, IF($K78=2, $F78*0.5+$G78*0.2, SUM(F78:G78)))), 0),"Not required") -> 128423 | P78: 1 | R78: 0 | S78: 1 | T78: T2 (PZQ) | V78: MDA 2 | W78: T2 | X78: 27926 | Y78: Antsohihy
A79: =IF(INTRO!$E$34<>0,INTRO!$E$34,"") -> Madagascar | B79: Sofia | C79: Bealanana | D79: 159084 | E79: =IF(INTRO!$E$48="","",ROUND($D79*INTRO!$E$48,0)) -> 25453 | F79: =IF(INTRO!$E$49="","",ROUND($D79*INTRO!$E$49,0)) -> 43748 | G79: =IF(INTRO!$E$50="","",ROUND($D79*INTRO!$E$50,0)) -> 89882 | H79: 1 | J79: 1 | K79: 1 | L79: =IF(INTRO!$E$38="Endemic", IF($H79>0, IF($H79=4,"Unknown", IF($H79=99,"Stopped", $D79)), 0),"Not required") -> 159084 | M79: =IF(INTRO!$E$40="Endemic", IF($I79>0, IF($I79=4,"Unknown",IF($I79=99,"Stopped", $D79)), 0),"Not required") -> Not required | N79: =IF(INTRO!$E$42="Endemic", IF(AND($J79>1,$J79<5), IF($J79=4, "Unknown", E79+F79), 0),"Not required") -> 0 | O79: =IF(INTRO!$E$44="Endemic", IF(AND($K79>0,$K79<5), IF($K79=4,"Unknown", IF($K79=1, $F79*0.33, IF($K79=2, $F79*0.5+$G79*0.2, SUM(F79:G79)))), 0),"Not required") -> 14436.84 | P79: 1 | R79: 0 | S79: 1 | T79: T2 (PZQ) | V79: MDA 2 | W79: T2 | X79: 27927 | Y79: Bealanana
A80: =IF(INTRO!$E$34<>0,INTRO!$E$34,"") -> Madagascar | B80: Sofia | C80: Befandriana Nord | D80: 268188 | E80: =IF(INTRO!$E$48="","",ROUND($D80*INTRO!$E$48,0)) -> 42910 | F80: =IF(INTRO!$E$49="","",ROUND($D80*INTRO!$E$49,0)) -> 73752 | G80: =IF(INTRO!$E$50="","",ROUND($D80*INTRO!$E$50,0)) -> 151526 | H80: 1 | J80: 1 | K80: 3 | L80: =IF(INTRO!$E$38="Endemic", IF($H80>0, IF($H80=4,"Unknown", IF($H80=99,"Stopped", $D80)), 0),"Not required") -> 268188 | M80: =IF(INTRO!$E$40="Endemic", IF($I80>0, IF($I80=4,"Unknown",IF($I80=99,"Stopped", $D80)), 0),"Not required") -> Not required | N80: =IF(INTRO!$E$42="Endemic", IF(AND($J80>1,$J80<5), IF($J80=4, "Unknown", E80+F80), 0),"Not required") -> 0 | O80: =IF(INTRO!$E$44="Endemic", IF(AND($K80>0,$K80<5), IF($K80=4,"Unknown", IF($K80=1, $F80*0.33, IF($K80=2, $F80*0.5+$G80*0.2, SUM(F80:G80)))), 0),"Not required") -> 225278 | P80: 1 | R80: 0 | S80: 1 | T80: T2 (PZQ) | V80: MDA 2 | W80: T2 | X80: 27928 | Y80: Befandriana Nord
A81: =IF(INTRO!$E$34<>0,INTRO!$E$34,"") -> Madagascar | B81: Sofia | C81: Mampikony | D81: 148805 | E81: =IF(INTRO!$E$48="","",ROUND($D81*INTRO!$E$48,0)) -> 23809 | F81: =IF(INTRO!$E$49="","",ROUND($D81*INTRO!$E$49,0)) -> 40921 | G81: =IF(INTRO!$E$50="","",ROUND($D81*INTRO!$E$50,0)) -> 84075 | H81: 1 | J81: 0 | K81: 3 | L81: =IF(INTRO!$E$38="Endemic", IF($H81>0, IF($H81=4,"Unknown", IF($H81=99,"Stopped", $D81)), 0),"Not required") -> 148805 | M81: =IF(INTRO!$E$40="Endemic", IF($I81>0, IF($I81=4,"Unknown",IF($I81=99,"Stopped", $D81)), 0),"Not required") -> Not required | N81: =IF(INTRO!$E$42="Endemic", IF(AND($J81>1,$J81<5), IF($J81=4, "Unknown", E81+F81), 0),"Not required") -> 0 | O81: =IF(INTRO!$E$44="Endemic", IF(AND($K81>0,$K81<5), IF($K81=4,"Unknown", IF($K81=1, $F81*0.33, IF($K81=2, $F81*0.5+$G81*0.2, SUM(F81:G81)))), 0),"Not required") -> 124996 | P81: 1 | R81: 0 | S81: 1 | T81: T2 (PZQ) | V81: MDA 2 | W81: T2 | X81: 27929 | Y81: Mampikony
A82: =IF(INTRO!$E$34<>0,INTRO!$E$34,"") -> Madagascar | B82: Sofia | C82: Mandritsara | D82: 282542 | E82: =IF(INTRO!$E$48="","",ROUND($D82*INTRO!$E$48,0)) -> 45207 | F82: =IF(INTRO!$E$49="","",ROUND($D82*INTRO!$E$49,0)) -> 77699 | G82: =IF(INTRO!$E$50="","",ROUND($D82*INTRO!$E$50,0)) -> 159636 | H82: 1 | J82: 1 | K82: 3 | L82: =IF(INTRO!$E$38="Endemic", IF($H82>0, IF($H82=4,"Unknown", IF($H82=99,"Stopped", $D82)), 0),"Not required") -> 282542 | M82: =IF(INTRO!$E$40="Endemic", IF($I82>0, IF($I82=4,"Unknown",IF($I82=99,"Stopped", $D82)), 0),"Not required") -> Not required | N82: =IF(INTRO!$E$42="Endemic", IF(AND($J82>1,$J82<5), IF($J82=4, "Unknown", E82+F82), 0),"Not required") -> 0 | O82: =IF(INTRO!$E$44="Endemic", IF(AND($K82>0,$K82<5), IF($K82=4,"Unknown", IF($K82=1, $F82*0.33, IF($K82=2, $F82*0.5+$G82*0.2, SUM(F82:G82)))), 0),"Not required") -> 237335 | P82: 1 | R82: 0 | S82: 1 | T82: T2 (PZQ) | V82: MDA 2 | W82: T2 | X82: 27930 | Y82: Mandritsara
A83: =IF(INTRO!$E$34<>0,INTRO!$E$34,"") -> Madagascar | B83: Sofia | C83: Port Bergé | D83: 210358 | E83: =IF(INTRO!$E$48="","",ROUND($D83*INTRO!$E$48,0)) -> 33657 | F83: =IF(INTRO!$E$49="","",ROUND($D83*INTRO!$E$49,0)) -> 57848 | G83: =IF(INTRO!$E$50="","",ROUND($D83*INTRO!$E$50,0)) -> 118852 | H83: 1 | J83: 1 | K83: 3 | L83: =IF(INTRO!$E$38="Endemic", IF($H83>0, IF($H83=4,"Unknown", IF($H83=99,"Stopped", $D83)), 0),"Not required") -> 210358 | M83: =IF(INTRO!$E$40="Endemic", IF($I83>0, IF($I83=4,"Unknown",IF($I83=99,"Stopped", $D83)), 0),"Not required") -> Not required | N83: =IF(INTRO!$E$42="Endemic", IF(AND($J83>1,$J83<5), IF($J83=4, "Unknown", E83+F83), 0),"Not required") -> 0 | O83: =IF(INTRO!$E$44="Endemic", IF(AND($K83>0,$K83<5), IF($K83=4,"Unknown", IF($K83=1, $F83*0.33, IF($K83=2, $F83*0.5+$G83*0.2, SUM(F83:G83)))), 0),"Not required") -> 176700 | P83: 1 | R83: 0 | S83: 1 | T83: T2 (PZQ) | V83: MDA 2 | W83: T2 | X83: 27931 | Y83: Port Bergé
A84: =IF(INTRO!$E$34<>0,INTRO!$E$34,"") -> Madagascar | B84: Atsinanana | C84: Antanambao Manampontsy | D84: 54137 | E84: =IF(INTRO!$E$48="","",ROUND($D84*INTRO!$E$48,0)) -> 8662 | F84: =IF(INTRO!$E$49="","",ROUND($D84*INTRO!$E$49,0)) -> 14888 | G84: =IF(INTRO!$E$50="","",ROUND($D84*INTRO!$E$50,0)) -> 30587 | H84: 1 | J84: 4 | K84: 3 | L84: =IF(INTRO!$E$38="Endemic", IF($H84>0, IF($H84=4,"Unknown", IF($H84=99,"Stopped", $D84)), 0),"Not required") -> 54137 | M84: =IF(INTRO!$E$40="Endemic", IF($I84>0, IF($I84=4,"Unknown",IF($I84=99,"Stopped", $D84)), 0),"Not required") -> Not required | N84: =IF(INTRO!$E$42="Endemic", IF(AND($J84>1,$J84<5), IF($J84=4, "Unknown", E84+F84), 0),"Not required") -> Unknown | O84: =IF(INTRO!$E$44="Endemic", IF(AND($K84>0,$K84<5), IF($K84=4,"Unknown", IF($K84=1, $F84*0.33, IF($K84=2, $F84*0.5+$G84*0.2, SUM(F84:G84)))), 0),"Not required") -> 45475 | P84: 1 | R84: 1 | S84: 1 | T84: T2 (PZQ) | U84: T3 (ALB/MBD) | V84: MDA 2 | W84: T2 | X84: 27877 | Y84: Antanambao Manampontsy
A85: =IF(INTRO!$E$34<>0,INTRO!$E$34,"") -> Madagascar | B85: Atsinanana | C85: Brickaville | D85: 209196 | E85: =IF(INTRO!$E$48="","",ROUND($D85*INTRO!$E$48,0)) -> 33471 | F85: =IF(INTRO!$E$49="","",ROUND($D85*INTRO!$E$49,0)) -> 57529 | G85: =IF(INTRO!$E$50="","",ROUND($D85*INTRO!$E$50,0)) -> 118196 | H85: 1 | J85: 3 | K85: 2 | L85: =IF(INTRO!$E$38="Endemic", IF($H85>0, IF($H85=4,"Unknown", IF($H85=99,"Stopped", $D85)), 0),"Not required") -> 209196 | M85: =IF(INTRO!$E$40="Endemic", IF($I85>0, IF($I85=4,"Unknown",IF($I85=99,"Stopped", $D85)), 0),"Not required") -> Not required | N85: =IF(INTRO!$E$42="Endemic", IF(AND($J85>1,$J85<5), IF($J85=4, "Unknown", E85+F85), 0),"Not required") -> 91000 | O85: =IF(INTRO!$E$44="Endemic", IF(AND($K85>0,$K85<5), IF($K85=4,"Unknown", IF($K85=1, $F85*0.33, IF($K85=2, $F85*0.5+$G85*0.2, SUM(F85:G85)))), 0),"Not required") -> 52403.7 | P85: 1 | R85: 1 | S85: 1 | T85: T2 (PZQ) | U85: T3 (ALB/MBD) | V85: MDA 2 | W85: T1 | X85: 27878 | Y85: Brickaville
A86: =IF(INTRO!$E$34<>0,INTRO!$E$34,"") -> Madagascar | B86: Atsinanana | C86: Mahanoro | D86: 265278 | E86: =IF(INTRO!$E$48="","",ROUND($D86*INTRO!$E$48,0)) -> 42444 | F86: =IF(INTRO!$E$49="","",ROUND($D86*INTRO!$E$49,0)) -> 72951 | G86: =IF(INTRO!$E$50="","",ROUND($D86*INTRO!$E$50,0)) -> 149882 | H86: 1 | J86: 4 | K86: 3 | L86: =IF(INTRO!$E$38="Endemic", IF($H86>0, IF($H86=4,"Unknown", IF($H86=99,"Stopped", $D86)), 0),"Not required") -> 265278 | M86: =IF(INTRO!$E$40="Endemic", IF($I86>0, IF($I86=4,"Unknown",IF($I86=99,"Stopped", $D86)), 0),"Not required") -> Not required | N86: =IF(INTRO!$E$42="Endemic", IF(AND($J86>1,$J86<5), IF($J86=4, "Unknown", E86+F86), 0),"Not required") -> Unknown | O86: =IF(INTRO!$E$44="Endemic", IF(AND($K86>0,$K86<5), IF($K86=4,"Unknown", IF($K86=1, $F86*0.33, IF($K86=2, $F86*0.5+$G86*0.2, SUM(F86:G86)))), 0),"Not required") -> 222833 | P86: 1 | R86: 1 | S86: 1 | T86: T2 (PZQ) | U86: T3 (ALB/MBD) | V86: MDA 2 | W86: T2 | X86: 27879 | Y86: Mahanoro
A87: =IF(INTRO!$E$34<>0,INTRO!$E$34,"") -> Madagascar | B87: Atsinanana | C87: Marolambo | D87: 166371 | E87: =IF(INTRO!$E$48="","",ROUND($D87*INTRO!$E$48,0)) -> 26619 | F87: =IF(INTRO!$E$49="","",ROUND($D87*INTRO!$E$49,0)) -> 45752 | G87: =IF(INTRO!$E$50="","",ROUND($D87*INTRO!$E$50,0)) -> 94000 | H87: 1 | J87: 4 | K87: 3 | L87: =IF(INTRO!$E$38="Endemic", IF($H87>0, IF($H87=4,"Unknown", IF($H87=99,"Stopped", $D87)), 0),"Not required") -> 166371 | M87: =IF(INTRO!$E$40="Endemic", IF($I87>0, IF($I87=4,"Unknown",IF($I87=99,"Stopped", $D87)), 0),"Not required") -> Not required | N87: =IF(INTRO!$E$42="Endemic", IF(AND($J87>1,$J87<5), IF($J87=4, "Unknown", E87+F87), 0),"Not required") -> Unknown | O87: =IF(INTRO!$E$44="Endemic", IF(AND($K87>0,$K87<5), IF($K87=4,"Unknown", IF($K87=1, $F87*0.33, IF($K87=2, $F87*0.5+$G87*0.2, SUM(F87:G87)))), 0),"Not required") -> 139752 | P87: 1 | R87: 1 | S87: 1 | T87: T2 (PZQ) | U87: T3 (ALB/MBD) | V87: MDA 2 | W87: T2 | X87: 27880 | Y87: Marolambo
A88: =IF(INTRO!$E$34<>0,INTRO!$E$34,"") -> Madagascar | B88: Atsinanana | C88: Toamasina I | D88: 305549 | E88: =IF(INTRO!$E$48="","",ROUND($D88*INTRO!$E$48,0)) -> 48888 | F88: =IF(INTRO!$E$49="","",ROUND($D88*INTRO!$E$49,0)) -> 84026 | G88: =IF(INTRO!$E$50="","",ROUND($D88*INTRO!$E$50,0)) -> 172635 | H88: 1 | J88: 3 | K88: 2 | L88: =IF(INTRO!$E$38="Endemic", IF($H88>0, IF($H88=4,"Unknown", IF($H88=99,"Stopped", $D88)), 0),"Not required") -> 305549 | M88: =IF(INTRO!$E$40="Endemic", IF($I88>0, IF($I88=4,"Unknown",IF($I88=99,"Stopped", $D88)), 0),"Not required") -> Not required | N88: =IF(INTRO!$E$42="Endemic", IF(AND($J88>1,$J88<5), IF($J88=4, "Unknown", E88+F88), 0),"Not required") -> 132914 | O88: =IF(INTRO!$E$44="Endemic", IF(AND($K88>0,$K88<5), IF($K88=4,"Unknown", IF($K88=1, $F88*0.33, IF($K88=2, $F88*0.5+$G88*0.2, SUM(F88:G88)))), 0),"Not required") -> 76540 | P88: 1 | R88: 1 | S88: 1 | T88: T2 (PZQ) | U88: T3 (ALB/MBD) | V88: MDA 2 | W88: T1 | X88: 27881 | Y88: Toamasina I
A89: =IF(INTRO!$E$34<>0,INTRO!$E$34,"") -> Madagascar | B89: Atsinanana | C89: Toamasina II | D89: 257381 | E89: =IF(INTRO!$E$48="","",ROUND($D89*INTRO!$E$48,0)) -> 41181 | F89: =IF(INTRO!$E$49="","",ROUND($D89*INTRO!$E$49,0)) -> 70780 | G89: =IF(INTRO!$E$50="","",ROUND($D89*INTRO!$E$50,0)) -> 145420 | H89: 1 | J89: 3 | K89: 2 | L89: =IF(INTRO!$E$38="Endemic", IF($H89>0, IF($H89=4,"Unknown", IF($H89=99,"Stopped", $D89)), 0),"Not required") -> 257381 | M89: =IF(INTRO!$E$40="Endemic", IF($I89>0, IF($I89=4,"Unknown",IF($I89=99,"Stopped", $D89)), 0),"Not required") -> Not required | N89: =IF(INTRO!$E$42="Endemic", IF(AND($J89>1,$J89<5), IF($J89=4, "Unknown", E89+F89), 0),"Not required") -> 111961 | O89: =IF(INTRO!$E$44="Endemic", IF(AND($K89>0,$K89<5), IF($K89=4,"Unknown", IF($K89=1, $F89*0.33, IF($K89=2, $F89*0.5+$G89*0.2, SUM(F89:G89)))), 0),"Not required") -> 64474 | P89: 1 | R89: 1 | S89: 1 | T89: T2 (PZQ) | U89: T3 (ALB/MBD) | V89: MDA 2 | W89: T1 | X89: 27882 | Y89: Toamasina Ii
A90: =IF(INTRO!$E$34<>0,INTRO!$E$34,"") -> Madagascar | B90: Atsinanana | C90: Vatomandry | D90: 155636 | E90: =IF(INTRO!$E$48="","",ROUND($D90*INTRO!$E$48,0)) -> 24902 | F90: =IF(INTRO!$E$49="","",ROUND($D90*INTRO!$E$49,0)) -> 42800 | G90: =IF(INTRO!$E$50="","",ROUND($D90*INTRO!$E$50,0)) -> 87934 | H90: 1 | J90: 4 | K90: 3 | L90: =IF(INTRO!$E$38="Endemic", IF($H90>0, IF($H90=4,"Unknown", IF($H90=99,"Stopped", $D90)), 0),"Not required") -> 155636 | M90: =IF(INTRO!$E$40="Endemic", IF($I90>0, IF($I90=4,"Unknown",IF($I90=99,"Stopped", $D90)), 0),"Not required") -> Not required | N90: =IF(INTRO!$E$42="Endemic", IF(AND($J90>1,$J90<5), IF($J90=4, "Unknown", E90+F90), 0),"Not required") -> Unknown | O90: =IF(INTRO!$E$44="Endemic", IF(AND($K90>0,$K90<5), IF($K90=4,"Unknown", IF($K90=1, $F90*0.33, IF($K90=2, $F90*0.5+$G90*0.2, SUM(F90:G90)))), 0),"Not required") -> 130734 | P90: 1 | R90: 1 | S90: 1 | T90: T2 (PZQ) | U90: T3 (ALB/MBD) | V90: MDA 2 | W90: T2 | X90: 27883 | Y90: Vatomandry
A91: =IF(INTRO!$E$34<>0,INTRO!$E$34,"") -> Madagascar | B91: Alaotra Mangoro | C91: Ambatondrazaka | D91: 361108 | E91: =IF(INTRO!$E$48="","",ROUND($D91*INTRO!$E$48,0)) -> 57777 | F91: =IF(INTRO!$E$49="","",ROUND($D91*INTRO!$E$49,0)) -> 99305 | G91: =IF(INTRO!$E$50="","",ROUND($D91*INTRO!$E$50,0)) -> 204026 | H91: 1 | J91: 3 | K91: 1 | L91: =IF(INTRO!$E$38="Endemic", IF($H91>0, IF($H91=4,"Unknown", IF($H91=99,"Stopped", $D91)), 0),"Not required") -> 361108 | M91: =IF(INTRO!$E$40="Endemic", IF($I91>0, IF($I91=4,"Unknown",IF($I91=99,"Stopped", $D91)), 0),"Not required") -> Not required | N91: =IF(INTRO!$E$42="Endemic", IF(AND($J91>1,$J91<5), IF($J91=4, "Unknown", E91+F91), 0),"Not required") -> 157082 | O91: =IF(INTRO!$E$44="Endemic", IF(AND($K91>0,$K91<5), IF($K91=4,"Unknown", IF($K91=1, $F91*0.33, IF($K91=2, $F91*0.5+$G91*0.2, SUM(F91:G91)))), 0),"Not required") -> 32770.65 | P91: 1 | R91: 1 | S91: 1 | V91: MDA 2 | W91: T1 | X91: 27833 | Y91: Ambatondrazaka
A92: =IF(INTRO!$E$34<>0,INTRO!$E$34,"") -> Madagascar | B92: Alaotra Mangoro | C92: Amparafaravola | D92: 297712 | E92: =IF(INTRO!$E$48="","",ROUND($D92*INTRO!$E$48,0)) -> 47634 | F92: =IF(INTRO!$E$49="","",ROUND($D92*INTRO!$E$49,0)) -> 81871 | G92: =IF(INTRO!$E$50="","",ROUND($D92*INTRO!$E$50,0)) -> 168207 | H92: 1 | J92: 3 | K92: 1 | L92: =IF(INTRO!$E$38="Endemic", IF($H92>0, IF($H92=4,"Unknown", IF($H92=99,"Stopped", $D92)), 0),"Not required") -> 297712 | M92: =IF(INTRO!$E$40="Endemic", IF($I92>0, IF($I92=4,"Unknown",IF($I92=99,"Stopped", $D92)), 0),"Not required") -> Not required | N92: =IF(INTRO!$E$42="Endemic", IF(AND($J92>1,$J92<5), IF($J92=4, "Unknown", E92+F92), 0),"Not required") -> 129505 | O92: =IF(INTRO!$E$44="Endemic", IF(AND($K92>0,$K92<5), IF($K92=4,"Unknown", IF($K92=1, $F92*0.33, IF($K92=2, $F92*0.5+$G92*0.2, SUM(F92:G92)))), 0),"Not required") -> 27017.43 | P92: 1 | R92: 1 | S92: 1 | V92: MDA 2 | W92: T1 | X92: 27834 | Y92: Amparafaravola
A93: =IF(INTRO!$E$34<>0,INTRO!$E$34,"") -> Madagascar | B93: Alaotra Mangoro | C93: Andilamena | D93: 78457 | E93: =IF(INTRO!$E$48="","",ROUND($D93*INTRO!$E$48,0)) -> 12553 | F93: =IF(INTRO!$E$49="","",ROUND($D93*INTRO!$E$49,0)) -> 21576 | G93: =IF(INTRO!$E$50="","",ROUND($D93*INTRO!$E$50,0)) -> 44328 | H93: 1 | J93: 1 | K93: 2 | L93: =IF(INTRO!$E$38="Endemic", IF($H93>0, IF($H93=4,"Unknown", IF($H93=99,"Stopped", $D93)), 0),"Not required") -> 78457 | M93: =IF(INTRO!$E$40="Endemic", IF($I93>0, IF($I93=4,"Unknown",IF($I93=99,"Stopped", $D93)), 0),"Not required") -> Not required | N93: =IF(INTRO!$E$42="Endemic", IF(AND($J93>1,$J93<5), IF($J93=4, "Unknown", E93+F93), 0),"Not required") -> 0 | O93: =IF(INTRO!$E$44="Endemic", IF(AND($K93>0,$K93<5), IF($K93=4,"Unknown", IF($K93=1, $F93*0.33, IF($K93=2, $F93*0.5+$G93*0.2, SUM(F93:G93)))), 0),"Not required") -> 19653.6 | P93: 1 | R93: 0 | S93: 1 | T93: T2 (PZQ) | V93: MDA 2 | W93: T2 | X93: 27835 | Y93: Andilamena
A94: =IF(INTRO!$E$34<>0,INTRO!$E$34,"") -> Madagascar | B94: Alaotra Mangoro | C94: Anosibe An'Ala | D94: 99234 | E94: =IF(INTRO!$E$48="","",ROUND($D94*INTRO!$E$48,0)) -> 15877 | F94: =IF(INTRO!$E$49="","",ROUND($D94*INTRO!$E$49,0)) -> 27289 | G94: =IF(INTRO!$E$50="","",ROUND($D94*INTRO!$E$50,0)) -> 56067 | H94: 1 | J94: 3 | K94: 2 | L94: =IF(INTRO!$E$38="Endemic", IF($H94>0, IF($H94=4,"Unknown", IF($H94=99,"Stopped", $D94)), 0),"Not required") -> 99234 | M94: =IF(INTRO!$E$40="Endemic", IF($I94>0, IF($I94=4,"Unknown",IF($I94=99,"Stopped", $D94)), 0),"Not required") -> Not required | N94: =IF(INTRO!$E$42="Endemic", IF(AND($J94>1,$J94<5), IF($J94=4, "Unknown", E94+F94), 0),"Not required") -> 43166 | O94: =IF(INTRO!$E$44="Endemic", IF(AND($K94>0,$K94<5), IF($K94=4,"Unknown", IF($K94=1, $F94*0.33, IF($K94=2, $F94*0.5+$G94*0.2, SUM(F94:G94)))), 0),"Not required") -> 24857.9 | P94: 1 | R94: 1 | S94: 1 | T94: T2 (PZQ) | U94: T3 (ALB/MBD) | V94: MDA 2 | W94: T1 | X94: 27836 | Y94: Anosibe An'ala
A95: =IF(INTRO!$E$34<>0,INTRO!$E$34,"") -> Madagascar | B95: Alaotra Mangoro | C95: Moramanga | D95: 306082 | E95: =IF(INTRO!$E$48="","",ROUND($D95*INTRO!$E$48,0)) -> 48973 | F95: =IF(INTRO!$E$49="","",ROUND($D95*INTRO!$E$49,0)) -> 84173 | G95: =IF(INTRO!$E$50="","",ROUND($D95*INTRO!$E$50,0)) -> 172936 | H95: 1 | J95: 4 | K95: 2 | L95: =IF(INTRO!$E$38="Endemic", IF($H95>0, IF($H95=4,"Unknown", IF($H95=99,"Stopped", $D95)), 0),"Not required") -> 306082 | M95: =IF(INTRO!$E$40="Endemic", IF($I95>0, IF($I95=4,"Unknown",IF($I95=99,"Stopped", $D95)), 0),"Not required") -> Not required | N95: =IF(INTRO!$E$42="Endemic", IF(AND($J95>1,$J95<5), IF($J95=4, "Unknown", E95+F95), 0),"Not required") -> Unknown | O95: =IF(INTRO!$E$44="Endemic", IF(AND($K95>0,$K95<5), IF($K95=4,"Unknown", IF($K95=1, $F95*0.33, IF($K95=2, $F95*0.5+$G95*0.2, SUM(F95:G95)))), 0),"Not required") -> 76673.7 | P95: 1 | R95: 1 | S95: 1 | T95: T2 (PZQ) | U95: T3 (ALB/MBD) | V95: MDA 2 | W95: T2 | X95: 27837 | Y95: Moramanga
A96: =IF(INTRO!$E$34<>0,INTRO!$E$34,"") -> Madagascar | B96: Analanjirofo | C96: Fénérive Est | D96: 343069 | E96: =IF(INTRO!$E$48="","",ROUND($D96*INTRO!$E$48,0)) -> 54891 | F96: =IF(INTRO!$E$49="","",ROUND($D96*INTRO!$E$49,0)) -> 94344 | G96: =IF(INTRO!$E$50="","",ROUND($D96*INTRO!$E$50,0)) -> 193834 | H96: 1 | J96: 3 | K96: 3 | L96: =IF(INTRO!$E$38="Endemic", IF($H96>0, IF($H96=4,"Unknown", IF($H96=99,"Stopped", $D96)), 0),"Not required") -> 343069 | M96: =IF(INTRO!$E$40="Endemic", IF($I96>0, IF($I96=4,"Unknown",IF($I96=99,"Stopped", $D96)), 0),"Not required") -> Not required | N96: =IF(INTRO!$E$42="Endemic", IF(AND($J96>1,$J96<5), IF($J96=4, "Unknown", E96+F96), 0),"Not required") -> 149235 | O96: =IF(INTRO!$E$44="Endemic", IF(AND($K96>0,$K96<5), IF($K96=4,"Unknown", IF($K96=1, $F96*0.33, IF($K96=2, $F96*0.5+$G96*0.2, SUM(F96:G96)))), 0),"Not required") -> 288178 | P96: 1 | R96: 1 | S96: 1 | T96: T2 (PZQ) | U96: T3 (ALB/MBD) | V96: MDA 2 | W96: T1 | X96: 27850 | Y96: Fénérive Est
A97: =IF(INTRO!$E$34<>0,INTRO!$E$34,"") -> Madagascar | B97: Analanjirofo | C97: Mananara Nord | D97: 189049 | E97: =IF(INTRO!$E$48="","",ROUND($D97*INTRO!$E$48,0)) -> 30248 | F97: =IF(INTRO!$E$49="","",ROUND($D97*INTRO!$E$49,0)) -> 51988 | G97: =IF(INTRO!$E$50="","",ROUND($D97*INTRO!$E$50,0)) -> 106813 | H97: 1 | J97: 3 | K97: 2 | L97: =IF(INTRO!$E$38="Endemic", IF($H97>0, IF($H97=4,"Unknown", IF($H97=99,"Stopped", $D97)), 0),"Not required") -> 189049 | M97: =IF(INTRO!$E$40="Endemic", IF($I97>0, IF($I97=4,"Unknown",IF($I97=99,"Stopped", $D97)), 0),"Not required") -> Not required | N97: =IF(INTRO!$E$42="Endemic", IF(AND($J97>1,$J97<5), IF($J97=4, "Unknown", E97+F97), 0),"Not required") -> 82236 | O97: =IF(INTRO!$E$44="Endemic", IF(AND($K97>0,$K97<5), IF($K97=4,"Unknown", IF($K97=1, $F97*0.33, IF($K97=2, $F97*0.5+$G97*0.2, SUM(F97:G97)))), 0),"Not required") -> 47356.6 | P97: 1 | R97: 1 | S97: 1 | T97: T2 (PZQ) | U97: T3 (ALB/MBD) | V97: MDA 2 | W97: T1 | X97: 27851 | Y97: MANANARA-AVARATRA
A98: =IF(INTRO!$E$34<>0,INTRO!$E$34,"") -> Madagascar | B98: Analanjirofo | C98: Maroantsetra | D98: 245817 | E98: =IF(INTRO!$E$48="","",ROUND($D98*INTRO!$E$48,0)) -> 39331 | F98: =IF(INTRO!$E$49="","",ROUND($D98*INTRO!$E$49,0)) -> 67600 | G98: =IF(INTRO!$E$50="","",ROUND($D98*INTRO!$E$50,0)) -> 138887 | H98: 1 | J98: 3 | K98: 1 | L98: =IF(INTRO!$E$38="Endemic", IF($H98>0, IF($H98=4,"Unknown", IF($H98=99,"Stopped", $D98)), 0),"Not required") -> 245817 | M98: =IF(INTRO!$E$40="Endemic", IF($I98>0, IF($I98=4,"Unknown",IF($I98=99,"Stopped", $D98)), 0),"Not required") -> Not required | N98: =IF(INTRO!$E$42="Endemic", IF(AND($J98>1,$J98<5), IF($J98=4, "Unknown", E98+F98), 0),"Not required") -> 106931 | O98: =IF(INTRO!$E$44="Endemic", IF(AND($K98>0,$K98<5), IF($K98=4,"Unknown", IF($K98=1, $F98*0.33, IF($K98=2, $F98*0.5+$G98*0.2, SUM(F98:G98)))), 0),"Not required") -> 22308 | P98: 1 | R98: 1 | S98: 1 | V98: MDA 2 | W98: T1 | X98: 27852 | Y98: Maroantsetra
A99: =IF(INTRO!$E$34<>0,INTRO!$E$34,"") -> Madagascar | B99: Analanjirofo | C99: Sainte-Marie | D99: 29532 | E99: =IF(INTRO!$E$48="","",ROUND($D99*INTRO!$E$48,0)) -> 4725 | F99: =IF(INTRO!$E$49="","",ROUND($D99*INTRO!$E$49,0)) -> 8121 | G99: =IF(INTRO!$E$50="","",ROUND($D99*INTRO!$E$50,0)) -> 16686 | H99: 1 | J99: 3 | K99: 0 | L99: =IF(INTRO!$E$38="Endemic", IF($H99>0, IF($H99=4,"Unknown", IF($H99=99,"Stopped", $D99)), 0),"Not required") -> 29532 | M99: =IF(INTRO!$E$40="Endemic", IF($I99>0, IF($I99=4,"Unknown",IF($I99=99,"Stopped", $D99)), 0),"Not required") -> Not required | N99: =IF(INTRO!$E$42="Endemic", IF(AND($J99>1,$J99<5), IF($J99=4, "Unknown", E99+F99), 0),"Not required") -> 12846 | O99: =IF(INTRO!$E$44="Endemic", IF(AND($K99>0,$K99<5), IF($K99=4,"Unknown", IF($K99=1, $F99*0.33, IF($K99=2, $F99*0.5+$G99*0.2, SUM(F99:G99)))), 0),"Not required") -> 0 | P99: 0 | R99: 2 | S99: 0 | V99: MDA 2 | W99: T3 | X99: 27853 | Y99: Sainte-Marie
A100: =IF(INTRO!$E$34<>0,INTRO!$E$34,"") -> Madagascar | B100: Analanjirofo | C100: Soanierana Ivongo | D100: 151351 | E100: =IF(INTRO!$E$48="","",ROUND($D100*INTRO!$E$48,0)) -> 24216 | F100: =IF(INTRO!$E$49="","",ROUND($D100*INTRO!$E$49,0)) -> 41622 | G100: =IF(INTRO!$E$50="","",ROUND($D100*INTRO!$E$50,0)) -> 85513 | H100: 1 | J100: 3 | K100: 1 | L100: =IF(INTRO!$E$38="Endemic", IF($H100>0, IF($H100=4,"Unknown", IF($H100=99,"Stopped", $D100)), 0),"Not required") -> 151351 | M100: =IF(INTRO!$E$40="Endemic", IF($I100>0, IF($I100=4,"Unknown",IF($I100=99,"Stopped", $D100)), 0),"Not required") -> Not required | N100: =IF(INTRO!$E$42="Endemic", IF(AND($J100>1,$J100<5), IF($J100=4, "Unknown", E100+F100), 0),"Not required") -> 65838 | O100: =IF(INTRO!$E$44="Endemic", IF(AND($K100>0,$K100<5), IF($K100=4,"Unknown", IF($K100=1, $F100*0.33, IF($K100=2, $F100*0.5+$G100*0.2, SUM(F100:G100)))), 0),"Not required") -> 13735.26 | P100: 1 | R100: 1 | S100: 1 | V100: MDA 2 | W100: T1 | X100: 27854 | Y100: Soanierana Ivongo
A101: =IF(INTRO!$E$34<>0,INTRO!$E$34,"") -> Madagascar | B101: Analanjirofo | C101: Vavatenina | D101: 192698 | E101: =IF(INTRO!$E$48="","",ROUND($D101*INTRO!$E$48,0)) -> 30832 | F101: =IF(INTRO!$E$49="","",ROUND($D101*INTRO!$E$49,0)) -> 52992 | G101: =IF(INTRO!$E$50="","",ROUND($D101*INTRO!$E$50,0)) -> 108874 | H101: 1 | J101: 3 | K101: 3 | L101: =IF(INTRO!$E$38="Endemic", IF($H101>0, IF($H101=4,"Unknown", IF($H101=99,"Stopped", $D101)), 0),"Not required") -> 192698 | M101: =IF(INTRO!$E$40="Endemic", IF($I101>0, IF($I101=4,"Unknown",IF($I101=99,"Stopped", $D101)), 0),"Not required") -> Not required | N101: =IF(INTRO!$E$42="Endemic", IF(AND($J101>1,$J101<5), IF($J101=4, "Unknown", E101+F101), 0),"Not required") -> 83824 | O101: =IF(INTRO!$E$44="Endemic", IF(AND($K101>0,$K101<5), IF($K101=4,"Unknown", IF($K101=1, $F101*0.33, IF($K101=2, $F101*0.5+$G101*0.2, SUM(F101:G101)))), 0),"Not required") -> 161866 | P101: 1 | R101: 1 | S101: 1 | T101: T2 (PZQ) | U101: T3 (ALB/MBD) | V101: MDA 2 | W101: T1 | X101: 27855 | Y101: Vavatenina
A102: =IF(INTRO!$E$34<>0,INTRO!$E$34,"") -> Madagascar | B102: Atsimo Andrefana | C102: Ampanihy Ouest | D102: 345047 | E102: =IF(INTRO!$E$48="","",ROUND($D102*INTRO!$E$48,0)) -> 55208 | F102: =IF(INTRO!$E$49="","",ROUND($D102*INTRO!$E$49,0)) -> 94888 | G102: =IF(INTRO!$E$50="","",ROUND($D102*INTRO!$E$50,0)) -> 194952 | H102: 0 | J102: 1 | K102: 3 | L102: =IF(INTRO!$E$38="Endemic", IF($H102>0, IF($H102=4,"Unknown", IF($H102=99,"Stopped", $D102)), 0),"Not required") -> 0 | M102: =IF(INTRO!$E$40="Endemic", IF($I102>0, IF($I102=4,"Unknown",IF($I102=99,"Stopped", $D102)), 0),"Not required") -> Not required | N102: =IF(INTRO!$E$42="Endemic", IF(AND($J102>1,$J102<5), IF($J102=4, "Unknown", E102+F102), 0),"Not required") -> 0 | O102: =IF(INTRO!$E$44="Endemic", IF(AND($K102>0,$K102<5), IF($K102=4,"Unknown", IF($K102=1, $F102*0.33, IF($K102=2, $F102*0.5+$G102*0.2, SUM(F102:G102)))), 0),"Not required") -> 289840 | P102: 0 | R102: 0 | S102: 1 | T102: T2 (PZQ) | W102: T2 | X102: 27863 | Y102: Ampanihy Ouest
A103: =IF(INTRO!$E$34<>0,INTRO!$E$34,"") -> Madagascar | B103: Atsimo Andrefana | C103: Ankazoabo | D103: 72931 | E103: =IF(INTRO!$E$48="","",ROUND($D103*INTRO!$E$48,0)) -> 11669 | F103: =IF(INTRO!$E$49="","",ROUND($D103*INTRO!$E$49,0)) -> 20056 | G103: =IF(INTRO!$E$50="","",ROUND($D103*INTRO!$E$50,0)) -> 41206 | H103: 1 | J103: 1 | K103: 2 | L103: =IF(INTRO!$E$38="Endemic", IF($H103>0, IF($H103=4,"Unknown", IF($H103=99,"Stopped", $D103)), 0),"Not required") -> 72931 | M103: =IF(INTRO!$E$40="Endemic", IF($I103>0, IF($I103=4,"Unknown",IF($I103=99,"Stopped", $D103)), 0),"Not required") -> Not required | N103: =IF(INTRO!$E$42="Endemic", IF(AND($J103>1,$J103<5), IF($J103=4, "Unknown", E103+F103), 0),"Not required") -> 0 | O103: =IF(INTRO!$E$44="Endemic", IF(AND($K103>0,$K103<5), IF($K103=4,"Unknown", IF($K103=1, $F103*0.33, IF($K103=2, $F103*0.5+$G103*0.2, SUM(F103:G103)))), 0),"Not required") -> 18269.2 | P103: 1 | R103: 0 | S103: 1 | T103: T2 (PZQ) | V103: MDA 2 | W103: T2 | X103: 27864 | Y103: Ankazoabo
A104: =IF(INTRO!$E$34<>0,INTRO!$E$34,"") -> Madagascar | B104: Atsimo Andrefana | C104: Benenitra | D104: 43069 | E104: =IF(INTRO!$E$48="","",ROUND($D104*INTRO!$E$48,0)) -> 6891 | F104: =IF(INTRO!$E$49="","",ROUND($D104*INTRO!$E$49,0)) -> 11844 | G104: =IF(INTRO!$E$50="","",ROUND($D104*INTRO!$E$50,0)) -> 24334 | H104: 1 | J104: 1 | K104: 3 | L104: =IF(INTRO!$E$38="Endemic", IF($H104>0, IF($H104=4,"Unknown", IF($H104=99,"Stopped", $D104)), 0),"Not required") -> 43069 | M104: =IF(INTRO!$E$40="Endemic", IF($I104>0, IF($I104=4,"Unknown",IF($I104=99,"Stopped", $D104)), 0),"Not required") -> Not required | N104: =IF(INTRO!$E$42="Endemic", IF(AND($J104>1,$J104<5), IF($J104=4, "Unknown", E104+F104), 0),"Not required") -> 0 | O104: =IF(INTRO!$E$44="Endemic", IF(AND($K104>0,$K104<5), IF($K104=4,"Unknown", IF($K104=1, $F104*0.33, IF($K104=2, $F104*0.5+$G104*0.2, SUM(F104:G104)))), 0),"Not required") -> 36178 | P104: 1 | R104: 0 | S104: 1 | T104: T2 (PZQ) | U104: T3 (ALB/MBD) | V104: MDA 2 | W104: T2 | X104: 27865 | Y104: Benenitra
A105: =IF(INTRO!$E$34<>0,INTRO!$E$34,"") -> Madagascar | B105: Atsimo Andrefana | C105: Beroroha | D105: 50848 | E105: =IF(INTRO!$E$48="","",ROUND($D105*INTRO!$E$48,0)) -> 8136 | F105: =IF(INTRO!$E$49="","",ROUND($D105*INTRO!$E$49,0)) -> 13983 | G105: =IF(INTRO!$E$50="","",ROUND($D105*INTRO!$E$50,0)) -> 28729 | H105: 1 | J105: 3 | K105: 2 | L105: =IF(INTRO!$E$38="Endemic", IF($H105>0, IF($H105=4,"Unknown", IF($H105=99,"Stopped", $D105)), 0),"Not required") -> 50848 | M105: =IF(INTRO!$E$40="Endemic", IF($I105>0, IF($I105=4,"Unknown",IF($I105=99,"Stopped", $D105)), 0),"Not required") -> Not required | N105: =IF(INTRO!$E$42="Endemic", IF(AND($J105>1,$J105<5), IF($J105=4, "Unknown", E105+F105), 0),"Not required") -> 22119 | O105: =IF(INTRO!$E$44="Endemic", IF(AND($K105>0,$K105<5), IF($K105=4,"Unknown", IF($K105=1, $F105*0.33, IF($K105=2, $F105*0.5+$G105*0.2, SUM(F105:G105)))), 0),"Not required") -> 12737.3 | P105: 1 | R105: 1 | S105: 1 | T105: T2 (PZQ) | U105: T3 (ALB/MBD) | V105: MDA 2 | W105: T1 | X105: 27866 | Y105: Beroroha
A106: =IF(INTRO!$E$34<>0,INTRO!$E$34,"") -> Madagascar | B106: Atsimo Andrefana | C106: Betioky Atsimo | D106: 228418 | E106: =IF(INTRO!$E$48="","",ROUND($D106*INTRO!$E$48,0)) -> 36547 | F106: =IF(INTRO!$E$49="","",ROUND($D106*INTRO!$E$49,0)) -> 62815 | G106: =IF(INTRO!$E$50="","",ROUND($D106*INTRO!$E$50,0)) -> 129056 | H106: 1 | J106: 1 | K106: 3 | L106: =IF(INTRO!$E$38="Endemic", IF($H106>0, IF($H106=4,"Unknown", IF($H106=99,"Stopped", $D106)), 0),"Not required") -> 228418 | M106: =IF(INTRO!$E$40="Endemic", IF($I106>0, IF($I106=4,"Unknown",IF($I106=99,"Stopped", $D106)), 0),"Not required") -> Not required | N106: =IF(INTRO!$E$42="Endemic", IF(AND($J106>1,$J106<5), IF($J106=4, "Unknown", E106+F106), 0),"Not required") -> 0 | O106: =IF(INTRO!$E$44="Endemic", IF(AND($K106>0,$K106<5), IF($K106=4,"Unknown", IF($K106=1, $F106*0.33, IF($K106=2, $F106*0.5+$G106*0.2, SUM(F106:G106)))), 0),"Not required") -> 191871 | P106: 1 | R106: 0 | S106: 1 | T106: T2 (PZQ) | V106: MDA 2 | W106: T2 | X106: 27867 | Y106: Betioky Atsimo
A107: =IF(INTRO!$E$34<>0,INTRO!$E$34,"") -> Madagascar | B107: Atsimo Andrefana | C107: Morombe | D107: 130350 | E107: =IF(INTRO!$E$48="","",ROUND($D107*INTRO!$E$48,0)) -> 20856 | F107: =IF(INTRO!$E$49="","",ROUND($D107*INTRO!$E$49,0)) -> 35846 | G107: =IF(INTRO!$E$50="","",ROUND($D107*INTRO!$E$50,0)) -> 73648 | H107: 1 | J107: 0 | K107: 2 | L107: =IF(INTRO!$E$38="Endemic", IF($H107>0, IF($H107=4,"Unknown", IF($H107=99,"Stopped", $D107)), 0),"Not required") -> 130350 | M107: =IF(INTRO!$E$40="Endemic", IF($I107>0, IF($I107=4,"Unknown",IF($I107=99,"Stopped", $D107)), 0),"Not required") -> Not required | N107: =IF(INTRO!$E$42="Endemic", IF(AND($J107>1,$J107<5), IF($J107=4, "Unknown", E107+F107), 0),"Not required") -> 0 | O107: =IF(INTRO!$E$44="Endemic", IF(AND($K107>0,$K107<5), IF($K107=4,"Unknown", IF($K107=1, $F107*0.33, IF($K107=2, $F107*0.5+$G107*0.2, SUM(F107:G107)))), 0),"Not required") -> 32652.6 | P107: 1 | R107: 0 | S107: 1 | T107: T2 (PZQ) | V107: MDA 2 | W107: T2 | X107: 27868 | Y107: Morombe
A108: =IF(INTRO!$E$34<>0,INTRO!$E$34,"") -> Madagascar | B108: Atsimo Andrefana | C108: Sakaraha | D108: 125794 | E108: =IF(INTRO!$E$48="","",ROUND($D108*INTRO!$E$48,0)) -> 20127 | F108: =IF(INTRO!$E$49="","",ROUND($D108*INTRO!$E$49,0)) -> 34593 | G108: =IF(INTRO!$E$50="","",ROUND($D108*INTRO!$E$50,0)) -> 71074 | H108: 1 | J108: 1 | K108: 3 | L108: =IF(INTRO!$E$38="Endemic", IF($H108>0, IF($H108=4,"Unknown", IF($H108=99,"Stopped", $D108)), 0),"Not required") -> 125794 | M108: =IF(INTRO!$E$40="Endemic", IF($I108>0, IF($I108=4,"Unknown",IF($I108=99,"Stopped", $D108)), 0),"Not required") -> Not required | N108: =IF(INTRO!$E$42="Endemic", IF(AND($J108>1,$J108<5), IF($J108=4, "Unknown", E108+F108), 0),"Not required") -> 0 | O108: =IF(INTRO!$E$44="Endemic", IF(AND($K108>0,$K108<5), IF($K108=4,"Unknown", IF($K108=1, $F108*0.33, IF($K108=2, $F108*0.5+$G108*0.2, SUM(F108:G108)))), 0),"Not required") -> 105667 | P108: 1 | R108: 0 | S108: 1 | T108: T2 (PZQ) | V108: MDA 2 | W108: T2 | X108: 27869 | Y108: Sakaraha
A109: =IF(INTRO!$E$34<>0,INTRO!$E$34,"") -> Madagascar | B109: Atsimo Andrefana | C109: Toliara I | D109: 174329 | E109: =IF(INTRO!$E$48="","",ROUND($D109*INTRO!$E$48,0)) -> 27893 | F109: =IF(INTRO!$E$49="","",ROUND($D109*INTRO!$E$49,0)) -> 47940 | G109: =IF(INTRO!$E$50="","",ROUND($D109*INTRO!$E$50,0)) -> 98496 | H109: 1 | J109: 2 | K109: 1 | L109: =IF(INTRO!$E$38="Endemic", IF($H109>0, IF($H109=4,"Unknown", IF($H109=99,"Stopped", $D109)), 0),"Not required") -> 174329 | M109: =IF(INTRO!$E$40="Endemic", IF($I109>0, IF($I109=4,"Unknown",IF($I109=99,"Stopped", $D109)), 0),"Not required") -> Not required | N109: =IF(INTRO!$E$42="Endemic", IF(AND($J109>1,$J109<5), IF($J109=4, "Unknown", E109+F109), 0),"Not required") -> 75833 | O109: =IF(INTRO!$E$44="Endemic", IF(AND($K109>0,$K109<5), IF($K109=4,"Unknown", IF($K109=1, $F109*0.33, IF($K109=2, $F109*0.5+$G109*0.2, SUM(F109:G109)))), 0),"Not required") -> 15820.2 | P109: 1 | R109: 0 | S109: 1 | V109: MDA 2 | W109: T2 | X109: 27870 | Y109: Toliara I
A110: =IF(INTRO!$E$34<>0,INTRO!$E$34,"") -> Madagascar | B110: Atsimo Andrefana | C110: Toliara II | D110: 294017 | E110: =IF(INTRO!$E$48="","",ROUND($D110*INTRO!$E$48,0)) -> 47043 | F110: =IF(INTRO!$E$49="","",ROUND($D110*INTRO!$E$49,0)) -> 80855 | G110: =IF(INTRO!$E$50="","",ROUND($D110*INTRO!$E$50,0)) -> 166120 | H110: 1 | J110: 1 | K110: 2 | L110: =IF(INTRO!$E$38="Endemic", IF($H110>0, IF($H110=4,"Unknown", IF($H110=99,"Stopped", $D110)), 0),"Not required") -> 294017 | M110: =IF(INTRO!$E$40="Endemic", IF($I110>0, IF($I110=4,"Unknown",IF($I110=99,"Stopped", $D110)), 0),"Not required") -> Not required | N110: =IF(INTRO!$E$42="Endemic", IF(AND($J110>1,$J110<5), IF($J110=4, "Unknown", E110+F110), 0),"Not required") -> 0 | O110: =IF(INTRO!$E$44="Endemic", IF(AND($K110>0,$K110<5), IF($K110=4,"Unknown", IF($K110=1, $F110*0.33, IF($K110=2, $F110*0.5+$G110*0.2, SUM(F110:G110)))), 0),"Not required") -> 73651.5 | P110: 1 | R110: 0 | S110: 1 | T110: T2 (PZQ) | V110: MDA 2 | W110: T2 | X110: 27871 | Y110: Toliara II
A111: =IF(INTRO!$E$34<>0,INTRO!$E$34,"") -> Madagascar | B111: Menabe | C111: Belo Tsiribihina | D111: 138093 | E111: =IF(INTRO!$E$48="","",ROUND($D111*INTRO!$E$48,0)) -> 22095 | F111: =IF(INTRO!$E$49="","",ROUND($D111*INTRO!$E$49,0)) -> 37976 | G111: =IF(INTRO!$E$50="","",ROUND($D111*INTRO!$E$50,0)) -> 78023 | H111: 1 | J111: 1 | K111: 2 | L111: =IF(INTRO!$E$38="Endemic", IF($H111>0, IF($H111=4,"Unknown", IF($H111=99,"Stopped", $D111)), 0),"Not required") -> 138093 | M111: =IF(INTRO!$E$40="Endemic", IF($I111>0, IF($I111=4,"Unknown",IF($I111=99,"Stopped", $D111)), 0),"Not required") -> Not required | N111: =IF(INTRO!$E$42="Endemic", IF(AND($J111>1,$J111<5), IF($J111=4, "Unknown", E111+F111), 0),"Not required") -> 0 | O111: =IF(INTRO!$E$44="Endemic", IF(AND($K111>0,$K111<5), IF($K111=4,"Unknown", IF($K111=1, $F111*0.33, IF($K111=2, $F111*0.5+$G111*0.2, SUM(F111:G111)))), 0),"Not required") -> 34592.6 | P111: 1 | R111: 0 | S111: 1 | T111: T2 (PZQ) | V111: MDA 2 | W111: T2 | X111: 27916 | Y111: Belo Tsiribihina
A112: =IF(INTRO!$E$34<>0,INTRO!$E$34,"") -> Madagascar | B112: Menabe | C112: Mahabo | D112: 157451 | E112: =IF(INTRO!$E$48="","",ROUND($D112*INTRO!$E$48,0)) -> 25192 | F112: =IF(INTRO!$E$49="","",ROUND($D112*INTRO!$E$49,0)) -> 43299 | G112: =IF(INTRO!$E$50="","",ROUND($D112*INTRO!$E$50,0)) -> 88960 | H112: 1 | J112: 1 | K112: 3 | L112: =IF(INTRO!$E$38="Endemic", IF($H112>0, IF($H112=4,"Unknown", IF($H112=99,"Stopped", $D112)), 0),"Not required") -> 157451 | M112: =IF(INTRO!$E$40="Endemic", IF($I112>0, IF($I112=4,"Unknown",IF($I112=99,"Stopped", $D112)), 0),"Not required") -> Not required | N112: =IF(INTRO!$E$42="Endemic", IF(AND($J112>1,$J112<5), IF($J112=4, "Unknown", E112+F112), 0),"Not required") -> 0 | O112: =IF(INTRO!$E$44="Endemic", IF(AND($K112>0,$K112<5), IF($K112=4,"Unknown", IF($K112=1, $F112*0.33, IF($K112=2, $F112*0.5+$G112*0.2, SUM(F112:G112)))), 0),"Not required") -> 132259 | P112: 1 | R112: 0 | S112: 1 | T112: T2 (PZQ) | V112: MDA 2 | W112: T2 | X112: 27917 | Y112: Mahabo
A113: =IF(INTRO!$E$34<>0,INTRO!$E$34,"") -> Madagascar | B113: Menabe | C113: Manja | D113: 83628 | E113: =IF(INTRO!$E$48="","",ROUND($D113*INTRO!$E$48,0)) -> 13380 | F113: =IF(INTRO!$E$49="","",ROUND($D113*INTRO!$E$49,0)) -> 22998 | G113: =IF(INTRO!$E$50="","",ROUND($D113*INTRO!$E$50,0)) -> 47250 | H113: 1 | J113: 1 | K113: 3 | L113: =IF(INTRO!$E$38="Endemic", IF($H113>0, IF($H113=4,"Unknown", IF($H113=99,"Stopped", $D113)), 0),"Not required") -> 83628 | M113: =IF(INTRO!$E$40="Endemic", IF($I113>0, IF($I113=4,"Unknown",IF($I113=99,"Stopped", $D113)), 0),"Not required") -> Not required | N113: =IF(INTRO!$E$42="Endemic", IF(AND($J113>1,$J113<5), IF($J113=4, "Unknown", E113+F113), 0),"Not required") -> 0 | O113: =IF(INTRO!$E$44="Endemic", IF(AND($K113>0,$K113<5), IF($K113=4,"Unknown", IF($K113=1, $F113*0.33, IF($K113=2, $F113*0.5+$G113*0.2, SUM(F113:G113)))), 0),"Not required") -> 70248 | P113: 1 | R113: 0 | S113: 1 | T113: T2 (PZQ) | V113: MDA 2 | W113: T2 | X113: 27918 | Y113: Manja
A114: =IF(INTRO!$E$34<>0,INTRO!$E$34,"") -> Madagascar | B114: Menabe | C114: Miandrivazo | D114: 145495 | E114: =IF(INTRO!$E$48="","",ROUND($D114*INTRO!$E$48,0)) -> 23279 | F114: =IF(INTRO!$E$49="","",ROUND($D114*INTRO!$E$49,0)) -> 40011 | G114: =IF(INTRO!$E$50="","",ROUND($D114*INTRO!$E$50,0)) -> 82205 | H114: 1 | J114: 1 | K114: 3 | L114: =IF(INTRO!$E$38="Endemic", IF($H114>0, IF($H114=4,"Unknown", IF($H114=99,"Stopped", $D114)), 0),"Not required") -> 145495 | M114: =IF(INTRO!$E$40="Endemic", IF($I114>0, IF($I114=4,"Unknown",IF($I114=99,"Stopped", $D114)), 0),"Not required") -> Not required | N114: =IF(INTRO!$E$42="Endemic", IF(AND($J114>1,$J114<5), IF($J114=4, "Unknown", E114+F114), 0),"Not required") -> 0 | O114: =IF(INTRO!$E$44="Endemic", IF(AND($K114>0,$K114<5), IF($K114=4,"Unknown", IF($K114=1, $F114*0.33, IF($K114=2, $F114*0.5+$G114*0.2, SUM(F114:G114)))), 0),"Not required") -> 122216 | P114: 1 | R114: 0 | S114: 1 | T114: T2 (PZQ) | V114: MDA 2 | W114: T2 | X114: 27919 | Y114: Miandrivazo
A115: =IF(INTRO!$E$34<>0,INTRO!$E$34,"") -> Madagascar | B115: Menabe | C115: Morondava | D115: 134019 | E115: =IF(INTRO!$E$48="","",ROUND($D115*INTRO!$E$48,0)) -> 21443 | F115: =IF(INTRO!$E$49="","",ROUND($D115*INTRO!$E$49,0)) -> 36855 | G115: =IF(INTRO!$E$50="","",ROUND($D115*INTRO!$E$50,0)) -> 75721 | H115: 1 | J115: 1 | K115: 3 | L115: =IF(INTRO!$E$38="Endemic", IF($H115>0, IF($H115=4,"Unknown", IF($H115=99,"Stopped", $D115)), 0),"Not required") -> 134019 | M115: =IF(INTRO!$E$40="Endemic", IF($I115>0, IF($I115=4,"Unknown",IF($I115=99,"Stopped", $D115)), 0),"Not required") -> Not required | N115: =IF(INTRO!$E$42="Endemic", IF(AND($J115>1,$J115<5), IF($J115=4, "Unknown", E115+F115), 0),"Not required") -> 0 | O115: =IF(INTRO!$E$44="Endemic", IF(AND($K115>0,$K115<5), IF($K115=4,"Unknown", IF($K115=1, $F115*0.33, IF($K115=2, $F115*0.5+$G115*0.2, SUM(F115:G115)))), 0),"Not required") -> 112576 | P115: 1 | R115: 0 | S115: 1 | T115: T2 (PZQ) | V115: MDA 2 | W115: T2 | X115: 27920 | Y115: Morondava
A116: =IF(INTRO!$E$34<>0,INTRO!$E$34,"") -> Madagascar | B116: Androy | C116: Ambovombe Androy | D116: 388990 | E116: =IF(INTRO!$E$48="","",ROUND($D116*INTRO!$E$48,0)) -> 62238 | F116: =IF(INTRO!$E$49="","",ROUND($D116*INTRO!$E$49,0)) -> 106972 | G116: =IF(INTRO!$E$50="","",ROUND($D116*INTRO!$E$50,0)) -> 219779 | H116: 1 | J116: 1 | K116: 1 | L116: =IF(INTRO!$E$38="Endemic", IF($H116>0, IF($H116=4,"Unknown", IF($H116=99,"Stopped", $D116)), 0),"Not required") -> 388990 | M116: =IF(INTRO!$E$40="Endemic", IF($I116>0, IF($I116=4,"Unknown",IF($I116=99,"Stopped", $D116)), 0),"Not required") -> Not required | N116: =IF(INTRO!$E$42="Endemic", IF(AND($J116>1,$J116<5), IF($J116=4, "Unknown", E116+F116), 0),"Not required") -> 0 | O116: =IF(INTRO!$E$44="Endemic", IF(AND($K116>0,$K116<5), IF($K116=4,"Unknown", IF($K116=1, $F116*0.33, IF($K116=2, $F116*0.5+$G116*0.2, SUM(F116:G116)))), 0),"Not required") -> 35300.76 | P116: 1 | R116: 0 | S116: 1 | T116: T2 (PZQ) | V116: MDA 2 | W116: T2 | X116: 27856 | Y116: Ambovombe Androy
A117: =IF(INTRO!$E$34<>0,INTRO!$E$34,"") -> Madagascar | B117: Androy | C117: Bekily | D117: 183274 | E117: =IF(INTRO!$E$48="","",ROUND($D117*INTRO!$E$48,0)) -> 29324 | F117: =IF(INTRO!$E$49="","",ROUND($D117*INTRO!$E$49,0)) -> 50400 | G117: =IF(INTRO!$E$50="","",ROUND($D117*INTRO!$E$50,0)) -> 103550 | H117: 0 | J117: 1 | K117: 3 | L117: =IF(INTRO!$E$38="Endemic", IF($H117>0, IF($H117=4,"Unknown", IF($H117=99,"Stopped", $D117)), 0),"Not required") -> 0 | M117: =IF(INTRO!$E$40="Endemic", IF($I117>0, IF($I117=4,"Unknown",IF($I117=99,"Stopped", $D117)), 0),"Not required") -> Not required | N117: =IF(INTRO!$E$42="Endemic", IF(AND($J117>1,$J117<5), IF($J117=4, "Unknown", E117+F117), 0),"Not required") -> 0 | O117: =IF(INTRO!$E$44="Endemic", IF(AND($K117>0,$K117<5), IF($K117=4,"Unknown", IF($K117=1, $F117*0.33, IF($K117=2, $F117*0.5+$G117*0.2, SUM(F117:G117)))), 0),"Not required") -> 153950 | P117: 0 | R117: 0 | S117: 1 | T117: T2 (PZQ) | W117: T2 | X117: 27857 | Y117: Bekily
A118: =IF(INTRO!$E$34<>0,INTRO!$E$34,"") -> Madagascar | B118: Androy | C118: Beloha Androy | D118: 121657 | E118: =IF(INTRO!$E$48="","",ROUND($D118*INTRO!$E$48,0)) -> 19465 | F118: =IF(INTRO!$E$49="","",ROUND($D118*INTRO!$E$49,0)) -> 33456 | G118: =IF(INTRO!$E$50="","",ROUND($D118*INTRO!$E$50,0)) -> 68736 | H118: 1 | J118: 1 | K118: 1 | L118: =IF(INTRO!$E$38="Endemic", IF($H118>0, IF($H118=4,"Unknown", IF($H118=99,"Stopped", $D118)), 0),"Not required") -> 121657 | M118: =IF(INTRO!$E$40="Endemic", IF($I118>0, IF($I118=4,"Unknown",IF($I118=99,"Stopped", $D118)), 0),"Not required") -> Not required | N118: =IF(INTRO!$E$42="Endemic", IF(AND($J118>1,$J118<5), IF($J118=4, "Unknown", E118+F118), 0),"Not required") -> 0 | O118: =IF(INTRO!$E$44="Endemic", IF(AND($K118>0,$K118<5), IF($K118=4,"Unknown", IF($K118=1, $F118*0.33, IF($K118=2, $F118*0.5+$G118*0.2, SUM(F118:G118)))), 0),"Not required") -> 11040.48 | P118: 1 | R118: 0 | S118: 1 | V118: MDA 2 | W118: T2 | X118: 27858 | Y118: Beloha Androy
A119: =IF(INTRO!$E$34<>0,INTRO!$E$34,"") -> Madagascar | B119: Androy | C119: Tsihombe | D119: 122531 | E119: =IF(INTRO!$E$48="","",ROUND($D119*INTRO!$E$48,0)) -> 19605 | F119: =IF(INTRO!$E$49="","",ROUND($D119*INTRO!$E$49,0)) -> 33696 | G119: =IF(INTRO!$E$50="","",ROUND($D119*INTRO!$E$50,0)) -> 69230 | H119: 1 | J119: 2 | K119: 1 | L119: =IF(INTRO!$E$38="Endemic", IF($H119>0, IF($H119=4,"Unknown", IF($H119=99,"Stopped", $D119)), 0),"Not required") -> 122531 | M119: =IF(INTRO!$E$40="Endemic", IF($I119>0, IF($I119=4,"Unknown",IF($I119=99,"Stopped", $D119)), 0),"Not required") -> Not required | N119: =IF(INTRO!$E$42="Endemic", IF(AND($J119>1,$J119<5), IF($J119=4, "Unknown", E119+F119), 0),"Not required") -> 53301 | O119: =IF(INTRO!$E$44="Endemic", IF(AND($K119>0,$K119<5), IF($K119=4,"Unknown", IF($K119=1, $F119*0.33, IF($K119=2, $F119*0.5+$G119*0.2, SUM(F119:G119)))), 0),"Not required") -> 11119.68 | P119: 1 | R119: 0 | S119: 1 | V119: MDA 2 | W119: T2 | X119: 27859 | Y119: Tsihombe
A120: =IF(INTRO!$E$34<>0,INTRO!$E$34,"") -> Madagascar | B120: Anosy | C120: Amboasary Atsimo | D120: 232599 | E120: =IF(INTRO!$E$48="","",ROUND($D120*INTRO!$E$48,0)) -> 37216 | F120: =IF(INTRO!$E$49="","",ROUND($D120*INTRO!$E$49,0)) -> 63965 | G120: =IF(INTRO!$E$50="","",ROUND($D120*INTRO!$E$50,0)) -> 131418 | H120: 1 | J120: 4 | K120: 3 | L120: =IF(INTRO!$E$38="Endemic", IF($H120>0, IF($H120=4,"Unknown", IF($H120=99,"Stopped", $D120)), 0),"Not required") -> 232599 | M120: =IF(INTRO!$E$40="Endemic", IF($I120>0, IF($I120=4,"Unknown",IF($I120=99,"Stopped", $D120)), 0),"Not required") -> Not required | N120: =IF(INTRO!$E$42="Endemic", IF(AND($J120>1,$J120<5), IF($J120=4, "Unknown", E120+F120), 0),"Not required") -> Unknown | O120: =IF(INTRO!$E$44="Endemic", IF(AND($K120>0,$K120<5), IF($K120=4,"Unknown", IF($K120=1, $F120*0.33, IF($K120=2, $F120*0.5+$G120*0.2, SUM(F120:G120)))), 0),"Not required") -> 195383 | P120: 1 | R120: 1 | S120: 1 | T120: T2 (PZQ) | U120: T3 (ALB/MBD) | V120: MDA 2 | W120: T2 | X120: 27860 | Y120: Amboasary Atsimo
A121: =IF(INTRO!$E$34<>0,INTRO!$E$34,"") -> Madagascar | B121: Anosy | C121: Betroka | D121: 212292 | E121: =IF(INTRO!$E$48="","",ROUND($D121*INTRO!$E$48,0)) -> 33967 | F121: =IF(INTRO!$E$49="","",ROUND($D121*INTRO!$E$49,0)) -> 58380 | G121: =IF(INTRO!$E$50="","",ROUND($D121*INTRO!$E$50,0)) -> 119945 | H121: 1 | J121: 4 | K121: 3 | L121: =IF(INTRO!$E$38="Endemic", IF($H121>0, IF($H121=4,"Unknown", IF($H121=99,"Stopped", $D121)), 0),"Not required") -> 212292 | M121: =IF(INTRO!$E$40="Endemic", IF($I121>0, IF($I121=4,"Unknown",IF($I121=99,"Stopped", $D121)), 0),"Not required") -> Not required | N121: =IF(INTRO!$E$42="Endemic", IF(AND($J121>1,$J121<5), IF($J121=4, "Unknown", E121+F121), 0),"Not required") -> Unknown | O121: =IF(INTRO!$E$44="Endemic", IF(AND($K121>0,$K121<5), IF($K121=4,"Unknown", IF($K121=1, $F121*0.33, IF($K121=2, $F121*0.5+$G121*0.2, SUM(F121:G121)))), 0),"Not required") -> 178325 | P121: 1 | R121: 1 | S121: 1 | T121: T2 (PZQ) | U121: T3 (ALB/MBD) | V121: MDA 2 | W121: T2 | X121: 27861 | Y121: Betroka
A122: =IF(INTRO!$E$34<>0,INTRO!$E$34,"") -> Madagascar | B122: Anosy | C122: Tolagnaro | D122: 302447 | E122: =IF(INTRO!$E$48="","",ROUND($D122*INTRO!$E$48,0)) -> 48392 | F122: =IF(INTRO!$E$49="","",ROUND($D122*INTRO!$E$49,0)) -> 83173 | G122: =IF(INTRO!$E$50="","",ROUND($D122*INTRO!$E$50,0)) -> 170883 | H122: 1 | J122: 3 | K122: 1 | L122: =IF(INTRO!$E$38="Endemic", IF($H122>0, IF($H122=4,"Unknown", IF($H122=99,"Stopped", $D122)), 0),"Not required") -> 302447 | M122: =IF(INTRO!$E$40="Endemic", IF($I122>0, IF($I122=4,"Unknown",IF($I122=99,"Stopped", $D122)), 0),"Not required") -> Not required | N122: =IF(INTRO!$E$42="Endemic", IF(AND($J122>1,$J122<5), IF($J122=4, "Unknown", E122+F122), 0),"Not required") -> 131565 | O122: =IF(INTRO!$E$44="Endemic", IF(AND($K122>0,$K122<5), IF($K122=4,"Unknown", IF($K122=1, $F122*0.33, IF($K122=2, $F122*0.5+$G122*0.2, SUM(F122:G122)))), 0),"Not required") -> 27447.09 | P122: 1 | R122: 1 | S122: 1 | V122: MDA 2 | W122: T1 | X122: 27862 | Y122: TAOLAGNARO

Sheet MDA1 (hidden)
A1: MDA 1 - Ivermectin (IVM) and Albendazole (ALB)
A2: Administrative structure, population requiring PC by age group, population treated by age group and coverage
A4: TOTAL | G4: =SUM(G$9:G$1000) -> 0 | H4: =SUM(H$9:H$1000) -> 0 | I4: =SUM(I$9:I$1000) -> 0 | K4: =SUM(K$9:K$1000) -> 0 | L4: =SUM(L$9:L$1000) -> 0 | M4: =SUM(M$9:M$1000) -> 0 | O4: =IF(G4<>0, IF(K4/G4*100=0, "-", K4/G4*100), " ") ->  | P4: =IF(H4<>0, IF(L4/H4*100=0, "-", L4/H4*100), " ") ->  | Q4: =IF(I4<>0, IF(M4/I4*100=0, "-", M4/I4*100), " ") -> 
D6: PC implemented | E6: Date | F6: Population targeted for MDA 1 | J6: Population treated | N6: Programme coverage (%)
A7: Country | B7: Province/State | C7: District | F7: PreSAC | G7: SAC | H7: Adults | I7: Total | J7: PreSAC | K7: SAC | L7: Adults | M7: Total | N7: PreSAC | O7: SAC | P7: Adults | Q7: Total
A9: =IF(COUNTRY_INFO!A9=0," ",COUNTRY_INFO!A9) -> Madagascar | B9: =IF(COUNTRY_INFO!B9=0," ",COUNTRY_INFO!B9) -> Analamanga | C9: =IF(COUNTRY_INFO!C9=0," ",COUNTRY_INFO!C9) -> Ambohidratrimo | D9: =IF(COUNTRY_INFO!$T$9:$T$1000="MDA1 (IVM+ALB)", COUNTRY_INFO!$T$9:$T$1000, " ") ->  | I9: =SUM(F9:H9) -> 0 | M9: =SUM(J9:L9) -> 0 | O9: =IF(G9<>0, IF(K9/G9*100=0, "-", K9/G9*100), " ") ->  | P9: =IF(H9<>0, IF(L9/H9*100=0, "-", L9/H9*100), " ") -> 
A10: =IF(COUNTRY_INFO!A10=0," ",COUNTRY_INFO!A10) -> Madagascar | B10: =IF(COUNTRY_INFO!B10=0," ",COUNTRY_INFO!B10) -> Analamanga | C10: =IF(COUNTRY_INFO!C10=0," ",COUNTRY_INFO!C10) -> Andramasina | D10: =IF(COUNTRY_INFO!$T$9:$T$1000="MDA1 (IVM+ALB)", COUNTRY_INFO!$T$9:$T$1000, " ") ->  | I10: =SUM(F10:H10) -> 0 | M10: =SUM(J10:L10) -> 0 | O10: =IF(G10<>0, IF(K10/G10*100=0, "-", K10/G10*100), " ") ->  | P10: =IF(H10<>0, IF(L10/H10*100=0, "-", L10/H10*100), " ") ->  | Q10: =IF(I10<>0, IF(M10/I10*100=0, "-", M10/I10*100), " ") -> 
A11: =IF(COUNTRY_INFO!A11=0," ",COUNTRY_INFO!A11) -> Madagascar | B11: =IF(COUNTRY_INFO!B11=0," ",COUNTRY_INFO!B11) -> Analamanga | C11: =IF(COUNTRY_INFO!C11=0," ",COUNTRY_INFO!C11) -> Anjozorobe | D11: =IF(COUNTRY_INFO!$T$9:$T$1000="MDA1 (IVM+ALB)", COUNTRY_INFO!$T$9:$T$1000, " ") ->  | I11: 0 | M11: 0
A12: =IF(COUNTRY_INFO!A12=0," ",COUNTRY_INFO!A12) -> Madagascar | B12: =IF(COUNTRY_INFO!B12=0," ",COUNTRY_INFO!B12) -> Analamanga | C12: =IF(COUNTRY_INFO!C12=0," ",COUNTRY_INFO!C12) -> Ankazobe | D12: =IF(COUNTRY_INFO!$T$9:$T$1000="MDA1 (IVM+ALB)", COUNTRY_INFO!$T$9:$T$1000, " ") ->  | I12: 0 | M12: 0
A13: =IF(COUNTRY_INFO!A13=0," ",COUNTRY_INFO!A13) -> Madagascar | B13: =IF(COUNTRY_INFO!B13=0," ",COUNTRY_INFO!B13) -> Analamanga | C13: =IF(COUNTRY_INFO!C13=0," ",COUNTRY_INFO!C13) -> Antananarivo Atsimondrano | D13: =IF(COUNTRY_INFO!$T$9:$T$1000="MDA1 (IVM+ALB)", COUNTRY_INFO!$T$9:$T$1000, " ") ->  | I13: 0 | M13: 0
A14: =IF(COUNTRY_INFO!A14=0," ",COUNTRY_INFO!A14) -> Madagascar | B14: =IF(COUNTRY_INFO!B14=0," ",COUNTRY_INFO!B14) -> Analamanga | C14: =IF(COUNTRY_INFO!C14=0," ",COUNTRY_INFO!C14) -> Antananarivo Avaradrano | D14: =IF(COUNTRY_INFO!$T$9:$T$1000="MDA1 (IVM+ALB)", COUNTRY_INFO!$T$9:$T$1000, " ") ->  | I14: 0 | M14: 0
A15: =IF(COUNTRY_INFO!A15=0," ",COUNTRY_INFO!A15) -> Madagascar | B15: =IF(COUNTRY_INFO!B15=0," ",COUNTRY_INFO!B15) -> Analamanga | C15: =IF(COUNTRY_INFO!C15=0," ",COUNTRY_INFO!C15) -> Antananarivo Renivohitra | D15: =IF(COUNTRY_INFO!$T$9:$T$1000="MDA1 (IVM+ALB)", COUNTRY_INFO!$T$9:$T$1000, " ") ->  | I15: 0 | M15: 0
A16: =IF(COUNTRY_INFO!A16=0," ",COUNTRY_INFO!A16) -> Madagascar | B16: =IF(COUNTRY_INFO!B16=0," ",COUNTRY_INFO!B16) -> Analamanga | C16: =IF(COUNTRY_INFO!C16=0," ",COUNTRY_INFO!C16) -> Manjakandriana | D16: =IF(COUNTRY_INFO!$T$9:$T$1000="MDA1 (IVM+ALB)", COUNTRY_INFO!$T$9:$T$1000, " ") ->  | I16: 0 | M16: 0
A17: =IF(COUNTRY_INFO!A17=0," ",COUNTRY_INFO!A17) -> Madagascar | B17: =IF(COUNTRY_INFO!B17=0," ",COUNTRY_INFO!B17) -> Vakinankaratra | C17: =IF(COUNTRY_INFO!C17=0," ",COUNTRY_INFO!C17) -> Ambatolampy | D17: =IF(COUNTRY_INFO!$T$9:$T$1000="MDA1 (IVM+ALB)", COUNTRY_INFO!$T$9:$T$1000, " ") ->  | I17: 0 | M17: 0
A18: =IF(COUNTRY_INFO!A18=0," ",COUNTRY_INFO!A18) -> Madagascar | B18: =IF(COUNTRY_INFO!B18=0," ",COUNTRY_INFO!B18) -> Vakinankaratra | C18: =IF(COUNTRY_INFO!C18=0," ",COUNTRY_INFO!C18) -> Antanifotsy | D18: =IF(COUNTRY_INFO!$T$9:$T$1000="MDA1 (IVM+ALB)", COUNTRY_INFO!$T$9:$T$1000, " ") ->  | I18: 0 | M18: 0
A19: =IF(COUNTRY_INFO!A19=0," ",COUNTRY_INFO!A19) -> Madagascar | B19: =IF(COUNTRY_INFO!B19=0," ",COUNTRY_INFO!B19) -> Vakinankaratra | C19: =IF(COUNTRY_INFO!C19=0," ",COUNTRY_INFO!C19) -> Antsirabe I | D19: =IF(COUNTRY_INFO!$T$9:$T$1000="MDA1 (IVM+ALB)", COUNTRY_INFO!$T$9:$T$1000, " ") ->  | I19: 0 | M19: 0
A20: =IF(COUNTRY_INFO!A20=0," ",COUNTRY_INFO!A20) -> Madagascar | B20: =IF(COUNTRY_INFO!B20=0," ",COUNTRY_INFO!B20) -> Vakinankaratra | C20: =IF(COUNTRY_INFO!C20=0," ",COUNTRY_INFO!C20) -> Antsirabe II | D20: =IF(COUNTRY_INFO!$T$9:$T$1000="MDA1 (IVM+ALB)", COUNTRY_INFO!$T$9:$T$1000, " ") ->  | I20: 0 | M20: 0
A21: =IF(COUNTRY_INFO!A21=0," ",COUNTRY_INFO!A21) -> Madagascar | B21: =IF(COUNTRY_INFO!B21=0," ",COUNTRY_INFO!B21) -> Vakinankaratra | C21: =IF(COUNTRY_INFO!C21=0," ",COUNTRY_INFO!C21) -> Betafo | D21: =IF(COUNTRY_INFO!$T$9:$T$1000="MDA1 (IVM+ALB)", COUNTRY_INFO!$T$9:$T$1000, " ") ->  | I21: 0 | M21: 0
A22: =IF(COUNTRY_INFO!A22=0," ",COUNTRY_INFO!A22) -> Madagascar | B22: =IF(COUNTRY_INFO!B22=0," ",COUNTRY_INFO!B22) -> Vakinankaratra | C22: =IF(COUNTRY_INFO!C22=0," ",COUNTRY_INFO!C22) -> Faratsiho | D22: =IF(COUNTRY_INFO!$T$9:$T$1000="MDA1 (IVM+ALB)", COUNTRY_INFO!$T$9:$T$1000, " ") ->  | I22: 0 | M22: 0
A23: =IF(COUNTRY_INFO!A23=0," ",COUNTRY_INFO!A23) -> Madagascar | B23: =IF(COUNTRY_INFO!B23=0," ",COUNTRY_INFO!B23) -> Vakinankaratra | C23: =IF(COUNTRY_INFO!C23=0," ",COUNTRY_INFO!C23) -> Mandoto | D23: =IF(COUNTRY_INFO!$T$9:$T$1000="MDA1 (IVM+ALB)", COUNTRY_INFO!$T$9:$T$1000, " ") ->  | I23: 0 | M23: 0
A24: =IF(COUNTRY_INFO!A24=0," ",COUNTRY_INFO!A24) -> Madagascar | B24: =IF(COUNTRY_INFO!B24=0," ",COUNTRY_INFO!B24) -> Itasy | C24: =IF(COUNTRY_INFO!C24=0," ",COUNTRY_INFO!C24) -> Arivonimamo | D24: =IF(COUNTRY_INFO!$T$9:$T$1000="MDA1 (IVM+ALB)", COUNTRY_INFO!$T$9:$T$1000, " ") ->  | I24: 0 | M24: 0
A25: =IF(COUNTRY_INFO!A25=0," ",COUNTRY_INFO!A25) -> Madagascar | B25: =IF(COUNTRY_INFO!B25=0," ",COUNTRY_INFO!B25) -> Itasy | C25: =IF(COUNTRY_INFO!C25=0," ",COUNTRY_INFO!C25) -> Miarinarivo | D25: =IF(COUNTRY_INFO!$T$9:$T$1000="MDA1 (IVM+ALB)", COUNTRY_INFO!$T$9:$T$1000, " ") ->  | I25: 0 | M25: 0
A26: =IF(COUNTRY_INFO!A26=0," ",COUNTRY_INFO!A26) -> Madagascar | B26: =IF(COUNTRY_INFO!B26=0," ",COUNTRY_INFO!B26) -> Itasy | C26: =IF(COUNTRY_INFO!C26=0," ",COUNTRY_INFO!C26) -> Soavinandriana | D26: =IF(COUNTRY_INFO!$T$9:$T$1000="MDA1 (IVM+ALB)", COUNTRY_INFO!$T$9:$T$1000, " ") ->  | I26: 0 | M26: 0
A27: =IF(COUNTRY_INFO!A27=0," ",COUNTRY_INFO!A27) -> Madagascar | B27: =IF(COUNTRY_INFO!B27=0," ",COUNTRY_INFO!B27) -> Bongolava | C27: =IF(COUNTRY_INFO!C27=0," ",COUNTRY_INFO!C27) -> Fenoarivobe | D27: =IF(COUNTRY_INFO!$T$9:$T$1000="MDA1 (IVM+ALB)", COUNTRY_INFO!$T$9:$T$1000, " ") ->  | I27: 0 | M27: 0
A28: =IF(COUNTRY_INFO!A28=0," ",COUNTRY_INFO!A28) -> Madagascar | B28: =IF(COUNTRY_INFO!B28=0," ",COUNTRY_INFO!B28) -> Bongolava | C28: =IF(COUNTRY_INFO!C28=0," ",COUNTRY_INFO!C28) -> Tsiroanomandidy | D28: =IF(COUNTRY_INFO!$T$9:$T$1000="MDA1 (IVM+ALB)", COUNTRY_INFO!$T$9:$T$1000, " ") ->  | I28: 0 | M28: 0
A29: =IF(COUNTRY_INFO!A29=0," ",COUNTRY_INFO!A29) -> Madagascar | B29: =IF(COUNTRY_INFO!B29=0," ",COUNTRY_INFO!B29) -> Diana | C29: =IF(COUNTRY_INFO!C29=0," ",COUNTRY_INFO!C29) -> Ambanja | D29: =IF(COUNTRY_INFO!$T$9:$T$1000="MDA1 (IVM+ALB)", COUNTRY_INFO!$T$9:$T$1000, " ") ->  | I29: 0 | M29: 0
A30: =IF(COUNTRY_INFO!A30=0," ",COUNTRY_INFO!A30) -> Madagascar | B30: =IF(COUNTRY_INFO!B30=0," ",COUNTRY_INFO!B30) -> Diana | C30: =IF(COUNTRY_INFO!C30=0," ",COUNTRY_INFO!C30) -> Ambilobe | D30: =IF(COUNTRY_INFO!$T$9:$T$1000="MDA1 (IVM+ALB)", COUNTRY_INFO!$T$9:$T$1000, " ") ->  | I30: 0 | M30: 0
A31: =IF(COUNTRY_INFO!A31=0," ",COUNTRY_INFO!A31) -> Madagascar | B31: =IF(COUNTRY_INFO!B31=0," ",COUNTRY_INFO!B31) -> Diana | C31: =IF(COUNTRY_INFO!C31=0," ",COUNTRY_INFO!C31) -> Antsiranana I | D31: =IF(COUNTRY_INFO!$T$9:$T$1000="MDA1 (IVM+ALB)", COUNTRY_INFO!$T$9:$T$1000, " ") ->  | I31: 0 | M31: 0
A32: =IF(COUNTRY_INFO!A32=0," ",COUNTRY_INFO!A32) -> Madagascar | B32: =IF(COUNTRY_INFO!B32=0," ",COUNTRY_INFO!B32) -> Diana | C32: =IF(COUNTRY_INFO!C32=0," ",COUNTRY_INFO!C32) -> Antsiranana II | D32: =IF(COUNTRY_INFO!$T$9:$T$1000="MDA1 (IVM+ALB)", COUNTRY_INFO!$T$9:$T$1000, " ") ->  | I32: 0 | M32: 0
A33: =IF(COUNTRY_INFO!A33=0," ",COUNTRY_INFO!A33) -> Madagascar | B33: =IF(COUNTRY_INFO!B33=0," ",COUNTRY_INFO!B33) -> Diana | C33: =IF(COUNTRY_INFO!C33=0," ",COUNTRY_INFO!C33) -> Nosy Be | D33: =IF(COUNTRY_INFO!$T$9:$T$1000="MDA1 (IVM+ALB)", COUNTRY_INFO!$T$9:$T$1000, " ") ->  | I33: 0 | M33: 0
A34: =IF(COUNTRY_INFO!A34=0," ",COUNTRY_INFO!A34) -> Madagascar | B34: =IF(COUNTRY_INFO!B34=0," ",COUNTRY_INFO!B34) -> Sava | C34: =IF(COUNTRY_INFO!C34=0," ",COUNTRY_INFO!C34) -> Andapa | D34: =IF(COUNTRY_INFO!$T$9:$T$1000="MDA1 (IVM+ALB)", COUNTRY_INFO!$T$9:$T$1000, " ") ->  | I34: 0 | M34: 0
A35: =IF(COUNTRY_INFO!A35=0," ",COUNTRY_INFO!A35) -> Madagascar | B35: =IF(COUNTRY_INFO!B35=0," ",COUNTRY_INFO!B35) -> Sava | C35: =IF(COUNTRY_INFO!C35=0," ",COUNTRY_INFO!C35) -> Antalaha | D35: =IF(COUNTRY_INFO!$T$9:$T$1000="MDA1 (IVM+ALB)", COUNTRY_INFO!$T$9:$T$1000, " ") ->  | I35: 0 | M35: 0
A36: =IF(COUNTRY_INFO!A36=0," ",COUNTRY_INFO!A36) -> Madagascar | B36: =IF(COUNTRY_INFO!B36=0," ",COUNTRY_INFO!B36) -> Sava | C36: =IF(COUNTRY_INFO!C36=0," ",COUNTRY_INFO!C36) -> Sambava | D36: =IF(COUNTRY_INFO!$T$9:$T$1000="MDA1 (IVM+ALB)", COUNTRY_INFO!$T$9:$T$1000, " ") ->  | I36: 0 | M36: 0
A37: =IF(COUNTRY_INFO!A37=0," ",COUNTRY_INFO!A37) -> Madagascar | B37: =IF(COUNTRY_INFO!B37=0," ",COUNTRY_INFO!B37) -> Sava | C37: =IF(COUNTRY_INFO!C37=0," ",COUNTRY_INFO!C37) -> Vohémar | D37: =IF(COUNTRY_INFO!$T$9:$T$1000="MDA1 (IVM+ALB)", COUNTRY_INFO!$T$9:$T$1000, " ") ->  | I37: 0 | M37: 0
A38: =IF(COUNTRY_INFO!A38=0," ",COUNTRY_INFO!A38) -> Madagascar | B38: =IF(COUNTRY_INFO!B38=0," ",COUNTRY_INFO!B38) -> Haute Matsiatra | C38: =IF(COUNTRY_INFO!C38=0," ",COUNTRY_INFO!C38) -> Ambalavao | D38: =IF(COUNTRY_INFO!$T$9:$T$1000="MDA1 (IVM+ALB)", COUNTRY_INFO!$T$9:$T$1000, " ") ->  | I38: 0 | M38: 0
A39: =IF(COUNTRY_INFO!A39=0," ",COUNTRY_INFO!A39) -> Madagascar | B39: =IF(COUNTRY_INFO!B39=0," ",COUNTRY_INFO!B39) -> Haute Matsiatra | C39: =IF(COUNTRY_INFO!C39=0," ",COUNTRY_INFO!C39) -> Ambohimahasoa | D39: =IF(COUNTRY_INFO!$T$9:$T$1000="MDA1 (IVM+ALB)", COUNTRY_INFO!$T$9:$T$1000, " ") ->  | I39: 0 | M39: 0
A40: =IF(COUNTRY_INFO!A40=0," ",COUNTRY_INFO!A40) -> Madagascar | B40: =IF(COUNTRY_INFO!B40=0," ",COUNTRY_INFO!B40) -> Haute Matsiatra | C40: =IF(COUNTRY_INFO!C40=0," ",COUNTRY_INFO!C40) -> Fianarantsoa I | D40: =IF(COUNTRY_INFO!$T$9:$T$1000="MDA1 (IVM+ALB)", COUNTRY_INFO!$T$9:$T$1000, " ") ->  | I40: 0 | M40: 0
A41: =IF(COUNTRY_INFO!A41=0," ",COUNTRY_INFO!A41) -> Madagascar | B41: =IF(COUNTRY_INFO!B41=0," ",COUNTRY_INFO!B41) -> Haute Matsiatra | C41: =IF(COUNTRY_INFO!C41=0," ",COUNTRY_INFO!C41) -> Ikalamavony | D41: =IF(COUNTRY_INFO!$T$9:$T$1000="MDA1 (IVM+ALB)", COUNTRY_INFO!$T$9:$T$1000, " ") ->  | I41: 0 | M41: 0
A42: =IF(COUNTRY_INFO!A42=0," ",COUNTRY_INFO!A42) -> Madagascar | B42: =IF(COUNTRY_INFO!B42=0," ",COUNTRY_INFO!B42) -> Haute Matsiatra | C42: =IF(COUNTRY_INFO!C42=0," ",COUNTRY_INFO!C42) -> Isandra | D42: =IF(COUNTRY_INFO!$T$9:$T$1000="MDA1 (IVM+ALB)", COUNTRY_INFO!$T$9:$T$1000, " ") ->  | I42: 0 | M42: 0
A43: =IF(COUNTRY_INFO!A43=0," ",COUNTRY_INFO!A43) -> Madagascar | B43: =IF(COUNTRY_INFO!B43=0," ",COUNTRY_INFO!B43) -> Haute Matsiatra | C43: =IF(COUNTRY_INFO!C43=0," ",COUNTRY_INFO!C43) -> Vohibato | D43: =IF(COUNTRY_INFO!$T$9:$T$1000="MDA1 (IVM+ALB)", COUNTRY_INFO!$T$9:$T$1000, " ") ->  | I43: 0 | M43: 0
A44: =IF(COUNTRY_INFO!A44=0," ",COUNTRY_INFO!A44) -> Madagascar | B44: =IF(COUNTRY_INFO!B44=0," ",COUNTRY_INFO!B44) -> Haute Matsiatra | C44: =IF(COUNTRY_INFO!C44=0," ",COUNTRY_INFO!C44) -> Lalangina | D44: =IF(COUNTRY_INFO!$T$9:$T$1000="MDA1 (IVM+ALB)", COUNTRY_INFO!$T$9:$T$1000, " ") ->  | I44: 0 | M44: 0
A45: =IF(COUNTRY_INFO!A45=0," ",COUNTRY_INFO!A45) -> Madagascar | B45: =IF(COUNTRY_INFO!B45=0," ",COUNTRY_INFO!B45) -> Amoron'Imania | C45: =IF(COUNTRY_INFO!C45=0," ",COUNTRY_INFO!C45) -> Ambatofinandrahana | D45: =IF(COUNTRY_INFO!$T$9:$T$1000="MDA1 (IVM+ALB)", COUNTRY_INFO!$T$9:$T$1000, " ") ->  | I45: 0 | M45: 0
A46: =IF(COUNTRY_INFO!A46=0," ",COUNTRY_INFO!A46) -> Madagascar | B46: =IF(COUNTRY_INFO!B46=0," ",COUNTRY_INFO!B46) -> Amoron'Imania | C46: =IF(COUNTRY_INFO!C46=0," ",COUNTRY_INFO!C46) -> Ambositra | D46: =IF(COUNTRY_INFO!$T$9:$T$1000="MDA1 (IVM+ALB)", COUNTRY_INFO!$T$9:$T$1000, " ") ->  | I46: 0 | M46: 0
A47: =IF(COUNTRY_INFO!A47=0," ",COUNTRY_INFO!A47) -> Madagascar | B47: =IF(COUNTRY_INFO!B47=0," ",COUNTRY_INFO!B47) -> Amoron'Imania | C47: =IF(COUNTRY_INFO!C47=0," ",COUNTRY_INFO!C47) -> Fandriana | D47: =IF(COUNTRY_INFO!$T$9:$T$1000="MDA1 (IVM+ALB)", COUNTRY_INFO!$T$9:$T$1000, " ") ->  | I47: 0 | M47: 0
A48: =IF(COUNTRY_INFO!A48=0," ",COUNTRY_INFO!A48) -> Madagascar | B48: =IF(COUNTRY_INFO!B48=0," ",COUNTRY_INFO!B48) -> Amoron'Imania | C48: =IF(COUNTRY_INFO!C48=0," ",COUNTRY_INFO!C48) -> Manandriana | D48: =IF(COUNTRY_INFO!$T$9:$T$1000="MDA1 (IVM+ALB)", COUNTRY_INFO!$T$9:$T$1000, " ") ->  | I48: 0 | M48: 0
A49: =IF(COUNTRY_INFO!A49=0," ",COUNTRY_INFO!A49) -> Madagascar | B49: =IF(COUNTRY_INFO!B49=0," ",COUNTRY_INFO!B49) -> Ihorombe | C49: =IF(COUNTRY_INFO!C49=0," ",COUNTRY_INFO!C49) -> Iakora | D49: =IF(COUNTRY_INFO!$T$9:$T$1000="MDA1 (IVM+ALB)", COUNTRY_INFO!$T$9:$T$1000, " ") ->  | I49: 0 | M49: 0
A50: =IF(COUNTRY_INFO!A50=0," ",COUNTRY_INFO!A50) -> Madagascar | B50: =IF(COUNTRY_INFO!B50=0," ",COUNTRY_INFO!B50) -> Ihorombe | C50: =IF(COUNTRY_INFO!C50=0," ",COUNTRY_INFO!C50) -> Ihosy | D50: =IF(COUNTRY_INFO!$T$9:$T$1000="MDA1 (IVM+ALB)", COUNTRY_INFO!$T$9:$T$1000, " ") ->  | I50: 0 | M50: 0
A51: =IF(COUNTRY_INFO!A51=0," ",COUNTRY_INFO!A51) -> Madagascar | B51: =IF(COUNTRY_INFO!B51=0," ",COUNTRY_INFO!B51) -> Ihorombe | C51: =IF(COUNTRY_INFO!C51=0," ",COUNTRY_INFO!C51) -> Ivohibe | D51: =IF(COUNTRY_INFO!$T$9:$T$1000="MDA1 (IVM+ALB)", COUNTRY_INFO!$T$9:$T$1000, " ") ->  | I51: 0 | M51: 0
A52: =IF(COUNTRY_INFO!A52=0," ",COUNTRY_INFO!A52) -> Madagascar | B52: =IF(COUNTRY_INFO!B52=0," ",COUNTRY_INFO!B52) -> Vatovavy Fitovinany | C52: =IF(COUNTRY_INFO!C52=0," ",COUNTRY_INFO!C52) -> Ifanadiana | D52: =IF(COUNTRY_INFO!$T$9:$T$1000="MDA1 (IVM+ALB)", COUNTRY_INFO!$T$9:$T$1000, " ") ->  | I52: 0 | M52: 0
A53: =IF(COUNTRY_INFO!A53=0," ",COUNTRY_INFO!A53) -> Madagascar | B53: =IF(COUNTRY_INFO!B53=0," ",COUNTRY_INFO!B53) -> Vatovavy Fitovinany | C53: =IF(COUNTRY_INFO!C53=0," ",COUNTRY_INFO!C53) -> Ikongo | D53: =IF(COUNTRY_INFO!$T$9:$T$1000="MDA1 (IVM+ALB)", COUNTRY_INFO!$T$9:$T$1000, " ") ->  | I53: 0 | M53: 0
A54: =IF(COUNTRY_INFO!A54=0," ",COUNTRY_INFO!A54) -> Madagascar | B54: =IF(COUNTRY_INFO!B54=0," ",COUNTRY_INFO!B54) -> Vatovavy Fitovinany | C54: =IF(COUNTRY_INFO!C54=0," ",COUNTRY_INFO!C54) -> Manakara | D54: =IF(COUNTRY_INFO!$T$9:$T$1000="MDA1 (IVM+ALB)", COUNTRY_INFO!$T$9:$T$1000, " ") ->  | I54: 0 | M54: 0
A55: =IF(COUNTRY_INFO!A55=0," ",COUNTRY_INFO!A55) -> Madagascar | B55: =IF(COUNTRY_INFO!B55=0," ",COUNTRY_INFO!B55) -> Vatovavy Fitovinany | C55: =IF(COUNTRY_INFO!C55=0," ",COUNTRY_INFO!C55) -> Mananjary | D55: =IF(COUNTRY_INFO!$T$9:$T$1000="MDA1 (IVM+ALB)", COUNTRY_INFO!$T$9:$T$1000, " ") ->  | I55: 0 | M55: 0
A56: =IF(COUNTRY_INFO!A56=0," ",COUNTRY_INFO!A56) -> Madagascar | B56: =IF(COUNTRY_INFO!B56=0," ",COUNTRY_INFO!B56) -> Vatovavy Fitovinany | C56: =IF(COUNTRY_INFO!C56=0," ",COUNTRY_INFO!C56) -> Nosy Varika | D56: =IF(COUNTRY_INFO!$T$9:$T$1000="MDA1 (IVM+ALB)", COUNTRY_INFO!$T$9:$T$1000, " ") ->  | I56: 0 | M56: 0
A57: =IF(COUNTRY_INFO!A57=0," ",COUNTRY_INFO!A57) -> Madagascar | B57: =IF(COUNTRY_INFO!B57=0," ",COUNTRY_INFO!B57) -> Vatovavy Fitovinany | C57: =IF(COUNTRY_INFO!C57=0," ",COUNTRY_INFO!C57) -> Vohipeno | D57: =IF(COUNTRY_INFO!$T$9:$T$1000="MDA1 (IVM+ALB)", COUNTRY_INFO!$T$9:$T$1000, " ") ->  | I57: 0 | M57: 0
A58: =IF(COUNTRY_INFO!A58=0," ",COUNTRY_INFO!A58) -> Madagascar | B58: =IF(COUNTRY_INFO!B58=0," ",COUNTRY_INFO!B58) -> Atsimo Atsinanana | C58: =IF(COUNTRY_INFO!C58=0," ",COUNTRY_INFO!C58) -> Befotaka | D58: =IF(COUNTRY_INFO!$T$9:$T$1000="MDA1 (IVM+ALB)", COUNTRY_INFO!$T$9:$T$1000, " ") ->  | I58: 0 | M58: 0
A59: =IF(COUNTRY_INFO!A59=0," ",COUNTRY_INFO!A59) -> Madagascar | B59: =IF(COUNTRY_INFO!B59=0," ",COUNTRY_INFO!B59) -> Atsimo Atsinanana | C59: =IF(COUNTRY_INFO!C59=0," ",COUNTRY_INFO!C59) -> Farafangana | D59: =IF(COUNTRY_INFO!$T$9:$T$1000="MDA1 (IVM+ALB)", COUNTRY_INFO!$T$9:$T$1000, " ") ->  | I59: 0 | M59: 0
A60: =IF(COUNTRY_INFO!A60=0," ",COUNTRY_INFO!A60) -> Madagascar | B60: =IF(COUNTRY_INFO!B60=0," ",COUNTRY_INFO!B60) -> Atsimo Atsinanana | C60: =IF(COUNTRY_INFO!C60=0," ",COUNTRY_INFO!C60) -> Midongy Atsimo | D60: =IF(COUNTRY_INFO!$T$9:$T$1000="MDA1 (IVM+ALB)", COUNTRY_INFO!$T$9:$T$1000, " ") ->  | I60: 0 | M60: 0
A61: =IF(COUNTRY_INFO!A61=0," ",COUNTRY_INFO!A61) -> Madagascar | B61: =IF(COUNTRY_INFO!B61=0," ",COUNTRY_INFO!B61) -> Atsimo Atsinanana | C61: =IF(COUNTRY_INFO!C61=0," ",COUNTRY_INFO!C61) -> Vangaindrano | D61: =IF(COUNTRY_INFO!$T$9:$T$1000="MDA1 (IVM+ALB)", COUNTRY_INFO!$T$9:$T$1000, " ") ->  | I61: 0 | M61: 0
A62: =IF(COUNTRY_INFO!A62=0," ",COUNTRY_INFO!A62) -> Madagascar | B62: =IF(COUNTRY_INFO!B62=0," ",COUNTRY_INFO!B62) -> Atsimo Atsinanana | C62: =IF(COUNTRY_INFO!C62=0," ",COUNTRY_INFO!C62) -> Vondrozo | D62: =IF(COUNTRY_INFO!$T$9:$T$1000="MDA1 (IVM+ALB)", COUNTRY_INFO!$T$9:$T$1000, " ") ->  | I62: 0 | M62: 0
A63: =IF(COUNTRY_INFO!A63=0," ",COUNTRY_INFO!A63) -> Madagascar | B63: =IF(COUNTRY_INFO!B63=0," ",COUNTRY_INFO!B63) -> Boeny | C63: =IF(COUNTRY_INFO!C63=0," ",COUNTRY_INFO!C63) -> Ambato Boeni | D63: =IF(COUNTRY_INFO!$T$9:$T$1000="MDA1 (IVM+ALB)", COUNTRY_INFO!$T$9:$T$1000, " ") ->  | I63: 0 | M63: 0
A64: =IF(COUNTRY_INFO!A64=0," ",COUNTRY_INFO!A64) -> Madagascar | B64: =IF(COUNTRY_INFO!B64=0," ",COUNTRY_INFO!B64) -> Boeny | C64: =IF(COUNTRY_INFO!C64=0," ",COUNTRY_INFO!C64) -> Mahajanga I | D64: =IF(COUNTRY_INFO!$T$9:$T$1000="MDA1 (IVM+ALB)", COUNTRY_INFO!$T$9:$T$1000, " ") ->  | I64: 0 | M64: 0
A65: =IF(COUNTRY_INFO!A65=0," ",COUNTRY_INFO!A65) -> Madagascar | B65: =IF(COUNTRY_INFO!B65=0," ",COUNTRY_INFO!B65) -> Boeny | C65: =IF(COUNTRY_INFO!C65=0," ",COUNTRY_INFO!C65) -> Mahajanga II | D65: =IF(COUNTRY_INFO!$T$9:$T$1000="MDA1 (IVM+ALB)", COUNTRY_INFO!$T$9:$T$1000, " ") ->  | I65: 0 | M65: 0
A66: =IF(COUNTRY_INFO!A66=0," ",COUNTRY_INFO!A66) -> Madagascar | B66: =IF(COUNTRY_INFO!B66=0," ",COUNTRY_INFO!B66) -> Boeny | C66: =IF(COUNTRY_INFO!C66=0," ",COUNTRY_INFO!C66) -> Marovoay | D66: =IF(COUNTRY_INFO!$T$9:$T$1000="MDA1 (IVM+ALB)", COUNTRY_INFO!$T$9:$T$1000, " ") ->  | I66: 0 | M66: 0
A67: =IF(COUNTRY_INFO!A67=0," ",COUNTRY_INFO!A67) -> Madagascar | B67: =IF(COUNTRY_INFO!B67=0," ",COUNTRY_INFO!B67) -> Boeny | C67: =IF(COUNTRY_INFO!C67=0," ",COUNTRY_INFO!C67) -> Mitsinjo | D67: =IF(COUNTRY_INFO!$T$9:$T$1000="MDA1 (IVM+ALB)", COUNTRY_INFO!$T$9:$T$1000, " ") ->  | I67: 0 | M67: 0
A68: =IF(COUNTRY_INFO!A68=0," ",COUNTRY_INFO!A68) -> Madagascar | B68: =IF(COUNTRY_INFO!B68=0," ",COUNTRY_INFO!B68) -> Boeny | C68: =IF(COUNTRY_INFO!C68=0," ",COUNTRY_INFO!C68) -> Soalala | D68: =IF(COUNTRY_INFO!$T$9:$T$1000="MDA1 (IVM+ALB)", COUNTRY_INFO!$T$9:$T$1000, " ") ->  | I68: 0 | M68: 0
A69: =IF(COUNTRY_INFO!A69=0," ",COUNTRY_INFO!A69) -> Madagascar | B69: =IF(COUNTRY_INFO!B69=0," ",COUNTRY_INFO!B69) -> Betsiboka | C69: =IF(COUNTRY_INFO!C69=0," ",COUNTRY_INFO!C69) -> Kandreho | D69: =IF(COUNTRY_INFO!$T$9:$T$1000="MDA1 (IVM+ALB)", COUNTRY_INFO!$T$9:$T$1000, " ") ->  | I69: 0 | M69: 0
A70: =IF(COUNTRY_INFO!A70=0," ",COUNTRY_INFO!A70) -> Madagascar | B70: =IF(COUNTRY_INFO!B70=0," ",COUNTRY_INFO!B70) -> Betsiboka | C70: =IF(COUNTRY_INFO!C70=0," ",COUNTRY_INFO!C70) -> Maevatanana | D70: =IF(COUNTRY_INFO!$T$9:$T$1000="MDA1 (IVM+ALB)", COUNTRY_INFO!$T$9:$T$1000, " ") ->  | I70: 0 | M70: 0
A71: =IF(COUNTRY_INFO!A71=0," ",COUNTRY_INFO!A71) -> Madagascar | B71: =IF(COUNTRY_INFO!B71=0," ",COUNTRY_INFO!B71) -> Betsiboka | C71: =IF(COUNTRY_INFO!C71=0," ",COUNTRY_INFO!C71) -> Tsaratanana | D71: =IF(COUNTRY_INFO!$T$9:$T$1000="MDA1 (IVM+ALB)", COUNTRY_INFO!$T$9:$T$1000, " ") ->  | I71: 0 | M71: 0
A72: =IF(COUNTRY_INFO!A72=0," ",COUNTRY_INFO!A72) -> Madagascar | B72: =IF(COUNTRY_INFO!B72=0," ",COUNTRY_INFO!B72) -> Melaky | C72: =IF(COUNTRY_INFO!C72=0," ",COUNTRY_INFO!C72) -> Ambatomainty | D72: =IF(COUNTRY_INFO!$T$9:$T$1000="MDA1 (IVM+ALB)", COUNTRY_INFO!$T$9:$T$1000, " ") ->  | I72: 0 | M72: 0
A73: =IF(COUNTRY_INFO!A73=0," ",COUNTRY_INFO!A73) -> Madagascar | B73: =IF(COUNTRY_INFO!B73=0," ",COUNTRY_INFO!B73) -> Melaky | C73: =IF(COUNTRY_INFO!C73=0," ",COUNTRY_INFO!C73) -> Antsalova | D73: =IF(COUNTRY_INFO!$T$9:$T$1000="MDA1 (IVM+ALB)", COUNTRY_INFO!$T$9:$T$1000, " ") ->  | I73: 0 | M73: 0
A74: =IF(COUNTRY_INFO!A74=0," ",COUNTRY_INFO!A74) -> Madagascar | B74: =IF(COUNTRY_INFO!B74=0," ",COUNTRY_INFO!B74) -> Melaky | C74: =IF(COUNTRY_INFO!C74=0," ",COUNTRY_INFO!C74) -> Besalampy | D74: =IF(COUNTRY_INFO!$T$9:$T$1000="MDA1 (IVM+ALB)", COUNTRY_INFO!$T$9:$T$1000, " ") ->  | I74: =SUM(F74:H74) -> 0 | M74: =SUM(J74:L74) -> 0 | O74: =IF(G74<>0, IF(K74/G74*100=0, "-", K74/G74*100), " ") ->  | P74: =IF(H74<>0, IF(L74/H74*100=0, "-", L74/H74*100), " ") ->  | Q74: =IF(I74<>0, IF(M74/I74*100=0, "-", M74/I74*100), " ") -> 
A75: =IF(COUNTRY_INFO!A75=0," ",COUNTRY_INFO!A75) -> Madagascar | B75: =IF(COUNTRY_INFO!B75=0," ",COUNTRY_INFO!B75) -> Melaky | C75: =IF(COUNTRY_INFO!C75=0," ",COUNTRY_INFO!C75) -> Maintirano | D75: =IF(COUNTRY_INFO!$T$9:$T$1000="MDA1 (IVM+ALB)", COUNTRY_INFO!$T$9:$T$1000, " ") ->  | I75: 0 | M75: 0
A76: =IF(COUNTRY_INFO!A76=0," ",COUNTRY_INFO!A76) -> Madagascar | B76: =IF(COUNTRY_INFO!B76=0," ",COUNTRY_INFO!B76) -> Melaky | C76: =IF(COUNTRY_INFO!C76=0," ",COUNTRY_INFO!C76) -> Morafenobe | D76: =IF(COUNTRY_INFO!$T$9:$T$1000="MDA1 (IVM+ALB)", COUNTRY_INFO!$T$9:$T$1000, " ") ->  | I76: 0 | M76: 0
A77: =IF(COUNTRY_INFO!A77=0," ",COUNTRY_INFO!A77) -> Madagascar | B77: =IF(COUNTRY_INFO!B77=0," ",COUNTRY_INFO!B77) -> Sofia | C77: =IF(COUNTRY_INFO!C77=0," ",COUNTRY_INFO!C77) -> Analalava | D77: =IF(COUNTRY_INFO!$T$9:$T$1000="MDA1 (IVM+ALB)", COUNTRY_INFO!$T$9:$T$1000, " ") ->  | I77: 0 | M77: 0
A78: =IF(COUNTRY_INFO!A78=0," ",COUNTRY_INFO!A78) -> Madagascar | B78: =IF(COUNTRY_INFO!B78=0," ",COUNTRY_INFO!B78) -> Sofia | C78: =IF(COUNTRY_INFO!C78=0," ",COUNTRY_INFO!C78) -> Antsohihy | D78: =IF(COUNTRY_INFO!$T$9:$T$1000="MDA1 (IVM+ALB)", COUNTRY_INFO!$T$9:$T$1000, " ") ->  | I78: 0 | M78: 0
A79: =IF(COUNTRY_INFO!A79=0," ",COUNTRY_INFO!A79) -> Madagascar | B79: =IF(COUNTRY_INFO!B79=0," ",COUNTRY_INFO!B79) -> Sofia | C79: =IF(COUNTRY_INFO!C79=0," ",COUNTRY_INFO!C79) -> Bealanana | D79: =IF(COUNTRY_INFO!$T$9:$T$1000="MDA1 (IVM+ALB)", COUNTRY_INFO!$T$9:$T$1000, " ") ->  | I79: 0 | M79: 0
A80: =IF(COUNTRY_INFO!A80=0," ",COUNTRY_INFO!A80) -> Madagascar | B80: =IF(COUNTRY_INFO!B80=0," ",COUNTRY_INFO!B80) -> Sofia | C80: =IF(COUNTRY_INFO!C80=0," ",COUNTRY_INFO!C80) -> Befandriana Nord | D80: =IF(COUNTRY_INFO!$T$9:$T$1000="MDA1 (IVM+ALB)", COUNTRY_INFO!$T$9:$T$1000, " ") ->  | I80: 0 | M80: 0
A81: =IF(COUNTRY_INFO!A81=0," ",COUNTRY_INFO!A81) -> Madagascar | B81: =IF(COUNTRY_INFO!B81=0," ",COUNTRY_INFO!B81) -> Sofia | C81: =IF(COUNTRY_INFO!C81=0," ",COUNTRY_INFO!C81) -> Mampikony | D81: =IF(COUNTRY_INFO!$T$9:$T$1000="MDA1 (IVM+ALB)", COUNTRY_INFO!$T$9:$T$1000, " ") ->  | I81: 0 | M81: 0
A82: =IF(COUNTRY_INFO!A82=0," ",COUNTRY_INFO!A82) -> Madagascar | B82: =IF(COUNTRY_INFO!B82=0," ",COUNTRY_INFO!B82) -> Sofia | C82: =IF(COUNTRY_INFO!C82=0," ",COUNTRY_INFO!C82) -> Mandritsara | D82: =IF(COUNTRY_INFO!$T$9:$T$1000="MDA1 (IVM+ALB)", COUNTRY_INFO!$T$9:$T$1000, " ") ->  | I82: 0 | M82: 0
A83: =IF(COUNTRY_INFO!A83=0," ",COUNTRY_INFO!A83) -> Madagascar | B83: =IF(COUNTRY_INFO!B83=0," ",COUNTRY_INFO!B83) -> Sofia | C83: =IF(COUNTRY_INFO!C83=0," ",COUNTRY_INFO!C83) -> Port Bergé | D83: =IF(COUNTRY_INFO!$T$9:$T$1000="MDA1 (IVM+ALB)", COUNTRY_INFO!$T$9:$T$1000, " ") ->  | I83: 0 | M83: 0
A84: =IF(COUNTRY_INFO!A84=0," ",COUNTRY_INFO!A84) -> Madagascar | B84: =IF(COUNTRY_INFO!B84=0," ",COUNTRY_INFO!B84) -> Atsinanana | C84: =IF(COUNTRY_INFO!C84=0," ",COUNTRY_INFO!C84) -> Antanambao Manampontsy | D84: =IF(COUNTRY_INFO!$T$9:$T$1000="MDA1 (IVM+ALB)", COUNTRY_INFO!$T$9:$T$1000, " ") ->  | I84: 0 | M84: 0
A85: =IF(COUNTRY_INFO!A85=0," ",COUNTRY_INFO!A85) -> Madagascar | B85: =IF(COUNTRY_INFO!B85=0," ",COUNTRY_INFO!B85) -> Atsinanana | C85: =IF(COUNTRY_INFO!C85=0," ",COUNTRY_INFO!C85) -> Brickaville | D85: =IF(COUNTRY_INFO!$T$9:$T$1000="MDA1 (IVM+ALB)", COUNTRY_INFO!$T$9:$T$1000, " ") ->  | I85: 0 | M85: 0
A86: =IF(COUNTRY_INFO!A86=0," ",COUNTRY_INFO!A86) -> Madagascar | B86: =IF(COUNTRY_INFO!B86=0," ",COUNTRY_INFO!B86) -> Atsinanana | C86: =IF(COUNTRY_INFO!C86=0," ",COUNTRY_INFO!C86) -> Mahanoro | D86: =IF(COUNTRY_INFO!$T$9:$T$1000="MDA1 (IVM+ALB)", COUNTRY_INFO!$T$9:$T$1000, " ") ->  | I86: 0 | M86: 0
A87: =IF(COUNTRY_INFO!A87=0," ",COUNTRY_INFO!A87) -> Madagascar | B87: =IF(COUNTRY_INFO!B87=0," ",COUNTRY_INFO!B87) -> Atsinanana | C87: =IF(COUNTRY_INFO!C87=0," ",COUNTRY_INFO!C87) -> Marolambo | D87: =IF(COUNTRY_INFO!$T$9:$T$1000="MDA1 (IVM+ALB)", COUNTRY_INFO!$T$9:$T$1000, " ") ->  | I87: 0 | M87: 0
A88: =IF(COUNTRY_INFO!A88=0," ",COUNTRY_INFO!A88) -> Madagascar | B88: =IF(COUNTRY_INFO!B88=0," ",COUNTRY_INFO!B88) -> Atsinanana | C88: =IF(COUNTRY_INFO!C88=0," ",COUNTRY_INFO!C88) -> Toamasina I | D88: =IF(COUNTRY_INFO!$T$9:$T$1000="MDA1 (IVM+ALB)", COUNTRY_INFO!$T$9:$T$1000, " ") ->  | I88: 0 | M88: 0
A89: =IF(COUNTRY_INFO!A89=0," ",COUNTRY_INFO!A89) -> Madagascar | B89: =IF(COUNTRY_INFO!B89=0," ",COUNTRY_INFO!B89) -> Atsinanana | C89: =IF(COUNTRY_INFO!C89=0," ",COUNTRY_INFO!C89) -> Toamasina II | D89: =IF(COUNTRY_INFO!$T$9:$T$1000="MDA1 (IVM+ALB)", COUNTRY_INFO!$T$9:$T$1000, " ") ->  | I89: 0 | M89: 0
A90: =IF(COUNTRY_INFO!A90=0," ",COUNTRY_INFO!A90) -> Madagascar | B90: =IF(COUNTRY_INFO!B90=0," ",COUNTRY_INFO!B90) -> Atsinanana | C90: =IF(COUNTRY_INFO!C90=0," ",COUNTRY_INFO!C90) -> Vatomandry | D90: =IF(COUNTRY_INFO!$T$9:$T$1000="MDA1 (IVM+ALB)", COUNTRY_INFO!$T$9:$T$1000, " ") ->  | I90: 0 | M90: 0
A91: =IF(COUNTRY_INFO!A91=0," ",COUNTRY_INFO!A91) -> Madagascar | B91: =IF(COUNTRY_INFO!B91=0," ",COUNTRY_INFO!B91) -> Alaotra Mangoro | C91: =IF(COUNTRY_INFO!C91=0," ",COUNTRY_INFO!C91) -> Ambatondrazaka | D91: =IF(COUNTRY_INFO!$T$9:$T$1000="MDA1 (IVM+ALB)", COUNTRY_INFO!$T$9:$T$1000, " ") ->  | I91: 0 | M91: 0
A92: =IF(COUNTRY_INFO!A92=0," ",COUNTRY_INFO!A92) -> Madagascar | B92: =IF(COUNTRY_INFO!B92=0," ",COUNTRY_INFO!B92) -> Alaotra Mangoro | C92: =IF(COUNTRY_INFO!C92=0," ",COUNTRY_INFO!C92) -> Amparafaravola | D92: =IF(COUNTRY_INFO!$T$9:$T$1000="MDA1 (IVM+ALB)", COUNTRY_INFO!$T$9:$T$1000, " ") ->  | I92: 0 | M92: 0
A93: =IF(COUNTRY_INFO!A93=0," ",COUNTRY_INFO!A93) -> Madagascar | B93: =IF(COUNTRY_INFO!B93=0," ",COUNTRY_INFO!B93) -> Alaotra Mangoro | C93: =IF(COUNTRY_INFO!C93=0," ",COUNTRY_INFO!C93) -> Andilamena | D93: =IF(COUNTRY_INFO!$T$9:$T$1000="MDA1 (IVM+ALB)", COUNTRY_INFO!$T$9:$T$1000, " ") ->  | I93: 0 | M93: 0
A94: =IF(COUNTRY_INFO!A94=0," ",COUNTRY_INFO!A94) -> Madagascar | B94: =IF(COUNTRY_INFO!B94=0," ",COUNTRY_INFO!B94) -> Alaotra Mangoro | C94: =IF(COUNTRY_INFO!C94=0," ",COUNTRY_INFO!C94) -> Anosibe An'Ala | D94: =IF(COUNTRY_INFO!$T$9:$T$1000="MDA1 (IVM+ALB)", COUNTRY_INFO!$T$9:$T$1000, " ") ->  | I94: 0 | M94: 0
A95: =IF(COUNTRY_INFO!A95=0," ",COUNTRY_INFO!A95) -> Madagascar | B95: =IF(COUNTRY_INFO!B95=0," ",COUNTRY_INFO!B95) -> Alaotra Mangoro | C95: =IF(COUNTRY_INFO!C95=0," ",COUNTRY_INFO!C95) -> Moramanga | D95: =IF(COUNTRY_INFO!$T$9:$T$1000="MDA1 (IVM+ALB)", COUNTRY_INFO!$T$9:$T$1000, " ") ->  | I95: 0 | M95: 0
A96: =IF(COUNTRY_INFO!A96=0," ",COUNTRY_INFO!A96) -> Madagascar | B96: =IF(COUNTRY_INFO!B96=0," ",COUNTRY_INFO!B96) -> Analanjirofo | C96: =IF(COUNTRY_INFO!C96=0," ",COUNTRY_INFO!C96) -> Fénérive Est | D96: =IF(COUNTRY_INFO!$T$9:$T$1000="MDA1 (IVM+ALB)", COUNTRY_INFO!$T$9:$T$1000, " ") ->  | I96: 0 | M96: 0
A97: =IF(COUNTRY_INFO!A97=0," ",COUNTRY_INFO!A97) -> Madagascar | B97: =IF(COUNTRY_INFO!B97=0," ",COUNTRY_INFO!B97) -> Analanjirofo | C97: =IF(COUNTRY_INFO!C97=0," ",COUNTRY_INFO!C97) -> Mananara Nord | D97: =IF(COUNTRY_INFO!$T$9:$T$1000="MDA1 (IVM+ALB)", COUNTRY_INFO!$T$9:$T$1000, " ") ->  | I97: 0 | M97: 0
A98: =IF(COUNTRY_INFO!A98=0," ",COUNTRY_INFO!A98) -> Madagascar | B98: =IF(COUNTRY_INFO!B98=0," ",COUNTRY_INFO!B98) -> Analanjirofo | C98: =IF(COUNTRY_INFO!C98=0," ",COUNTRY_INFO!C98) -> Maroantsetra | D98: =IF(COUNTRY_INFO!$T$9:$T$1000="MDA1 (IVM+ALB)", COUNTRY_INFO!$T$9:$T$1000, " ") ->  | I98: 0 | M98: 0
A99: =IF(COUNTRY_INFO!A99=0," ",COUNTRY_INFO!A99) -> Madagascar | B99: =IF(COUNTRY_INFO!B99=0," ",COUNTRY_INFO!B99) -> Analanjirofo | C99: =IF(COUNTRY_INFO!C99=0," ",COUNTRY_INFO!C99) -> Sainte-Marie | D99: =IF(COUNTRY_INFO!$T$9:$T$1000="MDA1 (IVM+ALB)", COUNTRY_INFO!$T$9:$T$1000, " ") ->  | I99: 0 | M99: 0
A100: =IF(COUNTRY_INFO!A100=0," ",COUNTRY_INFO!A100) -> Madagascar | B100: =IF(COUNTRY_INFO!B100=0," ",COUNTRY_INFO!B100) -> Analanjirofo | C100: =IF(COUNTRY_INFO!C100=0," ",COUNTRY_INFO!C100) -> Soanierana Ivongo | D100: =IF(COUNTRY_INFO!$T$9:$T$1000="MDA1 (IVM+ALB)", COUNTRY_INFO!$T$9:$T$1000, " ") ->  | I100: 0 | M100: 0
A101: =IF(COUNTRY_INFO!A101=0," ",COUNTRY_INFO!A101) -> Madagascar | B101: =IF(COUNTRY_INFO!B101=0," ",COUNTRY_INFO!B101) -> Analanjirofo | C101: =IF(COUNTRY_INFO!C101=0," ",COUNTRY_INFO!C101) -> Vavatenina | D101: =IF(COUNTRY_INFO!$T$9:$T$1000="MDA1 (IVM+ALB)", COUNTRY_INFO!$T$9:$T$1000, " ") ->  | I101: 0 | M101: 0
A102: =IF(COUNTRY_INFO!A102=0," ",COUNTRY_INFO!A102) -> Madagascar | B102: =IF(COUNTRY_INFO!B102=0," ",COUNTRY_INFO!B102) -> Atsimo Andrefana | C102: =IF(COUNTRY_INFO!C102=0," ",COUNTRY_INFO!C102) -> Ampanihy Ouest | D102: =IF(COUNTRY_INFO!$T$9:$T$1000="MDA1 (IVM+ALB)", COUNTRY_INFO!$T$9:$T$1000, " ") ->  | I102: 0 | M102: 0
A103: =IF(COUNTRY_INFO!A103=0," ",COUNTRY_INFO!A103) -> Madagascar | B103: =IF(COUNTRY_INFO!B103=0," ",COUNTRY_INFO!B103) -> Atsimo Andrefana | C103: =IF(COUNTRY_INFO!C103=0," ",COUNTRY_INFO!C103) -> Ankazoabo | D103: =IF(COUNTRY_INFO!$T$9:$T$1000="MDA1 (IVM+ALB)", COUNTRY_INFO!$T$9:$T$1000, " ") ->  | I103: 0 | M103: 0
A104: =IF(COUNTRY_INFO!A104=0," ",COUNTRY_INFO!A104) -> Madagascar | B104: =IF(COUNTRY_INFO!B104=0," ",COUNTRY_INFO!B104) -> Atsimo Andrefana | C104: =IF(COUNTRY_INFO!C104=0," ",COUNTRY_INFO!C104) -> Benenitra | D104: =IF(COUNTRY_INFO!$T$9:$T$1000="MDA1 (IVM+ALB)", COUNTRY_INFO!$T$9:$T$1000, " ") ->  | I104: 0 | M104: 0
A105: =IF(COUNTRY_INFO!A105=0," ",COUNTRY_INFO!A105) -> Madagascar | B105: =IF(COUNTRY_INFO!B105=0," ",COUNTRY_INFO!B105) -> Atsimo Andrefana | C105: =IF(COUNTRY_INFO!C105=0," ",COUNTRY_INFO!C105) -> Beroroha | D105: =IF(COUNTRY_INFO!$T$9:$T$1000="MDA1 (IVM+ALB)", COUNTRY_INFO!$T$9:$T$1000, " ") ->  | I105: 0 | M105: 0
A106: =IF(COUNTRY_INFO!A106=0," ",COUNTRY_INFO!A106) -> Madagascar | B106: =IF(COUNTRY_INFO!B106=0," ",COUNTRY_INFO!B106) -> Atsimo Andrefana | C106: =IF(COUNTRY_INFO!C106=0," ",COUNTRY_INFO!C106) -> Betioky Atsimo | D106: =IF(COUNTRY_INFO!$T$9:$T$1000="MDA1 (IVM+ALB)", COUNTRY_INFO!$T$9:$T$1000, " ") ->  | I106: 0 | M106: 0
A107: =IF(COUNTRY_INFO!A107=0," ",COUNTRY_INFO!A107) -> Madagascar | B107: =IF(COUNTRY_INFO!B107=0," ",COUNTRY_INFO!B107) -> Atsimo Andrefana | C107: =IF(COUNTRY_INFO!C107=0," ",COUNTRY_INFO!C107) -> Morombe | D107: =IF(COUNTRY_INFO!$T$9:$T$1000="MDA1 (IVM+ALB)", COUNTRY_INFO!$T$9:$T$1000, " ") ->  | I107: 0 | M107: 0
A108: =IF(COUNTRY_INFO!A108=0," ",COUNTRY_INFO!A108) -> Madagascar | B108: =IF(COUNTRY_INFO!B108=0," ",COUNTRY_INFO!B108) -> Atsimo Andrefana | C108: =IF(COUNTRY_INFO!C108=0," ",COUNTRY_INFO!C108) -> Sakaraha | D108: =IF(COUNTRY_INFO!$T$9:$T$1000="MDA1 (IVM+ALB)", COUNTRY_INFO!$T$9:$T$1000, " ") ->  | I108: 0 | M108: 0
A109: =IF(COUNTRY_INFO!A109=0," ",COUNTRY_INFO!A109) -> Madagascar | B109: =IF(COUNTRY_INFO!B109=0," ",COUNTRY_INFO!B109) -> Atsimo Andrefana | C109: =IF(COUNTRY_INFO!C109=0," ",COUNTRY_INFO!C109) -> Toliara I | D109: =IF(COUNTRY_INFO!$T$9:$T$1000="MDA1 (IVM+ALB)", COUNTRY_INFO!$T$9:$T$1000, " ") ->  | I109: 0 | M109: 0
A110: =IF(COUNTRY_INFO!A110=0," ",COUNTRY_INFO!A110) -> Madagascar | B110: =IF(COUNTRY_INFO!B110=0," ",COUNTRY_INFO!B110) -> Atsimo Andrefana | C110: =IF(COUNTRY_INFO!C110=0," ",COUNTRY_INFO!C110) -> Toliara II | D110: =IF(COUNTRY_INFO!$T$9:$T$1000="MDA1 (IVM+ALB)", COUNTRY_INFO!$T$9:$T$1000, " ") ->  | I110: 0 | M110: 0
A111: =IF(COUNTRY_INFO!A111=0," ",COUNTRY_INFO!A111) -> Madagascar | B111: =IF(COUNTRY_INFO!B111=0," ",COUNTRY_INFO!B111) -> Menabe | C111: =IF(COUNTRY_INFO!C111=0," ",COUNTRY_INFO!C111) -> Belo Tsiribihina | D111: =IF(COUNTRY_INFO!$T$9:$T$1000="MDA1 (IVM+ALB)", COUNTRY_INFO!$T$9:$T$1000, " ") ->  | I111: 0 | M111: 0
A112: =IF(COUNTRY_INFO!A112=0," ",COUNTRY_INFO!A112) -> Madagascar | B112: =IF(COUNTRY_INFO!B112=0," ",COUNTRY_INFO!B112) -> Menabe | C112: =IF(COUNTRY_INFO!C112=0," ",COUNTRY_INFO!C112) -> Mahabo | D112: =IF(COUNTRY_INFO!$T$9:$T$1000="MDA1 (IVM+ALB)", COUNTRY_INFO!$T$9:$T$1000, " ") ->  | I112: 0 | M112: 0
A113: =IF(COUNTRY_INFO!A113=0," ",COUNTRY_INFO!A113) -> Madagascar | B113: =IF(COUNTRY_INFO!B113=0," ",COUNTRY_INFO!B113) -> Menabe | C113: =IF(COUNTRY_INFO!C113=0," ",COUNTRY_INFO!C113) -> Manja | D113: =IF(COUNTRY_INFO!$T$9:$T$1000="MDA1 (IVM+ALB)", COUNTRY_INFO!$T$9:$T$1000, " ") ->  | I113: 0 | M113: 0
A114: =IF(COUNTRY_INFO!A114=0," ",COUNTRY_INFO!A114) -> Madagascar | B114: =IF(COUNTRY_INFO!B114=0," ",COUNTRY_INFO!B114) -> Menabe | C114: =IF(COUNTRY_INFO!C114=0," ",COUNTRY_INFO!C114) -> Miandrivazo | D114: =IF(COUNTRY_INFO!$T$9:$T$1000="MDA1 (IVM+ALB)", COUNTRY_INFO!$T$9:$T$1000, " ") ->  | I114: 0 | M114: 0
A115: =IF(COUNTRY_INFO!A115=0," ",COUNTRY_INFO!A115) -> Madagascar | B115: =IF(COUNTRY_INFO!B115=0," ",COUNTRY_INFO!B115) -> Menabe | C115: =IF(COUNTRY_INFO!C115=0," ",COUNTRY_INFO!C115) -> Morondava | D115: =IF(COUNTRY_INFO!$T$9:$T$1000="MDA1 (IVM+ALB)", COUNTRY_INFO!$T$9:$T$1000, " ") ->  | I115: 0 | M115: 0
A116: =IF(COUNTRY_INFO!A116=0," ",COUNTRY_INFO!A116) -> Madagascar | B116: =IF(COUNTRY_INFO!B116=0," ",COUNTRY_INFO!B116) -> Androy | C116: =IF(COUNTRY_INFO!C116=0," ",COUNTRY_INFO!C116) -> Ambovombe Androy | D116: =IF(COUNTRY_INFO!$T$9:$T$1000="MDA1 (IVM+ALB)", COUNTRY_INFO!$T$9:$T$1000, " ") ->  | I116: 0 | M116: 0
A117: =IF(COUNTRY_INFO!A117=0," ",COUNTRY_INFO!A117) -> Madagascar | B117: =IF(COUNTRY_INFO!B117=0," ",COUNTRY_INFO!B117) -> Androy | C117: =IF(COUNTRY_INFO!C117=0," ",COUNTRY_INFO!C117) -> Bekily | D117: =IF(COUNTRY_INFO!$T$9:$T$1000="MDA1 (IVM+ALB)", COUNTRY_INFO!$T$9:$T$1000, " ") ->  | I117: 0 | M117: 0
A118: =IF(COUNTRY_INFO!A118=0," ",COUNTRY_INFO!A118) -> Madagascar | B118: =IF(COUNTRY_INFO!B118=0," ",COUNTRY_INFO!B118) -> Androy | C118: =IF(COUNTRY_INFO!C118=0," ",COUNTRY_INFO!C118) -> Beloha Androy | D118: =IF(COUNTRY_INFO!$T$9:$T$1000="MDA1 (IVM+ALB)", COUNTRY_INFO!$T$9:$T$1000, " ") ->  | I118: 0 | M118: 0
A119: =IF(COUNTRY_INFO!A119=0," ",COUNTRY_INFO!A119) -> Madagascar | B119: =IF(COUNTRY_INFO!B119=0," ",COUNTRY_INFO!B119) -> Androy | C119: =IF(COUNTRY_INFO!C119=0," ",COUNTRY_INFO!C119) -> Tsihombe | D119: =IF(COUNTRY_INFO!$T$9:$T$1000="MDA1 (IVM+ALB)", COUNTRY_INFO!$T$9:$T$1000, " ") ->  | I119: 0 | M119: 0
A120: =IF(COUNTRY_INFO!A120=0," ",COUNTRY_INFO!A120) -> Madagascar | B120: =IF(COUNTRY_INFO!B120=0," ",COUNTRY_INFO!B120) -> Anosy | C120: =IF(COUNTRY_INFO!C120=0," ",COUNTRY_INFO!C120) -> Amboasary Atsimo | D120: =IF(COUNTRY_INFO!$T$9:$T$1000="MDA1 (IVM+ALB)", COUNTRY_INFO!$T$9:$T$1000, " ") ->  | I120: 0 | M120: 0
A121: =IF(COUNTRY_INFO!A121=0," ",COUNTRY_INFO!A121) -> Madagascar | B121: =IF(COUNTRY_INFO!B121=0," ",COUNTRY_INFO!B121) -> Anosy | C121: =IF(COUNTRY_INFO!C121=0," ",COUNTRY_INFO!C121) -> Betroka | D121: =IF(COUNTRY_INFO!$T$9:$T$1000="MDA1 (IVM+ALB)", COUNTRY_INFO!$T$9:$T$1000, " ") ->  | I121: 0 | M121: 0
A122: =IF(COUNTRY_INFO!A122=0," ",COUNTRY_INFO!A122) -> Madagascar | B122: =IF(COUNTRY_INFO!B122=0," ",COUNTRY_INFO!B122) -> Anosy | C122: =IF(COUNTRY_INFO!C122=0," ",COUNTRY_INFO!C122) -> Tolagnaro | D122: =IF(COUNTRY_INFO!$T$9:$T$1000="MDA1 (IVM+ALB)", COUNTRY_INFO!$T$9:$T$1000, " ") ->  | I122: 0 | M122: 0

Sheet MDA2
A1: MDA 2 - Diethylcarbamazine citrate (DEC) + Albendazole (ALB)
A2: Administrative structure, population requiring PC by age group, population treated by age group and coverage
A4: TOTAL | F4: =SUM(F$9:F$1000) -> 0 | G4: =SUM(G$9:G$1000) -> 0 | H4: 0 | I4: 0 | J4: 0 | K4: 0 | L4: 0 | M4: 0 | N4: =IF(F4<>0, IF(J4/F4*100=0, "-", J4/F4*100), " ") ->  | O4: =IF(G4<>0, IF(K4/G4*100=0, "-", K4/G4*100), " ") ->  | P4: =IF(H4<>0, IF(L4/H4*100=0, "-", L4/H4*100), " ") ->  | Q4: =IF(I4<>0, IF(M4/I4*100=0, "-", M4/I4*100), " ") -> 
D6: PC implemented | E6: Date | F6: Population targeted for MDA 2 | J6: Population treated | N6: Programme coverage (%)
A7: Country | B7: Province/State | C7: District | F7: PreSAC | G7: SAC | H7: Adults | I7: Total | J7: PreSAC | K7: SAC | L7: Adults | M7: Total | N7: PreSAC | O7: SAC | P7: Adults | Q7: Total
A9: =IF(COUNTRY_INFO!A9=0," ",COUNTRY_INFO!A9) -> Madagascar | B9: =IF(COUNTRY_INFO!B9=0," ",COUNTRY_INFO!B9) -> Analamanga | C9: =IF(COUNTRY_INFO!C9=0," ",COUNTRY_INFO!C9) -> Ambohidratrimo | D9: =IF(COUNTRY_INFO!$T$9:$T$1000="MDA2 (DEC+ALB)", COUNTRY_INFO!$T$9:$T$1000, " ") ->  | I9: =SUM(F9:H9) -> 0 | M9: =SUM(J9:L9) -> 0 | N9: =IF(F9<>0, IF(J9/F9*100=0, "-", J9/F9*100), " ") -> 
A10: =IF(COUNTRY_INFO!A10=0," ",COUNTRY_INFO!A10) -> Madagascar | B10: =IF(COUNTRY_INFO!B10=0," ",COUNTRY_INFO!B10) -> Analamanga | C10: =IF(COUNTRY_INFO!C10=0," ",COUNTRY_INFO!C10) -> Andramasina | D10: =IF(COUNTRY_INFO!$T$9:$T$1000="MDA2 (DEC+ALB)", COUNTRY_INFO!$T$9:$T$1000, " ") ->  | I10: =SUM(F10:H10) -> 0 | M10: =SUM(J10:L10) -> 0 | N10: =IF(F10<>0, IF(J10/F10*100=0, "-", J10/F10*100), " ") ->  | O10: =IF(G10<>0, IF(K10/G10*100=0, "-", K10/G10*100), " ") ->  | P10: =IF(H10<>0, IF(L10/H10*100=0, "-", L10/H10*100), " ") ->  | Q10: =IF(I10<>0, IF(M10/I10*100=0, "-", M10/I10*100), " ") -> 
A11: =IF(COUNTRY_INFO!A11=0," ",COUNTRY_INFO!A11) -> Madagascar | B11: =IF(COUNTRY_INFO!B11=0," ",COUNTRY_INFO!B11) -> Analamanga | C11: =IF(COUNTRY_INFO!C11=0," ",COUNTRY_INFO!C11) -> Anjozorobe | D11: =IF(COUNTRY_INFO!$T$9:$T$1000="MDA2 (DEC+ALB)", COUNTRY_INFO!$T$9:$T$1000, " ") ->  | I11: 0 | M11: 0
A12: =IF(COUNTRY_INFO!A12=0," ",COUNTRY_INFO!A12) -> Madagascar | B12: =IF(COUNTRY_INFO!B12=0," ",COUNTRY_INFO!B12) -> Analamanga | C12: =IF(COUNTRY_INFO!C12=0," ",COUNTRY_INFO!C12) -> Ankazobe | D12: =IF(COUNTRY_INFO!$T$9:$T$1000="MDA2 (DEC+ALB)", COUNTRY_INFO!$T$9:$T$1000, " ") ->  | I12: 0 | M12: 0
A13: =IF(COUNTRY_INFO!A13=0," ",COUNTRY_INFO!A13) -> Madagascar | B13: =IF(COUNTRY_INFO!B13=0," ",COUNTRY_INFO!B13) -> Analamanga | C13: =IF(COUNTRY_INFO!C13=0," ",COUNTRY_INFO!C13) -> Antananarivo Atsimondrano | D13: =IF(COUNTRY_INFO!$T$9:$T$1000="MDA2 (DEC+ALB)", COUNTRY_INFO!$T$9:$T$1000, " ") ->  | I13: 0 | M13: 0
A14: =IF(COUNTRY_INFO!A14=0," ",COUNTRY_INFO!A14) -> Madagascar | B14: =IF(COUNTRY_INFO!B14=0," ",COUNTRY_INFO!B14) -> Analamanga | C14: =IF(COUNTRY_INFO!C14=0," ",COUNTRY_INFO!C14) -> Antananarivo Avaradrano | D14: =IF(COUNTRY_INFO!$T$9:$T$1000="MDA2 (DEC+ALB)", COUNTRY_INFO!$T$9:$T$1000, " ") ->  | I14: 0 | M14: 0
A15: =IF(COUNTRY_INFO!A15=0," ",COUNTRY_INFO!A15) -> Madagascar | B15: =IF(COUNTRY_INFO!B15=0," ",COUNTRY_INFO!B15) -> Analamanga | C15: =IF(COUNTRY_INFO!C15=0," ",COUNTRY_INFO!C15) -> Antananarivo Renivohitra | D15: =IF(COUNTRY_INFO!$T$9:$T$1000="MDA2 (DEC+ALB)", COUNTRY_INFO!$T$9:$T$1000, " ") ->  | I15: 0 | M15: 0
A16: =IF(COUNTRY_INFO!A16=0," ",COUNTRY_INFO!A16) -> Madagascar | B16: =IF(COUNTRY_INFO!B16=0," ",COUNTRY_INFO!B16) -> Analamanga | C16: =IF(COUNTRY_INFO!C16=0," ",COUNTRY_INFO!C16) -> Manjakandriana | D16: =IF(COUNTRY_INFO!$T$9:$T$1000="MDA2 (DEC+ALB)", COUNTRY_INFO!$T$9:$T$1000, " ") ->  | I16: 0 | M16: 0
A17: =IF(COUNTRY_INFO!A17=0," ",COUNTRY_INFO!A17) -> Madagascar | B17: =IF(COUNTRY_INFO!B17=0," ",COUNTRY_INFO!B17) -> Vakinankaratra | C17: =IF(COUNTRY_INFO!C17=0," ",COUNTRY_INFO!C17) -> Ambatolampy | D17: =IF(COUNTRY_INFO!$T$9:$T$1000="MDA2 (DEC+ALB)", COUNTRY_INFO!$T$9:$T$1000, " ") ->  | I17: 0 | M17: 0
A18: =IF(COUNTRY_INFO!A18=0," ",COUNTRY_INFO!A18) -> Madagascar | B18: =IF(COUNTRY_INFO!B18=0," ",COUNTRY_INFO!B18) -> Vakinankaratra | C18: =IF(COUNTRY_INFO!C18=0," ",COUNTRY_INFO!C18) -> Antanifotsy | D18: =IF(COUNTRY_INFO!$T$9:$T$1000="MDA2 (DEC+ALB)", COUNTRY_INFO!$T$9:$T$1000, " ") ->  | I18: 0 | M18: 0
A19: =IF(COUNTRY_INFO!A19=0," ",COUNTRY_INFO!A19) -> Madagascar | B19: =IF(COUNTRY_INFO!B19=0," ",COUNTRY_INFO!B19) -> Vakinankaratra | C19: =IF(COUNTRY_INFO!C19=0," ",COUNTRY_INFO!C19) -> Antsirabe I | D19: =IF(COUNTRY_INFO!$T$9:$T$1000="MDA2 (DEC+ALB)", COUNTRY_INFO!$T$9:$T$1000, " ") ->  | I19: 0 | M19: 0
A20: =IF(COUNTRY_INFO!A20=0," ",COUNTRY_INFO!A20) -> Madagascar | B20: =IF(COUNTRY_INFO!B20=0," ",COUNTRY_INFO!B20) -> Vakinankaratra | C20: =IF(COUNTRY_INFO!C20=0," ",COUNTRY_INFO!C20) -> Antsirabe II | D20: =IF(COUNTRY_INFO!$T$9:$T$1000="MDA2 (DEC+ALB)", COUNTRY_INFO!$T$9:$T$1000, " ") ->  | I20: 0 | M20: 0
A21: =IF(COUNTRY_INFO!A21=0," ",COUNTRY_INFO!A21) -> Madagascar | B21: =IF(COUNTRY_INFO!B21=0," ",COUNTRY_INFO!B21) -> Vakinankaratra | C21: =IF(COUNTRY_INFO!C21=0," ",COUNTRY_INFO!C21) -> Betafo | D21: =IF(COUNTRY_INFO!$T$9:$T$1000="MDA2 (DEC+ALB)", COUNTRY_INFO!$T$9:$T$1000, " ") ->  | I21: 0 | M21: 0
A22: =IF(COUNTRY_INFO!A22=0," ",COUNTRY_INFO!A22) -> Madagascar | B22: =IF(COUNTRY_INFO!B22=0," ",COUNTRY_INFO!B22) -> Vakinankaratra | C22: =IF(COUNTRY_INFO!C22=0," ",COUNTRY_INFO!C22) -> Faratsiho | D22: =IF(COUNTRY_INFO!$T$9:$T$1000="MDA2 (DEC+ALB)", COUNTRY_INFO!$T$9:$T$1000, " ") ->  | I22: 0 | M22: 0
A23: =IF(COUNTRY_INFO!A23=0," ",COUNTRY_INFO!A23) -> Madagascar | B23: =IF(COUNTRY_INFO!B23=0," ",COUNTRY_INFO!B23) -> Vakinankaratra | C23: =IF(COUNTRY_INFO!C23=0," ",COUNTRY_INFO!C23) -> Mandoto | D23: =IF(COUNTRY_INFO!$T$9:$T$1000="MDA2 (DEC+ALB)", COUNTRY_INFO!$T$9:$T$1000, " ") ->  | I23: 0 | M23: 0
A24: =IF(COUNTRY_INFO!A24=0," ",COUNTRY_INFO!A24) -> Madagascar | B24: =IF(COUNTRY_INFO!B24=0," ",COUNTRY_INFO!B24) -> Itasy | C24: =IF(COUNTRY_INFO!C24=0," ",COUNTRY_INFO!C24) -> Arivonimamo | D24: =IF(COUNTRY_INFO!$T$9:$T$1000="MDA2 (DEC+ALB)", COUNTRY_INFO!$T$9:$T$1000, " ") ->  | I24: 0 | M24: 0
A25: =IF(COUNTRY_INFO!A25=0," ",COUNTRY_INFO!A25) -> Madagascar | B25: =IF(COUNTRY_INFO!B25=0," ",COUNTRY_INFO!B25) -> Itasy | C25: =IF(COUNTRY_INFO!C25=0," ",COUNTRY_INFO!C25) -> Miarinarivo | D25: =IF(COUNTRY_INFO!$T$9:$T$1000="MDA2 (DEC+ALB)", COUNTRY_INFO!$T$9:$T$1000, " ") ->  | I25: 0 | M25: 0
A26: =IF(COUNTRY_INFO!A26=0," ",COUNTRY_INFO!A26) -> Madagascar | B26: =IF(COUNTRY_INFO!B26=0," ",COUNTRY_INFO!B26) -> Itasy | C26: =IF(COUNTRY_INFO!C26=0," ",COUNTRY_INFO!C26) -> Soavinandriana | D26: =IF(COUNTRY_INFO!$T$9:$T$1000="MDA2 (DEC+ALB)", COUNTRY_INFO!$T$9:$T$1000, " ") ->  | I26: 0 | M26: 0
A27: =IF(COUNTRY_INFO!A27=0," ",COUNTRY_INFO!A27) -> Madagascar | B27: =IF(COUNTRY_INFO!B27=0," ",COUNTRY_INFO!B27) -> Bongolava | C27: =IF(COUNTRY_INFO!C27=0," ",COUNTRY_INFO!C27) -> Fenoarivobe | D27: =IF(COUNTRY_INFO!$T$9:$T$1000="MDA2 (DEC+ALB)", COUNTRY_INFO!$T$9:$T$1000, " ") ->  | I27: 0 | M27: 0
A28: =IF(COUNTRY_INFO!A28=0," ",COUNTRY_INFO!A28) -> Madagascar | B28: =IF(COUNTRY_INFO!B28=0," ",COUNTRY_INFO!B28) -> Bongolava | C28: =IF(COUNTRY_INFO!C28=0," ",COUNTRY_INFO!C28) -> Tsiroanomandidy | D28: =IF(COUNTRY_INFO!$T$9:$T$1000="MDA2 (DEC+ALB)", COUNTRY_INFO!$T$9:$T$1000, " ") ->  | I28: 0 | M28: 0
A29: =IF(COUNTRY_INFO!A29=0," ",COUNTRY_INFO!A29) -> Madagascar | B29: =IF(COUNTRY_INFO!B29=0," ",COUNTRY_INFO!B29) -> Diana | C29: =IF(COUNTRY_INFO!C29=0," ",COUNTRY_INFO!C29) -> Ambanja | D29: =IF(COUNTRY_INFO!$T$9:$T$1000="MDA2 (DEC+ALB)", COUNTRY_INFO!$T$9:$T$1000, " ") ->  | I29: 0 | M29: 0
A30: =IF(COUNTRY_INFO!A30=0," ",COUNTRY_INFO!A30) -> Madagascar | B30: =IF(COUNTRY_INFO!B30=0," ",COUNTRY_INFO!B30) -> Diana | C30: =IF(COUNTRY_INFO!C30=0," ",COUNTRY_INFO!C30) -> Ambilobe | D30: =IF(COUNTRY_INFO!$T$9:$T$1000="MDA2 (DEC+ALB)", COUNTRY_INFO!$T$9:$T$1000, " ") ->  | I30: 0 | M30: 0
A31: =IF(COUNTRY_INFO!A31=0," ",COUNTRY_INFO!A31) -> Madagascar | B31: =IF(COUNTRY_INFO!B31=0," ",COUNTRY_INFO!B31) -> Diana | C31: =IF(COUNTRY_INFO!C31=0," ",COUNTRY_INFO!C31) -> Antsiranana I | D31: =IF(COUNTRY_INFO!$T$9:$T$1000="MDA2 (DEC+ALB)", COUNTRY_INFO!$T$9:$T$1000, " ") ->  | I31: 0 | M31: 0
A32: =IF(COUNTRY_INFO!A32=0," ",COUNTRY_INFO!A32) -> Madagascar | B32: =IF(COUNTRY_INFO!B32=0," ",COUNTRY_INFO!B32) -> Diana | C32: =IF(COUNTRY_INFO!C32=0," ",COUNTRY_INFO!C32) -> Antsiranana II | D32: =IF(COUNTRY_INFO!$T$9:$T$1000="MDA2 (DEC+ALB)", COUNTRY_INFO!$T$9:$T$1000, " ") ->  | I32: 0 | M32: 0
A33: =IF(COUNTRY_INFO!A33=0," ",COUNTRY_INFO!A33) -> Madagascar | B33: =IF(COUNTRY_INFO!B33=0," ",COUNTRY_INFO!B33) -> Diana | C33: =IF(COUNTRY_INFO!C33=0," ",COUNTRY_INFO!C33) -> Nosy Be | D33: =IF(COUNTRY_INFO!$T$9:$T$1000="MDA2 (DEC+ALB)", COUNTRY_INFO!$T$9:$T$1000, " ") ->  | I33: 0 | M33: 0
A34: =IF(COUNTRY_INFO!A34=0," ",COUNTRY_INFO!A34) -> Madagascar | B34: =IF(COUNTRY_INFO!B34=0," ",COUNTRY_INFO!B34) -> Sava | C34: =IF(COUNTRY_INFO!C34=0," ",COUNTRY_INFO!C34) -> Andapa | D34: =IF(COUNTRY_INFO!$T$9:$T$1000="MDA2 (DEC+ALB)", COUNTRY_INFO!$T$9:$T$1000, " ") ->  | I34: 0 | M34: 0
A35: =IF(COUNTRY_INFO!A35=0," ",COUNTRY_INFO!A35) -> Madagascar | B35: =IF(COUNTRY_INFO!B35=0," ",COUNTRY_INFO!B35) -> Sava | C35: =IF(COUNTRY_INFO!C35=0," ",COUNTRY_INFO!C35) -> Antalaha | D35: =IF(COUNTRY_INFO!$T$9:$T$1000="MDA2 (DEC+ALB)", COUNTRY_INFO!$T$9:$T$1000, " ") ->  | I35: 0 | M35: 0
A36: =IF(COUNTRY_INFO!A36=0," ",COUNTRY_INFO!A36) -> Madagascar | B36: =IF(COUNTRY_INFO!B36=0," ",COUNTRY_INFO!B36) -> Sava | C36: =IF(COUNTRY_INFO!C36=0," ",COUNTRY_INFO!C36) -> Sambava | D36: =IF(COUNTRY_INFO!$T$9:$T$1000="MDA2 (DEC+ALB)", COUNTRY_INFO!$T$9:$T$1000, " ") ->  | I36: 0 | M36: 0
A37: =IF(COUNTRY_INFO!A37=0," ",COUNTRY_INFO!A37) -> Madagascar | B37: =IF(COUNTRY_INFO!B37=0," ",COUNTRY_INFO!B37) -> Sava | C37: =IF(COUNTRY_INFO!C37=0," ",COUNTRY_INFO!C37) -> Vohémar | D37: =IF(COUNTRY_INFO!$T$9:$T$1000="MDA2 (DEC+ALB)", COUNTRY_INFO!$T$9:$T$1000, " ") ->  | I37: 0 | M37: 0
A38: =IF(COUNTRY_INFO!A38=0," ",COUNTRY_INFO!A38) -> Madagascar | B38: =IF(COUNTRY_INFO!B38=0," ",COUNTRY_INFO!B38) -> Haute Matsiatra | C38: =IF(COUNTRY_INFO!C38=0," ",COUNTRY_INFO!C38) -> Ambalavao | D38: =IF(COUNTRY_INFO!$T$9:$T$1000="MDA2 (DEC+ALB)", COUNTRY_INFO!$T$9:$T$1000, " ") ->  | I38: 0 | M38: 0
A39: =IF(COUNTRY_INFO!A39=0," ",COUNTRY_INFO!A39) -> Madagascar | B39: =IF(COUNTRY_INFO!B39=0," ",COUNTRY_INFO!B39) -> Haute Matsiatra | C39: =IF(COUNTRY_INFO!C39=0," ",COUNTRY_INFO!C39) -> Ambohimahasoa | D39: =IF(COUNTRY_INFO!$T$9:$T$1000="MDA2 (DEC+ALB)", COUNTRY_INFO!$T$9:$T$1000, " ") ->  | I39: 0 | M39: 0
A40: =IF(COUNTRY_INFO!A40=0," ",COUNTRY_INFO!A40) -> Madagascar | B40: =IF(COUNTRY_INFO!B40=0," ",COUNTRY_INFO!B40) -> Haute Matsiatra | C40: =IF(COUNTRY_INFO!C40=0," ",COUNTRY_INFO!C40) -> Fianarantsoa I | D40: =IF(COUNTRY_INFO!$T$9:$T$1000="MDA2 (DEC+ALB)", COUNTRY_INFO!$T$9:$T$1000, " ") ->  | I40: 0 | M40: 0
A41: =IF(COUNTRY_INFO!A41=0," ",COUNTRY_INFO!A41) -> Madagascar | B41: =IF(COUNTRY_INFO!B41=0," ",COUNTRY_INFO!B41) -> Haute Matsiatra | C41: =IF(COUNTRY_INFO!C41=0," ",COUNTRY_INFO!C41) -> Ikalamavony | D41: =IF(COUNTRY_INFO!$T$9:$T$1000="MDA2 (DEC+ALB)", COUNTRY_INFO!$T$9:$T$1000, " ") ->  | I41: 0 | M41: 0
A42: =IF(COUNTRY_INFO!A42=0," ",COUNTRY_INFO!A42) -> Madagascar | B42: =IF(COUNTRY_INFO!B42=0," ",COUNTRY_INFO!B42) -> Haute Matsiatra | C42: =IF(COUNTRY_INFO!C42=0," ",COUNTRY_INFO!C42) -> Isandra | D42: =IF(COUNTRY_INFO!$T$9:$T$1000="MDA2 (DEC+ALB)", COUNTRY_INFO!$T$9:$T$1000, " ") ->  | I42: 0 | M42: 0
A43: =IF(COUNTRY_INFO!A43=0," ",COUNTRY_INFO!A43) -> Madagascar | B43: =IF(COUNTRY_INFO!B43=0," ",COUNTRY_INFO!B43) -> Haute Matsiatra | C43: =IF(COUNTRY_INFO!C43=0," ",COUNTRY_INFO!C43) -> Vohibato | D43: =IF(COUNTRY_INFO!$T$9:$T$1000="MDA2 (DEC+ALB)", COUNTRY_INFO!$T$9:$T$1000, " ") ->  | I43: 0 | M43: 0
A44: =IF(COUNTRY_INFO!A44=0," ",COUNTRY_INFO!A44) -> Madagascar | B44: =IF(COUNTRY_INFO!B44=0," ",COUNTRY_INFO!B44) -> Haute Matsiatra | C44: =IF(COUNTRY_INFO!C44=0," ",COUNTRY_INFO!C44) -> Lalangina | D44: =IF(COUNTRY_INFO!$T$9:$T$1000="MDA2 (DEC+ALB)", COUNTRY_INFO!$T$9:$T$1000, " ") ->  | I44: 0 | M44: 0
A45: =IF(COUNTRY_INFO!A45=0," ",COUNTRY_INFO!A45) -> Madagascar | B45: =IF(COUNTRY_INFO!B45=0," ",COUNTRY_INFO!B45) -> Amoron'Imania | C45: =IF(COUNTRY_INFO!C45=0," ",COUNTRY_INFO!C45) -> Ambatofinandrahana | D45: =IF(COUNTRY_INFO!$T$9:$T$1000="MDA2 (DEC+ALB)", COUNTRY_INFO!$T$9:$T$1000, " ") ->  | I45: 0 | M45: 0
A46: =IF(COUNTRY_INFO!A46=0," ",COUNTRY_INFO!A46) -> Madagascar | B46: =IF(COUNTRY_INFO!B46=0," ",COUNTRY_INFO!B46) -> Amoron'Imania | C46: =IF(COUNTRY_INFO!C46=0," ",COUNTRY_INFO!C46) -> Ambositra | D46: =IF(COUNTRY_INFO!$T$9:$T$1000="MDA2 (DEC+ALB)", COUNTRY_INFO!$T$9:$T$1000, " ") ->  | I46: 0 | M46: 0
A47: =IF(COUNTRY_INFO!A47=0," ",COUNTRY_INFO!A47) -> Madagascar | B47: =IF(COUNTRY_INFO!B47=0," ",COUNTRY_INFO!B47) -> Amoron'Imania | C47: =IF(COUNTRY_INFO!C47=0," ",COUNTRY_INFO!C47) -> Fandriana | D47: =IF(COUNTRY_INFO!$T$9:$T$1000="MDA2 (DEC+ALB)", COUNTRY_INFO!$T$9:$T$1000, " ") ->  | I47: 0 | M47: 0
A48: =IF(COUNTRY_INFO!A48=0," ",COUNTRY_INFO!A48) -> Madagascar | B48: =IF(COUNTRY_INFO!B48=0," ",COUNTRY_INFO!B48) -> Amoron'Imania | C48: =IF(COUNTRY_INFO!C48=0," ",COUNTRY_INFO!C48) -> Manandriana | D48: =IF(COUNTRY_INFO!$T$9:$T$1000="MDA2 (DEC+ALB)", COUNTRY_INFO!$T$9:$T$1000, " ") ->  | I48: 0 | M48: 0
A49: =IF(COUNTRY_INFO!A49=0," ",COUNTRY_INFO!A49) -> Madagascar | B49: =IF(COUNTRY_INFO!B49=0," ",COUNTRY_INFO!B49) -> Ihorombe | C49: =IF(COUNTRY_INFO!C49=0," ",COUNTRY_INFO!C49) -> Iakora | D49: =IF(COUNTRY_INFO!$T$9:$T$1000="MDA2 (DEC+ALB)", COUNTRY_INFO!$T$9:$T$1000, " ") ->  | I49: 0 | M49: 0
A50: =IF(COUNTRY_INFO!A50=0," ",COUNTRY_INFO!A50) -> Madagascar | B50: =IF(COUNTRY_INFO!B50=0," ",COUNTRY_INFO!B50) -> Ihorombe | C50: =IF(COUNTRY_INFO!C50=0," ",COUNTRY_INFO!C50) -> Ihosy | D50: =IF(COUNTRY_INFO!$T$9:$T$1000="MDA2 (DEC+ALB)", COUNTRY_INFO!$T$9:$T$1000, " ") ->  | I50: 0 | M50: 0
A51: =IF(COUNTRY_INFO!A51=0," ",COUNTRY_INFO!A51) -> Madagascar | B51: =IF(COUNTRY_INFO!B51=0," ",COUNTRY_INFO!B51) -> Ihorombe | C51: =IF(COUNTRY_INFO!C51=0," ",COUNTRY_INFO!C51) -> Ivohibe | D51: =IF(COUNTRY_INFO!$T$9:$T$1000="MDA2 (DEC+ALB)", COUNTRY_INFO!$T$9:$T$1000, " ") ->  | I51: 0 | M51: 0
A52: =IF(COUNTRY_INFO!A52=0," ",COUNTRY_INFO!A52) -> Madagascar | B52: =IF(COUNTRY_INFO!B52=0," ",COUNTRY_INFO!B52) -> Vatovavy Fitovinany | C52: =IF(COUNTRY_INFO!C52=0," ",COUNTRY_INFO!C52) -> Ifanadiana | D52: =IF(COUNTRY_INFO!$T$9:$T$1000="MDA2 (DEC+ALB)", COUNTRY_INFO!$T$9:$T$1000, " ") ->  | I52: 0 | M52: 0
A53: =IF(COUNTRY_INFO!A53=0," ",COUNTRY_INFO!A53) -> Madagascar | B53: =IF(COUNTRY_INFO!B53=0," ",COUNTRY_INFO!B53) -> Vatovavy Fitovinany | C53: =IF(COUNTRY_INFO!C53=0," ",COUNTRY_INFO!C53) -> Ikongo | D53: =IF(COUNTRY_INFO!$T$9:$T$1000="MDA2 (DEC+ALB)", COUNTRY_INFO!$T$9:$T$1000, " ") ->  | I53: 0 | M53: 0
A54: =IF(COUNTRY_INFO!A54=0," ",COUNTRY_INFO!A54) -> Madagascar | B54: =IF(COUNTRY_INFO!B54=0," ",COUNTRY_INFO!B54) -> Vatovavy Fitovinany | C54: =IF(COUNTRY_INFO!C54=0," ",COUNTRY_INFO!C54) -> Manakara | D54: =IF(COUNTRY_INFO!$T$9:$T$1000="MDA2 (DEC+ALB)", COUNTRY_INFO!$T$9:$T$1000, " ") ->  | I54: 0 | M54: 0
A55: =IF(COUNTRY_INFO!A55=0," ",COUNTRY_INFO!A55) -> Madagascar | B55: =IF(COUNTRY_INFO!B55=0," ",COUNTRY_INFO!B55) -> Vatovavy Fitovinany | C55: =IF(COUNTRY_INFO!C55=0," ",COUNTRY_INFO!C55) -> Mananjary | D55: =IF(COUNTRY_INFO!$T$9:$T$1000="MDA2 (DEC+ALB)", COUNTRY_INFO!$T$9:$T$1000, " ") ->  | I55: 0 | M55: 0
A56: =IF(COUNTRY_INFO!A56=0," ",COUNTRY_INFO!A56) -> Madagascar | B56: =IF(COUNTRY_INFO!B56=0," ",COUNTRY_INFO!B56) -> Vatovavy Fitovinany | C56: =IF(COUNTRY_INFO!C56=0," ",COUNTRY_INFO!C56) -> Nosy Varika | D56: =IF(COUNTRY_INFO!$T$9:$T$1000="MDA2 (DEC+ALB)", COUNTRY_INFO!$T$9:$T$1000, " ") ->  | I56: 0 | M56: 0
A57: =IF(COUNTRY_INFO!A57=0," ",COUNTRY_INFO!A57) -> Madagascar | B57: =IF(COUNTRY_INFO!B57=0," ",COUNTRY_INFO!B57) -> Vatovavy Fitovinany | C57: =IF(COUNTRY_INFO!C57=0," ",COUNTRY_INFO!C57) -> Vohipeno | D57: =IF(COUNTRY_INFO!$T$9:$T$1000="MDA2 (DEC+ALB)", COUNTRY_INFO!$T$9:$T$1000, " ") ->  | I57: 0 | M57: 0
A58: =IF(COUNTRY_INFO!A58=0," ",COUNTRY_INFO!A58) -> Madagascar | B58: =IF(COUNTRY_INFO!B58=0," ",COUNTRY_INFO!B58) -> Atsimo Atsinanana | C58: =IF(COUNTRY_INFO!C58=0," ",COUNTRY_INFO!C58) -> Befotaka | D58: =IF(COUNTRY_INFO!$T$9:$T$1000="MDA2 (DEC+ALB)", COUNTRY_INFO!$T$9:$T$1000, " ") ->  | I58: 0 | M58: 0
A59: =IF(COUNTRY_INFO!A59=0," ",COUNTRY_INFO!A59) -> Madagascar | B59: =IF(COUNTRY_INFO!B59=0," ",COUNTRY_INFO!B59) -> Atsimo Atsinanana | C59: =IF(COUNTRY_INFO!C59=0," ",COUNTRY_INFO!C59) -> Farafangana | D59: =IF(COUNTRY_INFO!$T$9:$T$1000="MDA2 (DEC+ALB)", COUNTRY_INFO!$T$9:$T$1000, " ") ->  | I59: 0 | M59: 0
A60: =IF(COUNTRY_INFO!A60=0," ",COUNTRY_INFO!A60) -> Madagascar | B60: =IF(COUNTRY_INFO!B60=0," ",COUNTRY_INFO!B60) -> Atsimo Atsinanana | C60: =IF(COUNTRY_INFO!C60=0," ",COUNTRY_INFO!C60) -> Midongy Atsimo | D60: =IF(COUNTRY_INFO!$T$9:$T$1000="MDA2 (DEC+ALB)", COUNTRY_INFO!$T$9:$T$1000, " ") ->  | I60: 0 | M60: 0
A61: =IF(COUNTRY_INFO!A61=0," ",COUNTRY_INFO!A61) -> Madagascar | B61: =IF(COUNTRY_INFO!B61=0," ",COUNTRY_INFO!B61) -> Atsimo Atsinanana | C61: =IF(COUNTRY_INFO!C61=0," ",COUNTRY_INFO!C61) -> Vangaindrano | D61: =IF(COUNTRY_INFO!$T$9:$T$1000="MDA2 (DEC+ALB)", COUNTRY_INFO!$T$9:$T$1000, " ") ->  | I61: 0 | M61: 0
A62: =IF(COUNTRY_INFO!A62=0," ",COUNTRY_INFO!A62) -> Madagascar | B62: =IF(COUNTRY_INFO!B62=0," ",COUNTRY_INFO!B62) -> Atsimo Atsinanana | C62: =IF(COUNTRY_INFO!C62=0," ",COUNTRY_INFO!C62) -> Vondrozo | D62: =IF(COUNTRY_INFO!$T$9:$T$1000="MDA2 (DEC+ALB)", COUNTRY_INFO!$T$9:$T$1000, " ") ->  | I62: 0 | M62: 0
A63: =IF(COUNTRY_INFO!A63=0," ",COUNTRY_INFO!A63) -> Madagascar | B63: =IF(COUNTRY_INFO!B63=0," ",COUNTRY_INFO!B63) -> Boeny | C63: =IF(COUNTRY_INFO!C63=0," ",COUNTRY_INFO!C63) -> Ambato Boeni | D63: =IF(COUNTRY_INFO!$T$9:$T$1000="MDA2 (DEC+ALB)", COUNTRY_INFO!$T$9:$T$1000, " ") ->  | I63: 0 | M63: 0
A64: =IF(COUNTRY_INFO!A64=0," ",COUNTRY_INFO!A64) -> Madagascar | B64: =IF(COUNTRY_INFO!B64=0," ",COUNTRY_INFO!B64) -> Boeny | C64: =IF(COUNTRY_INFO!C64=0," ",COUNTRY_INFO!C64) -> Mahajanga I | D64: =IF(COUNTRY_INFO!$T$9:$T$1000="MDA2 (DEC+ALB)", COUNTRY_INFO!$T$9:$T$1000, " ") ->  | I64: 0 | M64: 0
A65: =IF(COUNTRY_INFO!A65=0," ",COUNTRY_INFO!A65) -> Madagascar | B65: =IF(COUNTRY_INFO!B65=0," ",COUNTRY_INFO!B65) -> Boeny | C65: =IF(COUNTRY_INFO!C65=0," ",COUNTRY_INFO!C65) -> Mahajanga II | D65: =IF(COUNTRY_INFO!$T$9:$T$1000="MDA2 (DEC+ALB)", COUNTRY_INFO!$T$9:$T$1000, " ") ->  | I65: 0 | M65: 0
A66: =IF(COUNTRY_INFO!A66=0," ",COUNTRY_INFO!A66) -> Madagascar | B66: =IF(COUNTRY_INFO!B66=0," ",COUNTRY_INFO!B66) -> Boeny | C66: =IF(COUNTRY_INFO!C66=0," ",COUNTRY_INFO!C66) -> Marovoay | D66: =IF(COUNTRY_INFO!$T$9:$T$1000="MDA2 (DEC+ALB)", COUNTRY_INFO!$T$9:$T$1000, " ") ->  | I66: 0 | M66: 0
A67: =IF(COUNTRY_INFO!A67=0," ",COUNTRY_INFO!A67) -> Madagascar | B67: =IF(COUNTRY_INFO!B67=0," ",COUNTRY_INFO!B67) -> Boeny | C67: =IF(COUNTRY_INFO!C67=0," ",COUNTRY_INFO!C67) -> Mitsinjo | D67: =IF(COUNTRY_INFO!$T$9:$T$1000="MDA2 (DEC+ALB)", COUNTRY_INFO!$T$9:$T$1000, " ") ->  | I67: 0 | M67: 0
A68: =IF(COUNTRY_INFO!A68=0," ",COUNTRY_INFO!A68) -> Madagascar | B68: =IF(COUNTRY_INFO!B68=0," ",COUNTRY_INFO!B68) -> Boeny | C68: =IF(COUNTRY_INFO!C68=0," ",COUNTRY_INFO!C68) -> Soalala | D68: =IF(COUNTRY_INFO!$T$9:$T$1000="MDA2 (DEC+ALB)", COUNTRY_INFO!$T$9:$T$1000, " ") ->  | I68: 0 | M68: 0
A69: =IF(COUNTRY_INFO!A69=0," ",COUNTRY_INFO!A69) -> Madagascar | B69: =IF(COUNTRY_INFO!B69=0," ",COUNTRY_INFO!B69) -> Betsiboka | C69: =IF(COUNTRY_INFO!C69=0," ",COUNTRY_INFO!C69) -> Kandreho | D69: =IF(COUNTRY_INFO!$T$9:$T$1000="MDA2 (DEC+ALB)", COUNTRY_INFO!$T$9:$T$1000, " ") ->  | I69: 0 | M69: 0
A70: =IF(COUNTRY_INFO!A70=0," ",COUNTRY_INFO!A70) -> Madagascar | B70: =IF(COUNTRY_INFO!B70=0," ",COUNTRY_INFO!B70) -> Betsiboka | C70: =IF(COUNTRY_INFO!C70=0," ",COUNTRY_INFO!C70) -> Maevatanana | D70: =IF(COUNTRY_INFO!$T$9:$T$1000="MDA2 (DEC+ALB)", COUNTRY_INFO!$T$9:$T$1000, " ") ->  | I70: 0 | M70: 0
A71: =IF(COUNTRY_INFO!A71=0," ",COUNTRY_INFO!A71) -> Madagascar | B71: =IF(COUNTRY_INFO!B71=0," ",COUNTRY_INFO!B71) -> Betsiboka | C71: =IF(COUNTRY_INFO!C71=0," ",COUNTRY_INFO!C71) -> Tsaratanana | D71: =IF(COUNTRY_INFO!$T$9:$T$1000="MDA2 (DEC+ALB)", COUNTRY_INFO!$T$9:$T$1000, " ") ->  | I71: 0 | M71: 0
A72: =IF(COUNTRY_INFO!A72=0," ",COUNTRY_INFO!A72) -> Madagascar | B72: =IF(COUNTRY_INFO!B72=0," ",COUNTRY_INFO!B72) -> Melaky | C72: =IF(COUNTRY_INFO!C72=0," ",COUNTRY_INFO!C72) -> Ambatomainty | D72: =IF(COUNTRY_INFO!$T$9:$T$1000="MDA2 (DEC+ALB)", COUNTRY_INFO!$T$9:$T$1000, " ") ->  | I72: 0 | M72: 0
A73: =IF(COUNTRY_INFO!A73=0," ",COUNTRY_INFO!A73) -> Madagascar | B73: =IF(COUNTRY_INFO!B73=0," ",COUNTRY_INFO!B73) -> Melaky | C73: =IF(COUNTRY_INFO!C73=0," ",COUNTRY_INFO!C73) -> Antsalova | D73: =IF(COUNTRY_INFO!$T$9:$T$1000="MDA2 (DEC+ALB)", COUNTRY_INFO!$T$9:$T$1000, " ") ->  | I73: 0 | M73: 0
A74: =IF(COUNTRY_INFO!A74=0," ",COUNTRY_INFO!A74) -> Madagascar | B74: =IF(COUNTRY_INFO!B74=0," ",COUNTRY_INFO!B74) -> Melaky | C74: =IF(COUNTRY_INFO!C74=0," ",COUNTRY_INFO!C74) -> Besalampy | D74: =IF(COUNTRY_INFO!$T$9:$T$1000="MDA2 (DEC+ALB)", COUNTRY_INFO!$T$9:$T$1000, " ") ->  | I74: =SUM(F74:H74) -> 0 | M74: =SUM(J74:L74) -> 0 | N74: =IF(F74<>0, IF(J74/F74*100=0, "-", J74/F74*100), " ") ->  | O74: =IF(G74<>0, IF(K74/G74*100=0, "-", K74/G74*100), " ") ->  | P74: =IF(H74<>0, IF(L74/H74*100=0, "-", L74/H74*100), " ") ->  | Q74: =IF(I74<>0, IF(M74/I74*100=0, "-", M74/I74*100), " ") -> 
A75: =IF(COUNTRY_INFO!A75=0," ",COUNTRY_INFO!A75) -> Madagascar | B75: =IF(COUNTRY_INFO!B75=0," ",COUNTRY_INFO!B75) -> Melaky | C75: =IF(COUNTRY_INFO!C75=0," ",COUNTRY_INFO!C75) -> Maintirano | D75: =IF(COUNTRY_INFO!$T$9:$T$1000="MDA2 (DEC+ALB)", COUNTRY_INFO!$T$9:$T$1000, " ") ->  | I75: 0 | M75: 0
A76: =IF(COUNTRY_INFO!A76=0," ",COUNTRY_INFO!A76) -> Madagascar | B76: =IF(COUNTRY_INFO!B76=0," ",COUNTRY_INFO!B76) -> Melaky | C76: =IF(COUNTRY_INFO!C76=0," ",COUNTRY_INFO!C76) -> Morafenobe | D76: =IF(COUNTRY_INFO!$T$9:$T$1000="MDA2 (DEC+ALB)", COUNTRY_INFO!$T$9:$T$1000, " ") ->  | I76: 0 | M76: 0
A77: =IF(COUNTRY_INFO!A77=0," ",COUNTRY_INFO!A77) -> Madagascar | B77: =IF(COUNTRY_INFO!B77=0," ",COUNTRY_INFO!B77) -> Sofia | C77: =IF(COUNTRY_INFO!C77=0," ",COUNTRY_INFO!C77) -> Analalava | D77: =IF(COUNTRY_INFO!$T$9:$T$1000="MDA2 (DEC+ALB)", COUNTRY_INFO!$T$9:$T$1000, " ") ->  | I77: 0 | M77: 0
A78: =IF(COUNTRY_INFO!A78=0," ",COUNTRY_INFO!A78) -> Madagascar | B78: =IF(COUNTRY_INFO!B78=0," ",COUNTRY_INFO!B78) -> Sofia | C78: =IF(COUNTRY_INFO!C78=0," ",COUNTRY_INFO!C78) -> Antsohihy | D78: =IF(COUNTRY_INFO!$T$9:$T$1000="MDA2 (DEC+ALB)", COUNTRY_INFO!$T$9:$T$1000, " ") ->  | I78: 0 | M78: 0
A79: =IF(COUNTRY_INFO!A79=0," ",COUNTRY_INFO!A79) -> Madagascar | B79: =IF(COUNTRY_INFO!B79=0," ",COUNTRY_INFO!B79) -> Sofia | C79: =IF(COUNTRY_INFO!C79=0," ",COUNTRY_INFO!C79) -> Bealanana | D79: =IF(COUNTRY_INFO!$T$9:$T$1000="MDA2 (DEC+ALB)", COUNTRY_INFO!$T$9:$T$1000, " ") ->  | I79: 0 | M79: 0
A80: =IF(COUNTRY_INFO!A80=0," ",COUNTRY_INFO!A80) -> Madagascar | B80: =IF(COUNTRY_INFO!B80=0," ",COUNTRY_INFO!B80) -> Sofia | C80: =IF(COUNTRY_INFO!C80=0," ",COUNTRY_INFO!C80) -> Befandriana Nord | D80: =IF(COUNTRY_INFO!$T$9:$T$1000="MDA2 (DEC+ALB)", COUNTRY_INFO!$T$9:$T$1000, " ") ->  | I80: 0 | M80: 0
A81: =IF(COUNTRY_INFO!A81=0," ",COUNTRY_INFO!A81) -> Madagascar | B81: =IF(COUNTRY_INFO!B81=0," ",COUNTRY_INFO!B81) -> Sofia | C81: =IF(COUNTRY_INFO!C81=0," ",COUNTRY_INFO!C81) -> Mampikony | D81: =IF(COUNTRY_INFO!$T$9:$T$1000="MDA2 (DEC+ALB)", COUNTRY_INFO!$T$9:$T$1000, " ") ->  | I81: 0 | M81: 0
A82: =IF(COUNTRY_INFO!A82=0," ",COUNTRY_INFO!A82) -> Madagascar | B82: =IF(COUNTRY_INFO!B82=0," ",COUNTRY_INFO!B82) -> Sofia | C82: =IF(COUNTRY_INFO!C82=0," ",COUNTRY_INFO!C82) -> Mandritsara | D82: =IF(COUNTRY_INFO!$T$9:$T$1000="MDA2 (DEC+ALB)", COUNTRY_INFO!$T$9:$T$1000, " ") ->  | I82: 0 | M82: 0
A83: =IF(COUNTRY_INFO!A83=0," ",COUNTRY_INFO!A83) -> Madagascar | B83: =IF(COUNTRY_INFO!B83=0," ",COUNTRY_INFO!B83) -> Sofia | C83: =IF(COUNTRY_INFO!C83=0," ",COUNTRY_INFO!C83) -> Port Bergé | D83: =IF(COUNTRY_INFO!$T$9:$T$1000="MDA2 (DEC+ALB)", COUNTRY_INFO!$T$9:$T$1000, " ") ->  | I83: 0 | M83: 0
A84: =IF(COUNTRY_INFO!A84=0," ",COUNTRY_INFO!A84) -> Madagascar | B84: =IF(COUNTRY_INFO!B84=0," ",COUNTRY_INFO!B84) -> Atsinanana | C84: =IF(COUNTRY_INFO!C84=0," ",COUNTRY_INFO!C84) -> Antanambao Manampontsy | D84: =IF(COUNTRY_INFO!$T$9:$T$1000="MDA2 (DEC+ALB)", COUNTRY_INFO!$T$9:$T$1000, " ") ->  | I84: 0 | M84: 0
A85: =IF(COUNTRY_INFO!A85=0," ",COUNTRY_INFO!A85) -> Madagascar | B85: =IF(COUNTRY_INFO!B85=0," ",COUNTRY_INFO!B85) -> Atsinanana | C85: =IF(COUNTRY_INFO!C85=0," ",COUNTRY_INFO!C85) -> Brickaville | D85: =IF(COUNTRY_INFO!$T$9:$T$1000="MDA2 (DEC+ALB)", COUNTRY_INFO!$T$9:$T$1000, " ") ->  | I85: 0 | M85: 0
A86: =IF(COUNTRY_INFO!A86=0," ",COUNTRY_INFO!A86) -> Madagascar | B86: =IF(COUNTRY_INFO!B86=0," ",COUNTRY_INFO!B86) -> Atsinanana | C86: =IF(COUNTRY_INFO!C86=0," ",COUNTRY_INFO!C86) -> Mahanoro | D86: =IF(COUNTRY_INFO!$T$9:$T$1000="MDA2 (DEC+ALB)", COUNTRY_INFO!$T$9:$T$1000, " ") ->  | I86: 0 | M86: 0
A87: =IF(COUNTRY_INFO!A87=0," ",COUNTRY_INFO!A87) -> Madagascar | B87: =IF(COUNTRY_INFO!B87=0," ",COUNTRY_INFO!B87) -> Atsinanana | C87: =IF(COUNTRY_INFO!C87=0," ",COUNTRY_INFO!C87) -> Marolambo | D87: =IF(COUNTRY_INFO!$T$9:$T$1000="MDA2 (DEC+ALB)", COUNTRY_INFO!$T$9:$T$1000, " ") ->  | I87: 0 | M87: 0
A88: =IF(COUNTRY_INFO!A88=0," ",COUNTRY_INFO!A88) -> Madagascar | B88: =IF(COUNTRY_INFO!B88=0," ",COUNTRY_INFO!B88) -> Atsinanana | C88: =IF(COUNTRY_INFO!C88=0," ",COUNTRY_INFO!C88) -> Toamasina I | D88: =IF(COUNTRY_INFO!$T$9:$T$1000="MDA2 (DEC+ALB)", COUNTRY_INFO!$T$9:$T$1000, " ") ->  | I88: 0 | M88: 0
A89: =IF(COUNTRY_INFO!A89=0," ",COUNTRY_INFO!A89) -> Madagascar | B89: =IF(COUNTRY_INFO!B89=0," ",COUNTRY_INFO!B89) -> Atsinanana | C89: =IF(COUNTRY_INFO!C89=0," ",COUNTRY_INFO!C89) -> Toamasina II | D89: =IF(COUNTRY_INFO!$T$9:$T$1000="MDA2 (DEC+ALB)", COUNTRY_INFO!$T$9:$T$1000, " ") ->  | I89: 0 | M89: 0
A90: =IF(COUNTRY_INFO!A90=0," ",COUNTRY_INFO!A90) -> Madagascar | B90: =IF(COUNTRY_INFO!B90=0," ",COUNTRY_INFO!B90) -> Atsinanana | C90: =IF(COUNTRY_INFO!C90=0," ",COUNTRY_INFO!C90) -> Vatomandry | D90: =IF(COUNTRY_INFO!$T$9:$T$1000="MDA2 (DEC+ALB)", COUNTRY_INFO!$T$9:$T$1000, " ") ->  | I90: 0 | M90: 0
A91: =IF(COUNTRY_INFO!A91=0," ",COUNTRY_INFO!A91) -> Madagascar | B91: =IF(COUNTRY_INFO!B91=0," ",COUNTRY_INFO!B91) -> Alaotra Mangoro | C91: =IF(COUNTRY_INFO!C91=0," ",COUNTRY_INFO!C91) -> Ambatondrazaka | D91: =IF(COUNTRY_INFO!$T$9:$T$1000="MDA2 (DEC+ALB)", COUNTRY_INFO!$T$9:$T$1000, " ") ->  | I91: 0 | M91: 0
A92: =IF(COUNTRY_INFO!A92=0," ",COUNTRY_INFO!A92) -> Madagascar | B92: =IF(COUNTRY_INFO!B92=0," ",COUNTRY_INFO!B92) -> Alaotra Mangoro | C92: =IF(COUNTRY_INFO!C92=0," ",COUNTRY_INFO!C92) -> Amparafaravola | D92: =IF(COUNTRY_INFO!$T$9:$T$1000="MDA2 (DEC+ALB)", COUNTRY_INFO!$T$9:$T$1000, " ") ->  | I92: 0 | M92: 0
A93: =IF(COUNTRY_INFO!A93=0," ",COUNTRY_INFO!A93) -> Madagascar | B93: =IF(COUNTRY_INFO!B93=0," ",COUNTRY_INFO!B93) -> Alaotra Mangoro | C93: =IF(COUNTRY_INFO!C93=0," ",COUNTRY_INFO!C93) -> Andilamena | D93: =IF(COUNTRY_INFO!$T$9:$T$1000="MDA2 (DEC+ALB)", COUNTRY_INFO!$T$9:$T$1000, " ") ->  | I93: 0 | M93: 0
A94: =IF(COUNTRY_INFO!A94=0," ",COUNTRY_INFO!A94) -> Madagascar | B94: =IF(COUNTRY_INFO!B94=0," ",COUNTRY_INFO!B94) -> Alaotra Mangoro | C94: =IF(COUNTRY_INFO!C94=0," ",COUNTRY_INFO!C94) -> Anosibe An'Ala | D94: =IF(COUNTRY_INFO!$T$9:$T$1000="MDA2 (DEC+ALB)", COUNTRY_INFO!$T$9:$T$1000, " ") ->  | I94: 0 | M94: 0
A95: =IF(COUNTRY_INFO!A95=0," ",COUNTRY_INFO!A95) -> Madagascar | B95: =IF(COUNTRY_INFO!B95=0," ",COUNTRY_INFO!B95) -> Alaotra Mangoro | C95: =IF(COUNTRY_INFO!C95=0," ",COUNTRY_INFO!C95) -> Moramanga | D95: =IF(COUNTRY_INFO!$T$9:$T$1000="MDA2 (DEC+ALB)", COUNTRY_INFO!$T$9:$T$1000, " ") ->  | I95: 0 | M95: 0
A96: =IF(COUNTRY_INFO!A96=0," ",COUNTRY_INFO!A96) -> Madagascar | B96: =IF(COUNTRY_INFO!B96=0," ",COUNTRY_INFO!B96) -> Analanjirofo | C96: =IF(COUNTRY_INFO!C96=0," ",COUNTRY_INFO!C96) -> Fénérive Est | D96: =IF(COUNTRY_INFO!$T$9:$T$1000="MDA2 (DEC+ALB)", COUNTRY_INFO!$T$9:$T$1000, " ") ->  | I96: 0 | M96: 0
A97: =IF(COUNTRY_INFO!A97=0," ",COUNTRY_INFO!A97) -> Madagascar | B97: =IF(COUNTRY_INFO!B97=0," ",COUNTRY_INFO!B97) -> Analanjirofo | C97: =IF(COUNTRY_INFO!C97=0," ",COUNTRY_INFO!C97) -> Mananara Nord | D97: =IF(COUNTRY_INFO!$T$9:$T$1000="MDA2 (DEC+ALB)", COUNTRY_INFO!$T$9:$T$1000, " ") ->  | I97: 0 | M97: 0
A98: =IF(COUNTRY_INFO!A98=0," ",COUNTRY_INFO!A98) -> Madagascar | B98: =IF(COUNTRY_INFO!B98=0," ",COUNTRY_INFO!B98) -> Analanjirofo | C98: =IF(COUNTRY_INFO!C98=0," ",COUNTRY_INFO!C98) -> Maroantsetra | D98: =IF(COUNTRY_INFO!$T$9:$T$1000="MDA2 (DEC+ALB)", COUNTRY_INFO!$T$9:$T$1000, " ") ->  | I98: 0 | M98: 0
A99: =IF(COUNTRY_INFO!A99=0," ",COUNTRY_INFO!A99) -> Madagascar | B99: =IF(COUNTRY_INFO!B99=0," ",COUNTRY_INFO!B99) -> Analanjirofo | C99: =IF(COUNTRY_INFO!C99=0," ",COUNTRY_INFO!C99) -> Sainte-Marie | D99: =IF(COUNTRY_INFO!$T$9:$T$1000="MDA2 (DEC+ALB)", COUNTRY_INFO!$T$9:$T$1000, " ") ->  | I99: 0 | M99: 0
A100: =IF(COUNTRY_INFO!A100=0," ",COUNTRY_INFO!A100) -> Madagascar | B100: =IF(COUNTRY_INFO!B100=0," ",COUNTRY_INFO!B100) -> Analanjirofo | C100: =IF(COUNTRY_INFO!C100=0," ",COUNTRY_INFO!C100) -> Soanierana Ivongo | D100: =IF(COUNTRY_INFO!$T$9:$T$1000="MDA2 (DEC+ALB)", COUNTRY_INFO!$T$9:$T$1000, " ") ->  | I100: 0 | M100: 0
A101: =IF(COUNTRY_INFO!A101=0," ",COUNTRY_INFO!A101) -> Madagascar | B101: =IF(COUNTRY_INFO!B101=0," ",COUNTRY_INFO!B101) -> Analanjirofo | C101: =IF(COUNTRY_INFO!C101=0," ",COUNTRY_INFO!C101) -> Vavatenina | D101: =IF(COUNTRY_INFO!$T$9:$T$1000="MDA2 (DEC+ALB)", COUNTRY_INFO!$T$9:$T$1000, " ") ->  | I101: 0 | M101: 0
A102: =IF(COUNTRY_INFO!A102=0," ",COUNTRY_INFO!A102) -> Madagascar | B102: =IF(COUNTRY_INFO!B102=0," ",COUNTRY_INFO!B102) -> Atsimo Andrefana | C102: =IF(COUNTRY_INFO!C102=0," ",COUNTRY_INFO!C102) -> Ampanihy Ouest | D102: =IF(COUNTRY_INFO!$T$9:$T$1000="MDA2 (DEC+ALB)", COUNTRY_INFO!$T$9:$T$1000, " ") ->  | I102: 0 | M102: 0
A103: =IF(COUNTRY_INFO!A103=0," ",COUNTRY_INFO!A103) -> Madagascar | B103: =IF(COUNTRY_INFO!B103=0," ",COUNTRY_INFO!B103) -> Atsimo Andrefana | C103: =IF(COUNTRY_INFO!C103=0," ",COUNTRY_INFO!C103) -> Ankazoabo | D103: =IF(COUNTRY_INFO!$T$9:$T$1000="MDA2 (DEC+ALB)", COUNTRY_INFO!$T$9:$T$1000, " ") ->  | I103: 0 | M103: 0
A104: =IF(COUNTRY_INFO!A104=0," ",COUNTRY_INFO!A104) -> Madagascar | B104: =IF(COUNTRY_INFO!B104=0," ",COUNTRY_INFO!B104) -> Atsimo Andrefana | C104: =IF(COUNTRY_INFO!C104=0," ",COUNTRY_INFO!C104) -> Benenitra | D104: =IF(COUNTRY_INFO!$T$9:$T$1000="MDA2 (DEC+ALB)", COUNTRY_INFO!$T$9:$T$1000, " ") ->  | I104: 0 | M104: 0
A105: =IF(COUNTRY_INFO!A105=0," ",COUNTRY_INFO!A105) -> Madagascar | B105: =IF(COUNTRY_INFO!B105=0," ",COUNTRY_INFO!B105) -> Atsimo Andrefana | C105: =IF(COUNTRY_INFO!C105=0," ",COUNTRY_INFO!C105) -> Beroroha | D105: =IF(COUNTRY_INFO!$T$9:$T$1000="MDA2 (DEC+ALB)", COUNTRY_INFO!$T$9:$T$1000, " ") ->  | I105: 0 | M105: 0
A106: =IF(COUNTRY_INFO!A106=0," ",COUNTRY_INFO!A106) -> Madagascar | B106: =IF(COUNTRY_INFO!B106=0," ",COUNTRY_INFO!B106) -> Atsimo Andrefana | C106: =IF(COUNTRY_INFO!C106=0," ",COUNTRY_INFO!C106) -> Betioky Atsimo | D106: =IF(COUNTRY_INFO!$T$9:$T$1000="MDA2 (DEC+ALB)", COUNTRY_INFO!$T$9:$T$1000, " ") ->  | I106: 0 | M106: 0
A107: =IF(COUNTRY_INFO!A107=0," ",COUNTRY_INFO!A107) -> Madagascar | B107: =IF(COUNTRY_INFO!B107=0," ",COUNTRY_INFO!B107) -> Atsimo Andrefana | C107: =IF(COUNTRY_INFO!C107=0," ",COUNTRY_INFO!C107) -> Morombe | D107: =IF(COUNTRY_INFO!$T$9:$T$1000="MDA2 (DEC+ALB)", COUNTRY_INFO!$T$9:$T$1000, " ") ->  | I107: 0 | M107: 0
A108: =IF(COUNTRY_INFO!A108=0," ",COUNTRY_INFO!A108) -> Madagascar | B108: =IF(COUNTRY_INFO!B108=0," ",COUNTRY_INFO!B108) -> Atsimo Andrefana | C108: =IF(COUNTRY_INFO!C108=0," ",COUNTRY_INFO!C108) -> Sakaraha | D108: =IF(COUNTRY_INFO!$T$9:$T$1000="MDA2 (DEC+ALB)", COUNTRY_INFO!$T$9:$T$1000, " ") ->  | I108: 0 | M108: 0
A109: =IF(COUNTRY_INFO!A109=0," ",COUNTRY_INFO!A109) -> Madagascar | B109: =IF(COUNTRY_INFO!B109=0," ",COUNTRY_INFO!B109) -> Atsimo Andrefana | C109: =IF(COUNTRY_INFO!C109=0," ",COUNTRY_INFO!C109) -> Toliara I | D109: =IF(COUNTRY_INFO!$T$9:$T$1000="MDA2 (DEC+ALB)", COUNTRY_INFO!$T$9:$T$1000, " ") ->  | I109: 0 | M109: 0
A110: =IF(COUNTRY_INFO!A110=0," ",COUNTRY_INFO!A110) -> Madagascar | B110: =IF(COUNTRY_INFO!B110=0," ",COUNTRY_INFO!B110) -> Atsimo Andrefana | C110: =IF(COUNTRY_INFO!C110=0," ",COUNTRY_INFO!C110) -> Toliara II | D110: =IF(COUNTRY_INFO!$T$9:$T$1000="MDA2 (DEC+ALB)", COUNTRY_INFO!$T$9:$T$1000, " ") ->  | I110: 0 | M110: 0
A111: =IF(COUNTRY_INFO!A111=0," ",COUNTRY_INFO!A111) -> Madagascar | B111: =IF(COUNTRY_INFO!B111=0," ",COUNTRY_INFO!B111) -> Menabe | C111: =IF(COUNTRY_INFO!C111=0," ",COUNTRY_INFO!C111) -> Belo Tsiribihina | D111: =IF(COUNTRY_INFO!$T$9:$T$1000="MDA2 (DEC+ALB)", COUNTRY_INFO!$T$9:$T$1000, " ") ->  | I111: 0 | M111: 0
A112: =IF(COUNTRY_INFO!A112=0," ",COUNTRY_INFO!A112) -> Madagascar | B112: =IF(COUNTRY_INFO!B112=0," ",COUNTRY_INFO!B112) -> Menabe | C112: =IF(COUNTRY_INFO!C112=0," ",COUNTRY_INFO!C112) -> Mahabo | D112: =IF(COUNTRY_INFO!$T$9:$T$1000="MDA2 (DEC+ALB)", COUNTRY_INFO!$T$9:$T$1000, " ") ->  | I112: 0 | M112: 0
A113: =IF(COUNTRY_INFO!A113=0," ",COUNTRY_INFO!A113) -> Madagascar | B113: =IF(COUNTRY_INFO!B113=0," ",COUNTRY_INFO!B113) -> Menabe | C113: =IF(COUNTRY_INFO!C113=0," ",COUNTRY_INFO!C113) -> Manja | D113: =IF(COUNTRY_INFO!$T$9:$T$1000="MDA2 (DEC+ALB)", COUNTRY_INFO!$T$9:$T$1000, " ") ->  | I113: 0 | M113: 0
A114: =IF(COUNTRY_INFO!A114=0," ",COUNTRY_INFO!A114) -> Madagascar | B114: =IF(COUNTRY_INFO!B114=0," ",COUNTRY_INFO!B114) -> Menabe | C114: =IF(COUNTRY_INFO!C114=0," ",COUNTRY_INFO!C114) -> Miandrivazo | D114: =IF(COUNTRY_INFO!$T$9:$T$1000="MDA2 (DEC+ALB)", COUNTRY_INFO!$T$9:$T$1000, " ") ->  | I114: 0 | M114: 0
A115: =IF(COUNTRY_INFO!A115=0," ",COUNTRY_INFO!A115) -> Madagascar | B115: =IF(COUNTRY_INFO!B115=0," ",COUNTRY_INFO!B115) -> Menabe | C115: =IF(COUNTRY_INFO!C115=0," ",COUNTRY_INFO!C115) -> Morondava | D115: =IF(COUNTRY_INFO!$T$9:$T$1000="MDA2 (DEC+ALB)", COUNTRY_INFO!$T$9:$T$1000, " ") ->  | I115: 0 | M115: 0
A116: =IF(COUNTRY_INFO!A116=0," ",COUNTRY_INFO!A116) -> Madagascar | B116: =IF(COUNTRY_INFO!B116=0," ",COUNTRY_INFO!B116) -> Androy | C116: =IF(COUNTRY_INFO!C116=0," ",COUNTRY_INFO!C116) -> Ambovombe Androy | D116: =IF(COUNTRY_INFO!$T$9:$T$1000="MDA2 (DEC+ALB)", COUNTRY_INFO!$T$9:$T$1000, " ") ->  | I116: 0 | M116: 0
A117: =IF(COUNTRY_INFO!A117=0," ",COUNTRY_INFO!A117) -> Madagascar | B117: =IF(COUNTRY_INFO!B117=0," ",COUNTRY_INFO!B117) -> Androy | C117: =IF(COUNTRY_INFO!C117=0," ",COUNTRY_INFO!C117) -> Bekily | D117: =IF(COUNTRY_INFO!$T$9:$T$1000="MDA2 (DEC+ALB)", COUNTRY_INFO!$T$9:$T$1000, " ") ->  | I117: 0 | M117: 0
A118: =IF(COUNTRY_INFO!A118=0," ",COUNTRY_INFO!A118) -> Madagascar | B118: =IF(COUNTRY_INFO!B118=0," ",COUNTRY_INFO!B118) -> Androy | C118: =IF(COUNTRY_INFO!C118=0," ",COUNTRY_INFO!C118) -> Beloha Androy | D118: =IF(COUNTRY_INFO!$T$9:$T$1000="MDA2 (DEC+ALB)", COUNTRY_INFO!$T$9:$T$1000, " ") ->  | I118: 0 | M118: 0
A119: =IF(COUNTRY_INFO!A119=0," ",COUNTRY_INFO!A119) -> Madagascar | B119: =IF(COUNTRY_INFO!B119=0," ",COUNTRY_INFO!B119) -> Androy | C119: =IF(COUNTRY_INFO!C119=0," ",COUNTRY_INFO!C119) -> Tsihombe | D119: =IF(COUNTRY_INFO!$T$9:$T$1000="MDA2 (DEC+ALB)", COUNTRY_INFO!$T$9:$T$1000, " ") ->  | I119: 0 | M119: 0
A120: =IF(COUNTRY_INFO!A120=0," ",COUNTRY_INFO!A120) -> Madagascar | B120: =IF(COUNTRY_INFO!B120=0," ",COUNTRY_INFO!B120) -> Anosy | C120: =IF(COUNTRY_INFO!C120=0," ",COUNTRY_INFO!C120) -> Amboasary Atsimo | D120: =IF(COUNTRY_INFO!$T$9:$T$1000="MDA2 (DEC+ALB)", COUNTRY_INFO!$T$9:$T$1000, " ") ->  | I120: 0 | M120: 0
A121: =IF(COUNTRY_INFO!A121=0," ",COUNTRY_INFO!A121) -> Madagascar | B121: =IF(COUNTRY_INFO!B121=0," ",COUNTRY_INFO!B121) -> Anosy | C121: =IF(COUNTRY_INFO!C121=0," ",COUNTRY_INFO!C121) -> Betroka | D121: =IF(COUNTRY_INFO!$T$9:$T$1000="MDA2 (DEC+ALB)", COUNTRY_INFO!$T$9:$T$1000, " ") ->  | I121: 0 | M121: 0
A122: =IF(COUNTRY_INFO!A122=0," ",COUNTRY_INFO!A122) -> Madagascar | B122: =IF(COUNTRY_INFO!B122=0," ",COUNTRY_INFO!B122) -> Anosy | C122: =IF(COUNTRY_INFO!C122=0," ",COUNTRY_INFO!C122) -> Tolagnaro | D122: =IF(COUNTRY_INFO!$T$9:$T$1000="MDA2 (DEC+ALB)", COUNTRY_INFO!$T$9:$T$1000, " ") ->  | I122: 0 | M122: 0

Sheet MDA3 (hidden)
A1: MDA 3 - Ivermectin (IVM)
A2: Administrative structure, population requiring PC by age group, population treated by age group and coverage
A4: TOTAL | F4: =SUM(F$9:F$1000) -> 0 | G4: 0 | H4: 0 | I4: 0 | J4: 0 | K4: 0 | L4: 0 | M4: 0 | N4: 0 | O4: 0 | P4: 0 | Q4: 0 | R4: =IF(F4<>0, IF(O4/F4*100=0, "-", O4/F4*100), " ") ->  | S4: =IF(G4<>0, IF(P4/G4*100=0, "-", P4/G4*100), " ") ->  | T4: =IF(H4<>0, IF(Q4/H4*100=0, "-", Q4/H4*100), " ") -> 
D6: PC implemented | E6: Date | F6: Population targeted for MDA 3 | I6: Population treated - 1st round | L6: Population treated - 2nd round | O6: Population treated | R6: Programme coverage (%)
A7: Country | B7: Province/State | C7: District | F7: SAC | G7: Adults | H7: Total | I7: SAC | J7: Adults | K7: Total | L7: SAC | M7: Adults | N7: Total | O7: SAC | P7: Adults | Q7: Total | R7: SAC | S7: Adults | T7: Total
A9: =IF(COUNTRY_INFO!A9=0," ",COUNTRY_INFO!A9) -> Madagascar | B9: =IF(COUNTRY_INFO!B9=0," ",COUNTRY_INFO!B9) -> Analamanga | C9: =IF(COUNTRY_INFO!C9=0," ",COUNTRY_INFO!C9) -> Ambohidratrimo | D9: =IF(COUNTRY_INFO!$T$9:$T$1000="MDA3 (IVM)", COUNTRY_INFO!$T$9:$T$1000, " ") ->  | H9: =SUM(F9:G9) -> 0 | K9: =SUM(I9:J9) -> 0 | N9: =SUM(L9:M9) -> 0 | O9: =MAX(I9,L9) -> 0 | P9: 0 | Q9: =SUM(O9:P9) -> 0 | R9: =IF(F9<>0, IF(MAX(I9,L9)/F9*100=0, "-", MAX(I9,L9)/F9*100), " ") ->  | T9: =IF(H9<>0, IF((MAX(I9,L9)+MAX(J9,M9))/H9*100=0, "-",(MAX(I9,L9)+MAX(J9,M9))/H9*100), " ") -> 
A10: =IF(COUNTRY_INFO!A10=0," ",COUNTRY_INFO!A10) -> Madagascar | B10: =IF(COUNTRY_INFO!B10=0," ",COUNTRY_INFO!B10) -> Analamanga | C10: =IF(COUNTRY_INFO!C10=0," ",COUNTRY_INFO!C10) -> Andramasina | D10: =IF(COUNTRY_INFO!$T$9:$T$1000="MDA3 (IVM)", COUNTRY_INFO!$T$9:$T$1000, " ") ->  | H10: =SUM(F10:G10) -> 0 | K10: =SUM(I10:J10) -> 0 | N10: =SUM(L10:M10) -> 0 | O10: =MAX(I10,L10) -> 0 | P10: =MAX(J10,M10) -> 0 | Q10: =SUM(O10:P10) -> 0 | R10: =IF(F10<>0, IF(MAX(I10,L10)/F10*100=0, "-", MAX(I10,L10)/F10*100), " ") ->  | S10: =IF(G10<>0, IF(MAX(J10,M10)/G10*100=0, "-", MAX(J10,M10)/G10*100), " ") ->  | T10: =IF(H10<>0, IF((MAX(I10,L10)+MAX(J10,M10))/H10*100=0, "-",(MAX(I10,L10)+MAX(J10,M10))/H10*100), " ") -> 
A11: =IF(COUNTRY_INFO!A11=0," ",COUNTRY_INFO!A11) -> Madagascar | B11: =IF(COUNTRY_INFO!B11=0," ",COUNTRY_INFO!B11) -> Analamanga | C11: =IF(COUNTRY_INFO!C11=0," ",COUNTRY_INFO!C11) -> Anjozorobe | D11: =IF(COUNTRY_INFO!$T$9:$T$1000="MDA3 (IVM)", COUNTRY_INFO!$T$9:$T$1000, " ") ->  | H11: 0 | K11: 0 | N11: 0 | O11: 0 | P11: 0 | Q11: 0
A12: =IF(COUNTRY_INFO!A12=0," ",COUNTRY_INFO!A12) -> Madagascar | B12: =IF(COUNTRY_INFO!B12=0," ",COUNTRY_INFO!B12) -> Analamanga | C12: =IF(COUNTRY_INFO!C12=0," ",COUNTRY_INFO!C12) -> Ankazobe | D12: =IF(COUNTRY_INFO!$T$9:$T$1000="MDA3 (IVM)", COUNTRY_INFO!$T$9:$T$1000, " ") ->  | H12: 0 | K12: 0 | N12: 0 | O12: 0 | P12: 0 | Q12: 0
A13: =IF(COUNTRY_INFO!A13=0," ",COUNTRY_INFO!A13) -> Madagascar | B13: =IF(COUNTRY_INFO!B13=0," ",COUNTRY_INFO!B13) -> Analamanga | C13: =IF(COUNTRY_INFO!C13=0," ",COUNTRY_INFO!C13) -> Antananarivo Atsimondrano | D13: =IF(COUNTRY_INFO!$T$9:$T$1000="MDA3 (IVM)", COUNTRY_INFO!$T$9:$T$1000, " ") ->  | H13: 0 | K13: 0 | N13: 0 | O13: 0 | P13: 0 | Q13: 0
A14: =IF(COUNTRY_INFO!A14=0," ",COUNTRY_INFO!A14) -> Madagascar | B14: =IF(COUNTRY_INFO!B14=0," ",COUNTRY_INFO!B14) -> Analamanga | C14: =IF(COUNTRY_INFO!C14=0," ",COUNTRY_INFO!C14) -> Antananarivo Avaradrano | D14: =IF(COUNTRY_INFO!$T$9:$T$1000="MDA3 (IVM)", COUNTRY_INFO!$T$9:$T$1000, " ") ->  | H14: 0 | K14: 0 | N14: 0 | O14: 0 | P14: 0 | Q14: 0
A15: =IF(COUNTRY_INFO!A15=0," ",COUNTRY_INFO!A15) -> Madagascar | B15: =IF(COUNTRY_INFO!B15=0," ",COUNTRY_INFO!B15) -> Analamanga | C15: =IF(COUNTRY_INFO!C15=0," ",COUNTRY_INFO!C15) -> Antananarivo Renivohitra | D15: =IF(COUNTRY_INFO!$T$9:$T$1000="MDA3 (IVM)", COUNTRY_INFO!$T$9:$T$1000, " ") ->  | H15: 0 | K15: 0 | N15: 0 | O15: 0 | P15: 0 | Q15: 0
A16: =IF(COUNTRY_INFO!A16=0," ",COUNTRY_INFO!A16) -> Madagascar | B16: =IF(COUNTRY_INFO!B16=0," ",COUNTRY_INFO!B16) -> Analamanga | C16: =IF(COUNTRY_INFO!C16=0," ",COUNTRY_INFO!C16) -> Manjakandriana | D16: =IF(COUNTRY_INFO!$T$9:$T$1000="MDA3 (IVM)", COUNTRY_INFO!$T$9:$T$1000, " ") ->  | H16: 0 | K16: 0 | N16: 0 | O16: 0 | P16: 0 | Q16: 0
A17: =IF(COUNTRY_INFO!A17=0," ",COUNTRY_INFO!A17) -> Madagascar | B17: =IF(COUNTRY_INFO!B17=0," ",COUNTRY_INFO!B17) -> Vakinankaratra | C17: =IF(COUNTRY_INFO!C17=0," ",COUNTRY_INFO!C17) -> Ambatolampy | D17: =IF(COUNTRY_INFO!$T$9:$T$1000="MDA3 (IVM)", COUNTRY_INFO!$T$9:$T$1000, " ") ->  | H17: 0 | K17: 0 | N17: 0 | O17: 0 | P17: 0 | Q17: 0
A18: =IF(COUNTRY_INFO!A18=0," ",COUNTRY_INFO!A18) -> Madagascar | B18: =IF(COUNTRY_INFO!B18=0," ",COUNTRY_INFO!B18) -> Vakinankaratra | C18: =IF(COUNTRY_INFO!C18=0," ",COUNTRY_INFO!C18) -> Antanifotsy | D18: =IF(COUNTRY_INFO!$T$9:$T$1000="MDA3 (IVM)", COUNTRY_INFO!$T$9:$T$1000, " ") ->  | H18: 0 | K18: 0 | N18: 0 | O18: 0 | P18: 0 | Q18: 0
A19: =IF(COUNTRY_INFO!A19=0," ",COUNTRY_INFO!A19) -> Madagascar | B19: =IF(COUNTRY_INFO!B19=0," ",COUNTRY_INFO!B19) -> Vakinankaratra | C19: =IF(COUNTRY_INFO!C19=0," ",COUNTRY_INFO!C19) -> Antsirabe I | D19: =IF(COUNTRY_INFO!$T$9:$T$1000="MDA3 (IVM)", COUNTRY_INFO!$T$9:$T$1000, " ") ->  | H19: 0 | K19: 0 | N19: 0 | O19: 0 | P19: 0 | Q19: 0
A20: =IF(COUNTRY_INFO!A20=0," ",COUNTRY_INFO!A20) -> Madagascar | B20: =IF(COUNTRY_INFO!B20=0," ",COUNTRY_INFO!B20) -> Vakinankaratra | C20: =IF(COUNTRY_INFO!C20=0," ",COUNTRY_INFO!C20) -> Antsirabe II | D20: =IF(COUNTRY_INFO!$T$9:$T$1000="MDA3 (IVM)", COUNTRY_INFO!$T$9:$T$1000, " ") ->  | H20: 0 | K20: 0 | N20: 0 | O20: 0 | P20: 0 | Q20: 0
A21: =IF(COUNTRY_INFO!A21=0," ",COUNTRY_INFO!A21) -> Madagascar | B21: =IF(COUNTRY_INFO!B21=0," ",COUNTRY_INFO!B21) -> Vakinankaratra | C21: =IF(COUNTRY_INFO!C21=0," ",COUNTRY_INFO!C21) -> Betafo | D21: =IF(COUNTRY_INFO!$T$9:$T$1000="MDA3 (IVM)", COUNTRY_INFO!$T$9:$T$1000, " ") ->  | H21: 0 | K21: 0 | N21: 0 | O21: 0 | P21: 0 | Q21: 0
A22: =IF(COUNTRY_INFO!A22=0," ",COUNTRY_INFO!A22) -> Madagascar | B22: =IF(COUNTRY_INFO!B22=0," ",COUNTRY_INFO!B22) -> Vakinankaratra | C22: =IF(COUNTRY_INFO!C22=0," ",COUNTRY_INFO!C22) -> Faratsiho | D22: =IF(COUNTRY_INFO!$T$9:$T$1000="MDA3 (IVM)", COUNTRY_INFO!$T$9:$T$1000, " ") ->  | H22: 0 | K22: 0 | N22: 0 | O22: 0 | P22: 0 | Q22: 0
A23: =IF(COUNTRY_INFO!A23=0," ",COUNTRY_INFO!A23) -> Madagascar | B23: =IF(COUNTRY_INFO!B23=0," ",COUNTRY_INFO!B23) -> Vakinankaratra | C23: =IF(COUNTRY_INFO!C23=0," ",COUNTRY_INFO!C23) -> Mandoto | D23: =IF(COUNTRY_INFO!$T$9:$T$1000="MDA3 (IVM)", COUNTRY_INFO!$T$9:$T$1000, " ") ->  | H23: 0 | K23: 0 | N23: 0 | O23: 0 | P23: 0 | Q23: 0
A24: =IF(COUNTRY_INFO!A24=0," ",COUNTRY_INFO!A24) -> Madagascar | B24: =IF(COUNTRY_INFO!B24=0," ",COUNTRY_INFO!B24) -> Itasy | C24: =IF(COUNTRY_INFO!C24=0," ",COUNTRY_INFO!C24) -> Arivonimamo | D24: =IF(COUNTRY_INFO!$T$9:$T$1000="MDA3 (IVM)", COUNTRY_INFO!$T$9:$T$1000, " ") ->  | H24: 0 | K24: 0 | N24: 0 | O24: 0 | P24: 0 | Q24: 0
A25: =IF(COUNTRY_INFO!A25=0," ",COUNTRY_INFO!A25) -> Madagascar | B25: =IF(COUNTRY_INFO!B25=0," ",COUNTRY_INFO!B25) -> Itasy | C25: =IF(COUNTRY_INFO!C25=0," ",COUNTRY_INFO!C25) -> Miarinarivo | D25: =IF(COUNTRY_INFO!$T$9:$T$1000="MDA3 (IVM)", COUNTRY_INFO!$T$9:$T$1000, " ") ->  | H25: 0 | K25: 0 | N25: 0 | O25: 0 | P25: 0 | Q25: 0
A26: =IF(COUNTRY_INFO!A26=0," ",COUNTRY_INFO!A26) -> Madagascar | B26: =IF(COUNTRY_INFO!B26=0," ",COUNTRY_INFO!B26) -> Itasy | C26: =IF(COUNTRY_INFO!C26=0," ",COUNTRY_INFO!C26) -> Soavinandriana | D26: =IF(COUNTRY_INFO!$T$9:$T$1000="MDA3 (IVM)", COUNTRY_INFO!$T$9:$T$1000, " ") ->  | H26: 0 | K26: 0 | N26: 0 | O26: 0 | P26: 0 | Q26: 0
A27: =IF(COUNTRY_INFO!A27=0," ",COUNTRY_INFO!A27) -> Madagascar | B27: =IF(COUNTRY_INFO!B27=0," ",COUNTRY_INFO!B27) -> Bongolava | C27: =IF(COUNTRY_INFO!C27=0," ",COUNTRY_INFO!C27) -> Fenoarivobe | D27: =IF(COUNTRY_INFO!$T$9:$T$1000="MDA3 (IVM)", COUNTRY_INFO!$T$9:$T$1000, " ") ->  | H27: 0 | K27: 0 | N27: 0 | O27: 0 | P27: 0 | Q27: 0
A28: =IF(COUNTRY_INFO!A28=0," ",COUNTRY_INFO!A28) -> Madagascar | B28: =IF(COUNTRY_INFO!B28=0," ",COUNTRY_INFO!B28) -> Bongolava | C28: =IF(COUNTRY_INFO!C28=0," ",COUNTRY_INFO!C28) -> Tsiroanomandidy | D28: =IF(COUNTRY_INFO!$T$9:$T$1000="MDA3 (IVM)", COUNTRY_INFO!$T$9:$T$1000, " ") ->  | H28: 0 | K28: 0 | N28: 0 | O28: 0 | P28: 0 | Q28: 0
A29: =IF(COUNTRY_INFO!A29=0," ",COUNTRY_INFO!A29) -> Madagascar | B29: =IF(COUNTRY_INFO!B29=0," ",COUNTRY_INFO!B29) -> Diana | C29: =IF(COUNTRY_INFO!C29=0," ",COUNTRY_INFO!C29) -> Ambanja | D29: =IF(COUNTRY_INFO!$T$9:$T$1000="MDA3 (IVM)", COUNTRY_INFO!$T$9:$T$1000, " ") ->  | H29: 0 | K29: 0 | N29: 0 | O29: 0 | P29: 0 | Q29: 0
A30: =IF(COUNTRY_INFO!A30=0," ",COUNTRY_INFO!A30) -> Madagascar | B30: =IF(COUNTRY_INFO!B30=0," ",COUNTRY_INFO!B30) -> Diana | C30: =IF(COUNTRY_INFO!C30=0," ",COUNTRY_INFO!C30) -> Ambilobe | D30: =IF(COUNTRY_INFO!$T$9:$T$1000="MDA3 (IVM)", COUNTRY_INFO!$T$9:$T$1000, " ") ->  | H30: 0 | K30: 0 | N30: 0 | O30: 0 | P30: 0 | Q30: 0
A31: =IF(COUNTRY_INFO!A31=0," ",COUNTRY_INFO!A31) -> Madagascar | B31: =IF(COUNTRY_INFO!B31=0," ",COUNTRY_INFO!B31) -> Diana | C31: =IF(COUNTRY_INFO!C31=0," ",COUNTRY_INFO!C31) -> Antsiranana I | D31: =IF(COUNTRY_INFO!$T$9:$T$1000="MDA3 (IVM)", COUNTRY_INFO!$T$9:$T$1000, " ") ->  | H31: 0 | K31: 0 | N31: 0 | O31: 0 | P31: 0 | Q31: 0
A32: =IF(COUNTRY_INFO!A32=0," ",COUNTRY_INFO!A32) -> Madagascar | B32: =IF(COUNTRY_INFO!B32=0," ",COUNTRY_INFO!B32) -> Diana | C32: =IF(COUNTRY_INFO!C32=0," ",COUNTRY_INFO!C32) -> Antsiranana II | D32: =IF(COUNTRY_INFO!$T$9:$T$1000="MDA3 (IVM)", COUNTRY_INFO!$T$9:$T$1000, " ") ->  | H32: 0 | K32: 0 | N32: 0 | O32: 0 | P32: 0 | Q32: 0
A33: =IF(COUNTRY_INFO!A33=0," ",COUNTRY_INFO!A33) -> Madagascar | B33: =IF(COUNTRY_INFO!B33=0," ",COUNTRY_INFO!B33) -> Diana | C33: =IF(COUNTRY_INFO!C33=0," ",COUNTRY_INFO!C33) -> Nosy Be | D33: =IF(COUNTRY_INFO!$T$9:$T$1000="MDA3 (IVM)", COUNTRY_INFO!$T$9:$T$1000, " ") ->  | H33: 0 | K33: 0 | N33: 0 | O33: 0 | P33: 0 | Q33: 0
A34: =IF(COUNTRY_INFO!A34=0," ",COUNTRY_INFO!A34) -> Madagascar | B34: =IF(COUNTRY_INFO!B34=0," ",COUNTRY_INFO!B34) -> Sava | C34: =IF(COUNTRY_INFO!C34=0," ",COUNTRY_INFO!C34) -> Andapa | D34: =IF(COUNTRY_INFO!$T$9:$T$1000="MDA3 (IVM)", COUNTRY_INFO!$T$9:$T$1000, " ") ->  | H34: 0 | K34: 0 | N34: 0 | O34: 0 | P34: 0 | Q34: 0
A35: =IF(COUNTRY_INFO!A35=0," ",COUNTRY_INFO!A35) -> Madagascar | B35: =IF(COUNTRY_INFO!B35=0," ",COUNTRY_INFO!B35) -> Sava | C35: =IF(COUNTRY_INFO!C35=0," ",COUNTRY_INFO!C35) -> Antalaha | D35: =IF(COUNTRY_INFO!$T$9:$T$1000="MDA3 (IVM)", COUNTRY_INFO!$T$9:$T$1000, " ") ->  | H35: 0 | K35: 0 | N35: 0 | O35: 0 | P35: 0 | Q35: 0
A36: =IF(COUNTRY_INFO!A36=0," ",COUNTRY_INFO!A36) -> Madagascar | B36: =IF(COUNTRY_INFO!B36=0," ",COUNTRY_INFO!B36) -> Sava | C36: =IF(COUNTRY_INFO!C36=0," ",COUNTRY_INFO!C36) -> Sambava | D36: =IF(COUNTRY_INFO!$T$9:$T$1000="MDA3 (IVM)", COUNTRY_INFO!$T$9:$T$1000, " ") ->  | H36: 0 | K36: 0 | N36: 0 | O36: 0 | P36: 0 | Q36: 0
A37: =IF(COUNTRY_INFO!A37=0," ",COUNTRY_INFO!A37) -> Madagascar | B37: =IF(COUNTRY_INFO!B37=0," ",COUNTRY_INFO!B37) -> Sava | C37: =IF(COUNTRY_INFO!C37=0," ",COUNTRY_INFO!C37) -> Vohémar | D37: =IF(COUNTRY_INFO!$T$9:$T$1000="MDA3 (IVM)", COUNTRY_INFO!$T$9:$T$1000, " ") ->  | H37: 0 | K37: 0 | N37: 0 | O37: 0 | P37: 0 | Q37: 0
A38: =IF(COUNTRY_INFO!A38=0," ",COUNTRY_INFO!A38) -> Madagascar | B38: =IF(COUNTRY_INFO!B38=0," ",COUNTRY_INFO!B38) -> Haute Matsiatra | C38: =IF(COUNTRY_INFO!C38=0," ",COUNTRY_INFO!C38) -> Ambalavao | D38: =IF(COUNTRY_INFO!$T$9:$T$1000="MDA3 (IVM)", COUNTRY_INFO!$T$9:$T$1000, " ") ->  | H38: 0 | K38: 0 | N38: 0 | O38: 0 | P38: 0 | Q38: 0
A39: =IF(COUNTRY_INFO!A39=0," ",COUNTRY_INFO!A39) -> Madagascar | B39: =IF(COUNTRY_INFO!B39=0," ",COUNTRY_INFO!B39) -> Haute Matsiatra | C39: =IF(COUNTRY_INFO!C39=0," ",COUNTRY_INFO!C39) -> Ambohimahasoa | D39: =IF(COUNTRY_INFO!$T$9:$T$1000="MDA3 (IVM)", COUNTRY_INFO!$T$9:$T$1000, " ") ->  | H39: 0 | K39: 0 | N39: 0 | O39: 0 | P39: 0 | Q39: 0
A40: =IF(COUNTRY_INFO!A40=0," ",COUNTRY_INFO!A40) -> Madagascar | B40: =IF(COUNTRY_INFO!B40=0," ",COUNTRY_INFO!B40) -> Haute Matsiatra | C40: =IF(COUNTRY_INFO!C40=0," ",COUNTRY_INFO!C40) -> Fianarantsoa I | D40: =IF(COUNTRY_INFO!$T$9:$T$1000="MDA3 (IVM)", COUNTRY_INFO!$T$9:$T$1000, " ") ->  | H40: 0 | K40: 0 | N40: 0 | O40: 0 | P40: 0 | Q40: 0
A41: =IF(COUNTRY_INFO!A41=0," ",COUNTRY_INFO!A41) -> Madagascar | B41: =IF(COUNTRY_INFO!B41=0," ",COUNTRY_INFO!B41) -> Haute Matsiatra | C41: =IF(COUNTRY_INFO!C41=0," ",COUNTRY_INFO!C41) -> Ikalamavony | D41: =IF(COUNTRY_INFO!$T$9:$T$1000="MDA3 (IVM)", COUNTRY_INFO!$T$9:$T$1000, " ") ->  | H41: 0 | K41: 0 | N41: 0 | O41: 0 | P41: 0 | Q41: 0
A42: =IF(COUNTRY_INFO!A42=0," ",COUNTRY_INFO!A42) -> Madagascar | B42: =IF(COUNTRY_INFO!B42=0," ",COUNTRY_INFO!B42) -> Haute Matsiatra | C42: =IF(COUNTRY_INFO!C42=0," ",COUNTRY_INFO!C42) -> Isandra | D42: =IF(COUNTRY_INFO!$T$9:$T$1000="MDA3 (IVM)", COUNTRY_INFO!$T$9:$T$1000, " ") ->  | H42: 0 | K42: 0 | N42: 0 | O42: 0 | P42: 0 | Q42: 0
A43: =IF(COUNTRY_INFO!A43=0," ",COUNTRY_INFO!A43) -> Madagascar | B43: =IF(COUNTRY_INFO!B43=0," ",COUNTRY_INFO!B43) -> Haute Matsiatra | C43: =IF(COUNTRY_INFO!C43=0," ",COUNTRY_INFO!C43) -> Vohibato | D43: =IF(COUNTRY_INFO!$T$9:$T$1000="MDA3 (IVM)", COUNTRY_INFO!$T$9:$T$1000, " ") ->  | H43: 0 | K43: 0 | N43: 0 | O43: 0 | P43: 0 | Q43: 0
A44: =IF(COUNTRY_INFO!A44=0," ",COUNTRY_INFO!A44) -> Madagascar | B44: =IF(COUNTRY_INFO!B44=0," ",COUNTRY_INFO!B44) -> Haute Matsiatra | C44: =IF(COUNTRY_INFO!C44=0," ",COUNTRY_INFO!C44) -> Lalangina | D44: =IF(COUNTRY_INFO!$T$9:$T$1000="MDA3 (IVM)", COUNTRY_INFO!$T$9:$T$1000, " ") ->  | H44: 0 | K44: 0 | N44: 0 | O44: 0 | P44: 0 | Q44: 0
A45: =IF(COUNTRY_INFO!A45=0," ",COUNTRY_INFO!A45) -> Madagascar | B45: =IF(COUNTRY_INFO!B45=0," ",COUNTRY_INFO!B45) -> Amoron'Imania | C45: =IF(COUNTRY_INFO!C45=0," ",COUNTRY_INFO!C45) -> Ambatofinandrahana | D45: =IF(COUNTRY_INFO!$T$9:$T$1000="MDA3 (IVM)", COUNTRY_INFO!$T$9:$T$1000, " ") ->  | H45: 0 | K45: 0 | N45: 0 | O45: 0 | P45: 0 | Q45: 0
A46: =IF(COUNTRY_INFO!A46=0," ",COUNTRY_INFO!A46) -> Madagascar | B46: =IF(COUNTRY_INFO!B46=0," ",COUNTRY_INFO!B46) -> Amoron'Imania | C46: =IF(COUNTRY_INFO!C46=0," ",COUNTRY_INFO!C46) -> Ambositra | D46: =IF(COUNTRY_INFO!$T$9:$T$1000="MDA3 (IVM)", COUNTRY_INFO!$T$9:$T$1000, " ") ->  | H46: 0 | K46: 0 | N46: 0 | O46: 0 | P46: 0 | Q46: 0
A47: =IF(COUNTRY_INFO!A47=0," ",COUNTRY_INFO!A47) -> Madagascar | B47: =IF(COUNTRY_INFO!B47=0," ",COUNTRY_INFO!B47) -> Amoron'Imania | C47: =IF(COUNTRY_INFO!C47=0," ",COUNTRY_INFO!C47) -> Fandriana | D47: =IF(COUNTRY_INFO!$T$9:$T$1000="MDA3 (IVM)", COUNTRY_INFO!$T$9:$T$1000, " ") ->  | H47: 0 | K47: 0 | N47: 0 | O47: 0 | P47: 0 | Q47: 0
A48: =IF(COUNTRY_INFO!A48=0," ",COUNTRY_INFO!A48) -> Madagascar | B48: =IF(COUNTRY_INFO!B48=0," ",COUNTRY_INFO!B48) -> Amoron'Imania | C48: =IF(COUNTRY_INFO!C48=0," ",COUNTRY_INFO!C48) -> Manandriana | D48: =IF(COUNTRY_INFO!$T$9:$T$1000="MDA3 (IVM)", COUNTRY_INFO!$T$9:$T$1000, " ") ->  | H48: 0 | K48: 0 | N48: 0 | O48: 0 | P48: 0 | Q48: 0
A49: =IF(COUNTRY_INFO!A49=0," ",COUNTRY_INFO!A49) -> Madagascar | B49: =IF(COUNTRY_INFO!B49=0," ",COUNTRY_INFO!B49) -> Ihorombe | C49: =IF(COUNTRY_INFO!C49=0," ",COUNTRY_INFO!C49) -> Iakora | D49: =IF(COUNTRY_INFO!$T$9:$T$1000="MDA3 (IVM)", COUNTRY_INFO!$T$9:$T$1000, " ") ->  | H49: 0 | K49: 0 | N49: 0 | O49: 0 | P49: 0 | Q49: 0
A50: =IF(COUNTRY_INFO!A50=0," ",COUNTRY_INFO!A50) -> Madagascar | B50: =IF(COUNTRY_INFO!B50=0," ",COUNTRY_INFO!B50) -> Ihorombe | C50: =IF(COUNTRY_INFO!C50=0," ",COUNTRY_INFO!C50) -> Ihosy | D50: =IF(COUNTRY_INFO!$T$9:$T$1000="MDA3 (IVM)", COUNTRY_INFO!$T$9:$T$1000, " ") ->  | H50: 0 | K50: 0 | N50: 0 | O50: 0 | P50: 0 | Q50: 0
A51: =IF(COUNTRY_INFO!A51=0," ",COUNTRY_INFO!A51) -> Madagascar | B51: =IF(COUNTRY_INFO!B51=0," ",COUNTRY_INFO!B51) -> Ihorombe | C51: =IF(COUNTRY_INFO!C51=0," ",COUNTRY_INFO!C51) -> Ivohibe | D51: =IF(COUNTRY_INFO!$T$9:$T$1000="MDA3 (IVM)", COUNTRY_INFO!$T$9:$T$1000, " ") ->  | H51: 0 | K51: 0 | N51: 0 | O51: 0 | P51: 0 | Q51: 0
A52: =IF(COUNTRY_INFO!A52=0," ",COUNTRY_INFO!A52) -> Madagascar | B52: =IF(COUNTRY_INFO!B52=0," ",COUNTRY_INFO!B52) -> Vatovavy Fitovinany | C52: =IF(COUNTRY_INFO!C52=0," ",COUNTRY_INFO!C52) -> Ifanadiana | D52: =IF(COUNTRY_INFO!$T$9:$T$1000="MDA3 (IVM)", COUNTRY_INFO!$T$9:$T$1000, " ") ->  | H52: 0 | K52: 0 | N52: 0 | O52: 0 | P52: 0 | Q52: 0
A53: =IF(COUNTRY_INFO!A53=0," ",COUNTRY_INFO!A53) -> Madagascar | B53: =IF(COUNTRY_INFO!B53=0," ",COUNTRY_INFO!B53) -> Vatovavy Fitovinany | C53: =IF(COUNTRY_INFO!C53=0," ",COUNTRY_INFO!C53) -> Ikongo | D53: =IF(COUNTRY_INFO!$T$9:$T$1000="MDA3 (IVM)", COUNTRY_INFO!$T$9:$T$1000, " ") ->  | H53: 0 | K53: 0 | N53: 0 | O53: 0 | P53: 0 | Q53: 0
A54: =IF(COUNTRY_INFO!A54=0," ",COUNTRY_INFO!A54) -> Madagascar | B54: =IF(COUNTRY_INFO!B54=0," ",COUNTRY_INFO!B54) -> Vatovavy Fitovinany | C54: =IF(COUNTRY_INFO!C54=0," ",COUNTRY_INFO!C54) -> Manakara | D54: =IF(COUNTRY_INFO!$T$9:$T$1000="MDA3 (IVM)", COUNTRY_INFO!$T$9:$T$1000, " ") ->  | H54: 0 | K54: 0 | N54: 0 | O54: 0 | P54: 0 | Q54: 0
A55: =IF(COUNTRY_INFO!A55=0," ",COUNTRY_INFO!A55) -> Madagascar | B55: =IF(COUNTRY_INFO!B55=0," ",COUNTRY_INFO!B55) -> Vatovavy Fitovinany | C55: =IF(COUNTRY_INFO!C55=0," ",COUNTRY_INFO!C55) -> Mananjary | D55: =IF(COUNTRY_INFO!$T$9:$T$1000="MDA3 (IVM)", COUNTRY_INFO!$T$9:$T$1000, " ") ->  | H55: 0 | K55: 0 | N55: 0 | O55: 0 | P55: 0 | Q55: 0
A56: =IF(COUNTRY_INFO!A56=0," ",COUNTRY_INFO!A56) -> Madagascar | B56: =IF(COUNTRY_INFO!B56=0," ",COUNTRY_INFO!B56) -> Vatovavy Fitovinany | C56: =IF(COUNTRY_INFO!C56=0," ",COUNTRY_INFO!C56) -> Nosy Varika | D56: =IF(COUNTRY_INFO!$T$9:$T$1000="MDA3 (IVM)", COUNTRY_INFO!$T$9:$T$1000, " ") ->  | H56: 0 | K56: 0 | N56: 0 | O56: 0 | P56: 0 | Q56: 0
A57: =IF(COUNTRY_INFO!A57=0," ",COUNTRY_INFO!A57) -> Madagascar | B57: =IF(COUNTRY_INFO!B57=0," ",COUNTRY_INFO!B57) -> Vatovavy Fitovinany | C57: =IF(COUNTRY_INFO!C57=0," ",COUNTRY_INFO!C57) -> Vohipeno | D57: =IF(COUNTRY_INFO!$T$9:$T$1000="MDA3 (IVM)", COUNTRY_INFO!$T$9:$T$1000, " ") ->  | H57: 0 | K57: 0 | N57: 0 | O57: 0 | P57: 0 | Q57: 0
A58: =IF(COUNTRY_INFO!A58=0," ",COUNTRY_INFO!A58) -> Madagascar | B58: =IF(COUNTRY_INFO!B58=0," ",COUNTRY_INFO!B58) -> Atsimo Atsinanana | C58: =IF(COUNTRY_INFO!C58=0," ",COUNTRY_INFO!C58) -> Befotaka | D58: =IF(COUNTRY_INFO!$T$9:$T$1000="MDA3 (IVM)", COUNTRY_INFO!$T$9:$T$1000, " ") ->  | H58: 0 | K58: 0 | N58: 0 | O58: 0 | P58: 0 | Q58: 0
A59: =IF(COUNTRY_INFO!A59=0," ",COUNTRY_INFO!A59) -> Madagascar | B59: =IF(COUNTRY_INFO!B59=0," ",COUNTRY_INFO!B59) -> Atsimo Atsinanana | C59: =IF(COUNTRY_INFO!C59=0," ",COUNTRY_INFO!C59) -> Farafangana | D59: =IF(COUNTRY_INFO!$T$9:$T$1000="MDA3 (IVM)", COUNTRY_INFO!$T$9:$T$1000, " ") ->  | H59: 0 | K59: 0 | N59: 0 | O59: 0 | P59: 0 | Q59: 0
A60: =IF(COUNTRY_INFO!A60=0," ",COUNTRY_INFO!A60) -> Madagascar | B60: =IF(COUNTRY_INFO!B60=0," ",COUNTRY_INFO!B60) -> Atsimo Atsinanana | C60: =IF(COUNTRY_INFO!C60=0," ",COUNTRY_INFO!C60) -> Midongy Atsimo | D60: =IF(COUNTRY_INFO!$T$9:$T$1000="MDA3 (IVM)", COUNTRY_INFO!$T$9:$T$1000, " ") ->  | H60: 0 | K60: 0 | N60: 0 | O60: 0 | P60: 0 | Q60: 0
A61: =IF(COUNTRY_INFO!A61=0," ",COUNTRY_INFO!A61) -> Madagascar | B61: =IF(COUNTRY_INFO!B61=0," ",COUNTRY_INFO!B61) -> Atsimo Atsinanana | C61: =IF(COUNTRY_INFO!C61=0," ",COUNTRY_INFO!C61) -> Vangaindrano | D61: =IF(COUNTRY_INFO!$T$9:$T$1000="MDA3 (IVM)", COUNTRY_INFO!$T$9:$T$1000, " ") ->  | H61: 0 | K61: 0 | N61: 0 | O61: 0 | P61: 0 | Q61: 0
A62: =IF(COUNTRY_INFO!A62=0," ",COUNTRY_INFO!A62) -> Madagascar | B62: =IF(COUNTRY_INFO!B62=0," ",COUNTRY_INFO!B62) -> Atsimo Atsinanana | C62: =IF(COUNTRY_INFO!C62=0," ",COUNTRY_INFO!C62) -> Vondrozo | D62: =IF(COUNTRY_INFO!$T$9:$T$1000="MDA3 (IVM)", COUNTRY_INFO!$T$9:$T$1000, " ") ->  | H62: 0 | K62: 0 | N62: 0 | O62: 0 | P62: 0 | Q62: 0
A63: =IF(COUNTRY_INFO!A63=0," ",COUNTRY_INFO!A63) -> Madagascar | B63: =IF(COUNTRY_INFO!B63=0," ",COUNTRY_INFO!B63) -> Boeny | C63: =IF(COUNTRY_INFO!C63=0," ",COUNTRY_INFO!C63) -> Ambato Boeni | D63: =IF(COUNTRY_INFO!$T$9:$T$1000="MDA3 (IVM)", COUNTRY_INFO!$T$9:$T$1000, " ") ->  | H63: 0 | K63: 0 | N63: 0 | O63: 0 | P63: 0 | Q63: 0
A64: =IF(COUNTRY_INFO!A64=0," ",COUNTRY_INFO!A64) -> Madagascar | B64: =IF(COUNTRY_INFO!B64=0," ",COUNTRY_INFO!B64) -> Boeny | C64: =IF(COUNTRY_INFO!C64=0," ",COUNTRY_INFO!C64) -> Mahajanga I | D64: =IF(COUNTRY_INFO!$T$9:$T$1000="MDA3 (IVM)", COUNTRY_INFO!$T$9:$T$1000, " ") ->  | H64: 0 | K64: 0 | N64: 0 | O64: 0 | P64: 0 | Q64: 0
A65: =IF(COUNTRY_INFO!A65=0," ",COUNTRY_INFO!A65) -> Madagascar | B65: =IF(COUNTRY_INFO!B65=0," ",COUNTRY_INFO!B65) -> Boeny | C65: =IF(COUNTRY_INFO!C65=0," ",COUNTRY_INFO!C65) -> Mahajanga II | D65: =IF(COUNTRY_INFO!$T$9:$T$1000="MDA3 (IVM)", COUNTRY_INFO!$T$9:$T$1000, " ") ->  | H65: 0 | K65: 0 | N65: 0 | O65: 0 | P65: 0 | Q65: 0
A66: =IF(COUNTRY_INFO!A66=0," ",COUNTRY_INFO!A66) -> Madagascar | B66: =IF(COUNTRY_INFO!B66=0," ",COUNTRY_INFO!B66) -> Boeny | C66: =IF(COUNTRY_INFO!C66=0," ",COUNTRY_INFO!C66) -> Marovoay | D66: =IF(COUNTRY_INFO!$T$9:$T$1000="MDA3 (IVM)", COUNTRY_INFO!$T$9:$T$1000, " ") ->  | H66: 0 | K66: 0 | N66: 0 | O66: 0 | P66: 0 | Q66: 0
A67: =IF(COUNTRY_INFO!A67=0," ",COUNTRY_INFO!A67) -> Madagascar | B67: =IF(COUNTRY_INFO!B67=0," ",COUNTRY_INFO!B67) -> Boeny | C67: =IF(COUNTRY_INFO!C67=0," ",COUNTRY_INFO!C67) -> Mitsinjo | D67: =IF(COUNTRY_INFO!$T$9:$T$1000="MDA3 (IVM)", COUNTRY_INFO!$T$9:$T$1000, " ") ->  | H67: 0 | K67: 0 | N67: 0 | O67: 0 | P67: 0 | Q67: 0
A68: =IF(COUNTRY_INFO!A68=0," ",COUNTRY_INFO!A68) -> Madagascar | B68: =IF(COUNTRY_INFO!B68=0," ",COUNTRY_INFO!B68) -> Boeny | C68: =IF(COUNTRY_INFO!C68=0," ",COUNTRY_INFO!C68) -> Soalala | D68: =IF(COUNTRY_INFO!$T$9:$T$1000="MDA3 (IVM)", COUNTRY_INFO!$T$9:$T$1000, " ") ->  | H68: 0 | K68: 0 | N68: 0 | O68: 0 | P68: 0 | Q68: 0
A69: =IF(COUNTRY_INFO!A69=0," ",COUNTRY_INFO!A69) -> Madagascar | B69: =IF(COUNTRY_INFO!B69=0," ",COUNTRY_INFO!B69) -> Betsiboka | C69: =IF(COUNTRY_INFO!C69=0," ",COUNTRY_INFO!C69) -> Kandreho | D69: =IF(COUNTRY_INFO!$T$9:$T$1000="MDA3 (IVM)", COUNTRY_INFO!$T$9:$T$1000, " ") ->  | H69: 0 | K69: 0 | N69: 0 | O69: 0 | P69: 0 | Q69: 0
A70: =IF(COUNTRY_INFO!A70=0," ",COUNTRY_INFO!A70) -> Madagascar | B70: =IF(COUNTRY_INFO!B70=0," ",COUNTRY_INFO!B70) -> Betsiboka | C70: =IF(COUNTRY_INFO!C70=0," ",COUNTRY_INFO!C70) -> Maevatanana | D70: =IF(COUNTRY_INFO!$T$9:$T$1000="MDA3 (IVM)", COUNTRY_INFO!$T$9:$T$1000, " ") ->  | H70: 0 | K70: 0 | N70: 0 | O70: 0 | P70: 0 | Q70: 0
A71: =IF(COUNTRY_INFO!A71=0," ",COUNTRY_INFO!A71) -> Madagascar | B71: =IF(COUNTRY_INFO!B71=0," ",COUNTRY_INFO!B71) -> Betsiboka | C71: =IF(COUNTRY_INFO!C71=0," ",COUNTRY_INFO!C71) -> Tsaratanana | D71: =IF(COUNTRY_INFO!$T$9:$T$1000="MDA3 (IVM)", COUNTRY_INFO!$T$9:$T$1000, " ") ->  | H71: 0 | K71: 0 | N71: 0 | O71: 0 | P71: 0 | Q71: 0
A72: =IF(COUNTRY_INFO!A72=0," ",COUNTRY_INFO!A72) -> Madagascar | B72: =IF(COUNTRY_INFO!B72=0," ",COUNTRY_INFO!B72) -> Melaky | C72: =IF(COUNTRY_INFO!C72=0," ",COUNTRY_INFO!C72) -> Ambatomainty | D72: =IF(COUNTRY_INFO!$T$9:$T$1000="MDA3 (IVM)", COUNTRY_INFO!$T$9:$T$1000, " ") ->  | H72: 0 | K72: 0 | N72: 0 | O72: 0 | P72: 0 | Q72: 0
A73: =IF(COUNTRY_INFO!A73=0," ",COUNTRY_INFO!A73) -> Madagascar | B73: =IF(COUNTRY_INFO!B73=0," ",COUNTRY_INFO!B73) -> Melaky | C73: =IF(COUNTRY_INFO!C73=0," ",COUNTRY_INFO!C73) -> Antsalova | D73: =IF(COUNTRY_INFO!$T$9:$T$1000="MDA3 (IVM)", COUNTRY_INFO!$T$9:$T$1000, " ") ->  | H73: 0 | K73: 0 | N73: 0 | O73: 0 | P73: 0 | Q73: 0
A74: =IF(COUNTRY_INFO!A74=0," ",COUNTRY_INFO!A74) -> Madagascar | B74: =IF(COUNTRY_INFO!B74=0," ",COUNTRY_INFO!B74) -> Melaky | C74: =IF(COUNTRY_INFO!C74=0," ",COUNTRY_INFO!C74) -> Besalampy | D74: =IF(COUNTRY_INFO!$T$9:$T$1000="MDA3 (IVM)", COUNTRY_INFO!$T$9:$T$1000, " ") ->  | H74: =SUM(F74:G74) -> 0 | K74: =SUM(I74:J74) -> 0 | N74: =SUM(L74:M74) -> 0 | O74: =MAX(I74,L74) -> 0 | P74: =MAX(J74,M74) -> 0 | Q74: =SUM(O74:P74) -> 0 | R74: =IF(F74<>0, IF(MAX(I74,L74)/F74*100=0, "-", MAX(I74,L74)/F74*100), " ") ->  | S74: =IF(G74<>0, IF(MAX(J74,M74)/G74*100=0, "-", MAX(J74,M74)/G74*100), " ") ->  | T74: =IF(H74<>0, IF((MAX(I74,L74)+MAX(J74,M74))/H74*100=0, "-",(MAX(I74,L74)+MAX(J74,M74))/H74*100), " ") -> 
A75: =IF(COUNTRY_INFO!A75=0," ",COUNTRY_INFO!A75) -> Madagascar | B75: =IF(COUNTRY_INFO!B75=0," ",COUNTRY_INFO!B75) -> Melaky | C75: =IF(COUNTRY_INFO!C75=0," ",COUNTRY_INFO!C75) -> Maintirano | D75: =IF(COUNTRY_INFO!$T$9:$T$1000="MDA3 (IVM)", COUNTRY_INFO!$T$9:$T$1000, " ") ->  | H75: 0 | K75: 0 | N75: 0 | O75: 0 | P75: 0 | Q75: 0
A76: =IF(COUNTRY_INFO!A76=0," ",COUNTRY_INFO!A76) -> Madagascar | B76: =IF(COUNTRY_INFO!B76=0," ",COUNTRY_INFO!B76) -> Melaky | C76: =IF(COUNTRY_INFO!C76=0," ",COUNTRY_INFO!C76) -> Morafenobe | D76: =IF(COUNTRY_INFO!$T$9:$T$1000="MDA3 (IVM)", COUNTRY_INFO!$T$9:$T$1000, " ") ->  | H76: 0 | K76: 0 | N76: 0 | O76: 0 | P76: 0 | Q76: 0
A77: =IF(COUNTRY_INFO!A77=0," ",COUNTRY_INFO!A77) -> Madagascar | B77: =IF(COUNTRY_INFO!B77=0," ",COUNTRY_INFO!B77) -> Sofia | C77: =IF(COUNTRY_INFO!C77=0," ",COUNTRY_INFO!C77) -> Analalava | D77: =IF(COUNTRY_INFO!$T$9:$T$1000="MDA3 (IVM)", COUNTRY_INFO!$T$9:$T$1000, " ") ->  | H77: 0 | K77: 0 | N77: 0 | O77: 0 | P77: 0 | Q77: 0
A78: =IF(COUNTRY_INFO!A78=0," ",COUNTRY_INFO!A78) -> Madagascar | B78: =IF(COUNTRY_INFO!B78=0," ",COUNTRY_INFO!B78) -> Sofia | C78: =IF(COUNTRY_INFO!C78=0," ",COUNTRY_INFO!C78) -> Antsohihy | D78: =IF(COUNTRY_INFO!$T$9:$T$1000="MDA3 (IVM)", COUNTRY_INFO!$T$9:$T$1000, " ") ->  | H78: 0 | K78: 0 | N78: 0 | O78: 0 | P78: 0 | Q78: 0
A79: =IF(COUNTRY_INFO!A79=0," ",COUNTRY_INFO!A79) -> Madagascar | B79: =IF(COUNTRY_INFO!B79=0," ",COUNTRY_INFO!B79) -> Sofia | C79: =IF(COUNTRY_INFO!C79=0," ",COUNTRY_INFO!C79) -> Bealanana | D79: =IF(COUNTRY_INFO!$T$9:$T$1000="MDA3 (IVM)", COUNTRY_INFO!$T$9:$T$1000, " ") ->  | H79: 0 | K79: 0 | N79: 0 | O79: 0 | P79: 0 | Q79: 0
A80: =IF(COUNTRY_INFO!A80=0," ",COUNTRY_INFO!A80) -> Madagascar | B80: =IF(COUNTRY_INFO!B80=0," ",COUNTRY_INFO!B80) -> Sofia | C80: =IF(COUNTRY_INFO!C80=0," ",COUNTRY_INFO!C80) -> Befandriana Nord | D80: =IF(COUNTRY_INFO!$T$9:$T$1000="MDA3 (IVM)", COUNTRY_INFO!$T$9:$T$1000, " ") ->  | H80: 0 | K80: 0 | N80: 0 | O80: 0 | P80: 0 | Q80: 0
A81: =IF(COUNTRY_INFO!A81=0," ",COUNTRY_INFO!A81) -> Madagascar | B81: =IF(COUNTRY_INFO!B81=0," ",COUNTRY_INFO!B81) -> Sofia | C81: =IF(COUNTRY_INFO!C81=0," ",COUNTRY_INFO!C81) -> Mampikony | D81: =IF(COUNTRY_INFO!$T$9:$T$1000="MDA3 (IVM)", COUNTRY_INFO!$T$9:$T$1000, " ") ->  | H81: 0 | K81: 0 | N81: 0 | O81: 0 | P81: 0 | Q81: 0
A82: =IF(COUNTRY_INFO!A82=0," ",COUNTRY_INFO!A82) -> Madagascar | B82: =IF(COUNTRY_INFO!B82=0," ",COUNTRY_INFO!B82) -> Sofia | C82: =IF(COUNTRY_INFO!C82=0," ",COUNTRY_INFO!C82) -> Mandritsara | D82: =IF(COUNTRY_INFO!$T$9:$T$1000="MDA3 (IVM)", COUNTRY_INFO!$T$9:$T$1000, " ") ->  | H82: 0 | K82: 0 | N82: 0 | O82: 0 | P82: 0 | Q82: 0
A83: =IF(COUNTRY_INFO!A83=0," ",COUNTRY_INFO!A83) -> Madagascar | B83: =IF(COUNTRY_INFO!B83=0," ",COUNTRY_INFO!B83) -> Sofia | C83: =IF(COUNTRY_INFO!C83=0," ",COUNTRY_INFO!C83) -> Port Bergé | D83: =IF(COUNTRY_INFO!$T$9:$T$1000="MDA3 (IVM)", COUNTRY_INFO!$T$9:$T$1000, " ") ->  | H83: 0 | K83: 0 | N83: 0 | O83: 0 | P83: 0 | Q83: 0
A84: =IF(COUNTRY_INFO!A84=0," ",COUNTRY_INFO!A84) -> Madagascar | B84: =IF(COUNTRY_INFO!B84=0," ",COUNTRY_INFO!B84) -> Atsinanana | C84: =IF(COUNTRY_INFO!C84=0," ",COUNTRY_INFO!C84) -> Antanambao Manampontsy | D84: =IF(COUNTRY_INFO!$T$9:$T$1000="MDA3 (IVM)", COUNTRY_INFO!$T$9:$T$1000, " ") ->  | H84: 0 | K84: 0 | N84: 0 | O84: 0 | P84: 0 | Q84: 0
A85: =IF(COUNTRY_INFO!A85=0," ",COUNTRY_INFO!A85) -> Madagascar | B85: =IF(COUNTRY_INFO!B85=0," ",COUNTRY_INFO!B85) -> Atsinanana | C85: =IF(COUNTRY_INFO!C85=0," ",COUNTRY_INFO!C85) -> Brickaville | D85: =IF(COUNTRY_INFO!$T$9:$T$1000="MDA3 (IVM)", COUNTRY_INFO!$T$9:$T$1000, " ") ->  | H85: 0 | K85: 0 | N85: 0 | O85: 0 | P85: 0 | Q85: 0
A86: =IF(COUNTRY_INFO!A86=0," ",COUNTRY_INFO!A86) -> Madagascar | B86: =IF(COUNTRY_INFO!B86=0," ",COUNTRY_INFO!B86) -> Atsinanana | C86: =IF(COUNTRY_INFO!C86=0," ",COUNTRY_INFO!C86) -> Mahanoro | D86: =IF(COUNTRY_INFO!$T$9:$T$1000="MDA3 (IVM)", COUNTRY_INFO!$T$9:$T$1000, " ") ->  | H86: 0 | K86: 0 | N86: 0 | O86: 0 | P86: 0 | Q86: 0
A87: =IF(COUNTRY_INFO!A87=0," ",COUNTRY_INFO!A87) -> Madagascar | B87: =IF(COUNTRY_INFO!B87=0," ",COUNTRY_INFO!B87) -> Atsinanana | C87: =IF(COUNTRY_INFO!C87=0," ",COUNTRY_INFO!C87) -> Marolambo | D87: =IF(COUNTRY_INFO!$T$9:$T$1000="MDA3 (IVM)", COUNTRY_INFO!$T$9:$T$1000, " ") ->  | H87: 0 | K87: 0 | N87: 0 | O87: 0 | P87: 0 | Q87: 0
A88: =IF(COUNTRY_INFO!A88=0," ",COUNTRY_INFO!A88) -> Madagascar | B88: =IF(COUNTRY_INFO!B88=0," ",COUNTRY_INFO!B88) -> Atsinanana | C88: =IF(COUNTRY_INFO!C88=0," ",COUNTRY_INFO!C88) -> Toamasina I | D88: =IF(COUNTRY_INFO!$T$9:$T$1000="MDA3 (IVM)", COUNTRY_INFO!$T$9:$T$1000, " ") ->  | H88: 0 | K88: 0 | N88: 0 | O88: 0 | P88: 0 | Q88: 0
A89: =IF(COUNTRY_INFO!A89=0," ",COUNTRY_INFO!A89) -> Madagascar | B89: =IF(COUNTRY_INFO!B89=0," ",COUNTRY_INFO!B89) -> Atsinanana | C89: =IF(COUNTRY_INFO!C89=0," ",COUNTRY_INFO!C89) -> Toamasina II | D89: =IF(COUNTRY_INFO!$T$9:$T$1000="MDA3 (IVM)", COUNTRY_INFO!$T$9:$T$1000, " ") ->  | H89: 0 | K89: 0 | N89: 0 | O89: 0 | P89: 0 | Q89: 0
A90: =IF(COUNTRY_INFO!A90=0," ",COUNTRY_INFO!A90) -> Madagascar | B90: =IF(COUNTRY_INFO!B90=0," ",COUNTRY_INFO!B90) -> Atsinanana | C90: =IF(COUNTRY_INFO!C90=0," ",COUNTRY_INFO!C90) -> Vatomandry | D90: =IF(COUNTRY_INFO!$T$9:$T$1000="MDA3 (IVM)", COUNTRY_INFO!$T$9:$T$1000, " ") ->  | H90: 0 | K90: 0 | N90: 0 | O90: 0 | P90: 0 | Q90: 0
A91: =IF(COUNTRY_INFO!A91=0," ",COUNTRY_INFO!A91) -> Madagascar | B91: =IF(COUNTRY_INFO!B91=0," ",COUNTRY_INFO!B91) -> Alaotra Mangoro | C91: =IF(COUNTRY_INFO!C91=0," ",COUNTRY_INFO!C91) -> Ambatondrazaka | D91: =IF(COUNTRY_INFO!$T$9:$T$1000="MDA3 (IVM)", COUNTRY_INFO!$T$9:$T$1000, " ") ->  | H91: 0 | K91: 0 | N91: 0 | O91: 0 | P91: 0 | Q91: 0
A92: =IF(COUNTRY_INFO!A92=0," ",COUNTRY_INFO!A92) -> Madagascar | B92: =IF(COUNTRY_INFO!B92=0," ",COUNTRY_INFO!B92) -> Alaotra Mangoro | C92: =IF(COUNTRY_INFO!C92=0," ",COUNTRY_INFO!C92) -> Amparafaravola | D92: =IF(COUNTRY_INFO!$T$9:$T$1000="MDA3 (IVM)", COUNTRY_INFO!$T$9:$T$1000, " ") ->  | H92: 0 | K92: 0 | N92: 0 | O92: 0 | P92: 0 | Q92: 0
A93: =IF(COUNTRY_INFO!A93=0," ",COUNTRY_INFO!A93) -> Madagascar | B93: =IF(COUNTRY_INFO!B93=0," ",COUNTRY_INFO!B93) -> Alaotra Mangoro | C93: =IF(COUNTRY_INFO!C93=0," ",COUNTRY_INFO!C93) -> Andilamena | D93: =IF(COUNTRY_INFO!$T$9:$T$1000="MDA3 (IVM)", COUNTRY_INFO!$T$9:$T$1000, " ") ->  | H93: 0 | K93: 0 | N93: 0 | O93: 0 | P93: 0 | Q93: 0
A94: =IF(COUNTRY_INFO!A94=0," ",COUNTRY_INFO!A94) -> Madagascar | B94: =IF(COUNTRY_INFO!B94=0," ",COUNTRY_INFO!B94) -> Alaotra Mangoro | C94: =IF(COUNTRY_INFO!C94=0," ",COUNTRY_INFO!C94) -> Anosibe An'Ala | D94: =IF(COUNTRY_INFO!$T$9:$T$1000="MDA3 (IVM)", COUNTRY_INFO!$T$9:$T$1000, " ") ->  | H94: 0 | K94: 0 | N94: 0 | O94: 0 | P94: 0 | Q94: 0
A95: =IF(COUNTRY_INFO!A95=0," ",COUNTRY_INFO!A95) -> Madagascar | B95: =IF(COUNTRY_INFO!B95=0," ",COUNTRY_INFO!B95) -> Alaotra Mangoro | C95: =IF(COUNTRY_INFO!C95=0," ",COUNTRY_INFO!C95) -> Moramanga | D95: =IF(COUNTRY_INFO!$T$9:$T$1000="MDA3 (IVM)", COUNTRY_INFO!$T$9:$T$1000, " ") ->  | H95: 0 | K95: 0 | N95: 0 | O95: 0 | P95: 0 | Q95: 0
A96: =IF(COUNTRY_INFO!A96=0," ",COUNTRY_INFO!A96) -> Madagascar | B96: =IF(COUNTRY_INFO!B96=0," ",COUNTRY_INFO!B96) -> Analanjirofo | C96: =IF(COUNTRY_INFO!C96=0," ",COUNTRY_INFO!C96) -> Fénérive Est | D96: =IF(COUNTRY_INFO!$T$9:$T$1000="MDA3 (IVM)", COUNTRY_INFO!$T$9:$T$1000, " ") ->  | H96: 0 | K96: 0 | N96: 0 | O96: 0 | P96: 0 | Q96: 0
A97: =IF(COUNTRY_INFO!A97=0," ",COUNTRY_INFO!A97) -> Madagascar | B97: =IF(COUNTRY_INFO!B97=0," ",COUNTRY_INFO!B97) -> Analanjirofo | C97: =IF(COUNTRY_INFO!C97=0," ",COUNTRY_INFO!C97) -> Mananara Nord | D97: =IF(COUNTRY_INFO!$T$9:$T$1000="MDA3 (IVM)", COUNTRY_INFO!$T$9:$T$1000, " ") ->  | H97: 0 | K97: 0 | N97: 0 | O97: 0 | P97: 0 | Q97: 0
A98: =IF(COUNTRY_INFO!A98=0," ",COUNTRY_INFO!A98) -> Madagascar | B98: =IF(COUNTRY_INFO!B98=0," ",COUNTRY_INFO!B98) -> Analanjirofo | C98: =IF(COUNTRY_INFO!C98=0," ",COUNTRY_INFO!C98) -> Maroantsetra | D98: =IF(COUNTRY_INFO!$T$9:$T$1000="MDA3 (IVM)", COUNTRY_INFO!$T$9:$T$1000, " ") ->  | H98: 0 | K98: 0 | N98: 0 | O98: 0 | P98: 0 | Q98: 0
A99: =IF(COUNTRY_INFO!A99=0," ",COUNTRY_INFO!A99) -> Madagascar | B99: =IF(COUNTRY_INFO!B99=0," ",COUNTRY_INFO!B99) -> Analanjirofo | C99: =IF(COUNTRY_INFO!C99=0," ",COUNTRY_INFO!C99) -> Sainte-Marie | D99: =IF(COUNTRY_INFO!$T$9:$T$1000="MDA3 (IVM)", COUNTRY_INFO!$T$9:$T$1000, " ") ->  | H99: 0 | K99: 0 | N99: 0 | O99: 0 | P99: 0 | Q99: 0
A100: =IF(COUNTRY_INFO!A100=0," ",COUNTRY_INFO!A100) -> Madagascar | B100: =IF(COUNTRY_INFO!B100=0," ",COUNTRY_INFO!B100) -> Analanjirofo | C100: =IF(COUNTRY_INFO!C100=0," ",COUNTRY_INFO!C100) -> Soanierana Ivongo | D100: =IF(COUNTRY_INFO!$T$9:$T$1000="MDA3 (IVM)", COUNTRY_INFO!$T$9:$T$1000, " ") ->  | H100: 0 | K100: 0 | N100: 0 | O100: 0 | P100: 0 | Q100: 0
A101: =IF(COUNTRY_INFO!A101=0," ",COUNTRY_INFO!A101) -> Madagascar | B101: =IF(COUNTRY_INFO!B101=0," ",COUNTRY_INFO!B101) -> Analanjirofo | C101: =IF(COUNTRY_INFO!C101=0," ",COUNTRY_INFO!C101) -> Vavatenina | D101: =IF(COUNTRY_INFO!$T$9:$T$1000="MDA3 (IVM)", COUNTRY_INFO!$T$9:$T$1000, " ") ->  | H101: 0 | K101: 0 | N101: 0 | O101: 0 | P101: 0 | Q101: 0
A102: =IF(COUNTRY_INFO!A102=0," ",COUNTRY_INFO!A102) -> Madagascar | B102: =IF(COUNTRY_INFO!B102=0," ",COUNTRY_INFO!B102) -> Atsimo Andrefana | C102: =IF(COUNTRY_INFO!C102=0," ",COUNTRY_INFO!C102) -> Ampanihy Ouest | D102: =IF(COUNTRY_INFO!$T$9:$T$1000="MDA3 (IVM)", COUNTRY_INFO!$T$9:$T$1000, " ") ->  | H102: 0 | K102: 0 | N102: 0 | O102: 0 | P102: 0 | Q102: 0
A103: =IF(COUNTRY_INFO!A103=0," ",COUNTRY_INFO!A103) -> Madagascar | B103: =IF(COUNTRY_INFO!B103=0," ",COUNTRY_INFO!B103) -> Atsimo Andrefana | C103: =IF(COUNTRY_INFO!C103=0," ",COUNTRY_INFO!C103) -> Ankazoabo | D103: =IF(COUNTRY_INFO!$T$9:$T$1000="MDA3 (IVM)", COUNTRY_INFO!$T$9:$T$1000, " ") ->  | H103: 0 | K103: 0 | N103: 0 | O103: 0 | P103: 0 | Q103: 0
A104: =IF(COUNTRY_INFO!A104=0," ",COUNTRY_INFO!A104) -> Madagascar | B104: =IF(COUNTRY_INFO!B104=0," ",COUNTRY_INFO!B104) -> Atsimo Andrefana | C104: =IF(COUNTRY_INFO!C104=0," ",COUNTRY_INFO!C104) -> Benenitra | D104: =IF(COUNTRY_INFO!$T$9:$T$1000="MDA3 (IVM)", COUNTRY_INFO!$T$9:$T$1000, " ") ->  | H104: 0 | K104: 0 | N104: 0 | O104: 0 | P104: 0 | Q104: 0
A105: =IF(COUNTRY_INFO!A105=0," ",COUNTRY_INFO!A105) -> Madagascar | B105: =IF(COUNTRY_INFO!B105=0," ",COUNTRY_INFO!B105) -> Atsimo Andrefana | C105: =IF(COUNTRY_INFO!C105=0," ",COUNTRY_INFO!C105) -> Beroroha | D105: =IF(COUNTRY_INFO!$T$9:$T$1000="MDA3 (IVM)", COUNTRY_INFO!$T$9:$T$1000, " ") ->  | H105: 0 | K105: 0 | N105: 0 | O105: 0 | P105: 0 | Q105: 0
A106: =IF(COUNTRY_INFO!A106=0," ",COUNTRY_INFO!A106) -> Madagascar | B106: =IF(COUNTRY_INFO!B106=0," ",COUNTRY_INFO!B106) -> Atsimo Andrefana | C106: =IF(COUNTRY_INFO!C106=0," ",COUNTRY_INFO!C106) -> Betioky Atsimo | D106: =IF(COUNTRY_INFO!$T$9:$T$1000="MDA3 (IVM)", COUNTRY_INFO!$T$9:$T$1000, " ") ->  | H106: 0 | K106: 0 | N106: 0 | O106: 0 | P106: 0 | Q106: 0
A107: =IF(COUNTRY_INFO!A107=0," ",COUNTRY_INFO!A107) -> Madagascar | B107: =IF(COUNTRY_INFO!B107=0," ",COUNTRY_INFO!B107) -> Atsimo Andrefana | C107: =IF(COUNTRY_INFO!C107=0," ",COUNTRY_INFO!C107) -> Morombe | D107: =IF(COUNTRY_INFO!$T$9:$T$1000="MDA3 (IVM)", COUNTRY_INFO!$T$9:$T$1000, " ") ->  | H107: 0 | K107: 0 | N107: 0 | O107: 0 | P107: 0 | Q107: 0
A108: =IF(COUNTRY_INFO!A108=0," ",COUNTRY_INFO!A108) -> Madagascar | B108: =IF(COUNTRY_INFO!B108=0," ",COUNTRY_INFO!B108) -> Atsimo Andrefana | C108: =IF(COUNTRY_INFO!C108=0," ",COUNTRY_INFO!C108) -> Sakaraha | D108: =IF(COUNTRY_INFO!$T$9:$T$1000="MDA3 (IVM)", COUNTRY_INFO!$T$9:$T$1000, " ") ->  | H108: 0 | K108: 0 | N108: 0 | O108: 0 | P108: 0 | Q108: 0
A109: =IF(COUNTRY_INFO!A109=0," ",COUNTRY_INFO!A109) -> Madagascar | B109: =IF(COUNTRY_INFO!B109=0," ",COUNTRY_INFO!B109) -> Atsimo Andrefana | C109: =IF(COUNTRY_INFO!C109=0," ",COUNTRY_INFO!C109) -> Toliara I | D109: =IF(COUNTRY_INFO!$T$9:$T$1000="MDA3 (IVM)", COUNTRY_INFO!$T$9:$T$1000, " ") ->  | H109: 0 | K109: 0 | N109: 0 | O109: 0 | P109: 0 | Q109: 0
A110: =IF(COUNTRY_INFO!A110=0," ",COUNTRY_INFO!A110) -> Madagascar | B110: =IF(COUNTRY_INFO!B110=0," ",COUNTRY_INFO!B110) -> Atsimo Andrefana | C110: =IF(COUNTRY_INFO!C110=0," ",COUNTRY_INFO!C110) -> Toliara II | D110: =IF(COUNTRY_INFO!$T$9:$T$1000="MDA3 (IVM)", COUNTRY_INFO!$T$9:$T$1000, " ") ->  | H110: 0 | K110: 0 | N110: 0 | O110: 0 | P110: 0 | Q110: 0
A111: =IF(COUNTRY_INFO!A111=0," ",COUNTRY_INFO!A111) -> Madagascar | B111: =IF(COUNTRY_INFO!B111=0," ",COUNTRY_INFO!B111) -> Menabe | C111: =IF(COUNTRY_INFO!C111=0," ",COUNTRY_INFO!C111) -> Belo Tsiribihina | D111: =IF(COUNTRY_INFO!$T$9:$T$1000="MDA3 (IVM)", COUNTRY_INFO!$T$9:$T$1000, " ") ->  | H111: 0 | K111: 0 | N111: 0 | O111: 0 | P111: 0 | Q111: 0
A112: =IF(COUNTRY_INFO!A112=0," ",COUNTRY_INFO!A112) -> Madagascar | B112: =IF(COUNTRY_INFO!B112=0," ",COUNTRY_INFO!B112) -> Menabe | C112: =IF(COUNTRY_INFO!C112=0," ",COUNTRY_INFO!C112) -> Mahabo | D112: =IF(COUNTRY_INFO!$T$9:$T$1000="MDA3 (IVM)", COUNTRY_INFO!$T$9:$T$1000, " ") ->  | H112: 0 | K112: 0 | N112: 0 | O112: 0 | P112: 0 | Q112: 0
A113: =IF(COUNTRY_INFO!A113=0," ",COUNTRY_INFO!A113) -> Madagascar | B113: =IF(COUNTRY_INFO!B113=0," ",COUNTRY_INFO!B113) -> Menabe | C113: =IF(COUNTRY_INFO!C113=0," ",COUNTRY_INFO!C113) -> Manja | D113: =IF(COUNTRY_INFO!$T$9:$T$1000="MDA3 (IVM)", COUNTRY_INFO!$T$9:$T$1000, " ") ->  | H113: 0 | K113: 0 | N113: 0 | O113: 0 | P113: 0 | Q113: 0
A114: =IF(COUNTRY_INFO!A114=0," ",COUNTRY_INFO!A114) -> Madagascar | B114: =IF(COUNTRY_INFO!B114=0," ",COUNTRY_INFO!B114) -> Menabe | C114: =IF(COUNTRY_INFO!C114=0," ",COUNTRY_INFO!C114) -> Miandrivazo | D114: =IF(COUNTRY_INFO!$T$9:$T$1000="MDA3 (IVM)", COUNTRY_INFO!$T$9:$T$1000, " ") ->  | H114: 0 | K114: 0 | N114: 0 | O114: 0 | P114: 0 | Q114: 0
A115: =IF(COUNTRY_INFO!A115=0," ",COUNTRY_INFO!A115) -> Madagascar | B115: =IF(COUNTRY_INFO!B115=0," ",COUNTRY_INFO!B115) -> Menabe | C115: =IF(COUNTRY_INFO!C115=0," ",COUNTRY_INFO!C115) -> Morondava | D115: =IF(COUNTRY_INFO!$T$9:$T$1000="MDA3 (IVM)", COUNTRY_INFO!$T$9:$T$1000, " ") ->  | H115: 0 | K115: 0 | N115: 0 | O115: 0 | P115: 0 | Q115: 0
A116: =IF(COUNTRY_INFO!A116=0," ",COUNTRY_INFO!A116) -> Madagascar | B116: =IF(COUNTRY_INFO!B116=0," ",COUNTRY_INFO!B116) -> Androy | C116: =IF(COUNTRY_INFO!C116=0," ",COUNTRY_INFO!C116) -> Ambovombe Androy | D116: =IF(COUNTRY_INFO!$T$9:$T$1000="MDA3 (IVM)", COUNTRY_INFO!$T$9:$T$1000, " ") ->  | H116: 0 | K116: 0 | N116: 0 | O116: 0 | P116: 0 | Q116: 0
A117: =IF(COUNTRY_INFO!A117=0," ",COUNTRY_INFO!A117) -> Madagascar | B117: =IF(COUNTRY_INFO!B117=0," ",COUNTRY_INFO!B117) -> Androy | C117: =IF(COUNTRY_INFO!C117=0," ",COUNTRY_INFO!C117) -> Bekily | D117: =IF(COUNTRY_INFO!$T$9:$T$1000="MDA3 (IVM)", COUNTRY_INFO!$T$9:$T$1000, " ") ->  | H117: 0 | K117: 0 | N117: 0 | O117: 0 | P117: 0 | Q117: 0
A118: =IF(COUNTRY_INFO!A118=0," ",COUNTRY_INFO!A118) -> Madagascar | B118: =IF(COUNTRY_INFO!B118=0," ",COUNTRY_INFO!B118) -> Androy | C118: =IF(COUNTRY_INFO!C118=0," ",COUNTRY_INFO!C118) -> Beloha Androy | D118: =IF(COUNTRY_INFO!$T$9:$T$1000="MDA3 (IVM)", COUNTRY_INFO!$T$9:$T$1000, " ") ->  | H118: 0 | K118: 0 | N118: 0 | O118: 0 | P118: 0 | Q118: 0
A119: =IF(COUNTRY_INFO!A119=0," ",COUNTRY_INFO!A119) -> Madagascar | B119: =IF(COUNTRY_INFO!B119=0," ",COUNTRY_INFO!B119) -> Androy | C119: =IF(COUNTRY_INFO!C119=0," ",COUNTRY_INFO!C119) -> Tsihombe | D119: =IF(COUNTRY_INFO!$T$9:$T$1000="MDA3 (IVM)", COUNTRY_INFO!$T$9:$T$1000, " ") ->  | H119: 0 | K119: 0 | N119: 0 | O119: 0 | P119: 0 | Q119: 0
A120: =IF(COUNTRY_INFO!A120=0," ",COUNTRY_INFO!A120) -> Madagascar | B120: =IF(COUNTRY_INFO!B120=0," ",COUNTRY_INFO!B120) -> Anosy | C120: =IF(COUNTRY_INFO!C120=0," ",COUNTRY_INFO!C120) -> Amboasary Atsimo | D120: =IF(COUNTRY_INFO!$T$9:$T$1000="MDA3 (IVM)", COUNTRY_INFO!$T$9:$T$1000, " ") ->  | H120: 0 | K120: 0 | N120: 0 | O120: 0 | P120: 0 | Q120: 0
A121: =IF(COUNTRY_INFO!A121=0," ",COUNTRY_INFO!A121) -> Madagascar | B121: =IF(COUNTRY_INFO!B121=0," ",COUNTRY_INFO!B121) -> Anosy | C121: =IF(COUNTRY_INFO!C121=0," ",COUNTRY_INFO!C121) -> Betroka | D121: =IF(COUNTRY_INFO!$T$9:$T$1000="MDA3 (IVM)", COUNTRY_INFO!$T$9:$T$1000, " ") ->  | H121: 0 | K121: 0 | N121: 0 | O121: 0 | P121: 0 | Q121: 0
A122: =IF(COUNTRY_INFO!A122=0," ",COUNTRY_INFO!A122) -> Madagascar | B122: =IF(COUNTRY_INFO!B122=0," ",COUNTRY_INFO!B122) -> Anosy | C122: =IF(COUNTRY_INFO!C122=0," ",COUNTRY_INFO!C122) -> Tolagnaro | D122: =IF(COUNTRY_INFO!$T$9:$T$1000="MDA3 (IVM)", COUNTRY_INFO!$T$9:$T$1000, " ") ->  | H122: 0 | K122: 0 | N122: 0 | O122: 0 | P122: 0 | Q122: 0

Sheet T1
A1: T 1 - Praziquantel (PZQ) and Albendazole (ALB) or Mebendazole (MBD)
A2: Administrative structure, population requiring PC by age group, population treated by age group and coverage
A4: TOTAL | G4: =SUM(G$9:G$1000) -> 0 | H4: 0 | I4: 0 | J4: 0 | K4: =SUM(K$9:K$1000) -> 0 | L4: 0 | M4: 0 | N4: 0 | O4: 0 | P4: =IF(G4<>0, IF(L4/G4*100=0, "-", L4/G4*100), " ") ->  | Q4: =IF(OR(I4<>0,H4<>0), IF(M4/MAX(H4,I4)*100=0, "-", M4/MAX(H4,I4)*100), " ") ->  | R4: =IF(J4<>0, IF(N4/J4*100=0, "-", N4/J4*100), " ") ->  | S4: =IF(K4<>0, IF(O4/K4*100=0, "-", O4/K4*100), " ") -> 
D6: PC implemented | E6: Medicine | F6: Date | G6: Population targeted for T1 | L6: Population treated | P6: Programme coverage (%)
A7: Country | B7: Province/State | C7: District | G7: PreSAC (ALB) | H7: SAC (ALB) | I7: SAC (PZQ) | J7: Adults (PZQ) | K7: Total | L7: PreSAC | M7: SAC | N7: Adults | O7: Total | P7: PreSAC | Q7: SAC | R7: Adults | S7: Total
A9: =IF(COUNTRY_INFO!A9=0," ",COUNTRY_INFO!A9) -> Madagascar | B9: =IF(COUNTRY_INFO!B9=0," ",COUNTRY_INFO!B9) -> Analamanga | C9: =IF(COUNTRY_INFO!C9=0," ",COUNTRY_INFO!C9) -> Ambohidratrimo | D9: =IF(OR(COUNTRY_INFO!$T$9:$T$1000="T1 (PZQ+ALB/MBD)",COUNTRY_INFO!$U$9:$U$1000="T1 (PZQ+ALB/MBD)"), "T1 (PZQ+ALB/MBD)", " ") ->  | K9: =MAX(H9:I9)+G9+J9 -> 0 | O9: =SUM(L9:N9) -> 0 | P9: =IF(G9<>0, IF(L9/G9*100=0, "-", L9/G9*100), " ") ->  | Q9: =IF(OR(I9<>0,H9<>0), IF(M9/MAX(H9,I9)*100=0, "-", M9/MAX(H9,I9)*100), " ") ->  | R9: =IF(J9<>0, IF(N9/J9*100=0, "-", N9/J9*100), " ") -> 
A10: =IF(COUNTRY_INFO!A10=0," ",COUNTRY_INFO!A10) -> Madagascar | B10: =IF(COUNTRY_INFO!B10=0," ",COUNTRY_INFO!B10) -> Analamanga | C10: =IF(COUNTRY_INFO!C10=0," ",COUNTRY_INFO!C10) -> Andramasina | D10: =IF(OR(COUNTRY_INFO!$T$9:$T$1000="T1 (PZQ+ALB/MBD)",COUNTRY_INFO!$U$9:$U$1000="T1 (PZQ+ALB/MBD)"), "T1 (PZQ+ALB/MBD)", " ") ->  | K10: =MAX(H10:I10)+G10+J10 -> 0 | O10: =SUM(L10:N10) -> 0 | P10: =IF(G10<>0, IF(L10/G10*100=0, "-", L10/G10*100), " ") ->  | Q10: =IF(OR(I10<>0,H10<>0), IF(M10/MAX(H10,I10)*100=0, "-", M10/MAX(H10,I10)*100), " ") ->  | R10: =IF(J10<>0, IF(N10/J10*100=0, "-", N10/J10*100), " ") ->  | S10: =IF(K10<>0, IF(O10/K10*100=0, "-", O10/K10*100), " ") -> 
A11: =IF(COUNTRY_INFO!A11=0," ",COUNTRY_INFO!A11) -> Madagascar | B11: =IF(COUNTRY_INFO!B11=0," ",COUNTRY_INFO!B11) -> Analamanga | C11: =IF(COUNTRY_INFO!C11=0," ",COUNTRY_INFO!C11) -> Anjozorobe | D11: =IF(OR(COUNTRY_INFO!$T$9:$T$1000="T1 (PZQ+ALB/MBD)",COUNTRY_INFO!$U$9:$U$1000="T1 (PZQ+ALB/MBD)"), "T1 (PZQ+ALB/MBD)", " ") ->  | K11: 0 | O11: 0
A12: =IF(COUNTRY_INFO!A12=0," ",COUNTRY_INFO!A12) -> Madagascar | B12: =IF(COUNTRY_INFO!B12=0," ",COUNTRY_INFO!B12) -> Analamanga | C12: =IF(COUNTRY_INFO!C12=0," ",COUNTRY_INFO!C12) -> Ankazobe | D12: =IF(OR(COUNTRY_INFO!$T$9:$T$1000="T1 (PZQ+ALB/MBD)",COUNTRY_INFO!$U$9:$U$1000="T1 (PZQ+ALB/MBD)"), "T1 (PZQ+ALB/MBD)", " ") ->  | K12: 0 | O12: 0
A13: =IF(COUNTRY_INFO!A13=0," ",COUNTRY_INFO!A13) -> Madagascar | B13: =IF(COUNTRY_INFO!B13=0," ",COUNTRY_INFO!B13) -> Analamanga | C13: =IF(COUNTRY_INFO!C13=0," ",COUNTRY_INFO!C13) -> Antananarivo Atsimondrano | D13: =IF(OR(COUNTRY_INFO!$T$9:$T$1000="T1 (PZQ+ALB/MBD)",COUNTRY_INFO!$U$9:$U$1000="T1 (PZQ+ALB/MBD)"), "T1 (PZQ+ALB/MBD)", " ") ->  | K13: 0 | O13: 0
A14: =IF(COUNTRY_INFO!A14=0," ",COUNTRY_INFO!A14) -> Madagascar | B14: =IF(COUNTRY_INFO!B14=0," ",COUNTRY_INFO!B14) -> Analamanga | C14: =IF(COUNTRY_INFO!C14=0," ",COUNTRY_INFO!C14) -> Antananarivo Avaradrano | D14: =IF(OR(COUNTRY_INFO!$T$9:$T$1000="T1 (PZQ+ALB/MBD)",COUNTRY_INFO!$U$9:$U$1000="T1 (PZQ+ALB/MBD)"), "T1 (PZQ+ALB/MBD)", " ") ->  | K14: 0 | O14: 0
A15: =IF(COUNTRY_INFO!A15=0," ",COUNTRY_INFO!A15) -> Madagascar | B15: =IF(COUNTRY_INFO!B15=0," ",COUNTRY_INFO!B15) -> Analamanga | C15: =IF(COUNTRY_INFO!C15=0," ",COUNTRY_INFO!C15) -> Antananarivo Renivohitra | D15: =IF(OR(COUNTRY_INFO!$T$9:$T$1000="T1 (PZQ+ALB/MBD)",COUNTRY_INFO!$U$9:$U$1000="T1 (PZQ+ALB/MBD)"), "T1 (PZQ+ALB/MBD)", " ") ->  | K15: 0 | O15: 0
A16: =IF(COUNTRY_INFO!A16=0," ",COUNTRY_INFO!A16) -> Madagascar | B16: =IF(COUNTRY_INFO!B16=0," ",COUNTRY_INFO!B16) -> Analamanga | C16: =IF(COUNTRY_INFO!C16=0," ",COUNTRY_INFO!C16) -> Manjakandriana | D16: =IF(OR(COUNTRY_INFO!$T$9:$T$1000="T1 (PZQ+ALB/MBD)",COUNTRY_INFO!$U$9:$U$1000="T1 (PZQ+ALB/MBD)"), "T1 (PZQ+ALB/MBD)", " ") ->  | K16: 0 | O16: 0
A17: =IF(COUNTRY_INFO!A17=0," ",COUNTRY_INFO!A17) -> Madagascar | B17: =IF(COUNTRY_INFO!B17=0," ",COUNTRY_INFO!B17) -> Vakinankaratra | C17: =IF(COUNTRY_INFO!C17=0," ",COUNTRY_INFO!C17) -> Ambatolampy | D17: =IF(OR(COUNTRY_INFO!$T$9:$T$1000="T1 (PZQ+ALB/MBD)",COUNTRY_INFO!$U$9:$U$1000="T1 (PZQ+ALB/MBD)"), "T1 (PZQ+ALB/MBD)", " ") ->  | K17: 0 | O17: 0
A18: =IF(COUNTRY_INFO!A18=0," ",COUNTRY_INFO!A18) -> Madagascar | B18: =IF(COUNTRY_INFO!B18=0," ",COUNTRY_INFO!B18) -> Vakinankaratra | C18: =IF(COUNTRY_INFO!C18=0," ",COUNTRY_INFO!C18) -> Antanifotsy | D18: =IF(OR(COUNTRY_INFO!$T$9:$T$1000="T1 (PZQ+ALB/MBD)",COUNTRY_INFO!$U$9:$U$1000="T1 (PZQ+ALB/MBD)"), "T1 (PZQ+ALB/MBD)", " ") ->  | K18: 0 | O18: 0
A19: =IF(COUNTRY_INFO!A19=0," ",COUNTRY_INFO!A19) -> Madagascar | B19: =IF(COUNTRY_INFO!B19=0," ",COUNTRY_INFO!B19) -> Vakinankaratra | C19: =IF(COUNTRY_INFO!C19=0," ",COUNTRY_INFO!C19) -> Antsirabe I | D19: =IF(OR(COUNTRY_INFO!$T$9:$T$1000="T1 (PZQ+ALB/MBD)",COUNTRY_INFO!$U$9:$U$1000="T1 (PZQ+ALB/MBD)"), "T1 (PZQ+ALB/MBD)", " ") ->  | K19: 0 | O19: 0
A20: =IF(COUNTRY_INFO!A20=0," ",COUNTRY_INFO!A20) -> Madagascar | B20: =IF(COUNTRY_INFO!B20=0," ",COUNTRY_INFO!B20) -> Vakinankaratra | C20: =IF(COUNTRY_INFO!C20=0," ",COUNTRY_INFO!C20) -> Antsirabe II | D20: =IF(OR(COUNTRY_INFO!$T$9:$T$1000="T1 (PZQ+ALB/MBD)",COUNTRY_INFO!$U$9:$U$1000="T1 (PZQ+ALB/MBD)"), "T1 (PZQ+ALB/MBD)", " ") ->  | K20: 0 | O20: 0
A21: =IF(COUNTRY_INFO!A21=0," ",COUNTRY_INFO!A21) -> Madagascar | B21: =IF(COUNTRY_INFO!B21=0," ",COUNTRY_INFO!B21) -> Vakinankaratra | C21: =IF(COUNTRY_INFO!C21=0," ",COUNTRY_INFO!C21) -> Betafo | D21: =IF(OR(COUNTRY_INFO!$T$9:$T$1000="T1 (PZQ+ALB/MBD)",COUNTRY_INFO!$U$9:$U$1000="T1 (PZQ+ALB/MBD)"), "T1 (PZQ+ALB/MBD)", " ") ->  | K21: 0 | O21: 0
A22: =IF(COUNTRY_INFO!A22=0," ",COUNTRY_INFO!A22) -> Madagascar | B22: =IF(COUNTRY_INFO!B22=0," ",COUNTRY_INFO!B22) -> Vakinankaratra | C22: =IF(COUNTRY_INFO!C22=0," ",COUNTRY_INFO!C22) -> Faratsiho | D22: =IF(OR(COUNTRY_INFO!$T$9:$T$1000="T1 (PZQ+ALB/MBD)",COUNTRY_INFO!$U$9:$U$1000="T1 (PZQ+ALB/MBD)"), "T1 (PZQ+ALB/MBD)", " ") ->  | K22: 0 | O22: 0
A23: =IF(COUNTRY_INFO!A23=0," ",COUNTRY_INFO!A23) -> Madagascar | B23: =IF(COUNTRY_INFO!B23=0," ",COUNTRY_INFO!B23) -> Vakinankaratra | C23: =IF(COUNTRY_INFO!C23=0," ",COUNTRY_INFO!C23) -> Mandoto | D23: =IF(OR(COUNTRY_INFO!$T$9:$T$1000="T1 (PZQ+ALB/MBD)",COUNTRY_INFO!$U$9:$U$1000="T1 (PZQ+ALB/MBD)"), "T1 (PZQ+ALB/MBD)", " ") ->  | K23: 0 | O23: 0
A24: =IF(COUNTRY_INFO!A24=0," ",COUNTRY_INFO!A24) -> Madagascar | B24: =IF(COUNTRY_INFO!B24=0," ",COUNTRY_INFO!B24) -> Itasy | C24: =IF(COUNTRY_INFO!C24=0," ",COUNTRY_INFO!C24) -> Arivonimamo | D24: =IF(OR(COUNTRY_INFO!$T$9:$T$1000="T1 (PZQ+ALB/MBD)",COUNTRY_INFO!$U$9:$U$1000="T1 (PZQ+ALB/MBD)"), "T1 (PZQ+ALB/MBD)", " ") ->  | K24: 0 | O24: 0
A25: =IF(COUNTRY_INFO!A25=0," ",COUNTRY_INFO!A25) -> Madagascar | B25: =IF(COUNTRY_INFO!B25=0," ",COUNTRY_INFO!B25) -> Itasy | C25: =IF(COUNTRY_INFO!C25=0," ",COUNTRY_INFO!C25) -> Miarinarivo | D25: =IF(OR(COUNTRY_INFO!$T$9:$T$1000="T1 (PZQ+ALB/MBD)",COUNTRY_INFO!$U$9:$U$1000="T1 (PZQ+ALB/MBD)"), "T1 (PZQ+ALB/MBD)", " ") ->  | K25: 0 | O25: 0
A26: =IF(COUNTRY_INFO!A26=0," ",COUNTRY_INFO!A26) -> Madagascar | B26: =IF(COUNTRY_INFO!B26=0," ",COUNTRY_INFO!B26) -> Itasy | C26: =IF(COUNTRY_INFO!C26=0," ",COUNTRY_INFO!C26) -> Soavinandriana | D26: =IF(OR(COUNTRY_INFO!$T$9:$T$1000="T1 (PZQ+ALB/MBD)",COUNTRY_INFO!$U$9:$U$1000="T1 (PZQ+ALB/MBD)"), "T1 (PZQ+ALB/MBD)", " ") ->  | K26: 0 | O26: 0
A27: =IF(COUNTRY_INFO!A27=0," ",COUNTRY_INFO!A27) -> Madagascar | B27: =IF(COUNTRY_INFO!B27=0," ",COUNTRY_INFO!B27) -> Bongolava | C27: =IF(COUNTRY_INFO!C27=0," ",COUNTRY_INFO!C27) -> Fenoarivobe | D27: =IF(OR(COUNTRY_INFO!$T$9:$T$1000="T1 (PZQ+ALB/MBD)",COUNTRY_INFO!$U$9:$U$1000="T1 (PZQ+ALB/MBD)"), "T1 (PZQ+ALB/MBD)", " ") ->  | K27: 0 | O27: 0
A28: =IF(COUNTRY_INFO!A28=0," ",COUNTRY_INFO!A28) -> Madagascar | B28: =IF(COUNTRY_INFO!B28=0," ",COUNTRY_INFO!B28) -> Bongolava | C28: =IF(COUNTRY_INFO!C28=0," ",COUNTRY_INFO!C28) -> Tsiroanomandidy | D28: =IF(OR(COUNTRY_INFO!$T$9:$T$1000="T1 (PZQ+ALB/MBD)",COUNTRY_INFO!$U$9:$U$1000="T1 (PZQ+ALB/MBD)"), "T1 (PZQ+ALB/MBD)", " ") ->  | K28: 0 | O28: 0
A29: =IF(COUNTRY_INFO!A29=0," ",COUNTRY_INFO!A29) -> Madagascar | B29: =IF(COUNTRY_INFO!B29=0," ",COUNTRY_INFO!B29) -> Diana | C29: =IF(COUNTRY_INFO!C29=0," ",COUNTRY_INFO!C29) -> Ambanja | D29: =IF(OR(COUNTRY_INFO!$T$9:$T$1000="T1 (PZQ+ALB/MBD)",COUNTRY_INFO!$U$9:$U$1000="T1 (PZQ+ALB/MBD)"), "T1 (PZQ+ALB/MBD)", " ") ->  | K29: 0 | O29: 0
A30: =IF(COUNTRY_INFO!A30=0," ",COUNTRY_INFO!A30) -> Madagascar | B30: =IF(COUNTRY_INFO!B30=0," ",COUNTRY_INFO!B30) -> Diana | C30: =IF(COUNTRY_INFO!C30=0," ",COUNTRY_INFO!C30) -> Ambilobe | D30: =IF(OR(COUNTRY_INFO!$T$9:$T$1000="T1 (PZQ+ALB/MBD)",COUNTRY_INFO!$U$9:$U$1000="T1 (PZQ+ALB/MBD)"), "T1 (PZQ+ALB/MBD)", " ") ->  | K30: 0 | O30: 0
A31: =IF(COUNTRY_INFO!A31=0," ",COUNTRY_INFO!A31) -> Madagascar | B31: =IF(COUNTRY_INFO!B31=0," ",COUNTRY_INFO!B31) -> Diana | C31: =IF(COUNTRY_INFO!C31=0," ",COUNTRY_INFO!C31) -> Antsiranana I | D31: =IF(OR(COUNTRY_INFO!$T$9:$T$1000="T1 (PZQ+ALB/MBD)",COUNTRY_INFO!$U$9:$U$1000="T1 (PZQ+ALB/MBD)"), "T1 (PZQ+ALB/MBD)", " ") ->  | K31: 0 | O31: 0
A32: =IF(COUNTRY_INFO!A32=0," ",COUNTRY_INFO!A32) -> Madagascar | B32: =IF(COUNTRY_INFO!B32=0," ",COUNTRY_INFO!B32) -> Diana | C32: =IF(COUNTRY_INFO!C32=0," ",COUNTRY_INFO!C32) -> Antsiranana II | D32: =IF(OR(COUNTRY_INFO!$T$9:$T$1000="T1 (PZQ+ALB/MBD)",COUNTRY_INFO!$U$9:$U$1000="T1 (PZQ+ALB/MBD)"), "T1 (PZQ+ALB/MBD)", " ") ->  | K32: 0 | O32: 0
A33: =IF(COUNTRY_INFO!A33=0," ",COUNTRY_INFO!A33) -> Madagascar | B33: =IF(COUNTRY_INFO!B33=0," ",COUNTRY_INFO!B33) -> Diana | C33: =IF(COUNTRY_INFO!C33=0," ",COUNTRY_INFO!C33) -> Nosy Be | D33: =IF(OR(COUNTRY_INFO!$T$9:$T$1000="T1 (PZQ+ALB/MBD)",COUNTRY_INFO!$U$9:$U$1000="T1 (PZQ+ALB/MBD)"), "T1 (PZQ+ALB/MBD)", " ") ->  | K33: 0 | O33: 0
A34: =IF(COUNTRY_INFO!A34=0," ",COUNTRY_INFO!A34) -> Madagascar | B34: =IF(COUNTRY_INFO!B34=0," ",COUNTRY_INFO!B34) -> Sava | C34: =IF(COUNTRY_INFO!C34=0," ",COUNTRY_INFO!C34) -> Andapa | D34: =IF(OR(COUNTRY_INFO!$T$9:$T$1000="T1 (PZQ+ALB/MBD)",COUNTRY_INFO!$U$9:$U$1000="T1 (PZQ+ALB/MBD)"), "T1 (PZQ+ALB/MBD)", " ") ->  | K34: 0 | O34: 0
A35: =IF(COUNTRY_INFO!A35=0," ",COUNTRY_INFO!A35) -> Madagascar | B35: =IF(COUNTRY_INFO!B35=0," ",COUNTRY_INFO!B35) -> Sava | C35: =IF(COUNTRY_INFO!C35=0," ",COUNTRY_INFO!C35) -> Antalaha | D35: =IF(OR(COUNTRY_INFO!$T$9:$T$1000="T1 (PZQ+ALB/MBD)",COUNTRY_INFO!$U$9:$U$1000="T1 (PZQ+ALB/MBD)"), "T1 (PZQ+ALB/MBD)", " ") ->  | K35: 0 | O35: 0
A36: =IF(COUNTRY_INFO!A36=0," ",COUNTRY_INFO!A36) -> Madagascar | B36: =IF(COUNTRY_INFO!B36=0," ",COUNTRY_INFO!B36) -> Sava | C36: =IF(COUNTRY_INFO!C36=0," ",COUNTRY_INFO!C36) -> Sambava | D36: =IF(OR(COUNTRY_INFO!$T$9:$T$1000="T1 (PZQ+ALB/MBD)",COUNTRY_INFO!$U$9:$U$1000="T1 (PZQ+ALB/MBD)"), "T1 (PZQ+ALB/MBD)", " ") ->  | K36: 0 | O36: 0
A37: =IF(COUNTRY_INFO!A37=0," ",COUNTRY_INFO!A37) -> Madagascar | B37: =IF(COUNTRY_INFO!B37=0," ",COUNTRY_INFO!B37) -> Sava | C37: =IF(COUNTRY_INFO!C37=0," ",COUNTRY_INFO!C37) -> Vohémar | D37: =IF(OR(COUNTRY_INFO!$T$9:$T$1000="T1 (PZQ+ALB/MBD)",COUNTRY_INFO!$U$9:$U$1000="T1 (PZQ+ALB/MBD)"), "T1 (PZQ+ALB/MBD)", " ") ->  | K37: 0 | O37: 0
A38: =IF(COUNTRY_INFO!A38=0," ",COUNTRY_INFO!A38) -> Madagascar | B38: =IF(COUNTRY_INFO!B38=0," ",COUNTRY_INFO!B38) -> Haute Matsiatra | C38: =IF(COUNTRY_INFO!C38=0," ",COUNTRY_INFO!C38) -> Ambalavao | D38: =IF(OR(COUNTRY_INFO!$T$9:$T$1000="T1 (PZQ+ALB/MBD)",COUNTRY_INFO!$U$9:$U$1000="T1 (PZQ+ALB/MBD)"), "T1 (PZQ+ALB/MBD)", " ") ->  | K38: 0 | O38: 0
A39: =IF(COUNTRY_INFO!A39=0," ",COUNTRY_INFO!A39) -> Madagascar | B39: =IF(COUNTRY_INFO!B39=0," ",COUNTRY_INFO!B39) -> Haute Matsiatra | C39: =IF(COUNTRY_INFO!C39=0," ",COUNTRY_INFO!C39) -> Ambohimahasoa | D39: =IF(OR(COUNTRY_INFO!$T$9:$T$1000="T1 (PZQ+ALB/MBD)",COUNTRY_INFO!$U$9:$U$1000="T1 (PZQ+ALB/MBD)"), "T1 (PZQ+ALB/MBD)", " ") ->  | K39: 0 | O39: 0
A40: =IF(COUNTRY_INFO!A40=0," ",COUNTRY_INFO!A40) -> Madagascar | B40: =IF(COUNTRY_INFO!B40=0," ",COUNTRY_INFO!B40) -> Haute Matsiatra | C40: =IF(COUNTRY_INFO!C40=0," ",COUNTRY_INFO!C40) -> Fianarantsoa I | D40: =IF(OR(COUNTRY_INFO!$T$9:$T$1000="T1 (PZQ+ALB/MBD)",COUNTRY_INFO!$U$9:$U$1000="T1 (PZQ+ALB/MBD)"), "T1 (PZQ+ALB/MBD)", " ") ->  | K40: 0 | O40: 0
A41: =IF(COUNTRY_INFO!A41=0," ",COUNTRY_INFO!A41) -> Madagascar | B41: =IF(COUNTRY_INFO!B41=0," ",COUNTRY_INFO!B41) -> Haute Matsiatra | C41: =IF(COUNTRY_INFO!C41=0," ",COUNTRY_INFO!C41) -> Ikalamavony | D41: =IF(OR(COUNTRY_INFO!$T$9:$T$1000="T1 (PZQ+ALB/MBD)",COUNTRY_INFO!$U$9:$U$1000="T1 (PZQ+ALB/MBD)"), "T1 (PZQ+ALB/MBD)", " ") ->  | K41: 0 | O41: 0
A42: =IF(COUNTRY_INFO!A42=0," ",COUNTRY_INFO!A42) -> Madagascar | B42: =IF(COUNTRY_INFO!B42=0," ",COUNTRY_INFO!B42) -> Haute Matsiatra | C42: =IF(COUNTRY_INFO!C42=0," ",COUNTRY_INFO!C42) -> Isandra | D42: =IF(OR(COUNTRY_INFO!$T$9:$T$1000="T1 (PZQ+ALB/MBD)",COUNTRY_INFO!$U$9:$U$1000="T1 (PZQ+ALB/MBD)"), "T1 (PZQ+ALB/MBD)", " ") ->  | K42: 0 | O42: 0
A43: =IF(COUNTRY_INFO!A43=0," ",COUNTRY_INFO!A43) -> Madagascar | B43: =IF(COUNTRY_INFO!B43=0," ",COUNTRY_INFO!B43) -> Haute Matsiatra | C43: =IF(COUNTRY_INFO!C43=0," ",COUNTRY_INFO!C43) -> Vohibato | D43: =IF(OR(COUNTRY_INFO!$T$9:$T$1000="T1 (PZQ+ALB/MBD)",COUNTRY_INFO!$U$9:$U$1000="T1 (PZQ+ALB/MBD)"), "T1 (PZQ+ALB/MBD)", " ") ->  | K43: 0 | O43: 0
A44: =IF(COUNTRY_INFO!A44=0," ",COUNTRY_INFO!A44) -> Madagascar | B44: =IF(COUNTRY_INFO!B44=0," ",COUNTRY_INFO!B44) -> Haute Matsiatra | C44: =IF(COUNTRY_INFO!C44=0," ",COUNTRY_INFO!C44) -> Lalangina | D44: =IF(OR(COUNTRY_INFO!$T$9:$T$1000="T1 (PZQ+ALB/MBD)",COUNTRY_INFO!$U$9:$U$1000="T1 (PZQ+ALB/MBD)"), "T1 (PZQ+ALB/MBD)", " ") ->  | K44: 0 | O44: 0
A45: =IF(COUNTRY_INFO!A45=0," ",COUNTRY_INFO!A45) -> Madagascar | B45: =IF(COUNTRY_INFO!B45=0," ",COUNTRY_INFO!B45) -> Amoron'Imania | C45: =IF(COUNTRY_INFO!C45=0," ",COUNTRY_INFO!C45) -> Ambatofinandrahana | D45: =IF(OR(COUNTRY_INFO!$T$9:$T$1000="T1 (PZQ+ALB/MBD)",COUNTRY_INFO!$U$9:$U$1000="T1 (PZQ+ALB/MBD)"), "T1 (PZQ+ALB/MBD)", " ") ->  | K45: 0 | O45: 0
A46: =IF(COUNTRY_INFO!A46=0," ",COUNTRY_INFO!A46) -> Madagascar | B46: =IF(COUNTRY_INFO!B46=0," ",COUNTRY_INFO!B46) -> Amoron'Imania | C46: =IF(COUNTRY_INFO!C46=0," ",COUNTRY_INFO!C46) -> Ambositra | D46: =IF(OR(COUNTRY_INFO!$T$9:$T$1000="T1 (PZQ+ALB/MBD)",COUNTRY_INFO!$U$9:$U$1000="T1 (PZQ+ALB/MBD)"), "T1 (PZQ+ALB/MBD)", " ") ->  | K46: 0 | O46: 0
A47: =IF(COUNTRY_INFO!A47=0," ",COUNTRY_INFO!A47) -> Madagascar | B47: =IF(COUNTRY_INFO!B47=0," ",COUNTRY_INFO!B47) -> Amoron'Imania | C47: =IF(COUNTRY_INFO!C47=0," ",COUNTRY_INFO!C47) -> Fandriana | D47: =IF(OR(COUNTRY_INFO!$T$9:$T$1000="T1 (PZQ+ALB/MBD)",COUNTRY_INFO!$U$9:$U$1000="T1 (PZQ+ALB/MBD)"), "T1 (PZQ+ALB/MBD)", " ") ->  | K47: 0 | O47: 0
A48: =IF(COUNTRY_INFO!A48=0," ",COUNTRY_INFO!A48) -> Madagascar | B48: =IF(COUNTRY_INFO!B48=0," ",COUNTRY_INFO!B48) -> Amoron'Imania | C48: =IF(COUNTRY_INFO!C48=0," ",COUNTRY_INFO!C48) -> Manandriana | D48: =IF(OR(COUNTRY_INFO!$T$9:$T$1000="T1 (PZQ+ALB/MBD)",COUNTRY_INFO!$U$9:$U$1000="T1 (PZQ+ALB/MBD)"), "T1 (PZQ+ALB/MBD)", " ") ->  | K48: 0 | O48: 0
A49: =IF(COUNTRY_INFO!A49=0," ",COUNTRY_INFO!A49) -> Madagascar | B49: =IF(COUNTRY_INFO!B49=0," ",COUNTRY_INFO!B49) -> Ihorombe | C49: =IF(COUNTRY_INFO!C49=0," ",COUNTRY_INFO!C49) -> Iakora | D49: =IF(OR(COUNTRY_INFO!$T$9:$T$1000="T1 (PZQ+ALB/MBD)",COUNTRY_INFO!$U$9:$U$1000="T1 (PZQ+ALB/MBD)"), "T1 (PZQ+ALB/MBD)", " ") ->  | K49: 0 | O49: 0
A50: =IF(COUNTRY_INFO!A50=0," ",COUNTRY_INFO!A50) -> Madagascar | B50: =IF(COUNTRY_INFO!B50=0," ",COUNTRY_INFO!B50) -> Ihorombe | C50: =IF(COUNTRY_INFO!C50=0," ",COUNTRY_INFO!C50) -> Ihosy | D50: =IF(OR(COUNTRY_INFO!$T$9:$T$1000="T1 (PZQ+ALB/MBD)",COUNTRY_INFO!$U$9:$U$1000="T1 (PZQ+ALB/MBD)"), "T1 (PZQ+ALB/MBD)", " ") ->  | K50: 0 | O50: 0
A51: =IF(COUNTRY_INFO!A51=0," ",COUNTRY_INFO!A51) -> Madagascar | B51: =IF(COUNTRY_INFO!B51=0," ",COUNTRY_INFO!B51) -> Ihorombe | C51: =IF(COUNTRY_INFO!C51=0," ",COUNTRY_INFO!C51) -> Ivohibe | D51: =IF(OR(COUNTRY_INFO!$T$9:$T$1000="T1 (PZQ+ALB/MBD)",COUNTRY_INFO!$U$9:$U$1000="T1 (PZQ+ALB/MBD)"), "T1 (PZQ+ALB/MBD)", " ") ->  | K51: 0 | O51: 0
A52: =IF(COUNTRY_INFO!A52=0," ",COUNTRY_INFO!A52) -> Madagascar | B52: =IF(COUNTRY_INFO!B52=0," ",COUNTRY_INFO!B52) -> Vatovavy Fitovinany | C52: =IF(COUNTRY_INFO!C52=0," ",COUNTRY_INFO!C52) -> Ifanadiana | D52: =IF(OR(COUNTRY_INFO!$T$9:$T$1000="T1 (PZQ+ALB/MBD)",COUNTRY_INFO!$U$9:$U$1000="T1 (PZQ+ALB/MBD)"), "T1 (PZQ+ALB/MBD)", " ") ->  | K52: 0 | O52: 0
A53: =IF(COUNTRY_INFO!A53=0," ",COUNTRY_INFO!A53) -> Madagascar | B53: =IF(COUNTRY_INFO!B53=0," ",COUNTRY_INFO!B53) -> Vatovavy Fitovinany | C53: =IF(COUNTRY_INFO!C53=0," ",COUNTRY_INFO!C53) -> Ikongo | D53: =IF(OR(COUNTRY_INFO!$T$9:$T$1000="T1 (PZQ+ALB/MBD)",COUNTRY_INFO!$U$9:$U$1000="T1 (PZQ+ALB/MBD)"), "T1 (PZQ+ALB/MBD)", " ") ->  | K53: 0 | O53: 0
A54: =IF(COUNTRY_INFO!A54=0," ",COUNTRY_INFO!A54) -> Madagascar | B54: =IF(COUNTRY_INFO!B54=0," ",COUNTRY_INFO!B54) -> Vatovavy Fitovinany | C54: =IF(COUNTRY_INFO!C54=0," ",COUNTRY_INFO!C54) -> Manakara | D54: =IF(OR(COUNTRY_INFO!$T$9:$T$1000="T1 (PZQ+ALB/MBD)",COUNTRY_INFO!$U$9:$U$1000="T1 (PZQ+ALB/MBD)"), "T1 (PZQ+ALB/MBD)", " ") ->  | K54: 0 | O54: 0
A55: =IF(COUNTRY_INFO!A55=0," ",COUNTRY_INFO!A55) -> Madagascar | B55: =IF(COUNTRY_INFO!B55=0," ",COUNTRY_INFO!B55) -> Vatovavy Fitovinany | C55: =IF(COUNTRY_INFO!C55=0," ",COUNTRY_INFO!C55) -> Mananjary | D55: =IF(OR(COUNTRY_INFO!$T$9:$T$1000="T1 (PZQ+ALB/MBD)",COUNTRY_INFO!$U$9:$U$1000="T1 (PZQ+ALB/MBD)"), "T1 (PZQ+ALB/MBD)", " ") ->  | K55: 0 | O55: 0
A56: =IF(COUNTRY_INFO!A56=0," ",COUNTRY_INFO!A56) -> Madagascar | B56: =IF(COUNTRY_INFO!B56=0," ",COUNTRY_INFO!B56) -> Vatovavy Fitovinany | C56: =IF(COUNTRY_INFO!C56=0," ",COUNTRY_INFO!C56) -> Nosy Varika | D56: =IF(OR(COUNTRY_INFO!$T$9:$T$1000="T1 (PZQ+ALB/MBD)",COUNTRY_INFO!$U$9:$U$1000="T1 (PZQ+ALB/MBD)"), "T1 (PZQ+ALB/MBD)", " ") ->  | K56: 0 | O56: 0
A57: =IF(COUNTRY_INFO!A57=0," ",COUNTRY_INFO!A57) -> Madagascar | B57: =IF(COUNTRY_INFO!B57=0," ",COUNTRY_INFO!B57) -> Vatovavy Fitovinany | C57: =IF(COUNTRY_INFO!C57=0," ",COUNTRY_INFO!C57) -> Vohipeno | D57: =IF(OR(COUNTRY_INFO!$T$9:$T$1000="T1 (PZQ+ALB/MBD)",COUNTRY_INFO!$U$9:$U$1000="T1 (PZQ+ALB/MBD)"), "T1 (PZQ+ALB/MBD)", " ") ->  | K57: 0 | O57: 0
A58: =IF(COUNTRY_INFO!A58=0," ",COUNTRY_INFO!A58) -> Madagascar | B58: =IF(COUNTRY_INFO!B58=0," ",COUNTRY_INFO!B58) -> Atsimo Atsinanana | C58: =IF(COUNTRY_INFO!C58=0," ",COUNTRY_INFO!C58) -> Befotaka | D58: =IF(OR(COUNTRY_INFO!$T$9:$T$1000="T1 (PZQ+ALB/MBD)",COUNTRY_INFO!$U$9:$U$1000="T1 (PZQ+ALB/MBD)"), "T1 (PZQ+ALB/MBD)", " ") ->  | K58: 0 | O58: 0
A59: =IF(COUNTRY_INFO!A59=0," ",COUNTRY_INFO!A59) -> Madagascar | B59: =IF(COUNTRY_INFO!B59=0," ",COUNTRY_INFO!B59) -> Atsimo Atsinanana | C59: =IF(COUNTRY_INFO!C59=0," ",COUNTRY_INFO!C59) -> Farafangana | D59: =IF(OR(COUNTRY_INFO!$T$9:$T$1000="T1 (PZQ+ALB/MBD)",COUNTRY_INFO!$U$9:$U$1000="T1 (PZQ+ALB/MBD)"), "T1 (PZQ+ALB/MBD)", " ") ->  | K59: 0 | O59: 0
A60: =IF(COUNTRY_INFO!A60=0," ",COUNTRY_INFO!A60) -> Madagascar | B60: =IF(COUNTRY_INFO!B60=0," ",COUNTRY_INFO!B60) -> Atsimo Atsinanana | C60: =IF(COUNTRY_INFO!C60=0," ",COUNTRY_INFO!C60) -> Midongy Atsimo | D60: =IF(OR(COUNTRY_INFO!$T$9:$T$1000="T1 (PZQ+ALB/MBD)",COUNTRY_INFO!$U$9:$U$1000="T1 (PZQ+ALB/MBD)"), "T1 (PZQ+ALB/MBD)", " ") ->  | K60: 0 | O60: 0
A61: =IF(COUNTRY_INFO!A61=0," ",COUNTRY_INFO!A61) -> Madagascar | B61: =IF(COUNTRY_INFO!B61=0," ",COUNTRY_INFO!B61) -> Atsimo Atsinanana | C61: =IF(COUNTRY_INFO!C61=0," ",COUNTRY_INFO!C61) -> Vangaindrano | D61: =IF(OR(COUNTRY_INFO!$T$9:$T$1000="T1 (PZQ+ALB/MBD)",COUNTRY_INFO!$U$9:$U$1000="T1 (PZQ+ALB/MBD)"), "T1 (PZQ+ALB/MBD)", " ") ->  | K61: 0 | O61: 0
A62: =IF(COUNTRY_INFO!A62=0," ",COUNTRY_INFO!A62) -> Madagascar | B62: =IF(COUNTRY_INFO!B62=0," ",COUNTRY_INFO!B62) -> Atsimo Atsinanana | C62: =IF(COUNTRY_INFO!C62=0," ",COUNTRY_INFO!C62) -> Vondrozo | D62: =IF(OR(COUNTRY_INFO!$T$9:$T$1000="T1 (PZQ+ALB/MBD)",COUNTRY_INFO!$U$9:$U$1000="T1 (PZQ+ALB/MBD)"), "T1 (PZQ+ALB/MBD)", " ") ->  | K62: 0 | O62: 0
A63: =IF(COUNTRY_INFO!A63=0," ",COUNTRY_INFO!A63) -> Madagascar | B63: =IF(COUNTRY_INFO!B63=0," ",COUNTRY_INFO!B63) -> Boeny | C63: =IF(COUNTRY_INFO!C63=0," ",COUNTRY_INFO!C63) -> Ambato Boeni | D63: =IF(OR(COUNTRY_INFO!$T$9:$T$1000="T1 (PZQ+ALB/MBD)",COUNTRY_INFO!$U$9:$U$1000="T1 (PZQ+ALB/MBD)"), "T1 (PZQ+ALB/MBD)", " ") ->  | K63: 0 | O63: 0
A64: =IF(COUNTRY_INFO!A64=0," ",COUNTRY_INFO!A64) -> Madagascar | B64: =IF(COUNTRY_INFO!B64=0," ",COUNTRY_INFO!B64) -> Boeny | C64: =IF(COUNTRY_INFO!C64=0," ",COUNTRY_INFO!C64) -> Mahajanga I | D64: =IF(OR(COUNTRY_INFO!$T$9:$T$1000="T1 (PZQ+ALB/MBD)",COUNTRY_INFO!$U$9:$U$1000="T1 (PZQ+ALB/MBD)"), "T1 (PZQ+ALB/MBD)", " ") ->  | K64: 0 | O64: 0
A65: =IF(COUNTRY_INFO!A65=0," ",COUNTRY_INFO!A65) -> Madagascar | B65: =IF(COUNTRY_INFO!B65=0," ",COUNTRY_INFO!B65) -> Boeny | C65: =IF(COUNTRY_INFO!C65=0," ",COUNTRY_INFO!C65) -> Mahajanga II | D65: =IF(OR(COUNTRY_INFO!$T$9:$T$1000="T1 (PZQ+ALB/MBD)",COUNTRY_INFO!$U$9:$U$1000="T1 (PZQ+ALB/MBD)"), "T1 (PZQ+ALB/MBD)", " ") ->  | K65: 0 | O65: 0
A66: =IF(COUNTRY_INFO!A66=0," ",COUNTRY_INFO!A66) -> Madagascar | B66: =IF(COUNTRY_INFO!B66=0," ",COUNTRY_INFO!B66) -> Boeny | C66: =IF(COUNTRY_INFO!C66=0," ",COUNTRY_INFO!C66) -> Marovoay | D66: =IF(OR(COUNTRY_INFO!$T$9:$T$1000="T1 (PZQ+ALB/MBD)",COUNTRY_INFO!$U$9:$U$1000="T1 (PZQ+ALB/MBD)"), "T1 (PZQ+ALB/MBD)", " ") ->  | K66: 0 | O66: 0
A67: =IF(COUNTRY_INFO!A67=0," ",COUNTRY_INFO!A67) -> Madagascar | B67: =IF(COUNTRY_INFO!B67=0," ",COUNTRY_INFO!B67) -> Boeny | C67: =IF(COUNTRY_INFO!C67=0," ",COUNTRY_INFO!C67) -> Mitsinjo | D67: =IF(OR(COUNTRY_INFO!$T$9:$T$1000="T1 (PZQ+ALB/MBD)",COUNTRY_INFO!$U$9:$U$1000="T1 (PZQ+ALB/MBD)"), "T1 (PZQ+ALB/MBD)", " ") ->  | K67: 0 | O67: 0
A68: =IF(COUNTRY_INFO!A68=0," ",COUNTRY_INFO!A68) -> Madagascar | B68: =IF(COUNTRY_INFO!B68=0," ",COUNTRY_INFO!B68) -> Boeny | C68: =IF(COUNTRY_INFO!C68=0," ",COUNTRY_INFO!C68) -> Soalala | D68: =IF(OR(COUNTRY_INFO!$T$9:$T$1000="T1 (PZQ+ALB/MBD)",COUNTRY_INFO!$U$9:$U$1000="T1 (PZQ+ALB/MBD)"), "T1 (PZQ+ALB/MBD)", " ") ->  | K68: 0 | O68: 0
A69: =IF(COUNTRY_INFO!A69=0," ",COUNTRY_INFO!A69) -> Madagascar | B69: =IF(COUNTRY_INFO!B69=0," ",COUNTRY_INFO!B69) -> Betsiboka | C69: =IF(COUNTRY_INFO!C69=0," ",COUNTRY_INFO!C69) -> Kandreho | D69: =IF(OR(COUNTRY_INFO!$T$9:$T$1000="T1 (PZQ+ALB/MBD)",COUNTRY_INFO!$U$9:$U$1000="T1 (PZQ+ALB/MBD)"), "T1 (PZQ+ALB/MBD)", " ") ->  | K69: 0 | O69: 0
A70: =IF(COUNTRY_INFO!A70=0," ",COUNTRY_INFO!A70) -> Madagascar | B70: =IF(COUNTRY_INFO!B70=0," ",COUNTRY_INFO!B70) -> Betsiboka | C70: =IF(COUNTRY_INFO!C70=0," ",COUNTRY_INFO!C70) -> Maevatanana | D70: =IF(OR(COUNTRY_INFO!$T$9:$T$1000="T1 (PZQ+ALB/MBD)",COUNTRY_INFO!$U$9:$U$1000="T1 (PZQ+ALB/MBD)"), "T1 (PZQ+ALB/MBD)", " ") ->  | K70: 0 | O70: 0
A71: =IF(COUNTRY_INFO!A71=0," ",COUNTRY_INFO!A71) -> Madagascar | B71: =IF(COUNTRY_INFO!B71=0," ",COUNTRY_INFO!B71) -> Betsiboka | C71: =IF(COUNTRY_INFO!C71=0," ",COUNTRY_INFO!C71) -> Tsaratanana | D71: =IF(OR(COUNTRY_INFO!$T$9:$T$1000="T1 (PZQ+ALB/MBD)",COUNTRY_INFO!$U$9:$U$1000="T1 (PZQ+ALB/MBD)"), "T1 (PZQ+ALB/MBD)", " ") ->  | K71: 0 | O71: 0
A72: =IF(COUNTRY_INFO!A72=0," ",COUNTRY_INFO!A72) -> Madagascar | B72: =IF(COUNTRY_INFO!B72=0," ",COUNTRY_INFO!B72) -> Melaky | C72: =IF(COUNTRY_INFO!C72=0," ",COUNTRY_INFO!C72) -> Ambatomainty | D72: =IF(OR(COUNTRY_INFO!$T$9:$T$1000="T1 (PZQ+ALB/MBD)",COUNTRY_INFO!$U$9:$U$1000="T1 (PZQ+ALB/MBD)"), "T1 (PZQ+ALB/MBD)", " ") ->  | K72: 0 | O72: 0
A73: =IF(COUNTRY_INFO!A73=0," ",COUNTRY_INFO!A73) -> Madagascar | B73: =IF(COUNTRY_INFO!B73=0," ",COUNTRY_INFO!B73) -> Melaky | C73: =IF(COUNTRY_INFO!C73=0," ",COUNTRY_INFO!C73) -> Antsalova | D73: =IF(OR(COUNTRY_INFO!$T$9:$T$1000="T1 (PZQ+ALB/MBD)",COUNTRY_INFO!$U$9:$U$1000="T1 (PZQ+ALB/MBD)"), "T1 (PZQ+ALB/MBD)", " ") ->  | K73: 0 | O73: 0
A74: =IF(COUNTRY_INFO!A74=0," ",COUNTRY_INFO!A74) -> Madagascar | B74: =IF(COUNTRY_INFO!B74=0," ",COUNTRY_INFO!B74) -> Melaky | C74: =IF(COUNTRY_INFO!C74=0," ",COUNTRY_INFO!C74) -> Besalampy | D74: =IF(OR(COUNTRY_INFO!$T$9:$T$1000="T1 (PZQ+ALB/MBD)",COUNTRY_INFO!$U$9:$U$1000="T1 (PZQ+ALB/MBD)"), "T1 (PZQ+ALB/MBD)", " ") ->  | K74: =MAX(H74:I74)+G74+J74 -> 0 | O74: =SUM(L74:N74) -> 0 | P74: =IF(G74<>0, IF(L74/G74*100=0, "-", L74/G74*100), " ") ->  | Q74: =IF(OR(I74<>0,H74<>0), IF(M74/MAX(H74,I74)*100=0, "-", M74/MAX(H74,I74)*100), " ") ->  | R74: =IF(J74<>0, IF(N74/J74*100=0, "-", N74/J74*100), " ") ->  | S74: =IF(K74<>0, IF(O74/K74*100=0, "-", O74/K74*100), " ") -> 
A75: =IF(COUNTRY_INFO!A75=0," ",COUNTRY_INFO!A75) -> Madagascar | B75: =IF(COUNTRY_INFO!B75=0," ",COUNTRY_INFO!B75) -> Melaky | C75: =IF(COUNTRY_INFO!C75=0," ",COUNTRY_INFO!C75) -> Maintirano | D75: =IF(OR(COUNTRY_INFO!$T$9:$T$1000="T1 (PZQ+ALB/MBD)",COUNTRY_INFO!$U$9:$U$1000="T1 (PZQ+ALB/MBD)"), "T1 (PZQ+ALB/MBD)", " ") ->  | K75: 0 | O75: 0
A76: =IF(COUNTRY_INFO!A76=0," ",COUNTRY_INFO!A76) -> Madagascar | B76: =IF(COUNTRY_INFO!B76=0," ",COUNTRY_INFO!B76) -> Melaky | C76: =IF(COUNTRY_INFO!C76=0," ",COUNTRY_INFO!C76) -> Morafenobe | D76: =IF(OR(COUNTRY_INFO!$T$9:$T$1000="T1 (PZQ+ALB/MBD)",COUNTRY_INFO!$U$9:$U$1000="T1 (PZQ+ALB/MBD)"), "T1 (PZQ+ALB/MBD)", " ") ->  | K76: 0 | O76: 0
A77: =IF(COUNTRY_INFO!A77=0," ",COUNTRY_INFO!A77) -> Madagascar | B77: =IF(COUNTRY_INFO!B77=0," ",COUNTRY_INFO!B77) -> Sofia | C77: =IF(COUNTRY_INFO!C77=0," ",COUNTRY_INFO!C77) -> Analalava | D77: =IF(OR(COUNTRY_INFO!$T$9:$T$1000="T1 (PZQ+ALB/MBD)",COUNTRY_INFO!$U$9:$U$1000="T1 (PZQ+ALB/MBD)"), "T1 (PZQ+ALB/MBD)", " ") ->  | K77: 0 | O77: 0
A78: =IF(COUNTRY_INFO!A78=0," ",COUNTRY_INFO!A78) -> Madagascar | B78: =IF(COUNTRY_INFO!B78=0," ",COUNTRY_INFO!B78) -> Sofia | C78: =IF(COUNTRY_INFO!C78=0," ",COUNTRY_INFO!C78) -> Antsohihy | D78: =IF(OR(COUNTRY_INFO!$T$9:$T$1000="T1 (PZQ+ALB/MBD)",COUNTRY_INFO!$U$9:$U$1000="T1 (PZQ+ALB/MBD)"), "T1 (PZQ+ALB/MBD)", " ") ->  | K78: 0 | O78: 0
A79: =IF(COUNTRY_INFO!A79=0," ",COUNTRY_INFO!A79) -> Madagascar | B79: =IF(COUNTRY_INFO!B79=0," ",COUNTRY_INFO!B79) -> Sofia | C79: =IF(COUNTRY_INFO!C79=0," ",COUNTRY_INFO!C79) -> Bealanana | D79: =IF(OR(COUNTRY_INFO!$T$9:$T$1000="T1 (PZQ+ALB/MBD)",COUNTRY_INFO!$U$9:$U$1000="T1 (PZQ+ALB/MBD)"), "T1 (PZQ+ALB/MBD)", " ") ->  | K79: 0 | O79: 0
A80: =IF(COUNTRY_INFO!A80=0," ",COUNTRY_INFO!A80) -> Madagascar | B80: =IF(COUNTRY_INFO!B80=0," ",COUNTRY_INFO!B80) -> Sofia | C80: =IF(COUNTRY_INFO!C80=0," ",COUNTRY_INFO!C80) -> Befandriana Nord | D80: =IF(OR(COUNTRY_INFO!$T$9:$T$1000="T1 (PZQ+ALB/MBD)",COUNTRY_INFO!$U$9:$U$1000="T1 (PZQ+ALB/MBD)"), "T1 (PZQ+ALB/MBD)", " ") ->  | K80: 0 | O80: 0
A81: =IF(COUNTRY_INFO!A81=0," ",COUNTRY_INFO!A81) -> Madagascar | B81: =IF(COUNTRY_INFO!B81=0," ",COUNTRY_INFO!B81) -> Sofia | C81: =IF(COUNTRY_INFO!C81=0," ",COUNTRY_INFO!C81) -> Mampikony | D81: =IF(OR(COUNTRY_INFO!$T$9:$T$1000="T1 (PZQ+ALB/MBD)",COUNTRY_INFO!$U$9:$U$1000="T1 (PZQ+ALB/MBD)"), "T1 (PZQ+ALB/MBD)", " ") ->  | K81: 0 | O81: 0
A82: =IF(COUNTRY_INFO!A82=0," ",COUNTRY_INFO!A82) -> Madagascar | B82: =IF(COUNTRY_INFO!B82=0," ",COUNTRY_INFO!B82) -> Sofia | C82: =IF(COUNTRY_INFO!C82=0," ",COUNTRY_INFO!C82) -> Mandritsara | D82: =IF(OR(COUNTRY_INFO!$T$9:$T$1000="T1 (PZQ+ALB/MBD)",COUNTRY_INFO!$U$9:$U$1000="T1 (PZQ+ALB/MBD)"), "T1 (PZQ+ALB/MBD)", " ") ->  | K82: 0 | O82: 0
A83: =IF(COUNTRY_INFO!A83=0," ",COUNTRY_INFO!A83) -> Madagascar | B83: =IF(COUNTRY_INFO!B83=0," ",COUNTRY_INFO!B83) -> Sofia | C83: =IF(COUNTRY_INFO!C83=0," ",COUNTRY_INFO!C83) -> Port Bergé | D83: =IF(OR(COUNTRY_INFO!$T$9:$T$1000="T1 (PZQ+ALB/MBD)",COUNTRY_INFO!$U$9:$U$1000="T1 (PZQ+ALB/MBD)"), "T1 (PZQ+ALB/MBD)", " ") ->  | K83: 0 | O83: 0
A84: =IF(COUNTRY_INFO!A84=0," ",COUNTRY_INFO!A84) -> Madagascar | B84: =IF(COUNTRY_INFO!B84=0," ",COUNTRY_INFO!B84) -> Atsinanana | C84: =IF(COUNTRY_INFO!C84=0," ",COUNTRY_INFO!C84) -> Antanambao Manampontsy | D84: =IF(OR(COUNTRY_INFO!$T$9:$T$1000="T1 (PZQ+ALB/MBD)",COUNTRY_INFO!$U$9:$U$1000="T1 (PZQ+ALB/MBD)"), "T1 (PZQ+ALB/MBD)", " ") ->  | K84: 0 | O84: 0
A85: =IF(COUNTRY_INFO!A85=0," ",COUNTRY_INFO!A85) -> Madagascar | B85: =IF(COUNTRY_INFO!B85=0," ",COUNTRY_INFO!B85) -> Atsinanana | C85: =IF(COUNTRY_INFO!C85=0," ",COUNTRY_INFO!C85) -> Brickaville | D85: =IF(OR(COUNTRY_INFO!$T$9:$T$1000="T1 (PZQ+ALB/MBD)",COUNTRY_INFO!$U$9:$U$1000="T1 (PZQ+ALB/MBD)"), "T1 (PZQ+ALB/MBD)", " ") ->  | K85: 0 | O85: 0
A86: =IF(COUNTRY_INFO!A86=0," ",COUNTRY_INFO!A86) -> Madagascar | B86: =IF(COUNTRY_INFO!B86=0," ",COUNTRY_INFO!B86) -> Atsinanana | C86: =IF(COUNTRY_INFO!C86=0," ",COUNTRY_INFO!C86) -> Mahanoro | D86: =IF(OR(COUNTRY_INFO!$T$9:$T$1000="T1 (PZQ+ALB/MBD)",COUNTRY_INFO!$U$9:$U$1000="T1 (PZQ+ALB/MBD)"), "T1 (PZQ+ALB/MBD)", " ") ->  | K86: 0 | O86: 0
A87: =IF(COUNTRY_INFO!A87=0," ",COUNTRY_INFO!A87) -> Madagascar | B87: =IF(COUNTRY_INFO!B87=0," ",COUNTRY_INFO!B87) -> Atsinanana | C87: =IF(COUNTRY_INFO!C87=0," ",COUNTRY_INFO!C87) -> Marolambo | D87: =IF(OR(COUNTRY_INFO!$T$9:$T$1000="T1 (PZQ+ALB/MBD)",COUNTRY_INFO!$U$9:$U$1000="T1 (PZQ+ALB/MBD)"), "T1 (PZQ+ALB/MBD)", " ") ->  | K87: 0 | O87: 0
A88: =IF(COUNTRY_INFO!A88=0," ",COUNTRY_INFO!A88) -> Madagascar | B88: =IF(COUNTRY_INFO!B88=0," ",COUNTRY_INFO!B88) -> Atsinanana | C88: =IF(COUNTRY_INFO!C88=0," ",COUNTRY_INFO!C88) -> Toamasina I | D88: =IF(OR(COUNTRY_INFO!$T$9:$T$1000="T1 (PZQ+ALB/MBD)",COUNTRY_INFO!$U$9:$U$1000="T1 (PZQ+ALB/MBD)"), "T1 (PZQ+ALB/MBD)", " ") ->  | K88: 0 | O88: 0
A89: =IF(COUNTRY_INFO!A89=0," ",COUNTRY_INFO!A89) -> Madagascar | B89: =IF(COUNTRY_INFO!B89=0," ",COUNTRY_INFO!B89) -> Atsinanana | C89: =IF(COUNTRY_INFO!C89=0," ",COUNTRY_INFO!C89) -> Toamasina II | D89: =IF(OR(COUNTRY_INFO!$T$9:$T$1000="T1 (PZQ+ALB/MBD)",COUNTRY_INFO!$U$9:$U$1000="T1 (PZQ+ALB/MBD)"), "T1 (PZQ+ALB/MBD)", " ") ->  | K89: 0 | O89: 0
A90: =IF(COUNTRY_INFO!A90=0," ",COUNTRY_INFO!A90) -> Madagascar | B90: =IF(COUNTRY_INFO!B90=0," ",COUNTRY_INFO!B90) -> Atsinanana | C90: =IF(COUNTRY_INFO!C90=0," ",COUNTRY_INFO!C90) -> Vatomandry | D90: =IF(OR(COUNTRY_INFO!$T$9:$T$1000="T1 (PZQ+ALB/MBD)",COUNTRY_INFO!$U$9:$U$1000="T1 (PZQ+ALB/MBD)"), "T1 (PZQ+ALB/MBD)", " ") ->  | K90: 0 | O90: 0
A91: =IF(COUNTRY_INFO!A91=0," ",COUNTRY_INFO!A91) -> Madagascar | B91: =IF(COUNTRY_INFO!B91=0," ",COUNTRY_INFO!B91) -> Alaotra Mangoro | C91: =IF(COUNTRY_INFO!C91=0," ",COUNTRY_INFO!C91) -> Ambatondrazaka | D91: =IF(OR(COUNTRY_INFO!$T$9:$T$1000="T1 (PZQ+ALB/MBD)",COUNTRY_INFO!$U$9:$U$1000="T1 (PZQ+ALB/MBD)"), "T1 (PZQ+ALB/MBD)", " ") ->  | K91: 0 | O91: 0
A92: =IF(COUNTRY_INFO!A92=0," ",COUNTRY_INFO!A92) -> Madagascar | B92: =IF(COUNTRY_INFO!B92=0," ",COUNTRY_INFO!B92) -> Alaotra Mangoro | C92: =IF(COUNTRY_INFO!C92=0," ",COUNTRY_INFO!C92) -> Amparafaravola | D92: =IF(OR(COUNTRY_INFO!$T$9:$T$1000="T1 (PZQ+ALB/MBD)",COUNTRY_INFO!$U$9:$U$1000="T1 (PZQ+ALB/MBD)"), "T1 (PZQ+ALB/MBD)", " ") ->  | K92: 0 | O92: 0
A93: =IF(COUNTRY_INFO!A93=0," ",COUNTRY_INFO!A93) -> Madagascar | B93: =IF(COUNTRY_INFO!B93=0," ",COUNTRY_INFO!B93) -> Alaotra Mangoro | C93: =IF(COUNTRY_INFO!C93=0," ",COUNTRY_INFO!C93) -> Andilamena | D93: =IF(OR(COUNTRY_INFO!$T$9:$T$1000="T1 (PZQ+ALB/MBD)",COUNTRY_INFO!$U$9:$U$1000="T1 (PZQ+ALB/MBD)"), "T1 (PZQ+ALB/MBD)", " ") ->  | K93: 0 | O93: 0
A94: =IF(COUNTRY_INFO!A94=0," ",COUNTRY_INFO!A94) -> Madagascar | B94: =IF(COUNTRY_INFO!B94=0," ",COUNTRY_INFO!B94) -> Alaotra Mangoro | C94: =IF(COUNTRY_INFO!C94=0," ",COUNTRY_INFO!C94) -> Anosibe An'Ala | D94: =IF(OR(COUNTRY_INFO!$T$9:$T$1000="T1 (PZQ+ALB/MBD)",COUNTRY_INFO!$U$9:$U$1000="T1 (PZQ+ALB/MBD)"), "T1 (PZQ+ALB/MBD)", " ") ->  | K94: 0 | O94: 0
A95: =IF(COUNTRY_INFO!A95=0," ",COUNTRY_INFO!A95) -> Madagascar | B95: =IF(COUNTRY_INFO!B95=0," ",COUNTRY_INFO!B95) -> Alaotra Mangoro | C95: =IF(COUNTRY_INFO!C95=0," ",COUNTRY_INFO!C95) -> Moramanga | D95: =IF(OR(COUNTRY_INFO!$T$9:$T$1000="T1 (PZQ+ALB/MBD)",COUNTRY_INFO!$U$9:$U$1000="T1 (PZQ+ALB/MBD)"), "T1 (PZQ+ALB/MBD)", " ") ->  | K95: 0 | O95: 0
A96: =IF(COUNTRY_INFO!A96=0," ",COUNTRY_INFO!A96) -> Madagascar | B96: =IF(COUNTRY_INFO!B96=0," ",COUNTRY_INFO!B96) -> Analanjirofo | C96: =IF(COUNTRY_INFO!C96=0," ",COUNTRY_INFO!C96) -> Fénérive Est | D96: =IF(OR(COUNTRY_INFO!$T$9:$T$1000="T1 (PZQ+ALB/MBD)",COUNTRY_INFO!$U$9:$U$1000="T1 (PZQ+ALB/MBD)"), "T1 (PZQ+ALB/MBD)", " ") ->  | K96: 0 | O96: 0
A97: =IF(COUNTRY_INFO!A97=0," ",COUNTRY_INFO!A97) -> Madagascar | B97: =IF(COUNTRY_INFO!B97=0," ",COUNTRY_INFO!B97) -> Analanjirofo | C97: =IF(COUNTRY_INFO!C97=0," ",COUNTRY_INFO!C97) -> Mananara Nord | D97: =IF(OR(COUNTRY_INFO!$T$9:$T$1000="T1 (PZQ+ALB/MBD)",COUNTRY_INFO!$U$9:$U$1000="T1 (PZQ+ALB/MBD)"), "T1 (PZQ+ALB/MBD)", " ") ->  | K97: 0 | O97: 0
A98: =IF(COUNTRY_INFO!A98=0," ",COUNTRY_INFO!A98) -> Madagascar | B98: =IF(COUNTRY_INFO!B98=0," ",COUNTRY_INFO!B98) -> Analanjirofo | C98: =IF(COUNTRY_INFO!C98=0," ",COUNTRY_INFO!C98) -> Maroantsetra | D98: =IF(OR(COUNTRY_INFO!$T$9:$T$1000="T1 (PZQ+ALB/MBD)",COUNTRY_INFO!$U$9:$U$1000="T1 (PZQ+ALB/MBD)"), "T1 (PZQ+ALB/MBD)", " ") ->  | K98: 0 | O98: 0
A99: =IF(COUNTRY_INFO!A99=0," ",COUNTRY_INFO!A99) -> Madagascar | B99: =IF(COUNTRY_INFO!B99=0," ",COUNTRY_INFO!B99) -> Analanjirofo | C99: =IF(COUNTRY_INFO!C99=0," ",COUNTRY_INFO!C99) -> Sainte-Marie | D99: =IF(OR(COUNTRY_INFO!$T$9:$T$1000="T1 (PZQ+ALB/MBD)",COUNTRY_INFO!$U$9:$U$1000="T1 (PZQ+ALB/MBD)"), "T1 (PZQ+ALB/MBD)", " ") ->  | K99: 0 | O99: 0
A100: =IF(COUNTRY_INFO!A100=0," ",COUNTRY_INFO!A100) -> Madagascar | B100: =IF(COUNTRY_INFO!B100=0," ",COUNTRY_INFO!B100) -> Analanjirofo | C100: =IF(COUNTRY_INFO!C100=0," ",COUNTRY_INFO!C100) -> Soanierana Ivongo | D100: =IF(OR(COUNTRY_INFO!$T$9:$T$1000="T1 (PZQ+ALB/MBD)",COUNTRY_INFO!$U$9:$U$1000="T1 (PZQ+ALB/MBD)"), "T1 (PZQ+ALB/MBD)", " ") ->  | K100: 0 | O100: 0
A101: =IF(COUNTRY_INFO!A101=0," ",COUNTRY_INFO!A101) -> Madagascar | B101: =IF(COUNTRY_INFO!B101=0," ",COUNTRY_INFO!B101) -> Analanjirofo | C101: =IF(COUNTRY_INFO!C101=0," ",COUNTRY_INFO!C101) -> Vavatenina | D101: =IF(OR(COUNTRY_INFO!$T$9:$T$1000="T1 (PZQ+ALB/MBD)",COUNTRY_INFO!$U$9:$U$1000="T1 (PZQ+ALB/MBD)"), "T1 (PZQ+ALB/MBD)", " ") ->  | K101: 0 | O101: 0
A102: =IF(COUNTRY_INFO!A102=0," ",COUNTRY_INFO!A102) -> Madagascar | B102: =IF(COUNTRY_INFO!B102=0," ",COUNTRY_INFO!B102) -> Atsimo Andrefana | C102: =IF(COUNTRY_INFO!C102=0," ",COUNTRY_INFO!C102) -> Ampanihy Ouest | D102: =IF(OR(COUNTRY_INFO!$T$9:$T$1000="T1 (PZQ+ALB/MBD)",COUNTRY_INFO!$U$9:$U$1000="T1 (PZQ+ALB/MBD)"), "T1 (PZQ+ALB/MBD)", " ") ->  | K102: 0 | O102: 0
A103: =IF(COUNTRY_INFO!A103=0," ",COUNTRY_INFO!A103) -> Madagascar | B103: =IF(COUNTRY_INFO!B103=0," ",COUNTRY_INFO!B103) -> Atsimo Andrefana | C103: =IF(COUNTRY_INFO!C103=0," ",COUNTRY_INFO!C103) -> Ankazoabo | D103: =IF(OR(COUNTRY_INFO!$T$9:$T$1000="T1 (PZQ+ALB/MBD)",COUNTRY_INFO!$U$9:$U$1000="T1 (PZQ+ALB/MBD)"), "T1 (PZQ+ALB/MBD)", " ") ->  | K103: 0 | O103: 0
A104: =IF(COUNTRY_INFO!A104=0," ",COUNTRY_INFO!A104) -> Madagascar | B104: =IF(COUNTRY_INFO!B104=0," ",COUNTRY_INFO!B104) -> Atsimo Andrefana | C104: =IF(COUNTRY_INFO!C104=0," ",COUNTRY_INFO!C104) -> Benenitra | D104: =IF(OR(COUNTRY_INFO!$T$9:$T$1000="T1 (PZQ+ALB/MBD)",COUNTRY_INFO!$U$9:$U$1000="T1 (PZQ+ALB/MBD)"), "T1 (PZQ+ALB/MBD)", " ") ->  | K104: 0 | O104: 0
A105: =IF(COUNTRY_INFO!A105=0," ",COUNTRY_INFO!A105) -> Madagascar | B105: =IF(COUNTRY_INFO!B105=0," ",COUNTRY_INFO!B105) -> Atsimo Andrefana | C105: =IF(COUNTRY_INFO!C105=0," ",COUNTRY_INFO!C105) -> Beroroha | D105: =IF(OR(COUNTRY_INFO!$T$9:$T$1000="T1 (PZQ+ALB/MBD)",COUNTRY_INFO!$U$9:$U$1000="T1 (PZQ+ALB/MBD)"), "T1 (PZQ+ALB/MBD)", " ") ->  | K105: 0 | O105: 0
A106: =IF(COUNTRY_INFO!A106=0," ",COUNTRY_INFO!A106) -> Madagascar | B106: =IF(COUNTRY_INFO!B106=0," ",COUNTRY_INFO!B106) -> Atsimo Andrefana | C106: =IF(COUNTRY_INFO!C106=0," ",COUNTRY_INFO!C106) -> Betioky Atsimo | D106: =IF(OR(COUNTRY_INFO!$T$9:$T$1000="T1 (PZQ+ALB/MBD)",COUNTRY_INFO!$U$9:$U$1000="T1 (PZQ+ALB/MBD)"), "T1 (PZQ+ALB/MBD)", " ") ->  | K106: 0 | O106: 0
A107: =IF(COUNTRY_INFO!A107=0," ",COUNTRY_INFO!A107) -> Madagascar | B107: =IF(COUNTRY_INFO!B107=0," ",COUNTRY_INFO!B107) -> Atsimo Andrefana | C107: =IF(COUNTRY_INFO!C107=0," ",COUNTRY_INFO!C107) -> Morombe | D107: =IF(OR(COUNTRY_INFO!$T$9:$T$1000="T1 (PZQ+ALB/MBD)",COUNTRY_INFO!$U$9:$U$1000="T1 (PZQ+ALB/MBD)"), "T1 (PZQ+ALB/MBD)", " ") ->  | K107: 0 | O107: 0
A108: =IF(COUNTRY_INFO!A108=0," ",COUNTRY_INFO!A108) -> Madagascar | B108: =IF(COUNTRY_INFO!B108=0," ",COUNTRY_INFO!B108) -> Atsimo Andrefana | C108: =IF(COUNTRY_INFO!C108=0," ",COUNTRY_INFO!C108) -> Sakaraha | D108: =IF(OR(COUNTRY_INFO!$T$9:$T$1000="T1 (PZQ+ALB/MBD)",COUNTRY_INFO!$U$9:$U$1000="T1 (PZQ+ALB/MBD)"), "T1 (PZQ+ALB/MBD)", " ") ->  | K108: 0 | O108: 0
A109: =IF(COUNTRY_INFO!A109=0," ",COUNTRY_INFO!A109) -> Madagascar | B109: =IF(COUNTRY_INFO!B109=0," ",COUNTRY_INFO!B109) -> Atsimo Andrefana | C109: =IF(COUNTRY_INFO!C109=0," ",COUNTRY_INFO!C109) -> Toliara I | D109: =IF(OR(COUNTRY_INFO!$T$9:$T$1000="T1 (PZQ+ALB/MBD)",COUNTRY_INFO!$U$9:$U$1000="T1 (PZQ+ALB/MBD)"), "T1 (PZQ+ALB/MBD)", " ") ->  | K109: 0 | O109: 0
A110: =IF(COUNTRY_INFO!A110=0," ",COUNTRY_INFO!A110) -> Madagascar | B110: =IF(COUNTRY_INFO!B110=0," ",COUNTRY_INFO!B110) -> Atsimo Andrefana | C110: =IF(COUNTRY_INFO!C110=0," ",COUNTRY_INFO!C110) -> Toliara II | D110: =IF(OR(COUNTRY_INFO!$T$9:$T$1000="T1 (PZQ+ALB/MBD)",COUNTRY_INFO!$U$9:$U$1000="T1 (PZQ+ALB/MBD)"), "T1 (PZQ+ALB/MBD)", " ") ->  | K110: 0 | O110: 0
A111: =IF(COUNTRY_INFO!A111=0," ",COUNTRY_INFO!A111) -> Madagascar | B111: =IF(COUNTRY_INFO!B111=0," ",COUNTRY_INFO!B111) -> Menabe | C111: =IF(COUNTRY_INFO!C111=0," ",COUNTRY_INFO!C111) -> Belo Tsiribihina | D111: =IF(OR(COUNTRY_INFO!$T$9:$T$1000="T1 (PZQ+ALB/MBD)",COUNTRY_INFO!$U$9:$U$1000="T1 (PZQ+ALB/MBD)"), "T1 (PZQ+ALB/MBD)", " ") ->  | K111: 0 | O111: 0
A112: =IF(COUNTRY_INFO!A112=0," ",COUNTRY_INFO!A112) -> Madagascar | B112: =IF(COUNTRY_INFO!B112=0," ",COUNTRY_INFO!B112) -> Menabe | C112: =IF(COUNTRY_INFO!C112=0," ",COUNTRY_INFO!C112) -> Mahabo | D112: =IF(OR(COUNTRY_INFO!$T$9:$T$1000="T1 (PZQ+ALB/MBD)",COUNTRY_INFO!$U$9:$U$1000="T1 (PZQ+ALB/MBD)"), "T1 (PZQ+ALB/MBD)", " ") ->  | K112: 0 | O112: 0
A113: =IF(COUNTRY_INFO!A113=0," ",COUNTRY_INFO!A113) -> Madagascar | B113: =IF(COUNTRY_INFO!B113=0," ",COUNTRY_INFO!B113) -> Menabe | C113: =IF(COUNTRY_INFO!C113=0," ",COUNTRY_INFO!C113) -> Manja | D113: =IF(OR(COUNTRY_INFO!$T$9:$T$1000="T1 (PZQ+ALB/MBD)",COUNTRY_INFO!$U$9:$U$1000="T1 (PZQ+ALB/MBD)"), "T1 (PZQ+ALB/MBD)", " ") ->  | K113: 0 | O113: 0
A114: =IF(COUNTRY_INFO!A114=0," ",COUNTRY_INFO!A114) -> Madagascar | B114: =IF(COUNTRY_INFO!B114=0," ",COUNTRY_INFO!B114) -> Menabe | C114: =IF(COUNTRY_INFO!C114=0," ",COUNTRY_INFO!C114) -> Miandrivazo | D114: =IF(OR(COUNTRY_INFO!$T$9:$T$1000="T1 (PZQ+ALB/MBD)",COUNTRY_INFO!$U$9:$U$1000="T1 (PZQ+ALB/MBD)"), "T1 (PZQ+ALB/MBD)", " ") ->  | K114: 0 | O114: 0
A115: =IF(COUNTRY_INFO!A115=0," ",COUNTRY_INFO!A115) -> Madagascar | B115: =IF(COUNTRY_INFO!B115=0," ",COUNTRY_INFO!B115) -> Menabe | C115: =IF(COUNTRY_INFO!C115=0," ",COUNTRY_INFO!C115) -> Morondava | D115: =IF(OR(COUNTRY_INFO!$T$9:$T$1000="T1 (PZQ+ALB/MBD)",COUNTRY_INFO!$U$9:$U$1000="T1 (PZQ+ALB/MBD)"), "T1 (PZQ+ALB/MBD)", " ") ->  | K115: 0 | O115: 0
A116: =IF(COUNTRY_INFO!A116=0," ",COUNTRY_INFO!A116) -> Madagascar | B116: =IF(COUNTRY_INFO!B116=0," ",COUNTRY_INFO!B116) -> Androy | C116: =IF(COUNTRY_INFO!C116=0," ",COUNTRY_INFO!C116) -> Ambovombe Androy | D116: =IF(OR(COUNTRY_INFO!$T$9:$T$1000="T1 (PZQ+ALB/MBD)",COUNTRY_INFO!$U$9:$U$1000="T1 (PZQ+ALB/MBD)"), "T1 (PZQ+ALB/MBD)", " ") ->  | K116: 0 | O116: 0
A117: =IF(COUNTRY_INFO!A117=0," ",COUNTRY_INFO!A117) -> Madagascar | B117: =IF(COUNTRY_INFO!B117=0," ",COUNTRY_INFO!B117) -> Androy | C117: =IF(COUNTRY_INFO!C117=0," ",COUNTRY_INFO!C117) -> Bekily | D117: =IF(OR(COUNTRY_INFO!$T$9:$T$1000="T1 (PZQ+ALB/MBD)",COUNTRY_INFO!$U$9:$U$1000="T1 (PZQ+ALB/MBD)"), "T1 (PZQ+ALB/MBD)", " ") ->  | K117: 0 | O117: 0
A118: =IF(COUNTRY_INFO!A118=0," ",COUNTRY_INFO!A118) -> Madagascar | B118: =IF(COUNTRY_INFO!B118=0," ",COUNTRY_INFO!B118) -> Androy | C118: =IF(COUNTRY_INFO!C118=0," ",COUNTRY_INFO!C118) -> Beloha Androy | D118: =IF(OR(COUNTRY_INFO!$T$9:$T$1000="T1 (PZQ+ALB/MBD)",COUNTRY_INFO!$U$9:$U$1000="T1 (PZQ+ALB/MBD)"), "T1 (PZQ+ALB/MBD)", " ") ->  | K118: 0 | O118: 0
A119: =IF(COUNTRY_INFO!A119=0," ",COUNTRY_INFO!A119) -> Madagascar | B119: =IF(COUNTRY_INFO!B119=0," ",COUNTRY_INFO!B119) -> Androy | C119: =IF(COUNTRY_INFO!C119=0," ",COUNTRY_INFO!C119) -> Tsihombe | D119: =IF(OR(COUNTRY_INFO!$T$9:$T$1000="T1 (PZQ+ALB/MBD)",COUNTRY_INFO!$U$9:$U$1000="T1 (PZQ+ALB/MBD)"), "T1 (PZQ+ALB/MBD)", " ") ->  | K119: 0 | O119: 0
A120: =IF(COUNTRY_INFO!A120=0," ",COUNTRY_INFO!A120) -> Madagascar | B120: =IF(COUNTRY_INFO!B120=0," ",COUNTRY_INFO!B120) -> Anosy | C120: =IF(COUNTRY_INFO!C120=0," ",COUNTRY_INFO!C120) -> Amboasary Atsimo | D120: =IF(OR(COUNTRY_INFO!$T$9:$T$1000="T1 (PZQ+ALB/MBD)",COUNTRY_INFO!$U$9:$U$1000="T1 (PZQ+ALB/MBD)"), "T1 (PZQ+ALB/MBD)", " ") ->  | K120: 0 | O120: 0
A121: =IF(COUNTRY_INFO!A121=0," ",COUNTRY_INFO!A121) -> Madagascar | B121: =IF(COUNTRY_INFO!B121=0," ",COUNTRY_INFO!B121) -> Anosy | C121: =IF(COUNTRY_INFO!C121=0," ",COUNTRY_INFO!C121) -> Betroka | D121: =IF(OR(COUNTRY_INFO!$T$9:$T$1000="T1 (PZQ+ALB/MBD)",COUNTRY_INFO!$U$9:$U$1000="T1 (PZQ+ALB/MBD)"), "T1 (PZQ+ALB/MBD)", " ") ->  | K121: 0 | O121: 0
A122: =IF(COUNTRY_INFO!A122=0," ",COUNTRY_INFO!A122) -> Madagascar | B122: =IF(COUNTRY_INFO!B122=0," ",COUNTRY_INFO!B122) -> Anosy | C122: =IF(COUNTRY_INFO!C122=0," ",COUNTRY_INFO!C122) -> Tolagnaro | D122: =IF(OR(COUNTRY_INFO!$T$9:$T$1000="T1 (PZQ+ALB/MBD)",COUNTRY_INFO!$U$9:$U$1000="T1 (PZQ+ALB/MBD)"), "T1 (PZQ+ALB/MBD)", " ") ->  | K122: 0 | O122: 0

Sheet T2
A1: T 2 - Praziquantel (PZQ)
A2: Administrative structure, population requiring PC by age group, population treated by age group and coverage
A4: TOTAL | F4: =SUM(F$9:F$1000) -> 0 | G4: 5093326 | H4: 0 | I4: 5093326 | J4: 0 | K4: 4403875 | L4: 0 | M4: 4403875 | N4: =IF(F4<>0, IF(J4/F4*100=0, "-", J4/F4*100), " ") ->  | O4: =IF(G4<>0, IF(K4/G4*100=0, "-", K4/G4*100), " ") -> 86.46363889 | P4: =IF(H4<>0, IF(L4/H4*100=0, "-", L4/H4*100), " ") ->  | Q4: =IF(I4<>0, IF(M4/I4*100=0, "-", M4/I4*100), " ") -> 86.46363889
D6: PC implemented | E6: Date | F6: Population targeted for T2 | J6: Population treated | N6: Programme coverage (%)
A7: Country | B7: Province/State | C7: District | F7: PreSAC | G7: SAC | H7: Adults | I7: Total | J7: PreSAC | K7: SAC | L7: Adults | M7: Total | N7: PreSAC | O7: SAC | P7: Adults | Q7: Total
A9: =IF(COUNTRY_INFO!A9=0," ",COUNTRY_INFO!A9) -> Madagascar | B9: =IF(COUNTRY_INFO!B9=0," ",COUNTRY_INFO!B9) -> Analamanga | C9: =IF(COUNTRY_INFO!C9=0," ",COUNTRY_INFO!C9) -> Ambohidratrimo | D9: =IF(OR(COUNTRY_INFO!$T$9:$T$1000="T2 (PZQ)",COUNTRY_INFO!$U$9:$U$1000="T2 (PZQ)"), "T2 (PZQ)", " ") ->  | I9: =SUM(F9:H9) -> 0 | M9: =SUM(J9:L9) -> 0 | N9: =IF(F9<>0, IF(J9/F9*100=0, "-", J9/F9*100), " ") -> 
A10: =IF(COUNTRY_INFO!A10=0," ",COUNTRY_INFO!A10) -> Madagascar | B10: =IF(COUNTRY_INFO!B10=0," ",COUNTRY_INFO!B10) -> Analamanga | C10: =IF(COUNTRY_INFO!C10=0," ",COUNTRY_INFO!C10) -> Andramasina | D10: =IF(OR(COUNTRY_INFO!$T$9:$T$1000="T2 (PZQ)",COUNTRY_INFO!$U$9:$U$1000="T2 (PZQ)"), "T2 (PZQ)", " ") ->  | I10: =SUM(F10:H10) -> 0 | M10: =SUM(J10:L10) -> 0 | N10: =IF(F10<>0, IF(J10/F10*100=0, "-", J10/F10*100), " ") ->  | O10: =IF(G10<>0, IF(K10/G10*100=0, "-", K10/G10*100), " ") ->  | P10: =IF(H10<>0, IF(L10/H10*100=0, "-", L10/H10*100), " ") ->  | Q10: =IF(I10<>0, IF(M10/I10*100=0, "-", M10/I10*100), " ") -> 
A11: =IF(COUNTRY_INFO!A11=0," ",COUNTRY_INFO!A11) -> Madagascar | B11: =IF(COUNTRY_INFO!B11=0," ",COUNTRY_INFO!B11) -> Analamanga | C11: =IF(COUNTRY_INFO!C11=0," ",COUNTRY_INFO!C11) -> Anjozorobe | D11: =IF(OR(COUNTRY_INFO!$T$9:$T$1000="T2 (PZQ)",COUNTRY_INFO!$U$9:$U$1000="T2 (PZQ)"), "T2 (PZQ)", " ") ->  | I11: 0 | M11: 0
A12: =IF(COUNTRY_INFO!A12=0," ",COUNTRY_INFO!A12) -> Madagascar | B12: =IF(COUNTRY_INFO!B12=0," ",COUNTRY_INFO!B12) -> Analamanga | C12: =IF(COUNTRY_INFO!C12=0," ",COUNTRY_INFO!C12) -> Ankazobe | D12: =IF(OR(COUNTRY_INFO!$T$9:$T$1000="T2 (PZQ)",COUNTRY_INFO!$U$9:$U$1000="T2 (PZQ)"), "T2 (PZQ)", " ") ->  | I12: 0 | M12: 0
A13: =IF(COUNTRY_INFO!A13=0," ",COUNTRY_INFO!A13) -> Madagascar | B13: =IF(COUNTRY_INFO!B13=0," ",COUNTRY_INFO!B13) -> Analamanga | C13: =IF(COUNTRY_INFO!C13=0," ",COUNTRY_INFO!C13) -> Antananarivo Atsimondrano | D13: =IF(OR(COUNTRY_INFO!$T$9:$T$1000="T2 (PZQ)",COUNTRY_INFO!$U$9:$U$1000="T2 (PZQ)"), "T2 (PZQ)", " ") -> T2 (PZQ) | E13: Apr 2018 | G13: 125432 | I13: 125432 | K13: 91297 | M13: 91297 | O13: 72.78605141 | Q13: 72.78605141
A14: =IF(COUNTRY_INFO!A14=0," ",COUNTRY_INFO!A14) -> Madagascar | B14: =IF(COUNTRY_INFO!B14=0," ",COUNTRY_INFO!B14) -> Analamanga | C14: =IF(COUNTRY_INFO!C14=0," ",COUNTRY_INFO!C14) -> Antananarivo Avaradrano | D14: =IF(OR(COUNTRY_INFO!$T$9:$T$1000="T2 (PZQ)",COUNTRY_INFO!$U$9:$U$1000="T2 (PZQ)"), "T2 (PZQ)", " ") -> T2 (PZQ) | E14: Apr 2018 | G14: 91536 | I14: 91536 | K14: 61883 | M14: 61883 | O14: 67.60509526 | Q14: 67.60509526
A15: =IF(COUNTRY_INFO!A15=0," ",COUNTRY_INFO!A15) -> Madagascar | B15: =IF(COUNTRY_INFO!B15=0," ",COUNTRY_INFO!B15) -> Analamanga | C15: =IF(COUNTRY_INFO!C15=0," ",COUNTRY_INFO!C15) -> Antananarivo Renivohitra | D15: =IF(OR(COUNTRY_INFO!$T$9:$T$1000="T2 (PZQ)",COUNTRY_INFO!$U$9:$U$1000="T2 (PZQ)"), "T2 (PZQ)", " ") ->  | I15: 0 | M15: 0
A16: =IF(COUNTRY_INFO!A16=0," ",COUNTRY_INFO!A16) -> Madagascar | B16: =IF(COUNTRY_INFO!B16=0," ",COUNTRY_INFO!B16) -> Analamanga | C16: =IF(COUNTRY_INFO!C16=0," ",COUNTRY_INFO!C16) -> Manjakandriana | D16: =IF(OR(COUNTRY_INFO!$T$9:$T$1000="T2 (PZQ)",COUNTRY_INFO!$U$9:$U$1000="T2 (PZQ)"), "T2 (PZQ)", " ") ->  | I16: 0 | M16: 0
A17: =IF(COUNTRY_INFO!A17=0," ",COUNTRY_INFO!A17) -> Madagascar | B17: =IF(COUNTRY_INFO!B17=0," ",COUNTRY_INFO!B17) -> Vakinankaratra | C17: =IF(COUNTRY_INFO!C17=0," ",COUNTRY_INFO!C17) -> Ambatolampy | D17: =IF(OR(COUNTRY_INFO!$T$9:$T$1000="T2 (PZQ)",COUNTRY_INFO!$U$9:$U$1000="T2 (PZQ)"), "T2 (PZQ)", " ") ->  | I17: 0 | M17: 0
A18: =IF(COUNTRY_INFO!A18=0," ",COUNTRY_INFO!A18) -> Madagascar | B18: =IF(COUNTRY_INFO!B18=0," ",COUNTRY_INFO!B18) -> Vakinankaratra | C18: =IF(COUNTRY_INFO!C18=0," ",COUNTRY_INFO!C18) -> Antanifotsy | D18: =IF(OR(COUNTRY_INFO!$T$9:$T$1000="T2 (PZQ)",COUNTRY_INFO!$U$9:$U$1000="T2 (PZQ)"), "T2 (PZQ)", " ") ->  | I18: 0 | M18: 0
A19: =IF(COUNTRY_INFO!A19=0," ",COUNTRY_INFO!A19) -> Madagascar | B19: =IF(COUNTRY_INFO!B19=0," ",COUNTRY_INFO!B19) -> Vakinankaratra | C19: =IF(COUNTRY_INFO!C19=0," ",COUNTRY_INFO!C19) -> Antsirabe I | D19: =IF(OR(COUNTRY_INFO!$T$9:$T$1000="T2 (PZQ)",COUNTRY_INFO!$U$9:$U$1000="T2 (PZQ)"), "T2 (PZQ)", " ") ->  | I19: 0 | M19: 0
A20: =IF(COUNTRY_INFO!A20=0," ",COUNTRY_INFO!A20) -> Madagascar | B20: =IF(COUNTRY_INFO!B20=0," ",COUNTRY_INFO!B20) -> Vakinankaratra | C20: =IF(COUNTRY_INFO!C20=0," ",COUNTRY_INFO!C20) -> Antsirabe II | D20: =IF(OR(COUNTRY_INFO!$T$9:$T$1000="T2 (PZQ)",COUNTRY_INFO!$U$9:$U$1000="T2 (PZQ)"), "T2 (PZQ)", " ") -> T2 (PZQ) | E20: Apr 2018 | G20: 112763 | I20: 112763 | K20: 86056 | M20: 86056 | O20: 76.31581281 | Q20: 76.31581281
A21: =IF(COUNTRY_INFO!A21=0," ",COUNTRY_INFO!A21) -> Madagascar | B21: =IF(COUNTRY_INFO!B21=0," ",COUNTRY_INFO!B21) -> Vakinankaratra | C21: =IF(COUNTRY_INFO!C21=0," ",COUNTRY_INFO!C21) -> Betafo | D21: =IF(OR(COUNTRY_INFO!$T$9:$T$1000="T2 (PZQ)",COUNTRY_INFO!$U$9:$U$1000="T2 (PZQ)"), "T2 (PZQ)", " ") ->  | I21: 0 | M21: 0
A22: =IF(COUNTRY_INFO!A22=0," ",COUNTRY_INFO!A22) -> Madagascar | B22: =IF(COUNTRY_INFO!B22=0," ",COUNTRY_INFO!B22) -> Vakinankaratra | C22: =IF(COUNTRY_INFO!C22=0," ",COUNTRY_INFO!C22) -> Faratsiho | D22: =IF(OR(COUNTRY_INFO!$T$9:$T$1000="T2 (PZQ)",COUNTRY_INFO!$U$9:$U$1000="T2 (PZQ)"), "T2 (PZQ)", " ") ->  | I22: 0 | M22: 0
A23: =IF(COUNTRY_INFO!A23=0," ",COUNTRY_INFO!A23) -> Madagascar | B23: =IF(COUNTRY_INFO!B23=0," ",COUNTRY_INFO!B23) -> Vakinankaratra | C23: =IF(COUNTRY_INFO!C23=0," ",COUNTRY_INFO!C23) -> Mandoto | D23: =IF(OR(COUNTRY_INFO!$T$9:$T$1000="T2 (PZQ)",COUNTRY_INFO!$U$9:$U$1000="T2 (PZQ)"), "T2 (PZQ)", " ") -> T2 (PZQ) | E23: Apr 2018 | G23: 53752 | I23: 53752 | K23: 43432 | M23: 43432 | O23: 80.80071439 | Q23: 80.80071439
A24: =IF(COUNTRY_INFO!A24=0," ",COUNTRY_INFO!A24) -> Madagascar | B24: =IF(COUNTRY_INFO!B24=0," ",COUNTRY_INFO!B24) -> Itasy | C24: =IF(COUNTRY_INFO!C24=0," ",COUNTRY_INFO!C24) -> Arivonimamo | D24: =IF(OR(COUNTRY_INFO!$T$9:$T$1000="T2 (PZQ)",COUNTRY_INFO!$U$9:$U$1000="T2 (PZQ)"), "T2 (PZQ)", " ") -> T2 (PZQ) | E24: Apr 2018 | G24: 89136 | I24: 89136 | K24: 86576 | M24: 86576 | O24: 97.1279842 | Q24: 97.1279842
A25: =IF(COUNTRY_INFO!A25=0," ",COUNTRY_INFO!A25) -> Madagascar | B25: =IF(COUNTRY_INFO!B25=0," ",COUNTRY_INFO!B25) -> Itasy | C25: =IF(COUNTRY_INFO!C25=0," ",COUNTRY_INFO!C25) -> Miarinarivo | D25: =IF(OR(COUNTRY_INFO!$T$9:$T$1000="T2 (PZQ)",COUNTRY_INFO!$U$9:$U$1000="T2 (PZQ)"), "T2 (PZQ)", " ") -> T2 (PZQ) | E25: Apr 2018 | G25: 76023 | I25: 76023 | K25: 57930 | M25: 57930 | O25: 76.2006235 | Q25: 76.2006235
A26: =IF(COUNTRY_INFO!A26=0," ",COUNTRY_INFO!A26) -> Madagascar | B26: =IF(COUNTRY_INFO!B26=0," ",COUNTRY_INFO!B26) -> Itasy | C26: =IF(COUNTRY_INFO!C26=0," ",COUNTRY_INFO!C26) -> Soavinandriana | D26: =IF(OR(COUNTRY_INFO!$T$9:$T$1000="T2 (PZQ)",COUNTRY_INFO!$U$9:$U$1000="T2 (PZQ)"), "T2 (PZQ)", " ") -> T2 (PZQ) | E26: Apr 2018 | G26: 62173 | I26: 62173 | K26: 46325 | M26: 46325 | O26: 74.50983546 | Q26: 74.50983546
A27: =IF(COUNTRY_INFO!A27=0," ",COUNTRY_INFO!A27) -> Madagascar | B27: =IF(COUNTRY_INFO!B27=0," ",COUNTRY_INFO!B27) -> Bongolava | C27: =IF(COUNTRY_INFO!C27=0," ",COUNTRY_INFO!C27) -> Fenoarivobe | D27: =IF(OR(COUNTRY_INFO!$T$9:$T$1000="T2 (PZQ)",COUNTRY_INFO!$U$9:$U$1000="T2 (PZQ)"), "T2 (PZQ)", " ") -> T2 (PZQ) | E27: Apr 2018 | G27: 50492 | I27: 50492 | K27: 30754 | M27: 30754 | O27: 60.9086588 | Q27: 60.9086588
A28: =IF(COUNTRY_INFO!A28=0," ",COUNTRY_INFO!A28) -> Madagascar | B28: =IF(COUNTRY_INFO!B28=0," ",COUNTRY_INFO!B28) -> Bongolava | C28: =IF(COUNTRY_INFO!C28=0," ",COUNTRY_INFO!C28) -> Tsiroanomandidy | D28: =IF(OR(COUNTRY_INFO!$T$9:$T$1000="T2 (PZQ)",COUNTRY_INFO!$U$9:$U$1000="T2 (PZQ)"), "T2 (PZQ)", " ") -> T2 (PZQ) | E28: Apr 2018 | G28: 98437 | I28: 98437 | K28: 73551 | M28: 73551 | O28: 74.71885571 | Q28: 74.71885571
A29: =IF(COUNTRY_INFO!A29=0," ",COUNTRY_INFO!A29) -> Madagascar | B29: =IF(COUNTRY_INFO!B29=0," ",COUNTRY_INFO!B29) -> Diana | C29: =IF(COUNTRY_INFO!C29=0," ",COUNTRY_INFO!C29) -> Ambanja | D29: =IF(OR(COUNTRY_INFO!$T$9:$T$1000="T2 (PZQ)",COUNTRY_INFO!$U$9:$U$1000="T2 (PZQ)"), "T2 (PZQ)", " ") -> T2 (PZQ) | E29: Apr 2018 | G29: 63563 | I29: 63563 | K29: 47534 | M29: 47534 | O29: 74.78249925 | Q29: 74.78249925
A30: =IF(COUNTRY_INFO!A30=0," ",COUNTRY_INFO!A30) -> Madagascar | B30: =IF(COUNTRY_INFO!B30=0," ",COUNTRY_INFO!B30) -> Diana | C30: =IF(COUNTRY_INFO!C30=0," ",COUNTRY_INFO!C30) -> Ambilobe | D30: =IF(OR(COUNTRY_INFO!$T$9:$T$1000="T2 (PZQ)",COUNTRY_INFO!$U$9:$U$1000="T2 (PZQ)"), "T2 (PZQ)", " ") ->  | I30: 0 | M30: 0
A31: =IF(COUNTRY_INFO!A31=0," ",COUNTRY_INFO!A31) -> Madagascar | B31: =IF(COUNTRY_INFO!B31=0," ",COUNTRY_INFO!B31) -> Diana | C31: =IF(COUNTRY_INFO!C31=0," ",COUNTRY_INFO!C31) -> Antsiranana I | D31: =IF(OR(COUNTRY_INFO!$T$9:$T$1000="T2 (PZQ)",COUNTRY_INFO!$U$9:$U$1000="T2 (PZQ)"), "T2 (PZQ)", " ") ->  | I31: 0 | M31: 0
A32: =IF(COUNTRY_INFO!A32=0," ",COUNTRY_INFO!A32) -> Madagascar | B32: =IF(COUNTRY_INFO!B32=0," ",COUNTRY_INFO!B32) -> Diana | C32: =IF(COUNTRY_INFO!C32=0," ",COUNTRY_INFO!C32) -> Antsiranana II | D32: =IF(OR(COUNTRY_INFO!$T$9:$T$1000="T2 (PZQ)",COUNTRY_INFO!$U$9:$U$1000="T2 (PZQ)"), "T2 (PZQ)", " ") ->  | I32: 0 | M32: 0
A33: =IF(COUNTRY_INFO!A33=0," ",COUNTRY_INFO!A33) -> Madagascar | B33: =IF(COUNTRY_INFO!B33=0," ",COUNTRY_INFO!B33) -> Diana | C33: =IF(COUNTRY_INFO!C33=0," ",COUNTRY_INFO!C33) -> Nosy Be | D33: =IF(OR(COUNTRY_INFO!$T$9:$T$1000="T2 (PZQ)",COUNTRY_INFO!$U$9:$U$1000="T2 (PZQ)"), "T2 (PZQ)", " ") -> T2 (PZQ) | E33: Apr 2018 | G33: 19883 | I33: 19883 | K33: 18769 | M33: 18769 | O33: 94.39722376 | Q33: 94.39722376
A34: =IF(COUNTRY_INFO!A34=0," ",COUNTRY_INFO!A34) -> Madagascar | B34: =IF(COUNTRY_INFO!B34=0," ",COUNTRY_INFO!B34) -> Sava | C34: =IF(COUNTRY_INFO!C34=0," ",COUNTRY_INFO!C34) -> Andapa | D34: =IF(OR(COUNTRY_INFO!$T$9:$T$1000="T2 (PZQ)",COUNTRY_INFO!$U$9:$U$1000="T2 (PZQ)"), "T2 (PZQ)", " ") -> T2 (PZQ) | E34: Apr 2018 | G34: 53997 | I34: 53997 | K34: 52699 | M34: 52699 | O34: 97.59616275 | Q34: 97.59616275
A35: =IF(COUNTRY_INFO!A35=0," ",COUNTRY_INFO!A35) -> Madagascar | B35: =IF(COUNTRY_INFO!B35=0," ",COUNTRY_INFO!B35) -> Sava | C35: =IF(COUNTRY_INFO!C35=0," ",COUNTRY_INFO!C35) -> Antalaha | D35: =IF(OR(COUNTRY_INFO!$T$9:$T$1000="T2 (PZQ)",COUNTRY_INFO!$U$9:$U$1000="T2 (PZQ)"), "T2 (PZQ)", " ") -> T2 (PZQ) | E35: Apr 2018 | G35: 76002 | I35: 76002 | K35: 72660 | M35: 72660 | O35: 95.6027473 | Q35: 95.6027473
A36: =IF(COUNTRY_INFO!A36=0," ",COUNTRY_INFO!A36) -> Madagascar | B36: =IF(COUNTRY_INFO!B36=0," ",COUNTRY_INFO!B36) -> Sava | C36: =IF(COUNTRY_INFO!C36=0," ",COUNTRY_INFO!C36) -> Sambava | D36: =IF(OR(COUNTRY_INFO!$T$9:$T$1000="T2 (PZQ)",COUNTRY_INFO!$U$9:$U$1000="T2 (PZQ)"), "T2 (PZQ)", " ") -> T2 (PZQ) | E36: Apr 2018 | G36: 116671 | I36: 116671 | K36: 93003 | M36: 93003 | O36: 79.71389634 | Q36: 79.71389634
A37: =IF(COUNTRY_INFO!A37=0," ",COUNTRY_INFO!A37) -> Madagascar | B37: =IF(COUNTRY_INFO!B37=0," ",COUNTRY_INFO!B37) -> Sava | C37: =IF(COUNTRY_INFO!C37=0," ",COUNTRY_INFO!C37) -> Vohémar | D37: =IF(OR(COUNTRY_INFO!$T$9:$T$1000="T2 (PZQ)",COUNTRY_INFO!$U$9:$U$1000="T2 (PZQ)"), "T2 (PZQ)", " ") -> T2 (PZQ) | E37: Apr 2018 | G37: 71238 | I37: 71238 | K37: 67779 | M37: 67779 | O37: 95.14444538 | Q37: 95.14444538
A38: =IF(COUNTRY_INFO!A38=0," ",COUNTRY_INFO!A38) -> Madagascar | B38: =IF(COUNTRY_INFO!B38=0," ",COUNTRY_INFO!B38) -> Haute Matsiatra | C38: =IF(COUNTRY_INFO!C38=0," ",COUNTRY_INFO!C38) -> Ambalavao | D38: =IF(OR(COUNTRY_INFO!$T$9:$T$1000="T2 (PZQ)",COUNTRY_INFO!$U$9:$U$1000="T2 (PZQ)"), "T2 (PZQ)", " ") -> T2 (PZQ) | E38: Apr 2018 | G38: 84389 | I38: 84389 | K38: 77653 | M38: 77653 | O38: 92.01791703 | Q38: 92.01791703
A39: =IF(COUNTRY_INFO!A39=0," ",COUNTRY_INFO!A39) -> Madagascar | B39: =IF(COUNTRY_INFO!B39=0," ",COUNTRY_INFO!B39) -> Haute Matsiatra | C39: =IF(COUNTRY_INFO!C39=0," ",COUNTRY_INFO!C39) -> Ambohimahasoa | D39: =IF(OR(COUNTRY_INFO!$T$9:$T$1000="T2 (PZQ)",COUNTRY_INFO!$U$9:$U$1000="T2 (PZQ)"), "T2 (PZQ)", " ") -> T2 (PZQ) | E39: Apr 2018 | G39: 79301 | I39: 79301 | K39: 69178 | M39: 69178 | O39: 87.23471331 | Q39: 87.23471331
A40: =IF(COUNTRY_INFO!A40=0," ",COUNTRY_INFO!A40) -> Madagascar | B40: =IF(COUNTRY_INFO!B40=0," ",COUNTRY_INFO!B40) -> Haute Matsiatra | C40: =IF(COUNTRY_INFO!C40=0," ",COUNTRY_INFO!C40) -> Fianarantsoa I | D40: =IF(OR(COUNTRY_INFO!$T$9:$T$1000="T2 (PZQ)",COUNTRY_INFO!$U$9:$U$1000="T2 (PZQ)"), "T2 (PZQ)", " ") -> T2 (PZQ) | E40: Apr 2018 | G40: 58230 | I40: 58230 | K40: 37751 | M40: 37751 | O40: 64.83084321 | Q40: 64.83084321
A41: =IF(COUNTRY_INFO!A41=0," ",COUNTRY_INFO!A41) -> Madagascar | B41: =IF(COUNTRY_INFO!B41=0," ",COUNTRY_INFO!B41) -> Haute Matsiatra | C41: =IF(COUNTRY_INFO!C41=0," ",COUNTRY_INFO!C41) -> Ikalamavony | D41: =IF(OR(COUNTRY_INFO!$T$9:$T$1000="T2 (PZQ)",COUNTRY_INFO!$U$9:$U$1000="T2 (PZQ)"), "T2 (PZQ)", " ") -> T2 (PZQ) | E41: Apr 2018 | G41: 30352 | I41: 30352 | K41: 27484 | M41: 27484 | O41: 90.55086979 | Q41: 90.55086979
A42: =IF(COUNTRY_INFO!A42=0," ",COUNTRY_INFO!A42) -> Madagascar | B42: =IF(COUNTRY_INFO!B42=0," ",COUNTRY_INFO!B42) -> Haute Matsiatra | C42: =IF(COUNTRY_INFO!C42=0," ",COUNTRY_INFO!C42) -> Isandra | D42: =IF(OR(COUNTRY_INFO!$T$9:$T$1000="T2 (PZQ)",COUNTRY_INFO!$U$9:$U$1000="T2 (PZQ)"), "T2 (PZQ)", " ") -> T2 (PZQ) | E42: Apr 2018 | G42: 47368 | I42: 47368 | K42: 38630 | M42: 38630 | O42: 81.55294714 | Q42: 81.55294714
A43: =IF(COUNTRY_INFO!A43=0," ",COUNTRY_INFO!A43) -> Madagascar | B43: =IF(COUNTRY_INFO!B43=0," ",COUNTRY_INFO!B43) -> Haute Matsiatra | C43: =IF(COUNTRY_INFO!C43=0," ",COUNTRY_INFO!C43) -> Vohibato | D43: =IF(OR(COUNTRY_INFO!$T$9:$T$1000="T2 (PZQ)",COUNTRY_INFO!$U$9:$U$1000="T2 (PZQ)"), "T2 (PZQ)", " ") -> T2 (PZQ) | E43: Apr 2018 | G43: 66422 | I43: 66422 | K43: 62073 | M43: 62073 | O43: 93.45247057 | Q43: 93.45247057
A44: =IF(COUNTRY_INFO!A44=0," ",COUNTRY_INFO!A44) -> Madagascar | B44: =IF(COUNTRY_INFO!B44=0," ",COUNTRY_INFO!B44) -> Haute Matsiatra | C44: =IF(COUNTRY_INFO!C44=0," ",COUNTRY_INFO!C44) -> Lalangina | D44: =IF(OR(COUNTRY_INFO!$T$9:$T$1000="T2 (PZQ)",COUNTRY_INFO!$U$9:$U$1000="T2 (PZQ)"), "T2 (PZQ)", " ") -> T2 (PZQ) | E44: Apr 2018 | G44: 47449 | I44: 47449 | K44: 40365 | M44: 40365 | O44: 85.07028599 | Q44: 85.07028599
A45: =IF(COUNTRY_INFO!A45=0," ",COUNTRY_INFO!A45) -> Madagascar | B45: =IF(COUNTRY_INFO!B45=0," ",COUNTRY_INFO!B45) -> Amoron'Imania | C45: =IF(COUNTRY_INFO!C45=0," ",COUNTRY_INFO!C45) -> Ambatofinandrahana | D45: =IF(OR(COUNTRY_INFO!$T$9:$T$1000="T2 (PZQ)",COUNTRY_INFO!$U$9:$U$1000="T2 (PZQ)"), "T2 (PZQ)", " ") -> T2 (PZQ) | E45: Apr 2018 | G45: 68220 | I45: 68220 | K45: 63050 | M45: 63050 | O45: 92.42157725 | Q45: 92.42157725
A46: =IF(COUNTRY_INFO!A46=0," ",COUNTRY_INFO!A46) -> Madagascar | B46: =IF(COUNTRY_INFO!B46=0," ",COUNTRY_INFO!B46) -> Amoron'Imania | C46: =IF(COUNTRY_INFO!C46=0," ",COUNTRY_INFO!C46) -> Ambositra | D46: =IF(OR(COUNTRY_INFO!$T$9:$T$1000="T2 (PZQ)",COUNTRY_INFO!$U$9:$U$1000="T2 (PZQ)"), "T2 (PZQ)", " ") -> T2 (PZQ) | E46: Apr 2018 | G46: 86668 | I46: 86668 | K46: 84261 | M46: 84261 | O46: 97.22273503 | Q46: 97.22273503
A47: =IF(COUNTRY_INFO!A47=0," ",COUNTRY_INFO!A47) -> Madagascar | B47: =IF(COUNTRY_INFO!B47=0," ",COUNTRY_INFO!B47) -> Amoron'Imania | C47: =IF(COUNTRY_INFO!C47=0," ",COUNTRY_INFO!C47) -> Fandriana | D47: =IF(OR(COUNTRY_INFO!$T$9:$T$1000="T2 (PZQ)",COUNTRY_INFO!$U$9:$U$1000="T2 (PZQ)"), "T2 (PZQ)", " ") ->  | I47: 0 | M47: 0
A48: =IF(COUNTRY_INFO!A48=0," ",COUNTRY_INFO!A48) -> Madagascar | B48: =IF(COUNTRY_INFO!B48=0," ",COUNTRY_INFO!B48) -> Amoron'Imania | C48: =IF(COUNTRY_INFO!C48=0," ",COUNTRY_INFO!C48) -> Manandriana | D48: =IF(OR(COUNTRY_INFO!$T$9:$T$1000="T2 (PZQ)",COUNTRY_INFO!$U$9:$U$1000="T2 (PZQ)"), "T2 (PZQ)", " ") -> T2 (PZQ) | E48: Apr 2018 | G48: 34055 | I48: 34055 | K48: 32169 | M48: 32169 | O48: 94.46189987 | Q48: 94.46189987
A49: =IF(COUNTRY_INFO!A49=0," ",COUNTRY_INFO!A49) -> Madagascar | B49: =IF(COUNTRY_INFO!B49=0," ",COUNTRY_INFO!B49) -> Ihorombe | C49: =IF(COUNTRY_INFO!C49=0," ",COUNTRY_INFO!C49) -> Iakora | D49: =IF(OR(COUNTRY_INFO!$T$9:$T$1000="T2 (PZQ)",COUNTRY_INFO!$U$9:$U$1000="T2 (PZQ)"), "T2 (PZQ)", " ") -> T2 (PZQ) | E49: Apr 2018 | G49: 56060 | I49: 56060 | K49: 50314 | M49: 50314 | O49: 89.75026757 | Q49: 89.75026757
A50: =IF(COUNTRY_INFO!A50=0," ",COUNTRY_INFO!A50) -> Madagascar | B50: =IF(COUNTRY_INFO!B50=0," ",COUNTRY_INFO!B50) -> Ihorombe | C50: =IF(COUNTRY_INFO!C50=0," ",COUNTRY_INFO!C50) -> Ihosy | D50: =IF(OR(COUNTRY_INFO!$T$9:$T$1000="T2 (PZQ)",COUNTRY_INFO!$U$9:$U$1000="T2 (PZQ)"), "T2 (PZQ)", " ") -> T2 (PZQ) | E50: Apr 2018 | G50: 83657 | I50: 83657 | K50: 65953 | M50: 65953 | O50: 78.83739556 | Q50: 78.83739556
A51: =IF(COUNTRY_INFO!A51=0," ",COUNTRY_INFO!A51) -> Madagascar | B51: =IF(COUNTRY_INFO!B51=0," ",COUNTRY_INFO!B51) -> Ihorombe | C51: =IF(COUNTRY_INFO!C51=0," ",COUNTRY_INFO!C51) -> Ivohibe | D51: =IF(OR(COUNTRY_INFO!$T$9:$T$1000="T2 (PZQ)",COUNTRY_INFO!$U$9:$U$1000="T2 (PZQ)"), "T2 (PZQ)", " ") -> T2 (PZQ) | E51: Apr 2018 | G51: 18837 | I51: 18837 | K51: 17229 | M51: 17229 | O51: 91.46360885 | Q51: 91.46360885
A52: =IF(COUNTRY_INFO!A52=0," ",COUNTRY_INFO!A52) -> Madagascar | B52: =IF(COUNTRY_INFO!B52=0," ",COUNTRY_INFO!B52) -> Vatovavy Fitovinany | C52: =IF(COUNTRY_INFO!C52=0," ",COUNTRY_INFO!C52) -> Ifanadiana | D52: =IF(OR(COUNTRY_INFO!$T$9:$T$1000="T2 (PZQ)",COUNTRY_INFO!$U$9:$U$1000="T2 (PZQ)"), "T2 (PZQ)", " ") -> T2 (PZQ) | E52: Apr 2018 | G52: 45954 | I52: 45954 | K52: 44156 | M52: 44156 | O52: 96.08739174 | Q52: 96.08739174
A53: =IF(COUNTRY_INFO!A53=0," ",COUNTRY_INFO!A53) -> Madagascar | B53: =IF(COUNTRY_INFO!B53=0," ",COUNTRY_INFO!B53) -> Vatovavy Fitovinany | C53: =IF(COUNTRY_INFO!C53=0," ",COUNTRY_INFO!C53) -> Ikongo | D53: =IF(OR(COUNTRY_INFO!$T$9:$T$1000="T2 (PZQ)",COUNTRY_INFO!$U$9:$U$1000="T2 (PZQ)"), "T2 (PZQ)", " ") -> T2 (PZQ) | E53: Apr 2018 | G53: 91268 | I53: 91268 | K53: 75869 | M53: 75869 | O53: 83.12771179 | Q53: 83.12771179
A54: =IF(COUNTRY_INFO!A54=0," ",COUNTRY_INFO!A54) -> Madagascar | B54: =IF(COUNTRY_INFO!B54=0," ",COUNTRY_INFO!B54) -> Vatovavy Fitovinany | C54: =IF(COUNTRY_INFO!C54=0," ",COUNTRY_INFO!C54) -> Manakara | D54: =IF(OR(COUNTRY_INFO!$T$9:$T$1000="T2 (PZQ)",COUNTRY_INFO!$U$9:$U$1000="T2 (PZQ)"), "T2 (PZQ)", " ") ->  | I54: 0 | M54: 0
A55: =IF(COUNTRY_INFO!A55=0," ",COUNTRY_INFO!A55) -> Madagascar | B55: =IF(COUNTRY_INFO!B55=0," ",COUNTRY_INFO!B55) -> Vatovavy Fitovinany | C55: =IF(COUNTRY_INFO!C55=0," ",COUNTRY_INFO!C55) -> Mananjary | D55: =IF(OR(COUNTRY_INFO!$T$9:$T$1000="T2 (PZQ)",COUNTRY_INFO!$U$9:$U$1000="T2 (PZQ)"), "T2 (PZQ)", " ") -> T2 (PZQ) | E55: Apr 2018 | G55: 114701 | I55: 114701 | K55: 113724 | M55: 113724 | O55: 99.14822016 | Q55: 99.14822016
A56: =IF(COUNTRY_INFO!A56=0," ",COUNTRY_INFO!A56) -> Madagascar | B56: =IF(COUNTRY_INFO!B56=0," ",COUNTRY_INFO!B56) -> Vatovavy Fitovinany | C56: =IF(COUNTRY_INFO!C56=0," ",COUNTRY_INFO!C56) -> Nosy Varika | D56: =IF(OR(COUNTRY_INFO!$T$9:$T$1000="T2 (PZQ)",COUNTRY_INFO!$U$9:$U$1000="T2 (PZQ)"), "T2 (PZQ)", " ") -> T2 (PZQ) | E56: Apr 2018 | G56: 93478 | I56: 93478 | K56: 86450 | M56: 86450 | O56: 92.48165344 | Q56: 92.48165344
A57: =IF(COUNTRY_INFO!A57=0," ",COUNTRY_INFO!A57) -> Madagascar | B57: =IF(COUNTRY_INFO!B57=0," ",COUNTRY_INFO!B57) -> Vatovavy Fitovinany | C57: =IF(COUNTRY_INFO!C57=0," ",COUNTRY_INFO!C57) -> Vohipeno | D57: =IF(OR(COUNTRY_INFO!$T$9:$T$1000="T2 (PZQ)",COUNTRY_INFO!$U$9:$U$1000="T2 (PZQ)"), "T2 (PZQ)", " ") -> T2 (PZQ) | E57: Apr 2018 | G57: 52019 | I57: 52019 | K57: 47637 | M57: 47637 | O57: 91.57615487 | Q57: 91.57615487
A58: =IF(COUNTRY_INFO!A58=0," ",COUNTRY_INFO!A58) -> Madagascar | B58: =IF(COUNTRY_INFO!B58=0," ",COUNTRY_INFO!B58) -> Atsimo Atsinanana | C58: =IF(COUNTRY_INFO!C58=0," ",COUNTRY_INFO!C58) -> Befotaka | D58: =IF(OR(COUNTRY_INFO!$T$9:$T$1000="T2 (PZQ)",COUNTRY_INFO!$U$9:$U$1000="T2 (PZQ)"), "T2 (PZQ)", " ") -> T2 (PZQ) | E58: Apr 2018 | G58: 18962 | I58: 18962 | K58: 17246 | M58: 17246 | O58: 90.9503217 | Q58: 90.9503217
A59: =IF(COUNTRY_INFO!A59=0," ",COUNTRY_INFO!A59) -> Madagascar | B59: =IF(COUNTRY_INFO!B59=0," ",COUNTRY_INFO!B59) -> Atsimo Atsinanana | C59: =IF(COUNTRY_INFO!C59=0," ",COUNTRY_INFO!C59) -> Farafangana | D59: =IF(OR(COUNTRY_INFO!$T$9:$T$1000="T2 (PZQ)",COUNTRY_INFO!$U$9:$U$1000="T2 (PZQ)"), "T2 (PZQ)", " ") -> T2 (PZQ) | E59: Apr 2018 | G59: 116710 | I59: 116710 | K59: 115534 | M59: 115534 | O59: 98.99237426 | Q59: 98.99237426
A60: =IF(COUNTRY_INFO!A60=0," ",COUNTRY_INFO!A60) -> Madagascar | B60: =IF(COUNTRY_INFO!B60=0," ",COUNTRY_INFO!B60) -> Atsimo Atsinanana | C60: =IF(COUNTRY_INFO!C60=0," ",COUNTRY_INFO!C60) -> Midongy Atsimo | D60: =IF(OR(COUNTRY_INFO!$T$9:$T$1000="T2 (PZQ)",COUNTRY_INFO!$U$9:$U$1000="T2 (PZQ)"), "T2 (PZQ)", " ") -> T2 (PZQ) | E60: Apr 2018 | G60: 16031 | I60: 16031 | K60: 15718 | M60: 15718 | O60: 98.0475329 | Q60: 98.0475329
A61: =IF(COUNTRY_INFO!A61=0," ",COUNTRY_INFO!A61) -> Madagascar | B61: =IF(COUNTRY_INFO!B61=0," ",COUNTRY_INFO!B61) -> Atsimo Atsinanana | C61: =IF(COUNTRY_INFO!C61=0," ",COUNTRY_INFO!C61) -> Vangaindrano | D61: =IF(OR(COUNTRY_INFO!$T$9:$T$1000="T2 (PZQ)",COUNTRY_INFO!$U$9:$U$1000="T2 (PZQ)"), "T2 (PZQ)", " ") ->  | I61: 0 | M61: 0
A62: =IF(COUNTRY_INFO!A62=0," ",COUNTRY_INFO!A62) -> Madagascar | B62: =IF(COUNTRY_INFO!B62=0," ",COUNTRY_INFO!B62) -> Atsimo Atsinanana | C62: =IF(COUNTRY_INFO!C62=0," ",COUNTRY_INFO!C62) -> Vondrozo | D62: =IF(OR(COUNTRY_INFO!$T$9:$T$1000="T2 (PZQ)",COUNTRY_INFO!$U$9:$U$1000="T2 (PZQ)"), "T2 (PZQ)", " ") -> T2 (PZQ) | E62: Apr 2018 | G62: 40631 | I62: 40631 | K62: 40625 | M62: 40625 | O62: 99.98523295 | Q62: 99.98523295
A63: =IF(COUNTRY_INFO!A63=0," ",COUNTRY_INFO!A63) -> Madagascar | B63: =IF(COUNTRY_INFO!B63=0," ",COUNTRY_INFO!B63) -> Boeny | C63: =IF(COUNTRY_INFO!C63=0," ",COUNTRY_INFO!C63) -> Ambato Boeni | D63: =IF(OR(COUNTRY_INFO!$T$9:$T$1000="T2 (PZQ)",COUNTRY_INFO!$U$9:$U$1000="T2 (PZQ)"), "T2 (PZQ)", " ") -> T2 (PZQ) | E63: Apr 2018 | G63: 59685 | I63: 59685 | K63: 49970 | M63: 49970 | O63: 83.72287845 | Q63: 83.72287845
A64: =IF(COUNTRY_INFO!A64=0," ",COUNTRY_INFO!A64) -> Madagascar | B64: =IF(COUNTRY_INFO!B64=0," ",COUNTRY_INFO!B64) -> Boeny | C64: =IF(COUNTRY_INFO!C64=0," ",COUNTRY_INFO!C64) -> Mahajanga I | D64: =IF(OR(COUNTRY_INFO!$T$9:$T$1000="T2 (PZQ)",COUNTRY_INFO!$U$9:$U$1000="T2 (PZQ)"), "T2 (PZQ)", " ") -> T2 (PZQ) | E64: Apr 2018 | G64: 27596 | I64: 27596 | K64: 22853 | M64: 22853 | O64: 82.81272648 | Q64: 82.81272648
A65: =IF(COUNTRY_INFO!A65=0," ",COUNTRY_INFO!A65) -> Madagascar | B65: =IF(COUNTRY_INFO!B65=0," ",COUNTRY_INFO!B65) -> Boeny | C65: =IF(COUNTRY_INFO!C65=0," ",COUNTRY_INFO!C65) -> Mahajanga II | D65: =IF(OR(COUNTRY_INFO!$T$9:$T$1000="T2 (PZQ)",COUNTRY_INFO!$U$9:$U$1000="T2 (PZQ)"), "T2 (PZQ)", " ") -> T2 (PZQ) | E65: Apr 2018 | G65: 20432 | I65: 20432 | K65: 20258 | M65: 20258 | O65: 99.14839468 | Q65: 99.14839468
A66: =IF(COUNTRY_INFO!A66=0," ",COUNTRY_INFO!A66) -> Madagascar | B66: =IF(COUNTRY_INFO!B66=0," ",COUNTRY_INFO!B66) -> Boeny | C66: =IF(COUNTRY_INFO!C66=0," ",COUNTRY_INFO!C66) -> Marovoay | D66: =IF(OR(COUNTRY_INFO!$T$9:$T$1000="T2 (PZQ)",COUNTRY_INFO!$U$9:$U$1000="T2 (PZQ)"), "T2 (PZQ)", " ") -> T2 (PZQ) | E66: Apr 2018 | G66: 56938 | I66: 56938 | K66: 48056 | M66: 48056 | O66: 84.40057607 | Q66: 84.40057607
A67: =IF(COUNTRY_INFO!A67=0," ",COUNTRY_INFO!A67) -> Madagascar | B67: =IF(COUNTRY_INFO!B67=0," ",COUNTRY_INFO!B67) -> Boeny | C67: =IF(COUNTRY_INFO!C67=0," ",COUNTRY_INFO!C67) -> Mitsinjo | D67: =IF(OR(COUNTRY_INFO!$T$9:$T$1000="T2 (PZQ)",COUNTRY_INFO!$U$9:$U$1000="T2 (PZQ)"), "T2 (PZQ)", " ") -> T2 (PZQ) | E67: Apr 2018 | G67: 22652 | I67: 22652 | K67: 22448 | M67: 22448 | O67: 99.09941727 | Q67: 99.09941727
A68: =IF(COUNTRY_INFO!A68=0," ",COUNTRY_INFO!A68) -> Madagascar | B68: =IF(COUNTRY_INFO!B68=0," ",COUNTRY_INFO!B68) -> Boeny | C68: =IF(COUNTRY_INFO!C68=0," ",COUNTRY_INFO!C68) -> Soalala | D68: =IF(OR(COUNTRY_INFO!$T$9:$T$1000="T2 (PZQ)",COUNTRY_INFO!$U$9:$U$1000="T2 (PZQ)"), "T2 (PZQ)", " ") -> T2 (PZQ) | E68: Apr 2018 | G68: 11561 | I68: 11561 | K68: 8422 | M68: 8422 | O68: 72.84836952 | Q68: 72.84836952
A69: =IF(COUNTRY_INFO!A69=0," ",COUNTRY_INFO!A69) -> Madagascar | B69: =IF(COUNTRY_INFO!B69=0," ",COUNTRY_INFO!B69) -> Betsiboka | C69: =IF(COUNTRY_INFO!C69=0," ",COUNTRY_INFO!C69) -> Kandreho | D69: =IF(OR(COUNTRY_INFO!$T$9:$T$1000="T2 (PZQ)",COUNTRY_INFO!$U$9:$U$1000="T2 (PZQ)"), "T2 (PZQ)", " ") -> T2 (PZQ) | E69: Apr 2018 | G69: 9186 | I69: 9186 | K69: 8912 | M69: 8912 | O69: 97.01720009 | Q69: 97.01720009
A70: =IF(COUNTRY_INFO!A70=0," ",COUNTRY_INFO!A70) -> Madagascar | B70: =IF(COUNTRY_INFO!B70=0," ",COUNTRY_INFO!B70) -> Betsiboka | C70: =IF(COUNTRY_INFO!C70=0," ",COUNTRY_INFO!C70) -> Maevatanana | D70: =IF(OR(COUNTRY_INFO!$T$9:$T$1000="T2 (PZQ)",COUNTRY_INFO!$U$9:$U$1000="T2 (PZQ)"), "T2 (PZQ)", " ") -> T2 (PZQ) | E70: Apr 2018 | G70: 54031 | I70: 54031 | K70: 47207 | M70: 47207 | O70: 87.3702134 | Q70: 87.3702134
A71: =IF(COUNTRY_INFO!A71=0," ",COUNTRY_INFO!A71) -> Madagascar | B71: =IF(COUNTRY_INFO!B71=0," ",COUNTRY_INFO!B71) -> Betsiboka | C71: =IF(COUNTRY_INFO!C71=0," ",COUNTRY_INFO!C71) -> Tsaratanana | D71: =IF(OR(COUNTRY_INFO!$T$9:$T$1000="T2 (PZQ)",COUNTRY_INFO!$U$9:$U$1000="T2 (PZQ)"), "T2 (PZQ)", " ") -> T2 (PZQ) | E71: Apr 2018 | G71: 44027 | I71: 44027 | K71: 32314 | M71: 32314 | O71: 73.39587072 | Q71: 73.39587072
A72: =IF(COUNTRY_INFO!A72=0," ",COUNTRY_INFO!A72) -> Madagascar | B72: =IF(COUNTRY_INFO!B72=0," ",COUNTRY_INFO!B72) -> Melaky | C72: =IF(COUNTRY_INFO!C72=0," ",COUNTRY_INFO!C72) -> Ambatomainty | D72: =IF(OR(COUNTRY_INFO!$T$9:$T$1000="T2 (PZQ)",COUNTRY_INFO!$U$9:$U$1000="T2 (PZQ)"), "T2 (PZQ)", " ") -> T2 (PZQ) | E72: Apr 2018 | G72: 13954 | I72: 13954 | K72: 12871 | M72: 12871 | O72: 92.23878458 | Q72: 92.23878458
A73: =IF(COUNTRY_INFO!A73=0," ",COUNTRY_INFO!A73) -> Madagascar | B73: =IF(COUNTRY_INFO!B73=0," ",COUNTRY_INFO!B73) -> Melaky | C73: =IF(COUNTRY_INFO!C73=0," ",COUNTRY_INFO!C73) -> Antsalova | D73: =IF(OR(COUNTRY_INFO!$T$9:$T$1000="T2 (PZQ)",COUNTRY_INFO!$U$9:$U$1000="T2 (PZQ)"), "T2 (PZQ)", " ") -> T2 (PZQ) | E73: Apr 2018 | G73: 21720 | I73: 21720 | K73: 14373 | M73: 14373 | O73: 66.17403315 | Q73: 66.17403315
